{"text_format":"1","workbook":"xlsx","n_sheets":1,"sheets":["Sheet1"],"not_rendered":{"charts":0,"images":0,"macros":1,"external_links":0,"defined_names":1,"comments":0,"pivot_tables":0},"unopened":[],"bounds":{"document_bytes":16777216,"sheet_cells":100000,"rows_first":2000,"rows_last":500,"rows_between":2000,"halvings":0,"cell_chars":16384,"cell_head_chars":4096},"cells_cut":0,"cells_raw":0,"read":"whole","date_system":"1900"}

{"sheet":"Sheet1","index":0,"n_rows":10002,"n_cols":3,"rows_kept":10002,"cut":false,"hidden":false,"merged":[]}
["Origin","Destination","Price"]
["Luxembourg","Vaxjoe Kalmar",{"$f":"CEILING(4000*RAND(),1)+1000","v":4684}]
["Paderbo Munster ","Nice",{"$f":"CEILING(4000*RAND(),1)+1000","v":4908}]
["Vaxjoe Kalmar","Amsterdam ",1420]
["Warsaw","London/Heathrow",2451]
["Zurich","Dusseldorf",3272]
["Sharm","Berlin/Tegel",2803]
["Bergen","Faroe Islands",3309]
["Bergen Sandefj","Joenkoeping",2149]
["Chicago","Turku",2618]
["Bergen","Seattle",{"$f":"CEILING(4000*RAND(),1)+1000","v":1041}]
["Munster","Skopje Bornhlm",2342]
["Rome/Ciampino","St Petersburg",4883]
["Kangerlussuaq","Skopje Bornhlm",1966]
["Newark","Rio Heathrw",2532]
["Stuttgart","Venice",2126]
["Tunis","Prague",1995]
["Joenkoeping","Riga",2725]
["Seattle","Milan/Malpensa",1038]
["Gothenburg","Rome/Ciampino",4138]
["Malaga Madrid","Karlstad",1937]
["St Petersburg","Berlin/Tegel",3605]
["Troheim Sandefj","Berlin/Tegel",4259]
["Brussels ","Amsterdam ",4935]
["Chicago","Frankfurt",1867]
["Warsaw","Kangerlussuaq",2451]
["Frankfurt","Dusseldorf",4855]
["Ljubljana","Bergen",2833]
["Helsinki","Vesteraas",1726]
["Sandefjord","Dusseldorf",2991]
["London/Stansted","Gothenburg",4351]
["Amsterdam ","Athens",3173]
["Stockholm","Vaxjoe Kalmar",4502]
["Joenkoeping","Malaga/Cost.Sol",1681]
["Stockholm","Kristiansand",4435]
["Karachi Lahore","Malta",4775]
["Madrid","Linkoeping",3029]
["Karlstad","Norrkoeping",3106]
["Lisbon","Munich",1171]
["Stuttgart","Oslo",1748]
["Frankfurt","Hurghada",3206]
["Malaga Madrid","Glasgow",2290]
["Vienna","Madrid",2638]
["Athens","Newark",2353]
["Helsingborg City ","Szczecin",3812]
["Tunis","Paris De Gaulle",2437]
["Orebro Karlstd","Helsinki",2973]
["Rio Heathrw","Stavanger",2339]
["Karlstd Orebro","Athens",1329]
["Tenerife","Hurghada",2813]
["Hurghada","Zurich",4288]
["Vesteraas","Helsingborg City ",1325]
["Lyon Strasb","Karachi Lahore",2531]
["Linkoeping","Glasgow Edinbg",1259]
["Glasgow","Moscow",2104]
["Helsingborg City ","London/Stansted",2079]
["Karlstad","Sngpore Bangkok",2683]
["Dusseldorf","Dublin",1965]
["Lyon Strasb","Tallinn",4368]
["Kristiansand","Manchester",2937]
["Oslo","Malaga/Cost.Sol",4321]
["Helsinki","Bucarst Berlin",2491]
["Warsaw","Seattle",2939]
["Bangkok","London/Stansted",2287]
["Milan/Malpensa","Helsingborg City ",4782]
["Tallinn","Singapore",4026]
["Paderbo Munster ","Tallinn",{"$f":"CEILING(4000*RAND(),1)+1000","v":4136}]
["Gothenburg","Oslo",3233]
["Narsarsuaq","Paris De Gaulle",4002]
["Joenkoeping","Sharm",1492]
["Stockholm","Lisbon",2436]
["Washington","Madrid",4455]
["Frankfurt","Luxembourg",2183]
["Nice","Geneva",3175]
["Malta","Karachi Lahore",1637]
["Hanover","Seattle",3093]
["Prague","Venice",4062]
["Rome","Poznan",4293]
["Rome","Karachi Lahore",1772]
["Riga","Zurich",2768]
["Moscow","Helsinki",3556]
["Newark","Joenkoeping",4011]
["Istanbul","Reykjavik",2557]
["Tunis","Washington",4887]
["Munich","Helsingborg City ",1988]
["Zurich","Gothenburg",3444]
["Hanover","Tenerife",2911]
["Sngpore Bangkok","Wroclaw",4484]
["Bremen","Kristiansand",2740]
["Wroclaw","Lisbon",4616]
["Vienna","Chicago",4123]
["Kalmar Vaxjoe","Bremen",3550]
["Chicago","Rio Heathrw",2745]
["Berlin/Tegel","Madrid",4708]
["Brussels ","Trondheim",4833]
["Bucarst Berlin","Geneva",4500]
["Munster","Istanbul",4505]
["Poznan","Malaga/Cost.Sol",2653]
["Dusseldorf","Hamburg",3646]
["London/Stansted","Rio Heathrw",4419]
["Karlstad","Basel",1928]
["Luxembourg","Trondheim",2906]
["Sharm Luxor","Istanbul",1551]
["Glasgow Edinbg","Vaxjoe Kalmar",2866]
["Hanover","Rome/Ciampino",1436]
["Skopje Bornhlm","Lyon Strasb",1955]
["St Petersburg","Dublin",4399]
["Prague","Rome",1424]
["Luxembourg","Chicago",4330]
["Troheim Sandefj","Faroe Islands",4077]
["London/Gatwick","Wroclaw",3566]
["Dublin","Milan/Malpensa",2059]
["Bucarst Berlin","Rome",3661]
["Oslo","Vaxjoe Kalmar",2424]
["Sngpore Bangkok","Narsarsuaq",1119]
["Kalmar Vaxjoe","Glasgow",3169]
["Riga","Rome",4610]
["London/Heathrow","Tampere",3629]
["Malaga Madrid","Tampere",2855]
["Linkoeping","Malaga Madrid",1483]
["Munich","Kristiansand",3822]
["Troheim Sandefj","Istanbul",4042]
["Paderbo Munster ","Turku",1803]
["Wroclaw","Madrid",1916]
["Frankfurt","Prague",1367]
["Joenkoeping","Reykjavik",1291]
["Troheim Sandefj","Milan/Linate",2766]
["Rome","Narsarsuaq",1651]
["Brussels ","Ljubljana",1225]
["Bergen Sandefj","Karlstd Orebro",2021]
["Madrid","Karlstad",{"$f":"CEILING(4000*RAND(),1)+1000","v":4496}]
["Milan/Linate","Skopje Bornhlm",3298]
["Lisbon","Glasgow Edinbg",2275]
["Bergen Sandefj","Munich",1606]
["Munich","Brussels ",1868]
["Norrkoeping","Berlin/Tegel",4529]
["Malaga/Cost.Sol","Skopje Bornhlm",4953]
["Oslo","Munich",3298]
["Beijing","Frankfurt",1795]
["Prague","London/Gatwick",3204]
["Bergen Sandefj","Glasgow",3230]
["Wroclaw","Dusseldorf",3281]
["Manchester","Sharm",1795]
["Rio Heathrw","Gdansk",3854]
["Kristiansand","London/Stansted",4910]
["Tenerife","Skopje Bornhlm",4566]
["Las Palmas","Chicago",2929]
["Munster","St Petersburg",2878]
["Lisbon","Budapest",2242]
["Singapore","Bergen",3026]
["Rome/Ciampino","Kalmar Vaxjoe",4813]
["Nice","Hanover",2131]
["Karachi Lahore","Lisbon",3079]
["Beijing","Skopje Bornhlm",2621]
["Bremen","Tokyo/Narita",3488]
["Las Palmas","Vienna",4805]
["Stockholm","Vesteraas",3192]
["Luxembourg","Las Palmas",2566]
["Rome/Ciampino","Malta",3374]
["Sharm","Helsinki",4523]
["Dublin","Sandefjord",3668]
["Paderbo Munster ","Riga",1322]
["Munich","Stockholm",3187]
["Sngpore Bangkok","Vienna",1457]
["Troheim Sandefj","Karlstad",2121]
["Milan/Linate","Geneva",4211]
["Malaga Madrid","Malta",4303]
["Karachi Lahore","Newark",2957]
["Nice","Newark",4317]
["Brussels ","Rio Heathrw",1085]
["Warsaw","Glasgow Edinbg",4812]
["Zurich","Gdansk",4322]
["Vesteraas","Gdansk",4321]
["Hurghada","Dublin",1187]
["Tokyo/Narita","Vaxjoe Kalmar",2030]
["London/Gatwick","Sandefjord",2607]
["Tenerife","Vaxjoe Kalmar",1317]
["Manchester","Kangerlussuaq",2408]
["Malta","Sharm",3957]
["Glasgow Edinbg","Kalmar Vaxjoe",2306]
["Athens","Warsaw",3050]
["Joenkoeping","Oslo",3387]
["Budapest","Berlin/Tegel",2767]
["Zurich","Bangkok",4158]
["Bergen Sandefj","Malta",4845]
["Malaga/Cost.Sol","Vesteraas",1593]
["Faroe Islands","Poznan",2578]
["Newark","Geneva",3669]
["Poznan","Riga",4081]
["Milan/Linate","Szczecin",1470]
["Nice","Sngpore Bangkok",4982]
["Rome/Ciampino","Rome",4302]
["Seattle","Sngpore Bangkok",4811]
["Bucarst Berlin","Rome/Ciampino",3568]
["Karlstd Orebro","Prague",{"$f":"CEILING(4000*RAND(),1)+1000","v":3197}]
["Dusseldorf","London/Stansted",1036]
["Malaga/Cost.Sol","Stockholm",2127]
["London/Heathrow","Karlstad",4503]
["Berlin/Tegel","Gdansk",4302]
["Karlstad","Paderbo Munster ",3828]
["Bergen Sandefj","Orebro",3174]
["Warsaw","Norrkoeping",2102]
["Gdansk","Bucarst Berlin",4545]
["Milan/Malpensa","Kangerlussuaq",1603]
["Stavanger","Tenerife",1035]
["Bergen Sandefj","St Petersburg",2370]
["Beijing","Trondheim",4505]
["Basel","Hurghada",4436]
["Dublin","Sharm Luxor",1121]
["Bangkok","Moscow",3791]
["Tunis","Sngpore Bangkok",2595]
["Norrkoeping","Barcelona",2702]
["Newark","Lyon Strasb",3131]
["Sandefjord","London/Heathrow",2411]
["Brussels ","Tunis",3119]
["Skopje Bornhlm","Bergen",3258]
["Bergen","Turku",3976]
["Faroe Islands","Hamburg",4296]
["Helsinki","Moscow",3015]
["Milan/Linate","Trondheim",3015]
["Karlstd Orebro","Trondheim",3969]
["Milan/Malpensa","Brussels ",2665]
["Karlstd Orebro","Milan/Linate",4242]
["Tokyo/Narita","Tampere",2803]
["Brussels ","Washington",4647]
["Stuttgart","Milan/Linate",4346]
["Stuttgart","Bergen",2949]
["Sandefjord","Szczecin",4346]
["Reykjavik","Trondheim",1838]
["Munich","Birmingham",4589]
["Tampere","Poznan",4198]
["Las Palmas","Brussels ",4690]
["London/Stansted","Singapore",3651]
["London/Heathrow","Beijing",3144]
["Milan/Malpensa","Bangkok",2518]
["Budapest","Dusseldorf",3573]
["Rio Heathrw","Madrid",4356]
["Newark","Skopje Bornhlm",1772]
["Lyon Strasb","Rome/Ciampino",1785]
["Hamburg","Stavanger",2294]
["Glasgow","Kalmar Vaxjoe",1176]
["Stavanger","Tokyo/Narita",2823]
["Glasgow Edinbg","Stockholm",4212]
["Ljubljana","St Petersburg",4782]
["Athens","Paris De Gaulle",2704]
["Malaga/Cost.Sol","Reykjavik",2465]
["Dublin","Skopje Bornhlm",1578]
["Vilnius","Munich",4072]
["Orebro","Moscow",1510]
["Riga","Reykjavik",2148]
["Moscow","Kangerlussuaq",4665]
["Zurich","Glasgow Edinbg",3915]
["Barcelona","Narsarsuaq",1227]
["Nice","Bergen Sandefj",1627]
["Norrkoeping","Malaga/Cost.Sol",2589]
["Faroe Islands","Lisbon",3090]
["Sandefjord","Turku",1926]
["Sharm","Stuttgart",2429]
["Stockholm","Istanbul",{"$f":"CEILING(4000*RAND(),1)+1000","v":4988}]
["Malaga/Cost.Sol","Basel",1040]
["Kristiansand","Stavanger",1500]
["Geneva","Lyon Strasb",4672]
["Munich","Dublin",1480]
["Reykjavik","Munster",1248]
["Dublin","Paderbo Munster ",2194]
["Dusseldorf","Paris De Gaulle",2247]
["Norrkoeping","Malaga Madrid",1476]
["Skopje Bornhlm","Munster",4170]
["Sandefjord","Tallinn",1761]
["Glasgow","Faroe Islands",4392]
["Karlstd Orebro","St Petersburg",2495]
["Moscow","Glasgow",4584]
["Amsterdam ","Singapore",2044]
["Hanover","Budapest",4826]
["Oslo","Tokyo/Narita",2565]
["Narsarsuaq","Helsinki",2185]
["Kalmar Vaxjoe","Narsarsuaq",2897]
["Turku","Berlin/Tegel",3208]
["Faroe Islands","Zurich",1882]
["Seattle","Karachi Lahore",1890]
["St Petersburg","Szczecin",3075]
["Brussels ","Karlstd Orebro",2554]
["Wroclaw","Las Palmas",2777]
["Glasgow Edinbg","Helsingborg City ",1285]
["Chicago","Gothenburg",2114]
["Narsarsuaq","Brussels ",1168]
["Norrkoeping","Vesteraas",4481]
["Milan/Linate","Madrid",1386]
["Lyon Strasb","Stavanger",3360]
["Manchester","London/Gatwick",4983]
["Helsinki","Gothenburg",4857]
["Helsingborg City ","Tokyo/Narita",1697]
["Istanbul","Linkoeping",4769]
["Wroclaw","Seattle",4375]
["Helsingborg City ","Sandefjord",2646]
["Lyon Strasb","Barcelona",4107]
["Karachi Lahore","Washington",3617]
["Vienna","Munich",2881]
["Tenerife","Bucarst Berlin",1127]
["Helsingborg City ","Glasgow",4560]
["Rome/Ciampino","Sandefjord",1778]
["Dublin","Bergen Sandefj",3169]
["Seattle","Bangkok",3394]
["Las Palmas","Karlstad",4896]
["Milan/Linate","Rome/Ciampino",4489]
["Bucarst Berlin","Turku",2482]
["Hurghada","Joenkoeping",1762]
["Frankfurt","Poznan",3072]
["Kangerlussuaq","Paderbo Munster ",2964]
["Munster","Las Palmas",3080]
["Lyon Strasb","Bremen",1567]
["Tenerife","Malaga Madrid",2375]
["Sharm","Stavanger",2694]
["Rome/Ciampino","Barcelona",1717]
["Stuttgart","Bergen Sandefj",3458]
["Sandefjord","Dublin",3880]
["Newark","Paris De Gaulle",2535]
["Paris De Gaulle","Bergen",4728]
["Szczecin","Tokyo/Narita",2770]
["Joenkoeping","Dusseldorf",4230]
["London/Stansted","Washington",3332]
["Dublin","Barcelona",1373]
["Kalmar Vaxjoe","Hamburg",{"$f":"CEILING(4000*RAND(),1)+1000","v":1684}]
["Glasgow","Washington",3295]
["Luxembourg","Malta",4958]
["Milan/Malpensa","Dublin",4951]
["Birmingham","Berlin/Tegel",1555]
["Geneva","Brussels ",1314]
["Moscow","Tenerife",1542]
["Karachi Lahore","Brussels ",1498]
["Vienna","Trondheim",1420]
["Sharm Luxor","Tallinn",1750]
["London/Heathrow","Newark",4242]
["Basel","Glasgow Edinbg",3195]
["Istanbul","Stockholm",4966]
["Prague","Dusseldorf",4909]
["Norrkoeping","Helsinki",1269]
["Zurich","Norrkoeping",3509]
["Madrid","Geneva",4690]
["Linkoeping","Troheim Sandefj",1853]
["Troheim Sandefj","London/Heathrow",4885]
["Tokyo/Narita","Rome",4408]
["Istanbul","Malaga/Cost.Sol",1385]
["Hamburg","Bremen",3839]
["Amsterdam ","Sharm",1943]
["Hamburg","Narsarsuaq",4043]
["Athens","Szczecin",1921]
["Berlin/Tegel","Helsinki",1035]
["Tampere","Beijing",4456]
["Kristiansand","Beijing",3711]
["Wroclaw","Poznan",2883]
["Tunis","Helsinki",2498]
["Tallinn","Manchester",2100]
["Vienna","Nice",1363]
["Tallinn","Helsingborg City ",4403]
["Faroe Islands","Tokyo/Narita",3258]
["Paris De Gaulle","Malaga Madrid",1194]
["Orebro","Manchester",4265]
["Istanbul","Singapore",1742]
["Luxembourg","Karlstd Orebro",2933]
["Bergen","Warsaw",3293]
["Dusseldorf","Athens",3425]
["Milan/Linate","Rome",2662]
["Helsinki","Karlstd Orebro",4097]
["Sandefjord","Hanover",1152]
["Munich","Munster",4445]
["Budapest","Hurghada",3560]
["Gdansk","Munster",2382]
["Skopje Bornhlm","Trondheim",2229]
["Venice","Lyon Strasb",2210]
["Barcelona","Singapore",3590]
["London/Stansted","Riga",2400]
["Tokyo/Narita","Troheim Sandefj",2671]
["Bucarst Berlin","Tenerife",4765]
["Bangkok","Tunis",3227]
["Orebro Karlstd","Reykjavik",3383]
["Gothenburg","Washington",1965]
["Athens","Malaga Madrid",3651]
["Milan/Malpensa","Venice",4339]
["Linkoeping","Milan/Malpensa",1077]
["Munster","Luxembourg",4329]
["Rome","Nice",1897]
["Rio Heathrw","Lyon Strasb",2428]
["Glasgow","London/Stansted",3686]
["Athens","Bremen",4724]
["Rome/Ciampino","Riga",4160]
["Stockholm","Amsterdam ",{"$f":"CEILING(4000*RAND(),1)+1000","v":2325}]
["Munster","Glasgow",2422]
["London/Stansted","Seattle",4759]
["Kristiansand","Istanbul",1150]
["Szczecin","Faroe Islands",1975]
["Malaga/Cost.Sol","Norrkoeping",3052]
["Kalmar Vaxjoe","Athens",4429]
["Poznan","Geneva",1526]
["Linkoeping","Oslo",3808]
["Stockholm","Gdansk",3923]
["Tokyo/Narita","Vesteraas",4398]
["Kalmar Vaxjoe","Budapest",2610]
["Troheim Sandefj","Orebro Karlstd",4625]
["London/Heathrow","Kalmar Vaxjoe",1015]
["Seattle","Sharm",3878]
["Poznan","Bremen",2410]
["Vaxjoe Kalmar","Faroe Islands",3841]
["Zurich","Birmingham",1705]
["Gothenburg","Joenkoeping",1060]
["Poznan","Venice",3456]
["Vesteraas","Prague",4827]
["Luxembourg","Orebro",4551]
["Helsinki","Chicago",1646]
["Sharm","Karlstad",3782]
["Munster","London/Gatwick",1830]
["Barcelona","Bergen Sandefj",1409]
["Poznan","Joenkoeping",4985]
["Rome/Ciampino","Moscow",3119]
["Venice","Brussels ",4076]
["Budapest","Brussels ",3977]
["Vilnius","Sharm Luxor",2622]
["Tampere","Bremen",4773]
["Stockholm","Malta",1622]
["Malta","Kristiansand",2985]
["Orebro Karlstd","Tokyo/Narita",1648]
["Beijing","Paris De Gaulle",3490]
["St Petersburg","Moscow",3280]
["Orebro Karlstd","Hurghada",1940]
["Orebro","Oslo",2265]
["Frankfurt","London/Heathrow",2726]
["Sharm","Kalmar Vaxjoe",1423]
["Washington","Istanbul",1075]
["Stavanger","Paderbo Munster ",4042]
["Helsinki","Sngpore Bangkok",2811]
["Helsingborg City ","Chicago",2761]
["Hurghada","London/Stansted",1049]
["Ljubljana","Hurghada",4220]
["Dublin","Szczecin",4333]
["Helsinki","Beijing",4764]
["St Petersburg","Rome/Ciampino",2895]
["Sharm","Norrkoeping",4881]
["Orebro Karlstd","Amsterdam ",1100]
["Narsarsuaq","Vilnius",3879]
["Berlin/Tegel","Seattle",4657]
["Paderbo Munster ","Sharm Luxor",3207]
["Paderbo Munster ","Poznan",4627]
["Sngpore Bangkok","Helsinki",1830]
["Gdansk","Kristiansand",2427]
["Malaga Madrid","Hurghada",3791]
["Bergen Sandefj","Tallinn",2705]
["Gothenburg","Hurghada",4458]
["Lyon Strasb","Helsinki",1401]
["Oslo","London/Stansted",1424]
["Vesteraas","Luxembourg",2599]
["Bangkok","Reykjavik",{"$f":"CEILING(4000*RAND(),1)+1000","v":1580}]
["Tokyo/Narita","Glasgow",3139]
["Turku","Faroe Islands",2450]
["Seattle","Faroe Islands",1507]
["Troheim Sandefj","Gothenburg",4777]
["Venice","Dublin",2440]
["St Petersburg","Oslo",3900]
["Bergen Sandefj","Helsingborg City ",1167]
["Sharm Luxor","Birmingham",1568]
["Vesteraas","Munster",1275]
["Paderbo Munster ","Sngpore Bangkok",1468]
["Vilnius","Dusseldorf",3815]
["Hamburg","Prague",4011]
["London/Gatwick","Las Palmas",2244]
["Hanover","Amsterdam ",2971]
["Dublin","Budapest",4399]
["Orebro Karlstd","Lisbon",2201]
["Tampere","Malaga Madrid",2087]
["Glasgow Edinbg","Zurich",1112]
["Stockholm","Geneva",4769]
["Orebro Karlstd","Bergen",3618]
["Malta","Gdansk",4476]
["Skopje Bornhlm","Vilnius",2146]
["Orebro","Bergen Sandefj",4379]
["Helsingborg City ","Dusseldorf",1286]
["Reykjavik","Bergen Sandefj",2767]
["Washington","Barcelona",2906]
["Kristiansand","Berlin/Tegel",3664]
["Newark","Hanover",3444]
["Seattle","Malaga Madrid",4029]
["Newark","Stuttgart",2180]
["Norrkoeping","Madrid",3759]
["Istanbul","Munich",1853]
["Narsarsuaq","Bergen",3793]
["Birmingham","Ljubljana",3175]
["Malta","Poznan",4201]
["Munster","Manchester",4504]
["Helsingborg City ","Geneva",1176]
["Prague","Hurghada",4533]
["Vienna","Helsinki",2672]
["Dublin","Singapore",1744]
["Karlstd Orebro","Kangerlussuaq",3326]
["Amsterdam ","Vaxjoe Kalmar",3330]
["Munster","Madrid",1263]
["Las Palmas","Turku",3650]
["Milan/Linate","Luxembourg",1567]
["Helsingborg City ","Munich",1599]
["Budapest","Stuttgart",1962]
["Munster","Moscow",1319]
["Berlin/Tegel","Orebro Karlstd",2842]
["Amsterdam ","Dusseldorf",3477]
["Hurghada","Lisbon",4230]
["Oslo","Stockholm",3717]
["Poznan","Turku",3423]
["Moscow","Milan/Malpensa",4770]
["Kangerlussuaq","Sngpore Bangkok",2435]
["Zurich","Sngpore Bangkok",3730]
["Kangerlussuaq","Tokyo/Narita",2572]
["Karlstd Orebro","Kristiansand",3803]
["Tokyo/Narita","Beijing",2079]
["Zurich","Warsaw",2188]
["Sharm Luxor","Orebro Karlstd",1247]
["Malaga Madrid","Geneva",1738]
["Bucarst Berlin","Athens",2762]
["Birmingham","Paris De Gaulle",{"$f":"CEILING(4000*RAND(),1)+1000","v":3659}]
["Berlin/Tegel","Luxembourg",2349]
["Narsarsuaq","Kristiansand",2233]
["Linkoeping","Zurich",1495]
["Munster","Rio Heathrw",1456]
["Kalmar Vaxjoe","Sngpore Bangkok",2223]
["Norrkoeping","Stockholm",2341]
["Rome/Ciampino","Oslo",1172]
["Kristiansand","Brussels ",3477]
["Malta","Helsingborg City ",3824]
["Hurghada","Nice",4498]
["Lyon Strasb","Prague",2083]
["Moscow","Manchester",1338]
["Istanbul","Poznan",1122]
["Tampere","Glasgow Edinbg",1049]
["Munich","Vesteraas",2791]
["Ljubljana","Beijing",1550]
["Budapest","Glasgow Edinbg",3242]
["Stockholm","Paderbo Munster ",1685]
["Bremen","Dublin",1432]
["Narsarsuaq","Tokyo/Narita",1083]
["Joenkoeping","London/Gatwick",2026]
["Bangkok","Bucarst Berlin",2151]
["Kristiansand","Malta",3232]
["Faroe Islands","Sharm Luxor",3203]
["Las Palmas","Norrkoeping",2258]
["Washington","Norrkoeping",2624]
["Rome","Sandefjord",4618]
["Munster","Basel",3705]
["Szczecin","Beijing",3121]
["Poznan","Hamburg",1752]
["Karachi Lahore","Bergen Sandefj",4119]
["Paris De Gaulle","Vilnius",2486]
["Linkoeping","Turku",4141]
["Las Palmas","Lyon Strasb",3484]
["Venice","Stuttgart",3113]
["Brussels ","Beijing",4974]
["Sharm","Bergen Sandefj",3358]
["Nice","Szczecin",3336]
["Bergen","Moscow",2679]
["Kalmar Vaxjoe","Stockholm",1467]
["Tampere","Gdansk",1868]
["Hamburg","Basel",4159]
["Helsinki","Nice",3907]
["Madrid","Hamburg",4527]
["Norrkoeping","Gdansk",1661]
["Milan/Linate","Oslo",2124]
["Stuttgart","Tenerife",3359]
["Budapest","St Petersburg",2977]
["Prague","Trondheim",2419]
["Kangerlussuaq","Oslo",3242]
["Istanbul","Kangerlussuaq",4816]
["Madrid","Las Palmas",2308]
["Vesteraas","Faroe Islands",4131]
["Malaga Madrid","Manchester",1455]
["Berlin/Tegel","Bremen",1972]
["Paderbo Munster ","Tampere",2074]
["Sharm","Ljubljana",4517]
["Malaga Madrid","Vilnius",4295]
["Luxembourg","Glasgow Edinbg",3981]
["Zurich","Tokyo/Narita",4289]
["Hamburg","Reykjavik",2472]
["Vaxjoe Kalmar","Zurich",3246]
["Karlstd Orebro","Lisbon",3761]
["Bergen","Kalmar Vaxjoe",{"$f":"CEILING(4000*RAND(),1)+1000","v":2540}]
["Milan/Linate","Rio Heathrw",1412]
["Munster","Bucarst Berlin",3782]
["Glasgow Edinbg","Tunis",1373]
["Basel","Nice",1223]
["Luxembourg","Madrid",4472]
["Rome/Ciampino","Frankfurt",3073]
["Stockholm","Wroclaw",1889]
["Birmingham","Bremen",2933]
["Geneva","Dublin",2078]
["Helsinki","Tampere",3247]
["London/Gatwick","Troheim Sandefj",4850]
["Milan/Malpensa","Sharm",3205]
["London/Gatwick","Rome",4995]
["Seattle","Hamburg",2725]
["Hurghada","Helsinki",1692]
["Rome/Ciampino","Budapest",3230]
["Hanover","Istanbul",4998]
["Riga","Tampere",2384]
["Rome/Ciampino","Singapore",3921]
["Warsaw","Rome",1250]
["Bergen Sandefj","Linkoeping",1868]
["Gdansk","Geneva",2723]
["Rome","Riga",3073]
["Nice","Karlstad",2297]
["Oslo","Milan/Malpensa",3360]
["Faroe Islands","Oslo",4314]
["Malaga Madrid","Bergen",3299]
["Poznan","Glasgow",1890]
["Athens","Kalmar Vaxjoe",2730]
["Warsaw","Prague",3657]
["Ljubljana","Vilnius",4425]
["Budapest","Bangkok",3579]
["Gdansk","Tallinn",2032]
["Bremen","St Petersburg",2082]
["Prague","Helsingborg City ",4274]
["Zurich","Berlin/Tegel",1423]
["Riga","Malaga Madrid",2226]
["Istanbul","Bucarst Berlin",2237]
["Sngpore Bangkok","Trondheim",1262]
["Munich","Tunis",3331]
["Wroclaw","Malta",3688]
["Rome/Ciampino","Orebro",3803]
["Singapore","Malta",3958]
["Reykjavik","Basel",4944]
["Norrkoeping","Gothenburg",1967]
["Helsinki","Rio Heathrw",4354]
["Manchester","Poznan",2843]
["Washington","Hanover",2783]
["Dublin","Athens",3134]
["Beijing","Sharm Luxor",1081]
["Rio Heathrw","Munster",2019]
["Bangkok","Rome/Ciampino",4853]
["Milan/Linate","Malta",4897]
["Hurghada","Faroe Islands",3171]
["Hurghada","Wroclaw",2954]
["Glasgow Edinbg","Poznan",1097]
["Gdansk","Wroclaw",3511]
["Glasgow","Lyon Strasb",2466]
["Kangerlussuaq","Rome/Ciampino",3872]
["Stockholm","Narsarsuaq",1258]
["Vesteraas","Orebro Karlstd",1591]
["Joenkoeping","Malta",4218]
["Stavanger","Wroclaw",2810]
["Madrid","Gothenburg",{"$f":"CEILING(4000*RAND(),1)+1000","v":3763}]
["Hanover","Ljubljana",3254]
["Singapore","Stuttgart",1457]
["Troheim Sandefj","Paderbo Munster ",3316]
["Warsaw","Paderbo Munster ",1665]
["Stuttgart","Sandefjord",3949]
["Stockholm","Bucarst Berlin",4181]
["Luxembourg","Troheim Sandefj",4795]
["Oslo","Lyon Strasb",3912]
["Linkoeping","Dublin",3376]
["Washington","London/Gatwick",4584]
["Orebro Karlstd","Chicago",2944]
["Lyon Strasb","Hamburg",4569]
["Stockholm","Manchester",4089]
["Riga","Narsarsuaq",4009]
["Orebro Karlstd","Milan/Malpensa",1543]
["Karachi Lahore","London/Heathrow",3001]
["Basel","Beijing",3340]
["Munich","Glasgow",3292]
["Zurich","Basel",1852]
["Karlstd Orebro","Zurich",3045]
["Troheim Sandefj","Stavanger",1935]
["Moscow","Las Palmas",4217]
["Glasgow","Brussels ",2417]
["Kristiansand","Rio Heathrw",2346]
["Gothenburg","Stuttgart",1420]
["Stuttgart","Bremen",4936]
["Gdansk","Manchester",1747]
["Bergen","Milan/Malpensa",3902]
["Singapore","Linkoeping",4101]
["Hanover","Malaga Madrid",1597]
["Lisbon","Venice",4078]
["Szczecin","Tampere",2462]
["Prague","Warsaw",3633]
["Barcelona","Helsingborg City ",1677]
["London/Heathrow","Stockholm",1145]
["Athens","Munster",1828]
["Glasgow","Rome/Ciampino",1017]
["Stuttgart","London/Stansted",4861]
["London/Heathrow","Hamburg",1977]
["Zurich","Reykjavik",1938]
["Bremen","Geneva",1829]
["Bergen Sandefj","Basel",2717]
["Bangkok","St Petersburg",4793]
["Lisbon","Amsterdam ",3624]
["Amsterdam ","Stockholm",1872]
["Manchester","Tunis",4849]
["Ljubljana","Berlin/Tegel",1560]
["Budapest","Manchester",4969]
["Moscow","Gothenburg",2261]
["Dusseldorf","Sharm",1428]
["Hanover","Vienna",4567]
["Geneva","Bangkok",4077]
["Kalmar Vaxjoe","Tokyo/Narita",3904]
["Dusseldorf","Beijing",1752]
["Athens","Kangerlussuaq",4202]
["Birmingham","Faroe Islands",1543]
["Milan/Linate","Nice",3741]
["Paris De Gaulle","Chicago",1602]
["Gdansk","Helsingborg City ",1339]
["Paris De Gaulle","Tallinn",2732]
["Malaga/Cost.Sol","Karlstd Orebro",2810]
["Reykjavik","Istanbul",3657]
["Bergen","Hanover",1248]
["Rome","Kalmar Vaxjoe",{"$f":"CEILING(4000*RAND(),1)+1000","v":2515}]
["Sngpore Bangkok","Athens",4400]
["Malaga/Cost.Sol","Rio Heathrw",3410]
["Lisbon","Dublin",2352]
["Nice","Vesteraas",3596]
["Moscow","Stavanger",1261]
["Madrid","Orebro",3129]
["Milan/Malpensa","Vesteraas",1643]
["Skopje Bornhlm","Szczecin",1215]
["Szczecin","Chicago",4365]
["Malta","Kangerlussuaq",4890]
["Madrid","Zurich",4227]
["Kalmar Vaxjoe","Milan/Linate",1623]
["Trondheim","Manchester",4418]
["London/Stansted","Luxembourg",2736]
["Prague","Karlstad",3879]
["Oslo","Vilnius",4699]
["Gothenburg","Rio Heathrw",1292]
["Malta","Troheim Sandefj",3710]
["Stavanger","Dublin",3143]
["Munster","Barcelona",4749]
["Sharm","Dublin",3744]
["Narsarsuaq","Reykjavik",4237]
["Karlstd Orebro","Sharm",3393]
["Trondheim","Malaga Madrid",4183]
["Orebro","Venice",2938]
["Karlstd Orebro","Reykjavik",1124]
["Basel","Vesteraas",2137]
["Moscow","Trondheim",1750]
["Bangkok","Lyon Strasb",2098]
["London/Stansted","Gdansk",4310]
["Budapest","London/Heathrow",1429]
["Poznan","Trondheim",3453]
["Bangkok","Linkoeping",2185]
["Ljubljana","Vaxjoe Kalmar",2185]
["Prague","Nice",1916]
["Malaga Madrid","Stuttgart",2459]
["Vienna","Athens",4893]
["Venice","London/Stansted",4317]
["Malaga Madrid","Warsaw",3476]
["Nice","Rio Heathrw",1587]
["Narsarsuaq","Rome",3313]
["Tokyo/Narita","Basel",3192]
["Reykjavik","Luxembourg",4220]
["Troheim Sandefj","Tampere",3569]
["Amsterdam ","Malaga Madrid",3163]
["Brussels ","Budapest",1919]
["Wroclaw","Birmingham",3505]
["Trondheim","Paris De Gaulle",2512]
["Vesteraas","Reykjavik",2386]
["Tokyo/Narita","Bucarst Berlin",2971]
["Brussels ","Milan/Malpensa",4759]
["London/Gatwick","Rio Heathrw",4218]
["Trondheim","Orebro",3689]
["Oslo","Las Palmas",1725]
["Karachi Lahore","Joenkoeping",3586]
["Wroclaw","Vilnius",1438]
["Vienna","Hanover",1436]
["Joenkoeping","Nice",4838]
["Geneva","Chicago",3085]
["Nice","Stockholm",3258]
["Helsinki","Milan/Malpensa",2008]
["Stockholm","Kalmar Vaxjoe",1755]
["Berlin/Tegel","Malta",4561]
["Sandefjord","Kalmar Vaxjoe",{"$f":"CEILING(4000*RAND(),1)+1000","v":2978}]
["Kangerlussuaq","Karachi Lahore",2971]
["Glasgow","Warsaw",2930]
["Milan/Malpensa","Karlstad",4346]
["Karachi Lahore","Tokyo/Narita",4173]
["Sngpore Bangkok","Helsingborg City ",1320]
["Chicago","Malaga/Cost.Sol",2606]
["Prague","Bergen",1681]
["Gdansk","Tunis",1410]
["Vaxjoe Kalmar","Bangkok",3240]
["Bergen Sandefj","Tokyo/Narita",4678]
["Sharm Luxor","Gdansk",1764]
["Tokyo/Narita","Poznan",1953]
["Norrkoeping","St Petersburg",2860]
["Tunis","Glasgow",1151]
["Kalmar Vaxjoe","Troheim Sandefj",4479]
["Beijing","Rome",2626]
["Bergen","Amsterdam ",1721]
["Bergen Sandefj","Wroclaw",2699]
["Geneva","Rome",4798]
["Tampere","Newark",3802]
["London/Gatwick","Paderbo Munster ",2657]
["Washington","Bergen Sandefj",1138]
["Brussels ","Sharm Luxor",2037]
["Malta","Nice",1108]
["Barcelona","Gdansk",4083]
["Karachi Lahore","Nice",3298]
["Newark","Lisbon",1502]
["Brussels ","Helsinki",3448]
["Kristiansand","Sngpore Bangkok",4146]
["Narsarsuaq","Gothenburg",3769]
["Ljubljana","Faroe Islands",2500]
["Malaga/Cost.Sol","Warsaw",4265]
["Skopje Bornhlm","Warsaw",1230]
["St Petersburg","Kalmar Vaxjoe",2401]
["Athens","Bergen Sandefj",2321]
["Vesteraas","Frankfurt",1020]
["Tunis","Malaga/Cost.Sol",4045]
["Barcelona","Sharm Luxor",1203]
["Geneva","Berlin/Tegel",4973]
["Narsarsuaq","Karlstad",3762]
["Hurghada","Skopje Bornhlm",2804]
["Reykjavik","Manchester",3852]
["Munster","Tallinn",1895]
["Bucarst Berlin","Sharm",2495]
["Warsaw","Vilnius",1658]
["Birmingham","Lyon Strasb",3990]
["Reykjavik","Munich",2642]
["Bangkok","Norrkoeping",3816]
["Troheim Sandefj","Amsterdam ",4569]
["Manchester","Warsaw",1225]
["Karlstad","Stavanger",1952]
["Bremen","Bangkok",1984]
["Narsarsuaq","Budapest",1926]
["Newark","Troheim Sandefj",2866]
["Barcelona","Bergen",3047]
["Hurghada","Paris De Gaulle",1798]
["Venice","Helsinki",1400]
["Beijing","Las Palmas",2181]
["Nice","Tunis",3649]
["Nice","Milan/Linate",2301]
["Venice","London/Gatwick",4989]
["Milan/Malpensa","Karlstd Orebro",3282]
["Geneva","Istanbul",1292]
["Wroclaw","Orebro Karlstd",{"$f":"CEILING(4000*RAND(),1)+1000","v":2624}]
["Malaga/Cost.Sol","Nice",2731]
["St Petersburg","Vesteraas",1386]
["Sngpore Bangkok","Madrid",2294]
["Prague","Sngpore Bangkok",2457]
["Rome","Singapore",2224]
["Trondheim","Singapore",1376]
["Washington","Helsinki",1585]
["Troheim Sandefj","Tenerife",3413]
["Sandefjord","Bucarst Berlin",3560]
["Vesteraas","Turku",2992]
["Geneva","London/Gatwick",1731]
["Bangkok","Hurghada",1489]
["Ljubljana","Luxembourg",1498]
["Lyon Strasb","Wroclaw",1371]
["Milan/Malpensa","Norrkoeping",3851]
["Bangkok","Madrid",1025]
["Tokyo/Narita","Moscow",4773]
["Reykjavik","Malta",2693]
["Oslo","Malaga Madrid",4868]
["Rio Heathrw","Malaga/Cost.Sol",2956]
["London/Gatwick","Norrkoeping",3527]
["Malaga/Cost.Sol","Malaga Madrid",4665]
["Hanover","Kalmar Vaxjoe",1665]
["Rome","Tunis",2928]
["London/Gatwick","Venice",2693]
["Malaga Madrid","Rome",1642]
["Tampere","Rio Heathrw",3990]
["Kristiansand","Malaga Madrid",3808]
["Amsterdam ","Kalmar Vaxjoe",2174]
["Vienna","Beijing",2532]
["Budapest","Dublin",2231]
["Joenkoeping","Bucarst Berlin",4854]
["Gdansk","Vaxjoe Kalmar",3968]
["London/Stansted","Paderbo Munster ",2607]
["Gothenburg","Chicago",3771]
["Vesteraas","Narsarsuaq",4237]
["Vilnius","London/Heathrow",3252]
["Singapore","Orebro",2760]
["Sharm Luxor","Luxembourg",4255]
["Karlstad","Singapore",2451]
["Wroclaw","Stockholm",2905]
["Stockholm","Rome",1157]
["Tampere","Milan/Malpensa",1670]
["Lyon Strasb","Brussels ",4153]
["Norrkoeping","Sngpore Bangkok",2177]
["Vaxjoe Kalmar","Brussels ",1572]
["Bangkok","Vienna",4819]
["Gdansk","Glasgow Edinbg",4240]
["Paris De Gaulle","Barcelona",3263]
["London/Heathrow","Vaxjoe Kalmar",4143]
["Tokyo/Narita","Norrkoeping",1970]
["Bergen Sandefj","Amsterdam ",4753]
["Brussels ","Bergen Sandefj",3168]
["Stuttgart","Budapest",4039]
["Las Palmas","Athens",1080]
["Karachi Lahore","Gdansk",2642]
["Luxembourg","Munster",3103]
["Wroclaw","Rome",1797]
["Gothenburg","Malta",4317]
["Luxembourg","Moscow",4261]
["Norrkoeping","Stuttgart",1212]
["Skopje Bornhlm","Kristiansand",3164]
["Munich","Vilnius",3869]
["Kangerlussuaq","Washington",{"$f":"CEILING(4000*RAND(),1)+1000","v":1748}]
["Berlin/Tegel","Joenkoeping",1646]
["Norrkoeping","Luxembourg",1951]
["Tenerife","Chicago",4100]
["Manchester","Prague",2815]
["Rome","Chicago",2817]
["Reykjavik","Orebro",2088]
["Karlstd Orebro","Stavanger",1587]
["Poznan","St Petersburg",3800]
["Washington","London/Stansted",3613]
["Frankfurt","Brussels ",4217]
["Singapore","Karachi Lahore",4089]
["Munich","Stuttgart",1996]
["Orebro","Stuttgart",4626]
["Bucarst Berlin","Luxembourg",2175]
["Kalmar Vaxjoe","Paris De Gaulle",3419]
["London/Stansted","Dusseldorf",3837]
["Seattle","Munich",4415]
["Stockholm","Tunis",2306]
["Brussels ","Lyon Strasb",3053]
["Reykjavik","Berlin/Tegel",2804]
["Karachi Lahore","Karlstd Orebro",3143]
["Tampere","Skopje Bornhlm",3932]
["Glasgow Edinbg","Orebro Karlstd",3363]
["Stavanger","Berlin/Tegel",3257]
["Lisbon","Joenkoeping",4175]
["St Petersburg","Gdansk",1944]
["Helsinki","Milan/Linate",3064]
["Malaga Madrid","Glasgow Edinbg",1733]
["Vilnius","Basel",3101]
["Reykjavik","Tunis",1509]
["Hurghada","Geneva",4021]
["Malta","Kalmar Vaxjoe",4254]
["Stavanger","Milan/Malpensa",3179]
["Orebro","Trondheim",3732]
["Bergen","Orebro Karlstd",2788]
["Singapore","Milan/Malpensa",4997]
["Milan/Malpensa","Glasgow Edinbg",3440]
["Tampere","Warsaw",3764]
["Sharm","Szczecin",4527]
["Paderbo Munster ","Tenerife",1452]
["Berlin/Tegel","Athens",2539]
["Moscow","Brussels ",4410]
["Istanbul","Dublin",2236]
["Orebro","Munster",2702]
["Riga","Sharm",4774]
["Sharm Luxor","Frankfurt",4613]
["Istanbul","Glasgow Edinbg",1286]
["Szczecin","Munich",3077]
["Helsingborg City ","Turku",3940]
["Munster","Munich",2182]
["Bergen Sandefj","Trondheim",3498]
["Geneva","Gdansk",4878]
["Norrkoeping","Kalmar Vaxjoe",3763]
["Kristiansand","Tokyo/Narita",1109]
["Dusseldorf","Stockholm",2635]
["Prague","Tallinn",2671]
["Stockholm","Newark",4867]
["Tunis","Faroe Islands",4424]
["Kalmar Vaxjoe","Luxembourg",3045]
["Zurich","Dublin",4917]
["Kristiansand","Karlstd Orebro",4173]
["Faroe Islands","Vaxjoe Kalmar",1560]
["Warsaw","Orebro",3874]
["Seattle","London/Gatwick",{"$f":"CEILING(4000*RAND(),1)+1000","v":2902}]
["Kristiansand","Malta",3938]
["Seattle","Gothenburg",2570]
["Orebro Karlstd","Linkoeping",3380]
["Bergen","Sharm Luxor",3237]
["Norrkoeping","Trondheim",1886]
["Moscow","Istanbul",1765]
["Athens","Sharm",1651]
["Venice","Washington",1858]
["Warsaw","Stockholm",2607]
["Berlin/Tegel","Kalmar Vaxjoe",3638]
["Luxembourg","Riga",3192]
["Orebro","Beijing",4972]
["Berlin/Tegel","Manchester",3556]
["Tunis","Istanbul",3056]
["Trondheim","Barcelona",4007]
["Rome/Ciampino","Beijing",1979]
["Stavanger","Istanbul",4992]
["Lyon Strasb","London/Stansted",3551]
["Glasgow","Prague",2240]
["Chicago","Amsterdam ",4188]
["Frankfurt","Milan/Linate",4722]
["Luxembourg","Venice",4953]
["Birmingham","Munster",2129]
["Riga","Vilnius",4644]
["Sngpore Bangkok","Vilnius",3356]
["Barcelona","Sandefjord",4738]
["Lyon Strasb","Gdansk",2486]
["Milan/Linate","Beijing",1248]
["Stockholm","Munich",2504]
["Hurghada","Tunis",4011]
["Skopje Bornhlm","Linkoeping",2970]
["Troheim Sandefj","Kalmar Vaxjoe",1283]
["Glasgow Edinbg","Kristiansand",2487]
["Paderbo Munster ","Rome",4694]
["Bucarst Berlin","Linkoeping",3061]
["Istanbul","Linkoeping",3617]
["Madrid","Narsarsuaq",3478]
["London/Stansted","Bangkok",1295]
["Paderbo Munster ","Paris De Gaulle",3108]
["Wroclaw","Barcelona",1594]
["Istanbul","Geneva",3657]
["Sharm","Sngpore Bangkok",3140]
["Orebro Karlstd","Rome/Ciampino",4410]
["Nice","Glasgow",3002]
["Malaga Madrid","Beijing",2633]
["Tallinn","London/Gatwick",3217]
["Szczecin","Newark",1887]
["Paris De Gaulle","Narsarsuaq",2992]
["Zurich","Sandefjord",2368]
["Barcelona","Kristiansand",3608]
["Joenkoeping","Vienna",4339]
["Frankfurt","Karlstad",4378]
["Riga","Bremen",1025]
["Vienna","Frankfurt",4905]
["Bergen Sandefj","Vilnius",3459]
["Glasgow Edinbg","Gdansk",4915]
["Luxembourg","Istanbul",2517]
["Poznan","Birmingham",3038]
["Kangerlussuaq","Riga",3484]
["Bremen","Hanover",4956]
["Seattle","Manchester",2296]
["Tampere","Lyon Strasb",2905]
["Athens","Stockholm",1264]
["Chicago","Istanbul",{"$f":"CEILING(4000*RAND(),1)+1000","v":4801}]
["Linkoeping","Berlin/Tegel",1858]
["Chicago","Sngpore Bangkok",1914]
["Tunis","Geneva",1003]
["Narsarsuaq","Bremen",4328]
["Hurghada","Turku",3488]
["Troheim Sandefj","Vesteraas",2658]
["Reykjavik","Brussels ",3422]
["Sharm Luxor","Faroe Islands",1341]
["Helsingborg City ","Vienna",3416]
["Helsingborg City ","Tunis",2489]
["Helsinki","Lyon Strasb",3888]
["Karachi Lahore","Bremen",3745]
["Poznan","Paris De Gaulle",4455]
["Lisbon","Zurich",1036]
["Munich","Orebro Karlstd",1459]
["Basel","Helsingborg City ",2435]
["Berlin/Tegel","Rio Heathrw",3906]
["Washington","London/Heathrow",3610]
["Kalmar Vaxjoe","Tallinn",1979]
["Chicago","Trondheim",3573]
["Helsinki","Birmingham",2322]
["Tampere","Stuttgart",3692]
["Geneva","Paris De Gaulle",2318]
["Malaga/Cost.Sol","Moscow",4234]
["Gothenburg","Bangkok",1320]
["Lisbon","Las Palmas",1781]
["Hamburg","Budapest",1072]
["Luxembourg","Narsarsuaq",1139]
["Poznan","Skopje Bornhlm",4915]
["Helsingborg City ","Dublin",2443]
["Hanover","Poznan",4559]
["Trondheim","Narsarsuaq",3826]
["Hamburg","Norrkoeping",3167]
["Hamburg","Gdansk",3868]
["Athens","Faroe Islands",3518]
["Beijing","Amsterdam ",3684]
["Skopje Bornhlm","Luxembourg",4903]
["Dusseldorf","Joenkoeping",3894]
["Faroe Islands","Washington",2167]
["Lyon Strasb","Luxembourg",3210]
["Glasgow","Vilnius",1998]
["Rome/Ciampino","London/Heathrow",1279]
["Wroclaw","Paderbo Munster ",3612]
["Poznan","Dusseldorf",2711]
["Geneva","Stavanger",4378]
["Madrid","Bucarst Berlin",3659]
["London/Gatwick","Newark",2864]
["Oslo","St Petersburg",1864]
["Vesteraas","Kalmar Vaxjoe",1630]
["Prague","Kangerlussuaq",1922]
["Gdansk","Rio Heathrw",3085]
["Dusseldorf","Oslo",1680]
["Barcelona","Glasgow",2028]
["Tokyo/Narita","Reykjavik",2234]
["Vesteraas","Milan/Malpensa",2869]
["Sngpore Bangkok","Birmingham",1518]
["London/Stansted","London/Heathrow",3113]
["Rome/Ciampino","Vesteraas",3167]
["Troheim Sandefj","Luxembourg",3797]
["Sngpore Bangkok","Skopje Bornhlm",1814]
["Orebro Karlstd","Seattle",4953]
["Geneva","Trondheim",4193]
["Chicago","Skopje Bornhlm",4081]
["Vilnius","Troheim Sandefj",{"$f":"CEILING(4000*RAND(),1)+1000","v":1753}]
["Tenerife","Poznan",1908]
["Bangkok","Stockholm",2143]
["Karachi Lahore","Kalmar Vaxjoe",1817]
["Rome/Ciampino","Milan/Malpensa",1752]
["Vaxjoe Kalmar","Luxembourg",4943]
["Birmingham","Zurich",4928]
["Stuttgart","Frankfurt",2817]
["Bremen","Trondheim",1504]
["Warsaw","Birmingham",3496]
["Chicago","Karlstad",3873]
["Munich","Zurich",4855]
["Frankfurt","Norrkoeping",3243]
["Tampere","Dublin",3838]
["Budapest","Malta",2665]
["Geneva","Amsterdam ",2507]
["Zurich","Poznan",2077]
["Riga","Malaga/Cost.Sol",3878]
["Birmingham","Poznan",2016]
["Hamburg","Oslo",4384]
["Bergen Sandefj","Troheim Sandefj",2185]
["Bucarst Berlin","Wroclaw",2043]
["Rio Heathrw","Beijing",2458]
["Budapest","Rio Heathrw",1672]
["Newark","Orebro Karlstd",3665]
["Singapore","Helsingborg City ",3432]
["Luxembourg","Amsterdam ",3854]
["Venice","Kalmar Vaxjoe",2276]
["Helsingborg City ","Venice",1228]
["Hurghada","Trondheim",3559]
["Tenerife","Karlstad",3469]
["Poznan","Vilnius",3697]
["Joenkoeping","Frankfurt",2798]
["Helsinki","Faroe Islands",3244]
["Dublin","Istanbul",3868]
["Helsingborg City ","Barcelona",3882]
["Berlin/Tegel","Paderbo Munster ",2694]
["Joenkoeping","Troheim Sandefj",1882]
["Bucarst Berlin","Riga",3151]
["Gothenburg","Luxembourg",2731]
["Kalmar Vaxjoe","Sharm Luxor",1322]
["Birmingham","Tunis",2749]
["Newark","Narsarsuaq",4172]
["Vaxjoe Kalmar","Malaga/Cost.Sol",3941]
["Trondheim","Bremen",4311]
["Stavanger","Kangerlussuaq",2490]
["Amsterdam ","Bergen Sandefj",3015]
["Budapest","Skopje Bornhlm",3873]
["Faroe Islands","Lyon Strasb",2788]
["Beijing","Sharm",2515]
["Lisbon","Faroe Islands",1018]
["Munster","Kangerlussuaq",3812]
["Kristiansand","Rome",2860]
["Szczecin","Rome/Ciampino",1031]
["Gothenburg","Istanbul",1334]
["Moscow","Karlstd Orebro",2983]
["Turku","London/Stansted",3816]
["Karlstad","Bremen",1276]
["Narsarsuaq","Prague",2070]
["Malaga Madrid","Basel",4637]
["Brussels ","Bucarst Berlin",1967]
["Karachi Lahore","Lyon Strasb",1149]
["Barcelona","Lyon Strasb",4888]
["Sandefjord","Orebro",1062]
["Rome/Ciampino","Athens",{"$f":"CEILING(4000*RAND(),1)+1000","v":2037}]
["Glasgow Edinbg","Tallinn",1405]
["Skopje Bornhlm","Hanover",1517]
["Trondheim","Kristiansand",1082]
["Bergen","Munster",1682]
["Warsaw","Singapore",4124]
["Tallinn","Dusseldorf",3813]
["Norrkoeping","Ljubljana",1625]
["Poznan","Basel",1128]
["Norrkoeping","Vesteraas",4357]
["Norrkoeping","London/Heathrow",3815]
["Poznan","Wroclaw",3230]
["Brussels ","Sandefjord",2841]
["Vesteraas","Kristiansand",4482]
["Lyon Strasb","Poznan",2651]
["Karachi Lahore","Wroclaw",3161]
["Warsaw","Berlin/Tegel",4385]
["Tenerife","Joenkoeping",3007]
["Vienna","Glasgow",3650]
["Chicago","Madrid",1213]
["Birmingham","Vaxjoe Kalmar",3141]
["Warsaw","Malaga Madrid",1055]
["London/Heathrow","Rome/Ciampino",1563]
["Bucarst Berlin","Berlin/Tegel",3978]
["Istanbul","Turku",2596]
["Oslo","Paderbo Munster ",1886]
["Wroclaw","Riga",2484]
["Karachi Lahore","Istanbul",1586]
["Gdansk","Washington",3689]
["Lisbon","Nice",3929]
["Milan/Linate","Hurghada",2036]
["Kalmar Vaxjoe","Karlstad",2255]
["Orebro","Tallinn",3699]
["Glasgow","Chicago",4409]
["Vienna","Reykjavik",2669]
["Dublin","Narsarsuaq",3481]
["Kristiansand","Las Palmas",4455]
["Warsaw","Milan/Linate",4844]
["Vesteraas","Hurghada",2710]
["Joenkoeping","Tampere",1135]
["Basel","Tokyo/Narita",1278]
["Vesteraas","Basel",4879]
["Singapore","Paris De Gaulle",3995]
["Singapore","Lyon Strasb",3343]
["Sharm","Manchester",1050]
["Luxembourg","Bangkok",3100]
["Tallinn","Basel",3093]
["Malta","Malaga Madrid",3602]
["Trondheim","Joenkoeping",1437]
["Turku","Dublin",4383]
["Orebro","Bergen",1409]
["Amsterdam ","Las Palmas",2288]
["Geneva","Singapore",2431]
["Sngpore Bangkok","Vesteraas",3617]
["Hanover","Stuttgart",4471]
["Moscow","Linkoeping",3951]
["Karlstad","Birmingham",1944]
["Norrkoeping","Reykjavik",1501]
["Milan/Linate","Hamburg",1134]
["Wroclaw","Lyon Strasb",4204]
["Bremen","Rome",1829]
["Vilnius","Szczecin",2459]
["Bergen","Nice",1123]
["Lisbon","Tampere",2229]
["Bergen Sandefj","Faroe Islands",{"$f":"CEILING(4000*RAND(),1)+1000","v":3898}]
["Rome/Ciampino","Dusseldorf",3734]
["Sharm Luxor","St Petersburg",1273]
["Karlstad","Linkoeping",1433]
["Athens","Vilnius",1252]
["Geneva","Munster",1397]
["Amsterdam ","Gdansk",4874]
["Vienna","Warsaw",2106]
["Faroe Islands","Vilnius",2447]
["Malta","Linkoeping",3113]
["Tenerife","Manchester",4723]
["Bergen Sandefj","Dusseldorf",2697]
["Riga","Oslo",4405]
["Malta","Orebro",2572]
["Malta","Lyon Strasb",4231]
["Trondheim","Amsterdam ",2770]
["Malaga Madrid","Gothenburg",4027]
["Paris De Gaulle","Karlstd Orebro",3626]
["Luxembourg","Berlin/Tegel",1900]
["Milan/Malpensa","Berlin/Tegel",2751]
["Vilnius","Washington",3969]
["Rome","Glasgow",4435]
["Glasgow","Linkoeping",1695]
["Bangkok","London/Heathrow",2892]
["Athens","Lyon Strasb",3422]
["Reykjavik","Seattle",1815]
["Munster","Szczecin",4474]
["London/Heathrow","Munich",4321]
["Manchester","Lyon Strasb",4021]
["Vesteraas","Munich",1559]
["Ljubljana","Vienna",1285]
["Madrid","Rome",2098]
["Riga","Sandefjord",1470]
["Amsterdam ","Linkoeping",1902]
["Sharm Luxor","Venice",1184]
["Rio Heathrw","Manchester",3959]
["Paris De Gaulle","Ljubljana",3615]
["Washington","Orebro Karlstd",4293]
["Oslo","Glasgow Edinbg",4090]
["Barcelona","London/Stansted",1584]
["Munster","Dusseldorf",2222]
["Munich","St Petersburg",2718]
["Orebro","Lisbon",4252]
["Geneva","Paderbo Munster ",2199]
["Norrkoeping","Joenkoeping",2827]
["Ljubljana","Madrid",3678]
["Vienna","Oslo",4319]
["Rome/Ciampino","Paderbo Munster ",3668]
["Paris De Gaulle","Sharm",3166]
["Faroe Islands","Berlin/Tegel",3986]
["Newark","Kalmar Vaxjoe",1251]
["Birmingham","Tampere",3834]
["Turku","Oslo",4938]
["Manchester","Glasgow Edinbg",1179]
["Karlstd Orebro","Tokyo/Narita",4013]
["Karlstad","Hanover",3329]
["Sandefjord","Vesteraas",4147]
["Stuttgart","Glasgow Edinbg",3461]
["Moscow","Frankfurt",4503]
["Munich","Washington",4206]
["Norrkoeping","Munster",4365]
["Istanbul","Troheim Sandefj",4697]
["Bangkok","Faroe Islands",1793]
["Ljubljana","Milan/Linate",1948]
["Trondheim","Istanbul",{"$f":"CEILING(4000*RAND(),1)+1000","v":2177}]
["Riga","Tunis",4058]
["Helsinki","Bremen",1829]
["Las Palmas","Rome",2755]
["Hamburg","Bucarst Berlin",3371]
["Wroclaw","Milan/Linate",3748]
["Kalmar Vaxjoe","Poznan",3419]
["Karachi Lahore","Berlin/Tegel",4576]
["Helsingborg City ","Vilnius",1443]
["Szczecin","Reykjavik",2563]
["Gothenburg","Paderbo Munster ",2211]
["Seattle","Troheim Sandefj",2057]
["Milan/Malpensa","Narsarsuaq",2864]
["Hanover","Bergen",1331]
["Seattle","Orebro",1064]
["Stavanger","Sharm",1133]
["Tampere","Tokyo/Narita",1072]
["Sharm Luxor","Hamburg",3920]
["Faroe Islands","St Petersburg",3474]
["Rome/Ciampino","Tokyo/Narita",3543]
["Vesteraas","Barcelona",4039]
["Skopje Bornhlm","Washington",2337]
["Kristiansand","Sharm",2823]
["Manchester","Madrid",1794]
["Las Palmas","Gdansk",3628]
["Brussels ","Helsingborg City ",3811]
["Hurghada","Munster",2429]
["Szczecin","Milan/Malpensa",3419]
["Vienna","Malta",2861]
["London/Heathrow","Brussels ",4837]
["Brussels ","Stavanger",1996]
["Berlin/Tegel","Rome/Ciampino",1252]
["Warsaw","Geneva",3350]
["Bergen","Ljubljana",2720]
["Dublin","Lyon Strasb",1847]
["Munster","Narsarsuaq",1713]
["Barcelona","Budapest",2208]
["Budapest","Geneva",1015]
["Milan/Linate","Sandefjord",1120]
["Munster","Chicago",4313]
["Orebro Karlstd","London/Heathrow",4200]
["Tampere","Vienna",2715]
["Seattle","Tampere",2755]
["Kristiansand","Nice",2354]
["Munich","Hurghada",4556]
["Bucarst Berlin","Seattle",4868]
["Joenkoeping","Paderbo Munster ",4647]
["Hanover","Singapore",2646]
["Berlin/Tegel","Sharm",2207]
["Helsinki","Berlin/Tegel",1025]
["Malaga/Cost.Sol","Sngpore Bangkok",3947]
["Paris De Gaulle","Prague",2092]
["Vesteraas","Sngpore Bangkok",1447]
["Rio Heathrw","Hamburg",4873]
["Amsterdam ","Rio Heathrw",2516]
["Faroe Islands","Gdansk",1393]
["Tenerife","Barcelona",2384]
["Prague","London/Stansted",2839]
["Stuttgart","Athens",2633]
["London/Stansted","Helsinki",3580]
["Singapore","Hamburg",4843]
["Amsterdam ","London/Gatwick",1827]
["Paris De Gaulle","Vesteraas",3778]
["Paderbo Munster ","Glasgow Edinbg",2119]
["Joenkoeping","Zurich",{"$f":"CEILING(4000*RAND(),1)+1000","v":3026}]
["London/Gatwick","Narsarsuaq",1161]
["Kangerlussuaq","Birmingham",2718]
["Helsinki","Bergen",2498]
["Dublin","Birmingham",1297]
["Rome","Paderbo Munster ",3521]
["Faroe Islands","Frankfurt",3604]
["Dublin","Reykjavik",3707]
["Kangerlussuaq","Tallinn",3147]
["Singapore","Lisbon",4639]
["Sngpore Bangkok","Paderbo Munster ",3127]
["Washington","Ljubljana",3942]
["Riga","Newark",4195]
["Istanbul","Karlstd Orebro",1777]
["Glasgow","Sharm Luxor",3338]
["Tenerife","Budapest",1559]
["London/Gatwick","Bergen",1195]
["Amsterdam ","Barcelona",2826]
["Dusseldorf","Faroe Islands",3431]
["Prague","Las Palmas",3029]
["Narsarsuaq","Norrkoeping",2103]
["Kristiansand","Bucarst Berlin",2006]
["Karachi Lahore","Vaxjoe Kalmar",3561]
["Zurich","Vesteraas",4681]
["Paris De Gaulle","Reykjavik",4918]
["Milan/Malpensa","London/Heathrow",3063]
["Munster","Stockholm",3763]
["Turku","Madrid",4559]
["Sharm","Nice",2624]
["Stockholm","Lyon Strasb",4256]
["Manchester","Malaga/Cost.Sol",2775]
["Szczecin","Stavanger",1106]
["Malaga Madrid","Skopje Bornhlm",3065]
["Kalmar Vaxjoe","Lisbon",1582]
["Munster","Malta",4902]
["Venice","Poznan",2027]
["Gdansk","Luxembourg",4068]
["Milan/Linate","Helsinki",2289]
["Reykjavik","Vesteraas",2563]
["Karachi Lahore","Sharm",1363]
["Glasgow Edinbg","Singapore",2557]
["Moscow","Vesteraas",1499]
["Seattle","Malaga/Cost.Sol",2506]
["Birmingham","Stavanger",3200]
["Istanbul","Nice",3062]
["Madrid","Glasgow",2522]
["Paris De Gaulle","Istanbul",3432]
["Manchester","Reykjavik",2014]
["Luxembourg","Paris De Gaulle",4519]
["Stuttgart","Moscow",1665]
["Karlstad","Orebro",2297]
["Geneva","Newark",3653]
["Orebro","Wroclaw",3811]
["Vilnius","Stockholm",4700]
["Gothenburg","Glasgow",2034]
["Vienna","Stuttgart",3302]
["Rome/Ciampino","Geneva",4848]
["Paderbo Munster ","Venice",1614]
["Singapore","Barcelona",3494]
["Madrid","Chicago",4555]
["Tokyo/Narita","Venice",1514]
["Tampere","Bangkok",1684]
["Manchester","Berlin/Tegel",1411]
["Bremen","Bergen",4280]
["Helsingborg City ","Manchester",{"$f":"CEILING(4000*RAND(),1)+1000","v":4831}]
["Vesteraas","Rio Heathrw",2143]
["Sharm","Rome",3902]
["Tallinn","Helsinki",3995]
["Rome","Wroclaw",3325]
["Bergen Sandefj","Malaga Madrid",2251]
["Stavanger","Karlstd Orebro",3237]
["Tenerife","Nice",4797]
["Hurghada","Newark",2219]
["Riga","Sharm Luxor",1399]
["Bremen","Karachi Lahore",2262]
["Brussels ","Faroe Islands",2795]
["Manchester","Trondheim",1090]
["Nice","Tampere",2340]
["Hurghada","London/Gatwick",3437]
["Moscow","Milan/Linate",1552]
["Stockholm","Trondheim",3798]
["Sandefjord","Munich",4155]
["Seattle","Linkoeping",3508]
["Bucarst Berlin","Helsinki",2482]
["Sharm Luxor","Lyon Strasb",4419]
["Joenkoeping","Berlin/Tegel",4295]
["Munich","Milan/Malpensa",3402]
["Helsingborg City ","Stockholm",1387]
["Hamburg","Amsterdam ",4098]
["Beijing","Tunis",1201]
["Munster","Bergen",3116]
["Gdansk","London/Gatwick",2244]
["Sngpore Bangkok","Troheim Sandefj",4877]
["Turku","Karlstad",2897]
["Linkoeping","Warsaw",1909]
["Kalmar Vaxjoe","Tenerife",2176]
["Reykjavik","Beijing",2879]
["Orebro","Las Palmas",4455]
["Vaxjoe Kalmar","Athens",1902]
["Barcelona","Munster",1914]
["Malta","Stuttgart",4178]
["Milan/Malpensa","Malaga Madrid",1870]
["Barcelona","Hamburg",4399]
["Malta","Chicago",1575]
["Las Palmas","Lisbon",2689]
["Chicago","Luxembourg",3397]
["London/Stansted","Malaga Madrid",1164]
["Vienna","Geneva",2762]
["Stavanger","Joenkoeping",4941]
["Rome/Ciampino","Tenerife",3964]
["Singapore","Szczecin",4676]
["Gdansk","Lisbon",4022]
["Istanbul","St Petersburg",3559]
["Malaga/Cost.Sol","Rome",4202]
["Sngpore Bangkok","Orebro Karlstd",1955]
["Zurich","Helsingborg City ",2924]
["Istanbul","Malta",4626]
["Oslo","Glasgow",4780]
["Munich","Rio Heathrw",2170]
["Karachi Lahore","Budapest",2177]
["Moscow","Orebro",4938]
["Vaxjoe Kalmar","Beijing",1521]
["Dusseldorf","Venice",3237]
["Malaga/Cost.Sol","Joenkoeping",4174]
["Tenerife","Helsinki",1935]
["Poznan","Tunis",1241]
["Munster","Sharm Luxor",1491]
["Basel","Gothenburg",3296]
["Paris De Gaulle","Tenerife",{"$f":"CEILING(4000*RAND(),1)+1000","v":2830}]
["Madrid","Tenerife",4402]
["Athens","Vesteraas",2524]
["Stavanger","Hamburg",2978]
["Tallinn","Stockholm",4408]
["Glasgow Edinbg","London/Stansted",2037]
["Orebro Karlstd","Stockholm",2505]
["Tenerife","Dusseldorf",3224]
["Athens","Sharm Luxor",2694]
["Sngpore Bangkok","Linkoeping",2974]
["Kangerlussuaq","Skopje Bornhlm",1439]
["Chicago","Szczecin",4041]
["Glasgow Edinbg","Istanbul",3507]
["Oslo","Szczecin",4822]
["Munich","Turku",1316]
["Milan/Linate","Kristiansand",3403]
["Riga","Milan/Linate",3833]
["Skopje Bornhlm","Tenerife",1441]
["London/Stansted","Frankfurt",1984]
["Kristiansand","Ljubljana",2735]
["Gothenburg","Vilnius",2447]
["Amsterdam ","Istanbul",1171]
["Hurghada","Stockholm",2313]
["Reykjavik","Hurghada",3960]
["Norrkoeping","Malta",4773]
["Joenkoeping","Lyon Strasb",1791]
["Faroe Islands","Helsinki",4264]
["Troheim Sandefj","Kristiansand",2316]
["Bergen Sandefj","Manchester",1434]
["Stuttgart","Vienna",2622]
["Linkoeping","Venice",3416]
["Helsingborg City ","Karlstad",2647]
["Poznan","Warsaw",2274]
["Istanbul","Luxembourg",2630]
["Wroclaw","Stockholm",4795]
["Vesteraas","Dusseldorf",2236]
["Lyon Strasb","Rio Heathrw",1959]
["Gdansk","Las Palmas",2781]
["Tenerife","Karlstd Orebro",4802]
["Poznan","Bangkok",1962]
["Tampere","Vilnius",4785]
["Geneva","Warsaw",1534]
["Orebro","Narsarsuaq",2367]
["Glasgow","Turku",3123]
["London/Gatwick","Frankfurt",4092]
["Bergen Sandefj","London/Gatwick",4262]
["Tallinn","Wroclaw",1313]
["Frankfurt","Tokyo/Narita",2239]
["Orebro Karlstd","Moscow",3222]
["Vaxjoe Kalmar","Karlstd Orebro",4679]
["Malaga/Cost.Sol","Tenerife",3807]
["Tunis","Hamburg",4945]
["Tampere","Basel",2586]
["Stuttgart","Rome",3426]
["Barcelona","Rome/Ciampino",2859]
["Prague","Rome/Ciampino",4448]
["Paderbo Munster ","Luxembourg",1820]
["Tallinn","Hurghada",4778]
["Zurich","Kalmar Vaxjoe",3809]
["Troheim Sandefj","Wroclaw",3766]
["Orebro","Linkoeping",3239]
["Tenerife","Rio Heathrw",2711]
["Tunis","Bergen Sandefj",1863]
["Vienna","Milan/Malpensa",2729]
["Vilnius","Malta",{"$f":"CEILING(4000*RAND(),1)+1000","v":2413}]
["Lisbon","Sngpore Bangkok",3725]
["Chicago","Malaga Madrid",2149]
["Stavanger","Tampere",1491]
["Frankfurt","Trondheim",4171]
["Turku","Stuttgart",3336]
["Munich","Moscow",3521]
["Bangkok","Prague",3679]
["Rome","Athens",4733]
["Basel","Karlstad",3236]
["Gdansk","Gothenburg",4852]
["Malta","Szczecin",4658]
["Munich","Milan/Linate",3347]
["Paris De Gaulle","Riga",4755]
["Beijing","Hurghada",3648]
["Oslo","Bangkok",4666]
["Faroe Islands","Kalmar Vaxjoe",1596]
["Trondheim","Milan/Linate",1178]
["Malaga/Cost.Sol","Malta",2573]
["Athens","Seattle",4545]
["Bergen","Birmingham",3977]
["Troheim Sandefj","Chicago",2916]
["Bergen Sandefj","Venice",2716]
["Vienna","Rome",1758]
["Hamburg","Karlstad",2017]
["Istanbul","Vilnius",1897]
["Oslo","Helsingborg City ",3336]
["Rio Heathrw","Lisbon",1213]
["Bremen","Tunis",1078]
["Paris De Gaulle","Moscow",2727]
["Zurich","Munster",3777]
["London/Gatwick","Milan/Malpensa",1890]
["Sharm","Joenkoeping",3932]
["Sharm Luxor","Vilnius",1567]
["Riga","Helsinki",4980]
["St Petersburg","Sharm",3296]
["Rome","London/Gatwick",2384]
["Sharm Luxor","Warsaw",4137]
["Karachi Lahore","Vienna",3960]
["Oslo","Manchester",1189]
["Basel","London/Gatwick",2409]
["Newark","Sandefjord",4571]
["Dublin","Sngpore Bangkok",4173]
["Trondheim","Turku",1843]
["Bremen","Orebro",3028]
["Stavanger","Seattle",4758]
["Milan/Linate","Athens",4233]
["Karlstad","Lisbon",3837]
["Amsterdam ","Budapest",3234]
["Manchester","Vienna",1308]
["Ljubljana","Karlstd Orebro",2055]
["Paris De Gaulle","Kangerlussuaq",1920]
["Warsaw","Gothenburg",4797]
["Bucarst Berlin","Manchester",3243]
["Madrid","Bangkok",4546]
["Ljubljana","Hamburg",3249]
["Oslo","Sharm",3030]
["Linkoeping","Sharm",4910]
["Newark","Zurich",1776]
["Gdansk","Sharm Luxor",3759]
["Tampere","Stockholm",1465]
["Vienna","Kangerlussuaq",3556]
["Stockholm","Glasgow",3030]
["Orebro Karlstd","Milan/Linate",2386]
["Sandefjord","Newark",{"$f":"CEILING(4000*RAND(),1)+1000","v":2633}]
["Birmingham","Tallinn",4920]
["Faroe Islands","Vesteraas",2297]
["Ljubljana","Orebro",1522]
["Rome/Ciampino","Joenkoeping",2488]
["Birmingham","Istanbul",1460]
["Helsinki","Athens",3218]
["Budapest","Helsingborg City ",2822]
["Tampere","Kalmar Vaxjoe",3057]
["Linkoeping","Tallinn",1743]
["Hanover","Malaga/Cost.Sol",4282]
["Basel","Frankfurt",2879]
["Hanover","Milan/Linate",1864]
["Vienna","London/Stansted",1408]
["Vilnius","Munster",3727]
["London/Stansted","Stockholm",3641]
["Karlstad","Tokyo/Narita",3423]
["Malaga/Cost.Sol","Karlstad",4647]
["Oslo","Athens",3217]
["Vilnius","Tallinn",2612]
["Glasgow","Vienna",4211]
["Luxembourg","Singapore",4064]
["Bremen","Szczecin",3572]
["London/Gatwick","Manchester",3254]
["Ljubljana","Linkoeping",3272]
["Paderbo Munster ","Malta",1193]
["Malta","Vienna",3465]
["Vilnius","Turku",4452]
["Lisbon","Sharm",2242]
["Rio Heathrw","Milan/Malpensa",1143]
["Gothenburg","London/Heathrow",4309]
["Lyon Strasb","Szczecin",4077]
["Venice","Bergen Sandefj",3038]
["Newark","Karlstad",1631]
["Geneva","Tunis",2592]
["Stuttgart","Newark",4424]
["Malta","Venice",4075]
["Lyon Strasb","Ljubljana",1745]
["Narsarsuaq","Malta",2099]
["Washington","Trondheim",1251]
["Rome/Ciampino","Bangkok",2981]
["Sandefjord","Vilnius",2360]
["Hamburg","Helsinki",4843]
["Tenerife","Rome/Ciampino",2794]
["Rome","Beijing",4339]
["Brussels ","Milan/Linate",4967]
["Orebro","Sandefjord",3336]
["Frankfurt","Beijing",4979]
["Gdansk","Bangkok",4232]
["Lyon Strasb","Tokyo/Narita",3260]
["Gothenburg","Kangerlussuaq",3660]
["Beijing","Poznan",4148]
["Tunis","Kristiansand",3374]
["Zurich","Geneva",3123]
["Sharm Luxor","Munich",3655]
["Istanbul","Narsarsuaq",4581]
["Munich","Rome/Ciampino",1164]
["Narsarsuaq","Joenkoeping",3863]
["London/Heathrow","Riga",1709]
["Tenerife","Oslo",4241]
["Ljubljana","Szczecin",4597]
["Munster","Joenkoeping",3667]
["Moscow","Paderbo Munster ",2276]
["London/Gatwick","Lisbon",2141]
["Stockholm","Stavanger",{"$f":"CEILING(4000*RAND(),1)+1000","v":3869}]
["Dublin","Helsinki",3239]
["Malaga Madrid","Brussels ",4004]
["Tampere","Stavanger",3937]
["Lyon Strasb","Gothenburg",4185]
["Tokyo/Narita","Seattle",2680]
["Istanbul","Malaga Madrid",3165]
["Warsaw","Narsarsuaq",1452]
["London/Stansted","Orebro",4101]
["Paderbo Munster ","Athens",2810]
["Bucarst Berlin","Poznan",4740]
["Prague","Hamburg",1732]
["Turku","Moscow",3427]
["Rome","Budapest",3988]
["Moscow","Rio Heathrw",3708]
["Chicago","Munich",2822]
["Zurich","Sharm Luxor",4027]
["Hanover","Munster",3920]
["Gdansk","Kalmar Vaxjoe",1993]
["Karachi Lahore","Kristiansand",2750]
["Tunis","Malta",4680]
["Troheim Sandefj","Lisbon",4964]
["Hamburg","Venice",1042]
["Tallinn","Malta",1712]
["Hamburg","Dusseldorf",2798]
["Washington","Faroe Islands",4593]
["Narsarsuaq","Troheim Sandefj",4311]
["Skopje Bornhlm","Rome",3195]
["Kangerlussuaq","Basel",1404]
["London/Gatwick","Beijing",1045]
["Glasgow","Kristiansand",2262]
["Paris De Gaulle","Nice",2821]
["Athens","Poznan",3811]
["Hamburg","Wroclaw",4970]
["Manchester","Sandefjord",1997]
["Venice","Moscow",1470]
["Malaga/Cost.Sol","Newark",4045]
["Glasgow","Milan/Malpensa",2561]
["Vaxjoe Kalmar","Linkoeping",3451]
["Munich","Rome",1601]
["Nice","Karlstd Orebro",4794]
["Tallinn","Hamburg",1763]
["Rome","Munster",3627]
["Gdansk","Paris De Gaulle",1354]
["Szczecin","Tenerife",4875]
["Bangkok","Frankfurt",3549]
["Kalmar Vaxjoe","Szczecin",1678]
["Tallinn","Glasgow Edinbg",1283]
["Brussels ","Malaga/Cost.Sol",2176]
["Prague","Geneva",1923]
["Hanover","Karachi Lahore",1006]
["Brussels ","London/Heathrow",2887]
["Dusseldorf","Birmingham",2519]
["Dusseldorf","Manchester",4274]
["Birmingham","Hanover",4749]
["Milan/Linate","Bergen",3618]
["Sngpore Bangkok","Washington",3530]
["Vesteraas","Las Palmas",1888]
["Glasgow Edinbg","Sharm Luxor",4981]
["Reykjavik","Paderbo Munster ",1591]
["Sngpore Bangkok","Kristiansand",4818]
["Rome","Munich",3128]
["Malta","Bergen",3861]
["Milan/Malpensa","Bremen",4057]
["Tunis","Karachi Lahore",{"$f":"CEILING(4000*RAND(),1)+1000","v":1431}]
["Amsterdam ","Helsingborg City ",2514]
["Glasgow Edinbg","Reykjavik",2123]
["Tenerife","Stockholm",1369]
["Rome","Sngpore Bangkok",1571]
["Turku","Orebro",1285]
["Tokyo/Narita","Milan/Linate",3545]
["Wroclaw","Hanover",2196]
["Tampere","Paris De Gaulle",2900]
["Stuttgart","Helsingborg City ",4427]
["Bucarst Berlin","Hamburg",2269]
["Trondheim","Geneva",4783]
["Dublin","Vilnius",1062]
["Singapore","Geneva",2140]
["Rio Heathrw","Karachi Lahore",2340]
["Glasgow Edinbg","Malaga/Cost.Sol",3948]
["Oslo","Stavanger",1342]
["Geneva","Vaxjoe Kalmar",4560]
["Geneva","Dusseldorf",1791]
["Tunis","Vienna",2599]
["Hamburg","Linkoeping",2228]
["Kangerlussuaq","Luxembourg",4101]
["Malta","Dublin",1134]
["Malaga/Cost.Sol","Hanover",3530]
["Kristiansand","Prague",3704]
["Riga","Vaxjoe Kalmar",4546]
["Kalmar Vaxjoe","Dublin",1530]
["Hurghada","Las Palmas",3323]
["Tenerife","Munster",1734]
["Barcelona","Manchester",4023]
["Basel","Istanbul",2645]
["Sngpore Bangkok","Riga",4191]
["Athens","Dublin",3280]
["St Petersburg","Barcelona",3693]
["Helsinki","Munster",2598]
["London/Gatwick","Linkoeping",2248]
["Faroe Islands","Karlstd Orebro",3653]
["Berlin/Tegel","Milan/Malpensa",2314]
["Chicago","Helsingborg City ",2487]
["Tampere","Glasgow",4836]
["Seattle","Riga",3440]
["Kristiansand","Tallinn",3604]
["Karlstd Orebro","Stuttgart",3239]
["Tenerife","Zurich",4844]
["Milan/Linate","Singapore",3711]
["Tunis","Stockholm",2842]
["Hurghada","Vesteraas",2019]
["Munster","Ljubljana",3627]
["Rio Heathrw","Luxembourg",4125]
["Rio Heathrw","London/Gatwick",4433]
["Skopje Bornhlm","Amsterdam ",1599]
["Karachi Lahore","Manchester",3196]
["Dublin","Manchester",2798]
["Geneva","Szczecin",1441]
["Kangerlussuaq","Rome",2170]
["Hurghada","Glasgow Edinbg",4134]
["Bergen Sandefj","Orebro Karlstd",1203]
["Seattle","Kangerlussuaq",2072]
["Stavanger","Orebro Karlstd",2943]
["Paderbo Munster ","Warsaw",3248]
["Bergen","Rome/Ciampino",4706]
["Vesteraas","Moscow",4920]
["Amsterdam ","Milan/Linate",4704]
["Karlstd Orebro","Karachi Lahore",2907]
["Wroclaw","Skopje Bornhlm",{"$f":"CEILING(4000*RAND(),1)+1000","v":3564}]
["Oslo","Barcelona",4713]
["Bergen","Stavanger",4263]
["Karachi Lahore","Tallinn",2425]
["Beijing","Norrkoeping",1209]
["Vilnius","Riga",1398]
["Lyon Strasb","Milan/Malpensa",1670]
["Dusseldorf","Norrkoeping",4368]
["Faroe Islands","Kangerlussuaq",4429]
["Tampere","London/Stansted",3781]
["Sharm Luxor","Bangkok",1722]
["Skopje Bornhlm","Birmingham",3576]
["Karachi Lahore","Hurghada",4716]
["St Petersburg","Narsarsuaq",3509]
["Singapore","Narsarsuaq",1114]
["Rio Heathrw","Basel",2023]
["Barcelona","Milan/Linate",4283]
["London/Stansted","Las Palmas",3104]
["Faroe Islands","Tallinn",3214]
["London/Stansted","Helsingborg City ",1342]
["Wroclaw","Bergen",4623]
["Munich","Troheim Sandefj",4277]
["Newark","Tallinn",3201]
["Geneva","Vilnius",1387]
["Washington","Troheim Sandefj",3412]
["Malaga Madrid","Karachi Lahore",3263]
["Frankfurt","Troheim Sandefj",3397]
["Malaga/Cost.Sol","Milan/Malpensa",4301]
["Reykjavik","Oslo",3210]
["Karlstd Orebro","Riga",1489]
["Venice","Berlin/Tegel",2064]
["Frankfurt","Manchester",2963]
["Birmingham","Wroclaw",3617]
["Narsarsuaq","Tampere",1428]
["Trondheim","Kangerlussuaq",3179]
["Lyon Strasb","Bergen Sandefj",4216]
["Poznan","Vesteraas",4043]
["London/Stansted","Tampere",3122]
["Washington","Lisbon",3212]
["Hanover","Athens",3173]
["Tenerife","Hamburg",1863]
["Reykjavik","Singapore",1735]
["Karachi Lahore","Malaga Madrid",4803]
["Vienna","Bucarst Berlin",2432]
["Venice","Luxembourg",1736]
["Geneva","Hanover",4461]
["London/Stansted","Malaga/Cost.Sol",2519]
["Zurich","Linkoeping",2304]
["Kristiansand","Paderbo Munster ",4260]
["Kristiansand","Milan/Linate",2280]
["Vienna","Karachi Lahore",3061]
["Madrid","Athens",2100]
["Tenerife","Singapore",4052]
["Malta","Beijing",1273]
["Bergen","Reykjavik",4816]
["Las Palmas","Tokyo/Narita",2182]
["Narsarsuaq","Bucarst Berlin",4721]
["Tokyo/Narita","Ljubljana",4703]
["Helsingborg City ","Helsinki",4407]
["Glasgow Edinbg","Barcelona",2108]
["Vienna","Venice",1591]
["Vaxjoe Kalmar","Helsingborg City ",2522]
["Stockholm","Hurghada",3022]
["Orebro Karlstd","Munich",3256]
["Ljubljana","Karlstad",{"$f":"CEILING(4000*RAND(),1)+1000","v":3566}]
["Paderbo Munster ","Linkoeping",3813]
["Vaxjoe Kalmar","Norrkoeping",1891]
["Orebro Karlstd","Sharm",4981]
["Basel","London/Stansted",1617]
["Orebro","Nice",3992]
["Paderbo Munster ","Faroe Islands",3000]
["Paderbo Munster ","Milan/Linate",1845]
["Tunis","Bremen",3096]
["Munster","Hanover",3212]
["Glasgow","Hurghada",2902]
["Karlstad","London/Gatwick",4678]
["Malaga Madrid","Wroclaw",4717]
["Bergen","Tenerife",2957]
["Gdansk","Dublin",1902]
["Helsingborg City ","Milan/Linate",4871]
["Rome","Basel",1968]
["Norrkoeping","Faroe Islands",2674]
["Chicago","Manchester",1403]
["Prague","Paris De Gaulle",1175]
["Paderbo Munster ","Basel",2141]
["Las Palmas","Munster",3387]
["Bergen","London/Heathrow",2143]
["Munich","Dusseldorf",1528]
["Trondheim","Oslo",1570]
["Amsterdam ","Sharm Luxor",4145]
["Basel","Reykjavik",1314]
["Milan/Malpensa","Tenerife",2496]
["Faroe Islands","Tunis",1845]
["Karlstd Orebro","Dusseldorf",3460]
["Berlin/Tegel","Dublin",3021]
["Tampere","Washington",1225]
["Venice","Lisbon",1512]
["Birmingham","Norrkoeping",3083]
["Ljubljana","Zurich",3366]
["Las Palmas","Orebro",3891]
["Karlstad","Szczecin",2144]
["Newark","Karlstd Orebro",3649]
["Sngpore Bangkok","Hurghada",4615]
["Norrkoeping","Seattle",2632]
["Malaga Madrid","Amsterdam ",4914]
["Wroclaw","Narsarsuaq",1404]
["Helsingborg City ","London/Gatwick",2557]
["Munich","Las Palmas",1380]
["Linkoeping","Helsinki",2359]
["Birmingham","Rome/Ciampino",4555]
["Karlstad","Troheim Sandefj",3727]
["Hurghada","Brussels ",3304]
["Poznan","Dublin",4956]
["Bergen","Madrid",3275]
["Stockholm","Norrkoeping",4721]
["Kalmar Vaxjoe","Kangerlussuaq",2055]
["Stuttgart","Skopje Bornhlm",3210]
["Milan/Linate","Bangkok",2429]
["Kalmar Vaxjoe","Malaga/Cost.Sol",3995]
["Venice","Riga",2338]
["Amsterdam ","Vesteraas",1590]
["Bergen","Frankfurt",3372]
["Karachi Lahore","London/Gatwick",3475]
["Karlstd Orebro","Malaga/Cost.Sol",4375]
["Vesteraas","Malta",1552]
["Joenkoeping","Karachi Lahore",1885]
["Frankfurt","Tallinn",3695]
["Amsterdam ","Tokyo/Narita",4473]
["Rome","Karlstd Orebro",{"$f":"CEILING(4000*RAND(),1)+1000","v":1236}]
["Istanbul","Paderbo Munster ",3549]
["Singapore","Malaga Madrid",3073]
["Munster","Paris De Gaulle",1226]
["London/Heathrow","Karlstd Orebro",4818]
["Joenkoeping","Istanbul",4491]
["London/Heathrow","Zurich",3445]
["Hurghada","Barcelona",2217]
["Lisbon","Frankfurt",4713]
["Vilnius","Nice",1030]
["Nice","Madrid",4566]
["Manchester","Sngpore Bangkok",3142]
["Amsterdam ","Glasgow",4917]
["St Petersburg","Manchester",4450]
["Turku","Amsterdam ",3345]
["Stavanger","Rome/Ciampino",1165]
["Troheim Sandefj","Sandefjord",3359]
["Bremen","Lisbon",1790]
["Kangerlussuaq","London/Gatwick",4329]
["Frankfurt","Helsinki",3806]
["Karlstad","Munich",3225]
["Bremen","Glasgow Edinbg",2704]
["Bergen Sandefj","Karachi Lahore",3396]
["Gothenburg","Gdansk",4172]
["Washington","Munster",3728]
["Oslo","London/Gatwick",2954]
["Vienna","Szczecin",3223]
["Geneva","Narsarsuaq",3137]
["Gothenburg","Madrid",2801]
["Moscow","Washington",4082]
["Bremen","Stavanger",3234]
["Karlstad","Berlin/Tegel",1514]
["Nice","Sharm",2130]
["Hamburg","Karlstd Orebro",1231]
["Newark","Sharm Luxor",2405]
["Turku","Beijing",2733]
["Glasgow Edinbg","Szczecin",2507]
["Malta","London/Gatwick",1437]
["Sharm Luxor","Rome",2249]
["Beijing","Milan/Malpensa",4304]
["Gothenburg","Oslo",4242]
["Sandefjord","Gothenburg",3418]
["Newark","Beijing",2245]
["Stuttgart","London/Gatwick",1530]
["Prague","Zurich",2364]
["Nice","Vaxjoe Kalmar",3767]
["Prague","Vienna",2619]
["Milan/Malpensa","Oslo",3794]
["Barcelona","Sharm",3266]
["Malta","Riga",4712]
["Kalmar Vaxjoe","Berlin/Tegel",2435]
["Poznan","Karlstd Orebro",1917]
["Malaga/Cost.Sol","Glasgow Edinbg",2903]
["Troheim Sandefj","Dusseldorf",3111]
["Riga","Warsaw",3790]
["Orebro Karlstd","Birmingham",3773]
["Stuttgart","Turku",3061]
["Wroclaw","Budapest",4504]
["Istanbul","Rome/Ciampino",3529]
["Trondheim","Karlstd Orebro",3673]
["Karachi Lahore","Troheim Sandefj",3852]
["Bucarst Berlin","Venice",1797]
["Geneva","Frankfurt",1664]
["Beijing","Helsinki",3368]
["Sandefjord","Birmingham",{"$f":"CEILING(4000*RAND(),1)+1000","v":1504}]
["Reykjavik","Joenkoeping",1182]
["Basel","Orebro Karlstd",3251]
["Singapore","Tunis",3030]
["Amsterdam ","Trondheim",4032]
["Venice","Paris De Gaulle",2012]
["Helsinki","Lisbon",2747]
["Prague","Munster",1037]
["Hurghada","Helsingborg City ",2479]
["Orebro","Vienna",4193]
["Prague","Beijing",2081]
["London/Heathrow","Athens",2598]
["Vesteraas","Norrkoeping",1512]
["Vilnius","Las Palmas",3528]
["Glasgow","Orebro",2966]
["Venice","Milan/Linate",4094]
["Manchester","Nice",2672]
["London/Gatwick","Bergen Sandefj",1414]
["Rome/Ciampino","Ljubljana",1455]
["Turku","Istanbul",2291]
["Luxembourg","Hanover",4234]
["London/Gatwick","Moscow",2306]
["Zurich","Trondheim",3513]
["Ljubljana","London/Heathrow",1588]
["Sharm","Gdansk",2790]
["Faroe Islands","Luxembourg",1427]
["Vesteraas","Paris De Gaulle",4819]
["Helsingborg City ","Beijing",1815]
["Dublin","Lisbon",4671]
["Kangerlussuaq","Karlstad",3790]
["Beijing","Wroclaw",4856]
["Riga","Lisbon",1287]
["Gothenburg","Tenerife",1047]
["Hanover","Sngpore Bangkok",1661]
["Tallinn","Bucarst Berlin",3864]
["Tampere","Barcelona",3153]
["Basel","Wroclaw",4942]
["Manchester","Venice",1646]
["Munich","Stuttgart",4592]
["Sharm","Tenerife",4738]
["Manchester","Joenkoeping",1271]
["Tallinn","Sharm Luxor",4401]
["Oslo","Bremen",4480]
["Nice","Barcelona",3400]
["Lisbon","Vaxjoe Kalmar",2281]
["Malaga/Cost.Sol","Brussels ",1325]
["Turku","Troheim Sandefj",4259]
["Orebro","Malta",3142]
["Karachi Lahore","Malaga/Cost.Sol",4051]
["Troheim Sandefj","Karachi Lahore",2929]
["Athens","Riga",3845]
["Helsingborg City ","Rome",3362]
["Helsinki","Zurich",3938]
["Poznan","Malaga Madrid",3986]
["Warsaw","Troheim Sandefj",1521]
["Tampere","Geneva",4649]
["Sharm","Lyon Strasb",2085]
["Rio Heathrw","Bangkok",4381]
["Vesteraas","Bergen Sandefj",4920]
["Bergen","Bangkok",2753]
["Reykjavik","Glasgow",4326]
["Stockholm","Skopje Bornhlm",4976]
["Geneva","Kangerlussuaq",3589]
["Lisbon","Vilnius",1493]
["Vienna","Stavanger",{"$f":"CEILING(4000*RAND(),1)+1000","v":4008}]
["Madrid","Istanbul",4545]
["Berlin/Tegel","Poznan",4441]
["Tallinn","Rome/Ciampino",3299]
["Tunis","Tokyo/Narita",4860]
["Paderbo Munster ","Lisbon",4526]
["Munich","Paderbo Munster ",2032]
["Rome/Ciampino","Gothenburg",4388]
["Budapest","Orebro Karlstd",2984]
["Milan/Malpensa","Nice",4565]
["Tampere","Seattle",2929]
["Nice","Manchester",2304]
["Munich","Gothenburg",4330]
["Gothenburg","Turku",3666]
["Poznan","Singapore",4075]
["Kangerlussuaq","Stuttgart",2617]
["Munich","Chicago",2351]
["Tallinn","London/Stansted",1739]
["Barcelona","Vilnius",1567]
["Glasgow Edinbg","Linkoeping",4178]
["Riga","Kalmar Vaxjoe",4463]
["Szczecin","Las Palmas",2340]
["Tokyo/Narita","Oslo",1196]
["Amsterdam ","St Petersburg",3052]
["Geneva","Sharm",1709]
["Troheim Sandefj","St Petersburg",2600]
["Sharm","Milan/Malpensa",2534]
["Poznan","Helsingborg City ",3545]
["Brussels ","Bangkok",4029]
["Poznan","Helsinki",1466]
["Budapest","Vesteraas",1577]
["Turku","Tallinn",4960]
["Amsterdam ","Vilnius",3965]
["Athens","Luxembourg",3999]
["Norrkoeping","Tokyo/Narita",4275]
["Gdansk","Helsinki",4519]
["Norrkoeping","Vilnius",2704]
["Kalmar Vaxjoe","Glasgow Edinbg",3875]
["London/Stansted","Munster",3218]
["Zurich","Tampere",2757]
["Barcelona","Skopje Bornhlm",3635]
["Newark","Luxembourg",4477]
["Riga","Stavanger",4163]
["Glasgow","Ljubljana",3744]
["Skopje Bornhlm","Malaga/Cost.Sol",1559]
["Bergen","Berlin/Tegel",3717]
["Narsarsuaq","Warsaw",2551]
["Istanbul","Tokyo/Narita",3961]
["Beijing","Paderbo Munster ",2190]
["Kristiansand","Newark",4614]
["Trondheim","Beijing",1155]
["Szczecin","Sharm Luxor",3960]
["Szczecin","Narsarsuaq",3277]
["Barcelona","Bremen",2290]
["Vilnius","Vaxjoe Kalmar",4873]
["Beijing","Luxembourg",1508]
["Warsaw","Bangkok",3845]
["Berlin/Tegel","Glasgow",1920]
["Paris De Gaulle","Dublin",2382]
["Stavanger","Madrid",3316]
["Malaga Madrid","Orebro Karlstd",1767]
["Karlstad","Kalmar Vaxjoe",3231]
["Beijing","Hanover",2561]
["Tenerife","Sharm Luxor",1245]
["Geneva","Tenerife",{"$f":"CEILING(4000*RAND(),1)+1000","v":2944}]
["Sandefjord","Gdansk",1821]
["Hamburg","Vaxjoe Kalmar",2325]
["Orebro Karlstd","Zurich",3749]
["Sandefjord","Skopje Bornhlm",2557]
["Manchester","Narsarsuaq",1325]
["Bergen Sandefj","Barcelona",3452]
["Malta","Las Palmas",4930]
["Orebro Karlstd","Ljubljana",3310]
["Rio Heathrw","Hanover",2706]
["Munster","Venice",1722]
["Madrid","Sngpore Bangkok",3464]
["Lyon Strasb","Las Palmas",4169]
["Rome","Frankfurt",1170]
["Malta","Karlstd Orebro",3164]
["Dublin","London/Heathrow",3296]
["Sandefjord","Kangerlussuaq",4661]
["Nice","Milan/Malpensa",2056]
["Bremen","Orebro Karlstd",1085]
["Warsaw","Hamburg",2220]
["Kristiansand","Basel",1678]
["Nice","Reykjavik",2627]
["Birmingham","Nice",1742]
["Prague","Reykjavik",3491]
["Munster","Bremen",4028]
["Newark","Bangkok",1032]
["Joenkoeping","Orebro",1793]
["Las Palmas","Vilnius",1130]
["Tallinn","Oslo",2474]
["Orebro Karlstd","Sandefjord",3932]
["Tallinn","Zurich",3979]
["Bergen","Wroclaw",1939]
["Lisbon","Karlstad",2925]
["Sharm Luxor","Lisbon",1256]
["Las Palmas","Wroclaw",3237]
["Bergen Sandefj","Stuttgart",1523]
["Geneva","Kristiansand",1809]
["Barcelona","Milan/Malpensa",3351]
["Glasgow Edinbg","Gothenburg",1626]
["Brussels ","Rome",2062]
["Milan/Linate","Ljubljana",3549]
["Geneva","Orebro",2030]
["Birmingham","Rome",4299]
["London/Stansted","Bergen Sandefj",2398]
["Wroclaw","Berlin/Tegel",4391]
["Reykjavik","Dusseldorf",2476]
["Brussels ","Joenkoeping",4716]
["Munster","Vaxjoe Kalmar",1817]
["Washington","Brussels ",1429]
["Amsterdam ","Rome",1850]
["Skopje Bornhlm","Moscow",1158]
["Riga","Helsingborg City ",4531]
["Karlstd Orebro","Brussels ",2111]
["Linkoeping","Sharm Luxor",2331]
["Karachi Lahore","Hanover",3542]
["Bucarst Berlin","Basel",2195]
["Kangerlussuaq","Karlstd Orebro",1454]
["Sharm","Athens",2912]
["Dusseldorf","Hanover",3792]
["Manchester","Dusseldorf",2035]
["Glasgow","Trondheim",1199]
["London/Gatwick","Faroe Islands",2787]
["Bucarst Berlin","Budapest",4429]
["Vesteraas","Milan/Linate",3653]
["Stuttgart","Karlstd Orebro",{"$f":"CEILING(4000*RAND(),1)+1000","v":1756}]
["Norrkoeping","London/Stansted",4383]
["Luxembourg","Milan/Linate",4326]
["Zurich","Rome/Ciampino",1597]
["Madrid","Norrkoeping",2730]
["Seattle","Ljubljana",4250]
["Bangkok","Rio Heathrw",3731]
["Gothenburg","Munster",3571]
["Paris De Gaulle","Vienna",2377]
["Vesteraas","Szczecin",2587]
["Vaxjoe Kalmar","Moscow",1378]
["London/Stansted","Moscow",1824]
["Newark","Brussels ",4115]
["Skopje Bornhlm","Singapore",3809]
["Rio Heathrw","Skopje Bornhlm",4616]
["Paris De Gaulle","Stockholm",2533]
["Frankfurt","Glasgow Edinbg",3804]
["Riga","Troheim Sandefj",4918]
["Bergen Sandefj","Milan/Linate",4730]
["Moscow","Rome",1899]
["Warsaw","St Petersburg",2407]
["Kangerlussuaq","Bergen Sandefj",1723]
["Poznan","Oslo",1971]
["London/Gatwick","Vienna",2061]
["Nice","Tallinn",3319]
["Szczecin","Riga",2705]
["Ljubljana","Riga",2727]
["Kalmar Vaxjoe","Karlstd Orebro",4489]
["Trondheim","Lyon Strasb",2730]
["Sandefjord","Rome",3109]
["Bergen","Malta",1860]
["Paderbo Munster ","Hurghada",4600]
["Bremen","Stuttgart",1311]
["Joenkoeping","Orebro Karlstd",4990]
["Hurghada","Bergen Sandefj",1864]
["Kangerlussuaq","Warsaw",1523]
["Newark","Bucarst Berlin",4733]
["Faroe Islands","Madrid",2274]
["Karachi Lahore","Riga",3800]
["Glasgow Edinbg","Chicago",3451]
["Stuttgart","Tunis",3664]
["Frankfurt","Skopje Bornhlm",4373]
["Sharm","St Petersburg",4914]
["Vilnius","Brussels ",1677]
["Faroe Islands","Vienna",3997]
["Paris De Gaulle","Milan/Linate",3728]
["Paris De Gaulle","Munster",4721]
["Szczecin","Istanbul",4303]
["Sngpore Bangkok","Munich",4803]
["Malta","Washington",2568]
["Skopje Bornhlm","London/Stansted",2927]
["Hamburg","London/Gatwick",2100]
["Bremen","Kalmar Vaxjoe",3655]
["Orebro Karlstd","Las Palmas",1913]
["Gdansk","Berlin/Tegel",3024]
["Las Palmas","Milan/Linate",2088]
["Sharm","Lisbon",4742]
["St Petersburg","Malta",3583]
["Rome/Ciampino","Dublin",3836]
["Budapest","Athens",2969]
["Malaga Madrid","Las Palmas",1811]
["Norrkoeping","Wroclaw",2056]
["Paderbo Munster ","Karlstd Orebro",1265]
["Bergen","Hamburg",2195]
["Lisbon","Milan/Malpensa",{"$f":"CEILING(4000*RAND(),1)+1000","v":1981}]
["Prague","Moscow",2266]
["Oslo","Malta",4394]
["Kristiansand","Stuttgart",4281]
["Kalmar Vaxjoe","Milan/Malpensa",1003]
["Hurghada","Stavanger",4415]
["Reykjavik","London/Gatwick",3077]
["Glasgow","Narsarsuaq",1791]
["Sngpore Bangkok","Chicago",4400]
["Orebro","Joenkoeping",1711]
["Paderbo Munster ","Karachi Lahore",3558]
["Oslo","Hamburg",4718]
["Rome/Ciampino","Szczecin",4024]
["Bangkok","Sharm Luxor",4268]
["Hamburg","Orebro",2929]
["Birmingham","Washington",2069]
["Venice","Milan/Malpensa",1359]
["Sharm Luxor","Reykjavik",4894]
["Rio Heathrw","Helsingborg City ",4729]
["Zurich","Vaxjoe Kalmar",3415]
["Turku","Seattle",1276]
["Tokyo/Narita","Frankfurt",4391]
["Trondheim","Frankfurt",2722]
["Orebro","Singapore",2981]
["Milan/Linate","Hanover",3177]
["Troheim Sandefj","Sharm",2571]
["Lyon Strasb","Sharm Luxor",1043]
["Ljubljana","Sharm",3309]
["Budapest","Milan/Linate",2078]
["Milan/Linate","Riga",1837]
["Stockholm","Munster",3689]
["Hamburg","Tunis",1847]
["Trondheim","Skopje Bornhlm",3989]
["Singapore","Sharm Luxor",2042]
["Paris De Gaulle","Luxembourg",2295]
["Malaga Madrid","Poznan",4911]
["Nice","Bergen",4191]
["Dublin","Poznan",3768]
["Joenkoeping","Munster",4707]
["Ljubljana","Hanover",1917]
["Kangerlussuaq","Hurghada",4071]
["Stuttgart","Rome/Ciampino",2080]
["Szczecin","Manchester",4248]
["Tenerife","Washington",4195]
["Helsinki","Norrkoeping",3419]
["Chicago","Hanover",3206]
["Tallinn","Faroe Islands",3353]
["Bremen","Geneva",2340]
["Wroclaw","Oslo",4907]
["Stavanger","Vienna",4356]
["Gothenburg","Stockholm",4159]
["Nice","Prague",2069]
["Bangkok","Hanover",2480]
["Chicago","Milan/Linate",3508]
["Newark","Las Palmas",1156]
["Oslo","Karlstd Orebro",3583]
["Frankfurt","Kangerlussuaq",1196]
["Gdansk","Orebro",1396]
["Norrkoeping","Budapest",4605]
["Warsaw","Munich",2334]
["Chicago","Bucarst Berlin",4043]
["Las Palmas","Paris De Gaulle",1909]
["Dusseldorf","St Petersburg",4437]
["Paderbo Munster ","Bergen",1719]
["Barcelona","Kalmar Vaxjoe",{"$f":"CEILING(4000*RAND(),1)+1000","v":3286}]
["Munster","Faroe Islands",1161]
["Tenerife","Warsaw",3456]
["Budapest","Rome",3319]
["Hanover","Bergen Sandefj",4928]
["Seattle","Newark",2208]
["Tampere","Karachi Lahore",1392]
["Stuttgart","Sngpore Bangkok",3164]
["Newark","Hamburg",4801]
["Helsingborg City ","Stavanger",4063]
["Karlstd Orebro","Linkoeping",4720]
["Troheim Sandefj","Frankfurt",2792]
["Venice","Nice",3757]
["Athens","Karlstd Orebro",2803]
["Geneva","Ljubljana",1601]
["Munster","Helsinki",3987]
["Dublin","Warsaw",4341]
["Glasgow","Gothenburg",2469]
["Reykjavik","Milan/Linate",1279]
["Linkoeping","Moscow",1907]
["Prague","Karachi Lahore",3378]
["Skopje Bornhlm","Bremen",3622]
["Beijing","Hamburg",4294]
["Glasgow","Skopje Bornhlm",3828]
["Bucarst Berlin","Norrkoeping",1755]
["Sandefjord","Malaga/Cost.Sol",3232]
["Beijing","Tokyo/Narita",2020]
["Gdansk","Poznan",4211]
["Frankfurt","Las Palmas",3891]
["Wroclaw","Newark",1846]
["Venice","Glasgow Edinbg",2432]
["Dusseldorf","Karachi Lahore",1610]
["Frankfurt","Vesteraas",2711]
["Szczecin","Kalmar Vaxjoe",3863]
["Beijing","Birmingham",3269]
["Washington","Amsterdam ",1004]
["Malaga Madrid","Karlstd Orebro",2984]
["Milan/Linate","Vaxjoe Kalmar",4506]
["Sharm","Vaxjoe Kalmar",3500]
["Tallinn","Skopje Bornhlm",1783]
["Singapore","Bucarst Berlin",2624]
["London/Heathrow","Las Palmas",3457]
["Athens","Frankfurt",3694]
["Luxembourg","Ljubljana",3338]
["Sandefjord","Stuttgart",1794]
["Munster","Washington",4386]
["Tunis","Lyon Strasb",4683]
["Chicago","Stavanger",1767]
["Seattle","Amsterdam ",3812]
["Karlstad","Gothenburg",4397]
["Dusseldorf","Washington",4417]
["Helsinki","Prague",2273]
["Singapore","Norrkoeping",4684]
["Kristiansand","Joenkoeping",1493]
["Bergen","Dublin",1658]
["Singapore","Munster",4518]
["Seattle","Orebro Karlstd",2498]
["Karlstad","Bergen Sandefj",2261]
["Tokyo/Narita","Karlstad",3626]
["Sharm Luxor","Beijing",2189]
["Kalmar Vaxjoe","Zurich",3391]
["Reykjavik","Venice",1201]
["Norrkoeping","Hurghada",2157]
["Moscow","Malta",1693]
["Moscow","Stuttgart",{"$f":"CEILING(4000*RAND(),1)+1000","v":1257}]
["Lisbon","Linkoeping",3403]
["Rio Heathrw","Orebro",4123]
["Kalmar Vaxjoe","Stuttgart",2819]
["Bergen Sandefj","Lyon Strasb",4046]
["Manchester","Rome",3836]
["St Petersburg","Helsingborg City ",2050]
["Narsarsuaq","Ljubljana",1249]
["Newark","Malaga/Cost.Sol",1369]
["Barcelona","Birmingham",3492]
["Dublin","Vaxjoe Kalmar",4179]
["Tampere","Linkoeping",1642]
["Prague","Malta",4690]
["Stockholm","Nice",1758]
["Singapore","London/Stansted",2019]
["Birmingham","Malaga Madrid",2026]
["Szczecin","Venice",3499]
["Karlstd Orebro","Gothenburg",3794]
["Oslo","Madrid",2074]
["Malaga Madrid","Chicago",4938]
["Chicago","Tenerife",2714]
["Gothenburg","Dublin",4989]
["Oslo","Vesteraas",4394]
["Riga","Vienna",3799]
["Bucarst Berlin","Singapore",1944]
["Tallinn","Tampere",4948]
["Kangerlussuaq","Milan/Malpensa",1027]
["Kristiansand","Barcelona",4686]
["Chicago","Athens",1622]
["Karlstd Orebro","Helsingborg City ",1502]
["London/Gatwick","Vesteraas",4563]
["Athens","Venice",2941]
["Troheim Sandefj","Sharm Luxor",3941]
["Vienna","Troheim Sandefj",1206]
["Frankfurt","Orebro Karlstd",2679]
["Warsaw","Lyon Strasb",2276]
["Dusseldorf","Helsinki",1595]
["Bucarst Berlin","Narsarsuaq",2201]
["Stockholm","Riga",1033]
["Helsingborg City ","Faroe Islands",4878]
["Norrkoeping","Birmingham",2764]
["Riga","Glasgow",3028]
["Poznan","Berlin/Tegel",3943]
["Seattle","Hanover",3259]
["Rio Heathrw","Newark",4240]
["Vaxjoe Kalmar","Singapore",4394]
["Linkoeping","Tokyo/Narita",2426]
["Ljubljana","Malta",3264]
["Tallinn","Narsarsuaq",2812]
["Ljubljana","Amsterdam ",1378]
["Vilnius","Trondheim",2870]
["Malta","Moscow",3840]
["Paris De Gaulle","Sharm Luxor",3722]
["Tampere","Zurich",4396]
["Milan/Linate","Glasgow",1019]
["Luxembourg","Barcelona",1709]
["Vilnius","Skopje Bornhlm",3383]
["Paris De Gaulle","Bergen Sandefj",2679]
["Malaga/Cost.Sol","Sharm Luxor",2979]
["Seattle","Venice",1250]
["Hurghada","Malaga Madrid",3286]
["Tunis","Hurghada",1374]
["Singapore","Vaxjoe Kalmar",3009]
["Tokyo/Narita","Sharm",1546]
["Rome/Ciampino","Washington",{"$f":"CEILING(4000*RAND(),1)+1000","v":2001}]
["Luxembourg","Malta",1291]
["Tallinn","Tenerife",4814]
["Poznan","Faroe Islands",1300]
["Bremen","Manchester",1963]
["London/Stansted","Athens",3492]
["Rio Heathrw","London/Heathrow",4184]
["Zurich","Beijing",2065]
["Trondheim","Rome",4926]
["Amsterdam ","Orebro",4679]
["Oslo","Kangerlussuaq",3571]
["Rio Heathrw","Vaxjoe Kalmar",1987]
["Bangkok","Lisbon",3411]
["Munster","Birmingham",3330]
["Las Palmas","Stavanger",2516]
["Tunis","Luxembourg",1765]
["Stavanger","Bergen",3789]
["Glasgow Edinbg","Munster",4009]
["Rome","Luxembourg",1882]
["Berlin/Tegel","Amsterdam ",3330]
["Wroclaw","Sngpore Bangkok",2944]
["Stavanger","Malaga Madrid",1764]
["Bergen","Tampere",2553]
["Bergen Sandefj","Reykjavik",1119]
["Munich","Vaxjoe Kalmar",1952]
["Zurich","Paderbo Munster ",4131]
["Kristiansand","Paris De Gaulle",2682]
["Rome","Troheim Sandefj",1306]
["Stockholm","Sharm",3944]
["Birmingham","Trondheim",3995]
["Geneva","Wroclaw",1010]
["Lyon Strasb","Vilnius",1576]
["Beijing","Lyon Strasb",1512]
["Milan/Linate","Orebro Karlstd",2412]
["Gothenburg","Ljubljana",4884]
["Helsinki","Sharm",2209]
["Amsterdam ","Faroe Islands",4148]
["Moscow","Vienna",4275]
["Lisbon","Beijing",3427]
["Tampere","Singapore",3869]
["Kangerlussuaq","Vilnius",2231]
["Stuttgart","Lyon Strasb",3918]
["Newark","Dublin",3781]
["Gothenburg","Amsterdam ",1544]
["Washington","Skopje Bornhlm",1045]
["Kristiansand","Singapore",3923]
["Bangkok","Venice",2672]
["Tampere","Rome/Ciampino",4453]
["Lisbon","Stuttgart",4433]
["Prague","Skopje Bornhlm",1814]
["Trondheim","Sharm",3225]
["Sandefjord","Beijing",4791]
["Vilnius","Bergen Sandefj",3560]
["Stavanger","Chicago",3795]
["Reykjavik","Riga",4964]
["Rome","Malaga/Cost.Sol",1104]
["Vaxjoe Kalmar","Vesteraas",4452]
["Barcelona","Stavanger",1124]
["Lisbon","Geneva",2365]
["Lyon Strasb","Faroe Islands",4720]
["Athens","Paderbo Munster ",4370]
["Washington","Vilnius",1456]
["Kangerlussuaq","Malta",3415]
["Malaga Madrid","Tenerife",4107]
["Birmingham","Manchester",{"$f":"CEILING(4000*RAND(),1)+1000","v":1799}]
["Wroclaw","Beijing",1789]
["Tenerife","Stavanger",4803]
["Joenkoeping","Kalmar Vaxjoe",3487]
["Rio Heathrw","Poznan",3875]
["Szczecin","Vienna",1803]
["Vienna","Milan/Linate",1874]
["Bremen","Turku",1711]
["Tunis","Vilnius",3791]
["Skopje Bornhlm","Karlstd Orebro",4154]
["Tokyo/Narita","Barcelona",2157]
["Tallinn","Orebro Karlstd",1718]
["Birmingham","Basel",2832]
["St Petersburg","Prague",4899]
["Orebro","London/Stansted",4675]
["Kangerlussuaq","Lyon Strasb",4048]
["Madrid","London/Gatwick",3893]
["Orebro","Poznan",1001]
["Dublin","Munster",4236]
["Skopje Bornhlm","Glasgow Edinbg",3243]
["Vilnius","Malaga Madrid",1226]
["Milan/Malpensa","Vaxjoe Kalmar",2355]
["Birmingham","Las Palmas",4052]
["Hanover","Szczecin",3738]
["Bergen","Szczecin",1558]
["Bremen","Tenerife",1550]
["Brussels ","Barcelona",1733]
["Bucarst Berlin","Zurich",3000]
["Ljubljana","Geneva",3163]
["Istanbul","Warsaw",3275]
["Stuttgart","Madrid",4244]
["Milan/Linate","London/Heathrow",3186]
["Helsingborg City ","Paris De Gaulle",2582]
["St Petersburg","Turku",3223]
["Sharm Luxor","Nice",3772]
["St Petersburg","Vaxjoe Kalmar",3495]
["Las Palmas","Singapore",3630]
["Tenerife","Birmingham",4383]
["Karlstad","Nice",2932]
["Milan/Malpensa","London/Gatwick",1928]
["Sharm","Sharm Luxor",3997]
["Skopje Bornhlm","Vesteraas",2163]
["Narsarsuaq","Linkoeping",1030]
["Bergen","Beijing",2741]
["Faroe Islands","Bergen Sandefj",3827]
["Ljubljana","Turku",1233]
["Paris De Gaulle","Dusseldorf",2815]
["London/Gatwick","Malaga Madrid",4306]
["Nice","Sandefjord",2874]
["Rio Heathrw","Singapore",1876]
["Geneva","Norrkoeping",4312]
["London/Gatwick","Hurghada",1423]
["Glasgow","Riga",4419]
["Rome","Zurich",2956]
["Bergen","Bergen Sandefj",4699]
["Dublin","Washington",3616]
["Malaga/Cost.Sol","Luxembourg",2406]
["London/Stansted","Narsarsuaq",2799]
["Bangkok","Glasgow",4186]
["Tunis","Stavanger",2216]
["Stockholm","Szczecin",1451]
["Sharm","Brussels ",3694]
["Zurich","Malta",2767]
["Milan/Linate","Paderbo Munster ",1802]
["Zurich","Vienna",{"$f":"CEILING(4000*RAND(),1)+1000","v":1949}]
["Stavanger","Sharm Luxor",4126]
["Poznan","Stuttgart",4332]
["Birmingham","Barcelona",4514]
["Seattle","Basel",4730]
["Stockholm","Reykjavik",1619]
["Rome/Ciampino","Sharm Luxor",4209]
["Paderbo Munster ","Dublin",4265]
["Riga","Hanover",1239]
["Reykjavik","Frankfurt",3356]
["Poznan","Budapest",4485]
["Prague","Joenkoeping",2970]
["Stavanger","Malta",2858]
["Las Palmas","Sharm Luxor",1396]
["Singapore","Amsterdam ",1085]
["Beijing","Gothenburg",3605]
["Karlstd Orebro","Norrkoeping",1880]
["Vesteraas","Riga",2808]
["London/Heathrow","Bergen Sandefj",1843]
["Reykjavik","Poznan",1222]
["Barcelona","Rio Heathrw",2016]
["Newark","Moscow",1213]
["Sharm","Geneva",2382]
["Gothenburg","Helsinki",4171]
["Zurich","Skopje Bornhlm",3302]
["Barcelona","Tokyo/Narita",3049]
["Malaga Madrid","Kalmar Vaxjoe",3398]
["Helsingborg City ","Ljubljana",1579]
["Prague","Chicago",2991]
["Paris De Gaulle","Bremen",4328]
["Venice","Barcelona",4600]
["Malaga Madrid","Reykjavik",2985]
["Gothenburg","Barcelona",3729]
["Washington","Manchester",2071]
["Rome","Sharm Luxor",3440]
["Oslo","Bucarst Berlin",1287]
["Bangkok","Bergen Sandefj",4374]
["Orebro Karlstd","Sngpore Bangkok",1203]
["Stavanger","Beijing",3185]
["Moscow","Nice",1010]
["Sharm","Poznan",4709]
["Geneva","Madrid",3461]
["Troheim Sandefj","Beijing",4391]
["Istanbul","Wroclaw",2751]
["Orebro Karlstd","Warsaw",3072]
["Amsterdam ","Beijing",2037]
["Gothenburg","Malaga/Cost.Sol",4311]
["Tampere","Norrkoeping",3421]
["Geneva","Linkoeping",4265]
["St Petersburg","Stavanger",3799]
["Kalmar Vaxjoe","Hanover",2803]
["Stuttgart","Poznan",3701]
["Vesteraas","Tallinn",1309]
["London/Gatwick","Munich",1858]
["Rome","Reykjavik",4390]
["Vaxjoe Kalmar","Sharm Luxor",1955]
["Paderbo Munster ","Skopje Bornhlm",3164]
["Hanover","Orebro Karlstd",1799]
["Kristiansand","London/Gatwick",3780]
["Bangkok","Narsarsuaq",4616]
["Reykjavik","Sharm",2123]
["Munich","Bucarst Berlin",2783]
["Budapest","Malaga Madrid",2878]
["Narsarsuaq","Bergen Sandefj",4737]
["Rome/Ciampino","Rio Heathrw",{"$f":"CEILING(4000*RAND(),1)+1000","v":3224}]
["Milan/Linate","Faroe Islands",1521]
["Ljubljana","Budapest",2179]
["Basel","Sharm Luxor",4788]
["Beijing","Gdansk",4423]
["Hanover","Stavanger",1833]
["Budapest","Chicago",3011]
["Faroe Islands","Paderbo Munster ",3613]
["Stockholm","Rio Heathrw",3324]
["Bangkok","Paris De Gaulle",3428]
["Riga","Bangkok",3689]
["Lisbon","Singapore",2118]
["Vesteraas","Paderbo Munster ",4446]
["Berlin/Tegel","Kangerlussuaq",1788]
["Venice","Oslo",1362]
["Rio Heathrw","Dublin",3752]
["Malaga/Cost.Sol","Prague",2103]
["Orebro Karlstd","Singapore",2687]
["Moscow","Venice",2298]
["Turku","Stockholm",1299]
["Warsaw","Karlstd Orebro",4077]
["Basel","Prague",2615]
["Brussels ","Geneva",4806]
["Barcelona","London/Gatwick",4778]
["Birmingham","Gdansk",4949]
["Helsinki","Dublin",1400]
["Tokyo/Narita","Hamburg",1194]
["Barcelona","Paris De Gaulle",1047]
["Las Palmas","Frankfurt",4858]
["Dublin","Glasgow Edinbg",2480]
["Kalmar Vaxjoe","Amsterdam ",2440]
["Malaga/Cost.Sol","Dublin",3073]
["Tampere","Manchester",2586]
["Bangkok","Vaxjoe Kalmar",2112]
["Helsinki","Orebro",3542]
["Singapore","Nice",3227]
["Seattle","Birmingham",3408]
["Vesteraas","Birmingham",4595]
["Norrkoeping","Hanover",3417]
["Karlstad","Helsingborg City ",3250]
["Gdansk","Vesteraas",2298]
["Hanover","Trondheim",1604]
["Basel","Linkoeping",4084]
["Vesteraas","Sharm",1463]
["Moscow","Orebro Karlstd",1063]
["Linkoeping","Brussels ",1640]
["Joenkoeping","Linkoeping",1241]
["Bremen","Oslo",2305]
["Basel","Paderbo Munster ",1335]
["Karlstd Orebro","Szczecin",2661]
["Istanbul","Venice",3329]
["Paris De Gaulle","Szczecin",3912]
["Berlin/Tegel","Oslo",4074]
["Joenkoeping","London/Heathrow",3423]
["Amsterdam ","Troheim Sandefj",3927]
["Rome","Warsaw",2880]
["Gdansk","Stuttgart",1444]
["Warsaw","Trondheim",2438]
["Vienna","Tallinn",2428]
["Bergen","Barcelona",4762]
["Bremen","Warsaw",4809]
["Barcelona","Tenerife",2800]
["Sngpore Bangkok","Amsterdam ",3285]
["Dublin","Joenkoeping",4429]
["Malta","Milan/Linate",{"$f":"CEILING(4000*RAND(),1)+1000","v":1625}]
["Geneva","Bremen",1972]
["Faroe Islands","Istanbul",3824]
["Narsarsuaq","Gdansk",2562]
["Szczecin","Sharm",1305]
["London/Stansted","Faroe Islands",3568]
["Riga","St Petersburg",4976]
["Sharm Luxor","Stuttgart",3253]
["Warsaw","Bergen",1931]
["Gdansk","Milan/Malpensa",2522]
["Gothenburg","Newark",2786]
["Vesteraas","Bergen",1976]
["Tallinn","London/Heathrow",2728]
["Stockholm","Birmingham",3480]
["London/Gatwick","Dublin",3680]
["Frankfurt","Bucarst Berlin",1923]
["Stockholm","Washington",1709]
["Washington","Riga",2049]
["Norrkoeping","Basel",3449]
["Bangkok","Orebro",1067]
["Glasgow","Karachi Lahore",2402]
["Sharm Luxor","Bremen",4975]
["Dusseldorf","Bergen Sandefj",4743]
["Malta","Wroclaw",1530]
["Dublin","Geneva",3144]
["Munster","Prague",3291]
["Basel","Amsterdam ",1018]
["Athens","London/Stansted",2223]
["Malaga Madrid","Narsarsuaq",3255]
["London/Stansted","Stuttgart",2482]
["Skopje Bornhlm","Budapest",2076]
["Istanbul","Manchester",4275]
["Bucarst Berlin","Helsingborg City ",2275]
["Gothenburg","Sharm",2587]
["Gdansk","Hanover",4914]
["Hurghada","Madrid",4815]
["Karachi Lahore","Norrkoeping",3227]
["Kangerlussuaq","Tenerife",4424]
["Lyon Strasb","Skopje Bornhlm",3106]
["St Petersburg","Frankfurt",4350]
["Bergen","Paderbo Munster ",4627]
["Bergen Sandefj","Prague",3041]
["Venice","London/Heathrow",1813]
["Linkoeping","Frankfurt",1246]
["Nice","Dusseldorf",4359]
["Linkoeping","Reykjavik",2522]
["Vesteraas","Istanbul",4750]
["Sandefjord","Berlin/Tegel",4092]
["Manchester","Amsterdam ",3316]
["London/Heathrow","Birmingham",3130]
["Budapest","Helsinki",2540]
["Linkoeping","Tunis",4688]
["Orebro Karlstd","Istanbul",1987]
["Tokyo/Narita","Paris De Gaulle",2841]
["Seattle","Tunis",4094]
["Dublin","Rome",1557]
["Tallinn","Karlstad",4313]
["Madrid","Wroclaw",4072]
["Linkoeping","Hanover",4266]
["Milan/Linate","Orebro",4417]
["Skopje Bornhlm","Madrid",4085]
["Helsingborg City ","Karachi Lahore",1029]
["Riga","Beijing",4784]
["Helsingborg City ","Milan/Malpensa",3024]
["Milan/Malpensa","Helsinki",{"$f":"CEILING(4000*RAND(),1)+1000","v":1223}]
["Reykjavik","Amsterdam ",1672]
["Seattle","Turku",4881]
["Tunis","Sandefjord",4965]
["Vaxjoe Kalmar","Bremen",3556]
["Sandefjord","Karlstad",1160]
["Rome/Ciampino","Stuttgart",2162]
["Sandefjord","London/Gatwick",3277]
["Kalmar Vaxjoe","Brussels ",2638]
["Norrkoeping","Nice",1129]
["Vienna","Singapore",3304]
["Stuttgart","Hanover",2183]
["Milan/Malpensa","Faroe Islands",4788]
["Sngpore Bangkok","Barcelona",2891]
["Helsingborg City ","Munster",2713]
["Turku","Manchester",4521]
["Karachi Lahore","Amsterdam ",4602]
["London/Stansted","Reykjavik",2620]
["Skopje Bornhlm","Vaxjoe Kalmar",4101]
["Dublin","Zurich",1492]
["London/Stansted","Brussels ",4248]
["Seattle","Chicago",4116]
["Glasgow Edinbg","Malaga Madrid",2491]
["Newark","Helsingborg City ",4381]
["London/Heathrow","Orebro Karlstd",2721]
["Newark","Vesteraas",3762]
["Stavanger","Amsterdam ",2222]
["Narsarsuaq","Seattle",1032]
["Bergen","Riga",3447]
["Tokyo/Narita","Birmingham",3701]
["Tenerife","Venice",2739]
["Sandefjord","Vienna",1434]
["Hamburg","Trondheim",2608]
["Newark","Bergen Sandefj",2145]
["Moscow","Oslo",2405]
["Glasgow Edinbg","Washington",3456]
["Singapore","Kalmar Vaxjoe",2348]
["Stockholm","Karlstad",4259]
["Glasgow","Sngpore Bangkok",4369]
["Tunis","Skopje Bornhlm",2829]
["Sandefjord","Luxembourg",2215]
["Bergen","Poznan",2218]
["Beijing","Troheim Sandefj",3551]
["Bangkok","Ljubljana",1361]
["Vaxjoe Kalmar","Poznan",1510]
["Ljubljana","Stockholm",3344]
["Karachi Lahore","Narsarsuaq",4300]
["Skopje Bornhlm","Frankfurt",3169]
["Brussels ","Bremen",4798]
["Kangerlussuaq","Bangkok",3908]
["Rio Heathrw","Warsaw",2617]
["Sngpore Bangkok","Warsaw",4193]
["Tampere","Tenerife",1171]
["Bergen","Glasgow Edinbg",2707]
["Turku","Hamburg",1103]
["Vaxjoe Kalmar","Berlin/Tegel",4972]
["Glasgow Edinbg","Narsarsuaq",4283]
["Chicago","Tunis",4522]
["Reykjavik","Hanover",3860]
["Faroe Islands","Amsterdam ",4041]
["Karlstd Orebro","Faroe Islands",1757]
["Stuttgart","Manchester",1733]
["Bucarst Berlin","Washington",2566]
["Rome","Tokyo/Narita",2493]
["Paderbo Munster ","Munster",{"$f":"CEILING(4000*RAND(),1)+1000","v":1601}]
["Istanbul","Munster",1104]
["Zurich","Munich",4572]
["Stuttgart","Chicago",1673]
["Karlstd Orebro","Kalmar Vaxjoe",2451]
["Istanbul","Chicago",1346]
["Berlin/Tegel","Norrkoeping",1752]
["Malaga Madrid","Riga",1850]
["Sharm","Dusseldorf",2280]
["Venice","Wroclaw",2691]
["Karlstad","St Petersburg",1322]
["Glasgow Edinbg","Rome/Ciampino",4118]
["Madrid","Beijing",2828]
["Kristiansand","Faroe Islands",3632]
["Bergen","London/Gatwick",1533]
["Stuttgart","Karachi Lahore",1584]
["Prague","Brussels ",2184]
["Malta","Oslo",2277]
["Kangerlussuaq","Wroclaw",4900]
["Faroe Islands","Helsingborg City ",4617]
["Kangerlussuaq","Orebro Karlstd",1406]
["London/Stansted","Trondheim",2265]
["Barcelona","Zurich",2175]
["Seattle","London/Heathrow",2555]
["Venice","Rome",1676]
["Rome","Moscow",4465]
["Amsterdam ","Turku",2271]
["Beijing","St Petersburg",3967]
["Szczecin","Ljubljana",1692]
["Orebro Karlstd","Karlstad",4312]
["Manchester","London/Stansted",1321]
["Ljubljana","Prague",2043]
["Luxembourg","Bremen",4987]
["Washington","Athens",1960]
["Reykjavik","London/Heathrow",2641]
["Stavanger","Munich",2593]
["Bergen","Sandefjord",1103]
["Rome","Szczecin",2018]
["Dublin","Norrkoeping",4107]
["Hanover","London/Stansted",1182]
["Troheim Sandefj","Trondheim",1389]
["Bergen Sandefj","Oslo",3886]
["Riga","Bergen",3762]
["Gdansk","Faroe Islands",1768]
["Hamburg","Vienna",1362]
["Stockholm","Hanover",4845]
["Sngpore Bangkok","Budapest",2184]
["Seattle","St Petersburg",4354]
["Bergen Sandefj","Karlstad",4937]
["Riga","Madrid",4235]
["Moscow","Kristiansand",1183]
["Munster","Sandefjord",3449]
["Vaxjoe Kalmar","Sngpore Bangkok",1727]
["Hanover","Newark",4331]
["Athens","Glasgow Edinbg",4241]
["Bangkok","Karlstd Orebro",4707]
["London/Stansted","Geneva",4245]
["Lyon Strasb","Milan/Linate",2775]
["Ljubljana","Wroclaw",2554]
["Milan/Linate","Malaga Madrid",4512]
["Paderbo Munster ","Washington",3909]
["Faroe Islands","Trondheim",2673]
["Orebro Karlstd","Washington",1912]
["Oslo","Orebro Karlstd",3135]
["Dusseldorf","Turku",{"$f":"CEILING(4000*RAND(),1)+1000","v":2492}]
["Dublin","Malta",2337]
["Budapest","Stavanger",3712]
["Birmingham","London/Gatwick",2877]
["Istanbul","Orebro Karlstd",4366]
["Reykjavik","Rio Heathrw",1306]
["Rio Heathrw","Tallinn",4000]
["Stockholm","Sandefjord",1737]
["Helsingborg City ","Wroclaw",4891]
["Beijing","Stockholm",4229]
["Bergen Sandefj","Nice",2937]
["Vilnius","Milan/Malpensa",1703]
["Budapest","Vilnius",1471]
["Vilnius","Venice",3836]
["Madrid","Seattle",1258]
["Brussels ","Skopje Bornhlm",1740]
["Bangkok","Munich",1140]
["Milan/Linate","Stavanger",3917]
["Tenerife","Lisbon",4861]
["Narsarsuaq","Lyon Strasb",4419]
["Tallinn","Madrid",2949]
["Turku","Hurghada",1457]
["Barcelona","Malta",2817]
["Faroe Islands","Venice",1945]
["Las Palmas","Tampere",2891]
["Malta","Tenerife",4676]
["Athens","Tallinn",2997]
["Narsarsuaq","Athens",2813]
["Bangkok","London/Gatwick",2617]
["Budapest","Zurich",2865]
["Troheim Sandefj","Vilnius",2419]
["Bergen Sandefj","Zurich",4630]
["Poznan","Seattle",2468]
["Amsterdam ","Ljubljana",1739]
["Dublin","Troheim Sandefj",4106]
["Tokyo/Narita","Helsinki",3723]
["Turku","Kangerlussuaq",3446]
["Barcelona","Beijing",4524]
["Budapest","Wroclaw",3993]
["Karlstad","Beijing",1070]
["Karlstad","Lyon Strasb",4325]
["Paris De Gaulle","Hanover",2615]
["London/Heathrow","Rio Heathrw",4130]
["Nice","Norrkoeping",3451]
["Stavanger","Vilnius",4238]
["Gothenburg","Sngpore Bangkok",3871]
["Malaga/Cost.Sol","London/Stansted",4199]
["Chicago","Zurich",2186]
["Chicago","Washington",3897]
["Beijing","Vilnius",4093]
["Joenkoeping","Bremen",1059]
["Budapest","Kristiansand",3231]
["Bergen Sandefj","Madrid",1222]
["Lisbon","Tunis",4020]
["Poznan","Munich",3291]
["Gdansk","Nice",4148]
["Riga","Istanbul",1656]
["Helsinki","Las Palmas",1221]
["Hurghada","Milan/Linate",1021]
["Luxembourg","Tunis",1198]
["Bremen","Vesteraas",2206]
["Berlin/Tegel","Geneva",3654]
["Skopje Bornhlm","Hurghada",4132]
["London/Gatwick","Karachi Lahore",1841]
["Paris De Gaulle","Singapore",{"$f":"CEILING(4000*RAND(),1)+1000","v":3163}]
["Vilnius","Manchester",3852]
["Narsarsuaq","Vienna",2032]
["Turku","Sharm Luxor",3937]
["Washington","Karlstad",3376]
["Trondheim","Hanover",1933]
["Sharm Luxor","Tokyo/Narita",3382]
["Stockholm","London/Gatwick",4964]
["Vaxjoe Kalmar","Trondheim",2638]
["Faroe Islands","Geneva",4740]
["Singapore","Hurghada",1578]
["Warsaw","Barcelona",4454]
["Glasgow","Birmingham",2983]
["Troheim Sandefj","Warsaw",4054]
["Istanbul","Lyon Strasb",4125]
["Milan/Linate","Las Palmas",1836]
["Bucarst Berlin","Karachi Lahore",1914]
["Gdansk","Riga",3863]
["Tokyo/Narita","Munster",2915]
["Vilnius","Istanbul",4699]
["Moscow","Barcelona",1906]
["Tokyo/Narita","Amsterdam ",2105]
["Newark","Glasgow Edinbg",4969]
["Malta","St Petersburg",3559]
["Szczecin","Moscow",1793]
["Lyon Strasb","Beijing",1687]
["Paderbo Munster ","Vaxjoe Kalmar",3728]
["Trondheim","Warsaw",4210]
["Skopje Bornhlm","Oslo",2140]
["Tampere","London/Heathrow",3779]
["Tenerife","Amsterdam ",3168]
["Prague","Turku",3316]
["Athens","Hamburg",1493]
["Tokyo/Narita","Hanover",1430]
["Norrkoeping","Linkoeping",4759]
["Geneva","Poznan",3414]
["Helsingborg City ","Warsaw",1087]
["Chicago","Faroe Islands",2379]
["Linkoeping","Las Palmas",3646]
["Poznan","Sharm Luxor",3687]
["Chicago","Newark",3755]
["Singapore","Vilnius",4260]
["Troheim Sandefj","Moscow",3772]
["Lyon Strasb","Reykjavik",4808]
["Athens","Berlin/Tegel",2442]
["Zurich","Malaga/Cost.Sol",2766]
["Ljubljana","Rome/Ciampino",3789]
["Orebro Karlstd","Frankfurt",1083]
["Birmingham","Bangkok",1096]
["Manchester","Hurghada",1491]
["Tokyo/Narita","Munich",3603]
["Warsaw","Szczecin",1476]
["Kristiansand","Reykjavik",2807]
["Beijing","Bremen",3675]
["Sngpore Bangkok","Malaga/Cost.Sol",1629]
["Hamburg","Rio Heathrw",3266]
["Sharm","Las Palmas",3672]
["Rome","Helsingborg City ",3157]
["Bangkok","Tenerife",4386]
["Barcelona","Newark",1636]
["Basel","Tenerife",2745]
["London/Heathrow","Dublin",3452]
["Tampere","Vesteraas",3918]
["Karachi Lahore","Beijing",4121]
["Geneva","Rio Heathrw",{"$f":"CEILING(4000*RAND(),1)+1000","v":1046}]
["Brussels ","Warsaw",3076]
["Hanover","Stockholm",2763]
["Narsarsuaq","Milan/Linate",4932]
["Skopje Bornhlm","Reykjavik",2561]
["Bangkok","Wroclaw",1269]
["Stavanger","Trondheim",1754]
["Bucarst Berlin","Tokyo/Narita",2406]
["Helsinki","Rome",4771]
["Beijing","Brussels ",1671]
["Sharm Luxor","Kalmar Vaxjoe",3468]
["Vesteraas","Rome/Ciampino",2799]
["London/Gatwick","Vaxjoe Kalmar",2619]
["Vienna","Ljubljana",3649]
["London/Gatwick","Kalmar Vaxjoe",2439]
["Vaxjoe Kalmar","Skopje Bornhlm",4391]
["Rio Heathrw","Frankfurt",2179]
["Paris De Gaulle","Tampere",2745]
["Istanbul","Rome",3399]
["Budapest","Troheim Sandefj",3323]
["Malaga Madrid","Milan/Malpensa",4030]
["London/Stansted","Bucarst Berlin",2661]
["Karlstad","Hurghada",1707]
["Malaga/Cost.Sol","Chicago",4231]
["Prague","London/Heathrow",2515]
["Joenkoeping","Vesteraas",3455]
["Sandefjord","Brussels ",3628]
["Tunis","Barcelona",4162]
["Seattle","Dusseldorf",1985]
["Seattle","Helsingborg City ",2283]
["Karlstad","Rome/Ciampino",3775]
["Troheim Sandefj","Kangerlussuaq",3139]
["Sngpore Bangkok","Nice",3675]
["Joenkoeping","Budapest",1092]
["London/Heathrow","Tenerife",3464]
["Malaga Madrid","Madrid",3939]
["Poznan","Gdansk",1858]
["Bergen Sandefj","Dublin",4570]
["Poznan","Vaxjoe Kalmar",3812]
["Gothenburg","Karachi Lahore",3239]
["Tunis","Tampere",2771]
["Manchester","Ljubljana",1134]
["Manchester","Malaga Madrid",1610]
["St Petersburg","Tallinn",1892]
["London/Gatwick","Zurich",1762]
["Faroe Islands","Bucarst Berlin",4064]
["Amsterdam ","Hamburg",3818]
["Stuttgart","Linkoeping",3351]
["Tunis","Vesteraas",3091]
["Chicago","Tallinn",2692]
["Sngpore Bangkok","Tallinn",2827]
["Beijing","Helsingborg City ",3314]
["Birmingham","Tenerife",4091]
["Birmingham","Helsingborg City ",4615]
["Malaga Madrid","Bremen",3308]
["Las Palmas","Washington",4497]
["Orebro","Orebro Karlstd",1150]
["Sandefjord","Basel",3797]
["Glasgow Edinbg","Turku",3306]
["Malaga Madrid","London/Heathrow",2464]
["Paderbo Munster ","Norrkoeping",4519]
["Joenkoeping","Vaxjoe Kalmar",4216]
["Bremen","Luxembourg",3596]
["Munster","Reykjavik",4577]
["Berlin/Tegel","Helsingborg City ",{"$f":"CEILING(4000*RAND(),1)+1000","v":1884}]
["Paris De Gaulle","Berlin/Tegel",3593]
["Istanbul","Rio Heathrw",3286]
["Berlin/Tegel","Bergen",1274]
["Tunis","Troheim Sandefj",4610]
["Trondheim","Karlstad",4967]
["Gdansk","Turku",3526]
["Madrid","Stuttgart",2890]
["Sharm","Oslo",1333]
["Joenkoeping","Bergen Sandefj",3088]
["Nice","Hurghada",2155]
["Szczecin","Stockholm",3346]
["Paris De Gaulle","Brussels ",4335]
["Bremen","Paris De Gaulle",1034]
["Zurich","Hamburg",2921]
["Rome/Ciampino","Kangerlussuaq",4954]
["Helsinki","Hurghada",1503]
["Hanover","Geneva",1660]
["Warsaw","Sandefjord",2289]
["London/Heathrow","Paris De Gaulle",4306]
["Rome","Dublin",2356]
["Bangkok","Paderbo Munster ",3575]
["Vilnius","Stavanger",2151]
["Madrid","Poznan",4083]
["Warsaw","Stuttgart",2266]
["Dusseldorf","Orebro",4412]
["Bergen","Geneva",3312]
["Hurghada","Ljubljana",2420]
["London/Stansted","Budapest",3341]
["Frankfurt","Hamburg",2041]
["Turku","Malaga Madrid",1774]
["Bangkok","Helsingborg City ",4440]
["Joenkoeping","Faroe Islands",2529]
["Madrid","Tokyo/Narita",2129]
["Milan/Malpensa","Karachi Lahore",3867]
["London/Heathrow","Lisbon",3675]
["Seattle","Madrid",1441]
["Sharm Luxor","Gothenburg",3118]
["Barcelona","Wroclaw",1136]
["London/Stansted","Karlstd Orebro",1994]
["Bucarst Berlin","Dusseldorf",4815]
["Turku","Tokyo/Narita",4936]
["Washington","Nice",1727]
["Brussels ","Riga",3867]
["Zurich","Seattle",2534]
["Rome/Ciampino","Tunis",3090]
["Munster","Venice",2152]
["Joenkoeping","Kangerlussuaq",4967]
["Chicago","Stockholm",3079]
["Kristiansand","Skopje Bornhlm",3569]
["Poznan","Bucarst Berlin",3684]
["Glasgow Edinbg","Hamburg",4408]
["Dusseldorf","Sandefjord",2123]
["Vilnius","Ljubljana",4733]
["Joenkoeping","Tunis",4125]
["Birmingham","Milan/Malpensa",2354]
["Sharm Luxor","Joenkoeping",2039]
["Berlin/Tegel","Beijing",2234]
["Seattle","Kalmar Vaxjoe",4009]
["Vilnius","Amsterdam ",3734]
["London/Heathrow","Stavanger",3342]
["Gdansk","Hurghada",2792]
["Malaga/Cost.Sol","Dusseldorf",1806]
["Malaga/Cost.Sol","London/Gatwick",1663]
["Madrid","Bremen",{"$f":"CEILING(4000*RAND(),1)+1000","v":2809}]
["Las Palmas","Nice",2997]
["Hanover","Rio Heathrw",4049]
["Vilnius","Gdansk",2391]
["Narsarsuaq","Turku",4308]
["Hanover","Moscow",3112]
["Dublin","Ljubljana",2850]
["Bremen","Sharm Luxor",3215]
["Karlstad","Trondheim",4814]
["Bucarst Berlin","Orebro",1182]
["Skopje Bornhlm","Tampere",3271]
["Gdansk","Troheim Sandefj",1032]
["Bucarst Berlin","Gdansk",2690]
["Szczecin","Malaga Madrid",4998]
["Karlstad","London/Stansted",1829]
["Istanbul","Sharm",4643]
["Malaga/Cost.Sol","Sharm",3426]
["Bergen","Helsinki",2657]
["Ljubljana","Sharm Luxor",4839]
["London/Heathrow","Amsterdam ",2452]
["Glasgow Edinbg","Beijing",1666]
["Frankfurt","Bremen",4098]
["Dusseldorf","Tokyo/Narita",1184]
["Trondheim","London/Stansted",1790]
["Gdansk","London/Heathrow",4953]
["Venice","Rio Heathrw",1793]
["Venice","Newark",3294]
["Tunis","Budapest",1935]
["Prague","Wroclaw",3312]
["Kristiansand","Seattle",3240]
["Luxembourg","London/Heathrow",4006]
["Karachi Lahore","Warsaw",3086]
["Dusseldorf","Linkoeping",2781]
["Riga","Glasgow Edinbg",1617]
["Budapest","Rome/Ciampino",1783]
["Tallinn","Amsterdam ",1489]
["Vienna","Sngpore Bangkok",1596]
["Lyon Strasb","Trondheim",3966]
["London/Stansted","Troheim Sandefj",2754]
["Madrid","Vesteraas",3757]
["Nice","Oslo",4999]
["St Petersburg","Bergen",3393]
["Dusseldorf","Prague",4711]
["Paderbo Munster ","Moscow",1878]
["Newark","Singapore",2322]
["Munich","Sandefjord",2792]
["Troheim Sandefj","Stockholm",4864]
["London/Stansted","Birmingham",4391]
["Riga","Budapest",2544]
["Dusseldorf","Tunis",3345]
["Oslo","Luxembourg",1212]
["Berlin/Tegel","Basel",2099]
["Rio Heathrw","Nice",4068]
["Bangkok","Malta",4374]
["Munich","Seattle",4797]
["Kristiansand","Athens",1135]
["Tunis","Reykjavik",2105]
["Glasgow","Poznan",3390]
["Lyon Strasb","Troheim Sandefj",1254]
["Faroe Islands","Milan/Linate",1490]
["Hurghada","Tenerife",1652]
["Las Palmas","Oslo",3796]
["Linkoeping","Bremen",2868]
["Singapore","Vienna",2907]
["Rome","Vesteraas",{"$f":"CEILING(4000*RAND(),1)+1000","v":2439}]
["Amsterdam ","Moscow",2456]
["Venice","Faroe Islands",1664]
["Tunis","Paderbo Munster ",3365]
["Seattle","Barcelona",3901]
["Paris De Gaulle","Bucarst Berlin",1345]
["Orebro Karlstd","Skopje Bornhlm",3315]
["Orebro","Prague",2334]
["Szczecin","Turku",2104]
["Kangerlussuaq","London/Heathrow",3264]
["Brussels ","Tenerife",1666]
["Athens","Orebro Karlstd",2539]
["Faroe Islands","Sandefjord",1548]
["Glasgow Edinbg","Sandefjord",2400]
["Munich","Oslo",3037]
["Munster","Kristiansand",2909]
["Milan/Malpensa","Chicago",1189]
["Vesteraas","Helsinki",4995]
["Vilnius","Gothenburg",1405]
["Amsterdam ","Szczecin",3370]
["Gothenburg","Moscow",2387]
["Madrid","Paris De Gaulle",3851]
["Stuttgart","Kalmar Vaxjoe",3033]
["Sharm Luxor","Vaxjoe Kalmar",4706]
["Sharm Luxor","Kristiansand",4073]
["Karlstd Orebro","Frankfurt",2143]
["Stavanger","Troheim Sandefj",2154]
["Malaga/Cost.Sol","Linkoeping",2725]
["Hamburg","Paris De Gaulle",4872]
["Prague","Madrid",2398]
["Riga","Joenkoeping",4723]
["Troheim Sandefj","Munster",4050]
["Faroe Islands","Dusseldorf",2657]
["Madrid","Vilnius",1537]
["Stockholm","Bremen",4239]
["Beijing","London/Heathrow",4370]
["Washington","Newark",3235]
["Hamburg","Dublin",4654]
["Oslo","Turku",1090]
["Vaxjoe Kalmar","Stuttgart",3917]
["Karlstd Orebro","Karlstad",3827]
["Singapore","Glasgow",1413]
["Manchester","Luxembourg",4710]
["Oslo","Dublin",4981]
["London/Stansted","Milan/Malpensa",3948]
["Vienna","Moscow",3631]
["Ljubljana","Tunis",4960]
["Helsingborg City ","Nice",2429]
["Lisbon","Orebro",2495]
["Riga","Malta",3272]
["Vienna","Vesteraas",3737]
["Istanbul","Hurghada",2753]
["Washington","Sharm",1067]
["Tokyo/Narita","Kristiansand",2240]
["Tenerife","Brussels ",4710]
["London/Stansted","Hurghada",4853]
["Malaga/Cost.Sol","Zurich",4259]
["Karlstad","Venice",3522]
["Zurich","Vilnius",1677]
["Hamburg","Rome",2687]
["Luxembourg","Malaga Madrid",4566]
["Wroclaw","Vaxjoe Kalmar",1573]
["Gothenburg","Orebro Karlstd",1388]
["Warsaw","Chicago",4403]
["Glasgow","Milan/Linate",{"$f":"CEILING(4000*RAND(),1)+1000","v":2100}]
["Orebro Karlstd","Kangerlussuaq",4622]
["Stuttgart","Karlstad",1378]
["London/Heathrow","Trondheim",3160]
["Bangkok","Geneva",4089]
["Malaga/Cost.Sol","Szczecin",2404]
["Stuttgart","Trondheim",4332]
["Malaga Madrid","Tallinn",4507]
["Paris De Gaulle","Geneva",1210]
["Luxembourg","Tokyo/Narita",1252]
["Sngpore Bangkok","Stuttgart",4951]
["Beijing","Berlin/Tegel",2352]
["Skopje Bornhlm","Hamburg",3301]
["Vienna","Rome/Ciampino",4393]
["London/Heathrow","Malta",3628]
["Joenkoeping","Karlstd Orebro",2400]
["Tokyo/Narita","Paderbo Munster ",3779]
["Venice","Glasgow",1958]
["Vesteraas","Wroclaw",1206]
["Dublin","Wroclaw",3271]
["Amsterdam ","Norrkoeping",4191]
["Tenerife","Reykjavik",2727]
["Malta","Sandefjord",3611]
["Manchester","Hamburg",4200]
["Amsterdam ","Zurich",4327]
["Frankfurt","Malta",2856]
["Munich","Narsarsuaq",3004]
["Birmingham","London/Stansted",4461]
["Glasgow","Amsterdam ",1838]
["Stavanger","Reykjavik",4844]
["Vilnius","Tokyo/Narita",4122]
["Sngpore Bangkok","Hamburg",4115]
["Vilnius","Joenkoeping",2791]
["Sharm","Tunis",4728]
["Las Palmas","Geneva",1128]
["Glasgow","Frankfurt",4858]
["Milan/Linate","Madrid",4150]
["Turku","Gdansk",1760]
["Trondheim","Helsingborg City ",2913]
["Reykjavik","Tenerife",4654]
["Warsaw","Vienna",2341]
["Lyon Strasb","Bucarst Berlin",3768]
["Milan/Malpensa","Szczecin",4773]
["Budapest","Tampere",2167]
["Karachi Lahore","St Petersburg",3098]
["Barcelona","Washington",3754]
["Kalmar Vaxjoe","London/Stansted",2546]
["Orebro","Geneva",4745]
["Malta","Rome",1563]
["Trondheim","Linkoeping",1121]
["Venice","Norrkoeping",1789]
["Bucarst Berlin","Vilnius",1665]
["Washington","Glasgow",1547]
["Skopje Bornhlm","Kalmar Vaxjoe",2286]
["Tampere","Sngpore Bangkok",2135]
["Poznan","Athens",1973]
["Tenerife","Dublin",1876]
["Frankfurt","Rome",2635]
["Lisbon","Glasgow",3795]
["Karachi Lahore","Las Palmas",2158]
["Frankfurt","Nice",3264]
["Karlstad","Tunis",3241]
["Poznan","Sharm",1961]
["Basel","Dusseldorf",4216]
["Szczecin","London/Heathrow",{"$f":"CEILING(4000*RAND(),1)+1000","v":2256}]
["Tokyo/Narita","Rio Heathrw",3095]
["Vilnius","Singapore",2087]
["Kangerlussuaq","Budapest",1875]
["Beijing","Turku",3588]
["Warsaw","Troheim Sandefj",1711]
["Vienna","Bergen",1300]
["Glasgow Edinbg","London/Heathrow",3894]
["Stockholm","Gothenburg",3659]
["Malta","Tampere",1475]
["Zurich","Prague",4878]
["Istanbul","Milan/Linate",4086]
["Athens","Dusseldorf",3008]
["London/Stansted","Munich",1352]
["Vilnius","Sngpore Bangkok",4143]
["Sharm Luxor","Milan/Linate",4203]
["Las Palmas","Joenkoeping",1142]
["Rio Heathrw","Berlin/Tegel",1893]
["Linkoeping","Tenerife",3719]
["Nice","Malta",3059]
["Milan/Malpensa","Tallinn",4694]
["Manchester","Istanbul",2283]
["Malaga/Cost.Sol","Kristiansand",3298]
["Las Palmas","Tallinn",4565]
["Madrid","Vaxjoe Kalmar",4769]
["Dusseldorf","Riga",1462]
["Prague","Stavanger",3024]
["London/Heathrow","Oslo",1702]
["Moscow","Troheim Sandefj",1940]
["Vienna","Linkoeping",3898]
["Norrkoeping","Narsarsuaq",4824]
["Helsinki","Glasgow",3960]
["Bergen Sandefj","Tampere",4122]
["Basel","Munich",4498]
["Venice","Karlstad",3218]
["Birmingham","Gothenburg",1818]
["Singapore","Zurich",1865]
["Stockholm","Malaga/Cost.Sol",1962]
["Milan/Malpensa","Prague",1616]
["Lisbon","Istanbul",4912]
["Glasgow Edinbg","Athens",1974]
["Tenerife","Prague",2112]
["Trondheim","Gothenburg",2316]
["Munich","Karlstad",3721]
["Lyon Strasb","Tunis",4830]
["Oslo","Moscow",1151]
["Athens","Linkoeping",3875]
["Bergen Sandefj","Turku",2131]
["Linkoeping","Birmingham",4324]
["Glasgow","Dublin",2589]
["Stuttgart","Lisbon",3613]
["Kangerlussuaq","Troheim Sandefj",3198]
["Rome/Ciampino","Norrkoeping",3862]
["Basel","Vaxjoe Kalmar",4703]
["Karachi Lahore","Dusseldorf",1916]
["Rio Heathrw","Szczecin",1198]
["Milan/Malpensa","Orebro",4738]
["Sngpore Bangkok","Milan/Linate",3773]
["Las Palmas","Moscow",1912]
["Narsarsuaq","Tunis",3722]
["Bucarst Berlin","Munster",3997]
["Las Palmas","Ljubljana",1723]
["Faroe Islands","Joenkoeping",1720]
["Karlstd Orebro","Sngpore Bangkok",4876]
["Prague","Malaga Madrid",{"$f":"CEILING(4000*RAND(),1)+1000","v":1083}]
["Tunis","Chicago",2719]
["Hanover","Brussels ",1040]
["St Petersburg","London/Gatwick",3479]
["Bremen","Brussels ",4177]
["Malta","Sharm Luxor",2571]
["Geneva","Frankfurt",4731]
["Singapore","Faroe Islands",4835]
["Vienna","Karlstd Orebro",2763]
["Athens","Tampere",4841]
["Luxembourg","Malaga/Cost.Sol",1133]
["Munich","Tampere",4488]
["Linkoeping","Manchester",1771]
["Budapest","Joenkoeping",3964]
["Rome","Lisbon",4801]
["Bangkok","Poznan",4398]
["Bergen Sandefj","Kalmar Vaxjoe",1996]
["Orebro Karlstd","Athens",2637]
["Warsaw","Reykjavik",1239]
["Milan/Malpensa","Riga",3384]
["Vesteraas","Dublin",4584]
["Kristiansand","Kangerlussuaq",4805]
["Brussels ","Vienna",4206]
["Bucarst Berlin","Kalmar Vaxjoe",1489]
["Bucarst Berlin","Frankfurt",1960]
["Las Palmas","Newark",1335]
["Gothenburg","Beijing",3273]
["Moscow","Bremen",2655]
["Tenerife","Gothenburg",4205]
["Faroe Islands","Brussels ",2160]
["Stavanger","Bremen",1578]
["Venice","Malaga/Cost.Sol",2668]
["Rome","Gdansk",2934]
["Newark","Chicago",1975]
["Gdansk","Frankfurt",4553]
["Frankfurt","Riga",1544]
["Stuttgart","Orebro",2373]
["Geneva","Helsinki",4274]
["Stuttgart","Singapore",4676]
["Dusseldorf","Sngpore Bangkok",4540]
["Dublin","Seattle",1830]
["Joenkoeping","Stockholm",4085]
["Hanover","Wroclaw",3575]
["Geneva","Luxembourg",3690]
["Bucarst Berlin","Sandefjord",2473]
["Bergen Sandefj","Vienna",4006]
["Wroclaw","Paderbo Munster ",4162]
["Tokyo/Narita","Karachi Lahore",2412]
["St Petersburg","Milan/Linate",2865]
["Narsarsuaq","Malaga/Cost.Sol",3873]
["Bremen","Karlstd Orebro",2589]
["Barcelona","Helsinki",1343]
["Tallinn","Glasgow",3338]
["Malaga/Cost.Sol","Vienna",2371]
["Vilnius","Newark",3755]
["Reykjavik","Turku",2861]
["Zurich","Karachi Lahore",1020]
["Tokyo/Narita","Kangerlussuaq",2641]
["Trondheim","Zurich",1701]
["Helsingborg City ","Vaxjoe Kalmar",1866]
["Milan/Linate","Venice",3693]
["Rome","St Petersburg",2751]
["Skopje Bornhlm","Gothenburg",2924]
["Luxembourg","Vilnius",2202]
["Malta","Trondheim",{"$f":"CEILING(4000*RAND(),1)+1000","v":2296}]
["Rome","Kristiansand",1083]
["Kangerlussuaq","Szczecin",2023]
["Tallinn","Malaga Madrid",1761]
["Washington","Poznan",3016]
["Bremen","Sngpore Bangkok",3555]
["Sandefjord","Tunis",2381]
["Rome","Barcelona",1590]
["Malaga/Cost.Sol","Bergen",3058]
["Birmingham","Karachi Lahore",3490]
["Budapest","Ljubljana",3105]
["Orebro","St Petersburg",4680]
["Orebro","Basel",2079]
["Karlstad","Turku",2370]
["Gdansk","Riga",4280]
["Gdansk","Bergen",3658]
["Luxembourg","London/Gatwick",4864]
["Brussels ","Gdansk",1685]
["Vilnius","Kangerlussuaq",4865]
["Orebro","Riga",1480]
["Stavanger","Sandefjord",3756]
["Trondheim","Malaga/Cost.Sol",1677]
["Kalmar Vaxjoe","Paderbo Munster ",3836]
["Tenerife","Glasgow",3580]
["Nice","Brussels ",2516]
["Tunis","Gothenburg",3463]
["Turku","Rome",3509]
["Newark","St Petersburg",1172]
["Ljubljana","Barcelona",2830]
["Stuttgart","Joenkoeping",4780]
["Trondheim","Tunis",4787]
["Paris De Gaulle","Linkoeping",3819]
["Chicago","Poznan",4444]
["Glasgow","Szczecin",2875]
["Hanover","Barcelona",4149]
["Geneva","Joenkoeping",2448]
["Munster","Bergen Sandefj",2575]
["Hamburg","Geneva",1876]
["Rio Heathrw","Sngpore Bangkok",3278]
["Glasgow","Troheim Sandefj",2794]
["Norrkoeping","Milan/Linate",4197]
["Prague","Poznan",1821]
["Tenerife","Basel",3727]
["Stockholm","Bangkok",2123]
["Riga","Rome/Ciampino",1905]
["Orebro","Luxembourg",4636]
["Seattle","Tenerife",4722]
["Sandefjord","Tokyo/Narita",1986]
["Moscow","Luxembourg",1159]
["Trondheim","Nice",3853]
["London/Stansted","Vaxjoe Kalmar",3256]
["Szczecin","St Petersburg",3933]
["St Petersburg","Kristiansand",3835]
["Skopje Bornhlm","Sharm",4371]
["Stockholm","Chicago",4990]
["Hurghada","Bucarst Berlin",1804]
["Prague","Tampere",2265]
["Bangkok","Budapest",2076]
["Linkoeping","Szczecin",1465]
["Milan/Linate","Kalmar Vaxjoe",4236]
["Seattle","Rome",4937]
["Tallinn","Venice",3060]
["Sngpore Bangkok","Stockholm",1168]
["Joenkoeping","Stavanger",4896]
["Stuttgart","Vilnius",{"$f":"CEILING(4000*RAND(),1)+1000","v":3631}]
["Glasgow Edinbg","Newark",3268]
["Washington","Dublin",3606]
["Paris De Gaulle","Budapest",3012]
["Wroclaw","Sandefjord",3063]
["Rio Heathrw","Rome",3219]
["Munich","Prague",1439]
["Kangerlussuaq","Stockholm",1604]
["Kalmar Vaxjoe","Trondheim",4393]
["Luxembourg","Budapest",1951]
["Norrkoeping","Singapore",2081]
["Karlstd Orebro","Rome/Ciampino",4599]
["Vienna","Sharm",4759]
["Karlstd Orebro","Malaga Madrid",3918]
["Karlstad","Madrid",4487]
["Orebro Karlstd","Bangkok",3396]
["Budapest","Lisbon",2694]
["Reykjavik","Moscow",3274]
["Poznan","Paderbo Munster ",1046]
["Manchester","Beijing",1062]
["Budapest","Hamburg",2805]
["Milan/Linate","Chicago",4048]
["Tokyo/Narita","Stockholm",4487]
["Sngpore Bangkok","Hanover",1620]
["Glasgow Edinbg","Milan/Malpensa",4428]
["Sngpore Bangkok","Rio Heathrw",1768]
["Rio Heathrw","Troheim Sandefj",4805]
["Helsingborg City ","Newark",3076]
["Wroclaw","London/Heathrow",4650]
["London/Gatwick","Sharm Luxor",1331]
["Ljubljana","Sandefjord",3280]
["Riga","Luxembourg",4057]
["Beijing","Reykjavik",3404]
["Moscow","Dublin",2471]
["Zurich","Singapore",2080]
["Narsarsuaq","Istanbul",4283]
["Budapest","Karachi Lahore",3099]
["Amsterdam ","Bremen",3261]
["Hamburg","Munich",4639]
["Amsterdam ","Manchester",4774]
["Singapore","Troheim Sandefj",4298]
["Hurghada","Frankfurt",2849]
["Geneva","Riga",2558]
["Glasgow","Reykjavik",4843]
["Rome/Ciampino","Luxembourg",4625]
["Milan/Linate","Karlstad",4224]
["Milan/Malpensa","Tampere",4823]
["Trondheim","Ljubljana",1125]
["Kangerlussuaq","Chicago",4763]
["Rome","Paris De Gaulle",3722]
["Geneva","Bucarst Berlin",1139]
["Bucarst Berlin","Hanover",3698]
["Nice","Venice",4722]
["Gothenburg","Lyon Strasb",4361]
["Bangkok","Tallinn",2841]
["Lisbon","Tenerife",4970]
["Tokyo/Narita","Brussels ",3354]
["Rome/Ciampino","Hamburg",3101]
["Joenkoeping","Hanover",1387]
["Sharm","Orebro Karlstd",4348]
["London/Stansted","Wroclaw",1503]
["Glasgow Edinbg","Faroe Islands",4606]
["Lisbon","Tokyo/Narita",4740]
["Warsaw","Poznan",1195]
["Ljubljana","Stuttgart",{"$f":"CEILING(4000*RAND(),1)+1000","v":1632}]
["Szczecin","Prague",2763]
["Orebro Karlstd","Tallinn",2185]
["Kangerlussuaq","Nice",2778]
["Oslo","Kristiansand",3530]
["London/Heathrow","Malaga/Cost.Sol",3971]
["Helsingborg City ","Hanover",2744]
["Karlstad","Rome/Ciampino",4467]
["Istanbul","Vesteraas",4437]
["Ljubljana","Helsinki",1319]
["Sharm Luxor","Malaga Madrid",4209]
["Vaxjoe Kalmar","Szczecin",3227]
["Bucarst Berlin","Stockholm",2985]
["Wroclaw","Norrkoeping",1337]
["Frankfurt","Narsarsuaq",3804]
["Kristiansand","Troheim Sandefj",2763]
["Malta","Lisbon",4451]
["Hanover","Karlstad",1007]
["Sandefjord","Singapore",2174]
["Basel","Kalmar Vaxjoe",4100]
["Paderbo Munster ","Stockholm",3590]
["Dublin","Kalmar Vaxjoe",4805]
["Madrid","Malaga Madrid",2233]
["Joenkoeping","Rio Heathrw",3179]
["Dusseldorf","Trondheim",2378]
["Stockholm","Basel",4000]
["Turku","Sharm",3157]
["Beijing","Vesteraas",1306]
["Hamburg","Madrid",4830]
["Beijing","Warsaw",1320]
["Karachi Lahore","Paris De Gaulle",4305]
["Warsaw","Sharm Luxor",3148]
["Gothenburg","Szczecin",2674]
["Orebro Karlstd","Paris De Gaulle",3856]
["Tokyo/Narita","Gdansk",2310]
["Kristiansand","Hanover",2366]
["Glasgow Edinbg","Stavanger",1895]
["Chicago","Bremen",4573]
["Kristiansand","Trondheim",1178]
["Rome","Brussels ",2661]
["Birmingham","Troheim Sandefj",1701]
["Madrid","Munster",2037]
["Tampere","Prague",1914]
["Helsinki","Tunis",2215]
["Newark","Milan/Linate",2860]
["Newark","Kangerlussuaq",3066]
["Chicago","Seattle",1640]
["Beijing","Istanbul",2636]
["Glasgow","St Petersburg",3491]
["Moscow","Paris De Gaulle",3639]
["Sandefjord","Oslo",3779]
["Stockholm","Berlin/Tegel",3374]
["Stuttgart","Bucarst Berlin",3910]
["Moscow","London/Heathrow",2492]
["Amsterdam ","Berlin/Tegel",1636]
["Frankfurt","Malaga/Cost.Sol",1670]
["Szczecin","Kristiansand",1818]
["Vilnius","Tampere",3348]
["Munich","Norrkoeping",4228]
["Barcelona","Reykjavik",4817]
["Hanover","Helsingborg City ",3853]
["Dusseldorf","Tampere",3106]
["Dublin","Luxembourg",2262]
["Las Palmas","Glasgow",1123]
["Malaga Madrid","Milan/Linate",{"$f":"CEILING(4000*RAND(),1)+1000","v":3422}]
["Hanover","Madrid",4690]
["Newark","Athens",1476]
["Singapore","Berlin/Tegel",1275]
["Kangerlussuaq","Barcelona",2599]
["Istanbul","Orebro",3977]
["Joenkoeping","Newark",2728]
["Trondheim","Orebro Karlstd",1594]
["Stuttgart","Gothenburg",2877]
["Tunis","Sharm Luxor",2883]
["Lyon Strasb","Moscow",4893]
["Sharm","Hamburg",4447]
["Narsarsuaq","Hurghada",4765]
["Hanover","Tokyo/Narita",2653]
["Orebro","Milan/Linate",1676]
["Reykjavik","Bremen",3482]
["Karachi Lahore","Bangkok",1725]
["Lisbon","Washington",4391]
["Warsaw","Brussels ",4348]
["Sandefjord","Bergen Sandefj",4582]
["Tokyo/Narita","Bergen Sandefj",1899]
["Hamburg","Karachi Lahore",1160]
["Skopje Bornhlm","Nice",2196]
["Madrid","Prague",3568]
["Rome","Berlin/Tegel",2783]
["Chicago","Rome/Ciampino",2235]
["Kangerlussuaq","Helsinki",2895]
["Riga","Kangerlussuaq",4958]
["Stavanger","London/Heathrow",4947]
["Riga","Birmingham",4821]
["Venice","Joenkoeping",2124]
["Manchester","Bergen",3559]
["Hamburg","Kangerlussuaq",1052]
["Norrkoeping","Zurich",3473]
["Newark","Vilnius",1117]
["London/Heathrow","Troheim Sandefj",2254]
["Rome/Ciampino","Reykjavik",1043]
["Troheim Sandefj","Norrkoeping",4352]
["Orebro Karlstd","Barcelona",4086]
["Venice","Turku",1748]
["London/Heathrow","Tokyo/Narita",1596]
["Stavanger","Rio Heathrw",1643]
["Bucarst Berlin","Skopje Bornhlm",2145]
["Helsinki","Trondheim",4139]
["Frankfurt","Gdansk",4182]
["Barcelona","Turku",3733]
["Sharm","Basel",3378]
["Venice","Bucarst Berlin",2891]
["Geneva","Tampere",2041]
["Istanbul","London/Gatwick",2547]
["Warsaw","Frankfurt",2295]
["Rome","Trondheim",3889]
["Vaxjoe Kalmar","Frankfurt",2265]
["Nice","Dublin",1774]
["Singapore","Tampere",2753]
["Amsterdam ","Brussels ",4579]
["Singapore","Hanover",4377]
["Budapest","Gdansk",1436]
["Amsterdam ","Karlstd Orebro",1445]
["Amsterdam ","Milan/Malpensa",3531]
["Riga","Stockholm",3345]
["Malta","Bremen",2981]
["Helsinki","Newark",2231]
["Karlstad","Brussels ",2831]
["Frankfurt","Dublin",{"$f":"CEILING(4000*RAND(),1)+1000","v":2007}]
["Stavanger","Manchester",1959]
["Bremen","Gdansk",4881]
["Trondheim","Seattle",1466]
["Poznan","Tunis",4534]
["Glasgow Edinbg","Norrkoeping",3061]
["Ljubljana","Tampere",3297]
["Orebro Karlstd","Helsingborg City ",4834]
["Lisbon","Chicago",2682]
["Rome","Orebro Karlstd",1340]
["Sharm Luxor","Glasgow",4005]
["Tallinn","Tunis",3139]
["Malta","Helsinki",2083]
["Warsaw","Moscow",4121]
["Beijing","Moscow",1507]
["Kristiansand","Venice",1225]
["Kangerlussuaq","Venice",3589]
["Faroe Islands","Newark",2136]
["Stockholm","Vilnius",4637]
["Orebro","Milan/Malpensa",1469]
["Milan/Malpensa","Munich",1307]
["Frankfurt","Bangkok",4837]
["Helsinki","St Petersburg",2385]
["Szczecin","Gothenburg",2583]
["Tunis","Dusseldorf",2270]
["Turku","Malta",3874]
["Orebro","Tokyo/Narita",3860]
["Munich","Joenkoeping",1211]
["Kristiansand","Linkoeping",2882]
["Bergen","Zurich",1300]
["Gothenburg","Nice",2236]
["Brussels ","Lisbon",1009]
["Skopje Bornhlm","Athens",1922]
["Athens","Stuttgart",4134]
["Sngpore Bangkok","Sharm",4616]
["Dublin","Madrid",1342]
["Turku","Basel",1810]
["Beijing","Milan/Linate",2146]
["Seattle","Narsarsuaq",2772]
["Washington","Bucarst Berlin",3029]
["Sandefjord","Milan/Linate",2226]
["Helsinki","Dusseldorf",1625]
["Poznan","Lyon Strasb",1111]
["Sandefjord","Las Palmas",1106]
["Brussels ","Kalmar Vaxjoe",1590]
["Paderbo Munster ","Geneva",4159]
["Stuttgart","Bangkok",4570]
["Madrid","Washington",1386]
["Dusseldorf","London/Gatwick",3703]
["Kangerlussuaq","Sharm",4553]
["Gothenburg","London/Gatwick",2410]
["Vilnius","Geneva",4755]
["Seattle","Malta",3625]
["Lisbon","Birmingham",2563]
["Skopje Bornhlm","Wroclaw",3626]
["Venice","Sharm Luxor",3955]
["Istanbul","Seattle",2096]
["Seattle","Skopje Bornhlm",4167]
["Moscow","Faroe Islands",2102]
["Rio Heathrw","Wroclaw",2449]
["Brussels ","Dusseldorf",3097]
["Nice","Linkoeping",4858]
["Szczecin","Geneva",1311]
["Budapest","Karlstad",2837]
["Lisbon","Wroclaw",{"$f":"CEILING(4000*RAND(),1)+1000","v":2649}]
["St Petersburg","Beijing",4466]
["Luxembourg","Dublin",3485]
["Poznan","Munster",3920]
["Munster","London/Stansted",2764]
["Szczecin","Zurich",1957]
["Frankfurt","Vaxjoe Kalmar",1148]
["Troheim Sandefj","Newark",1490]
["Paris De Gaulle","Paderbo Munster ",1349]
["Tokyo/Narita","Milan/Malpensa",3390]
["Szczecin","Skopje Bornhlm",1180]
["Budapest","Trondheim",3123]
["Skopje Bornhlm","Prague",4918]
["Turku","Wroclaw",1805]
["Gdansk","Narsarsuaq",4361]
["Milan/Malpensa","Moscow",1907]
["Budapest","Poznan",4514]
["Singapore","Milan/Linate",2229]
["Malta","Norrkoeping",4740]
["Turku","Tenerife",3502]
["Las Palmas","Amsterdam ",1038]
["Gdansk","Vilnius",1692]
["Karlstad","Karachi Lahore",4782]
["Bergen","Malaga Madrid",3543]
["Beijing","Dusseldorf",2328]
["Malta","Basel",3108]
["Manchester","Malta",4236]
["Istanbul","London/Stansted",3371]
["Sharm","Riga",2003]
["Dusseldorf","Basel",2101]
["Riga","Hurghada",3884]
["Helsingborg City ","Sharm",2495]
["Tampere","Reykjavik",4949]
["Paris De Gaulle","Beijing",3815]
["Madrid","Milan/Malpensa",1325]
["Malaga/Cost.Sol","Bucarst Berlin",3113]
["Bucarst Berlin","Stuttgart",4743]
["Wroclaw","Kangerlussuaq",1391]
["Rome/Ciampino","Kristiansand",2255]
["Faroe Islands","Gothenburg",2129]
["Karlstad","Malaga Madrid",3723]
["Moscow","Joenkoeping",1196]
["Gdansk","Stockholm",2054]
["Oslo","Paris De Gaulle",1755]
["Wroclaw","Reykjavik",2873]
["Singapore","Helsinki",3625]
["London/Gatwick","Seattle",4808]
["Milan/Malpensa","Madrid",4389]
["Istanbul","Glasgow",1763]
["Manchester","St Petersburg",3073]
["Hamburg","Lisbon",3544]
["Manchester","Oslo",3635]
["London/Gatwick","Warsaw",2312]
["Linkoeping","Rome/Ciampino",1464]
["Karachi Lahore","Glasgow",2811]
["Joenkoeping","Stuttgart",2732]
["Kalmar Vaxjoe","Chicago",2833]
["Norrkoeping","Dusseldorf",2429]
["Orebro Karlstd","Beijing",3413]
["Athens","Tokyo/Narita",1393]
["Rome","Las Palmas",4351]
["Karachi Lahore","Chicago",1931]
["Dublin","Bergen",3028]
["Beijing","Bangkok",3220]
["Munster","Gdansk",{"$f":"CEILING(4000*RAND(),1)+1000","v":1332}]
["Turku","Vienna",4583]
["Moscow","Kalmar Vaxjoe",1292]
["Poznan","Rio Heathrw",2347]
["Tallinn","Warsaw",2323]
["Hamburg","Manchester",1529]
["Orebro","Kristiansand",4127]
["Birmingham","Turku",3290]
["Stockholm","Bergen Sandefj",1189]
["Bangkok","Seattle",3044]
["Kristiansand","Gdansk",1062]
["Venice","Rome/Ciampino",3845]
["St Petersburg","Bergen Sandefj",4718]
["Turku","Sandefjord",2965]
["Orebro","Vesteraas",1516]
["Gothenburg","Tallinn",4052]
["Singapore","Rome",2264]
["Dusseldorf","Brussels ",1666]
["Amsterdam ","Skopje Bornhlm",2547]
["Munich","Warsaw",2666]
["Washington","Malta",1999]
["London/Gatwick","Karlstad",4476]
["Stavanger","Karachi Lahore",1530]
["London/Heathrow","Kristiansand",2203]
["St Petersburg","Stuttgart",4025]
["Las Palmas","Sandefjord",2098]
["London/Stansted","Norrkoeping",4018]
["Sngpore Bangkok","Szczecin",1594]
["London/Heathrow","Venice",4538]
["Turku","Skopje Bornhlm",4570]
["Linkoeping","St Petersburg",4995]
["Chicago","Bergen",1260]
["Sandefjord","Madrid",2265]
["Ljubljana","Tallinn",3581]
["Stavanger","Frankfurt",1045]
["Joenkoeping","Warsaw",3746]
["Moscow","Helsingborg City ",1232]
["Vilnius","Bremen",2056]
["Sharm","Faroe Islands",3390]
["Kalmar Vaxjoe","Sandefjord",2181]
["Beijing","Budapest",4237]
["Dublin","Karlstad",1794]
["Malaga Madrid","Zurich",1112]
["Sharm Luxor","London/Stansted",2456]
["Zurich","Faroe Islands",1703]
["Joenkoeping","Tallinn",1402]
["Singapore","Vesteraas",1364]
["Beijing","Vienna",4412]
["Frankfurt","Bergen Sandefj",2900]
["Narsarsuaq","Sharm",2780]
["Barcelona","Ljubljana",3791]
["Manchester","Milan/Linate",2737]
["Berlin/Tegel","Vaxjoe Kalmar",2422]
["Tokyo/Narita","Budapest",4109]
["Rio Heathrw","Geneva",4339]
["Washington","Dusseldorf",4468]
["Singapore","Tenerife",4003]
["Ljubljana","Karachi Lahore",2569]
["Vaxjoe Kalmar","Nice",4693]
["Newark","Munster",2948]
["Narsarsuaq","Dublin",3868]
["Nice","Rome/Ciampino",4481]
["Poznan","Manchester",2410]
["Dusseldorf","Luxembourg",4713]
["Sandefjord","Geneva",{"$f":"CEILING(4000*RAND(),1)+1000","v":1559}]
["Gothenburg","Singapore",2618]
["Lyon Strasb","Zurich",1416]
["Glasgow","Bangkok",2722]
["Poznan","Stockholm",3486]
["Hurghada","Karlstd Orebro",4453]
["Basel","Vienna",2641]
["Trondheim","Lisbon",2668]
["Chicago","Paderbo Munster ",4970]
["Stockholm","Barcelona",1215]
["London/Stansted","Barcelona",2308]
["Kangerlussuaq","Dusseldorf",1935]
["Athens","Sandefjord",4649]
["Hanover","Sharm",3645]
["Stavanger","St Petersburg",1340]
["Munich","Malaga Madrid",1881]
["Helsingborg City ","Birmingham",2067]
["Vienna","Faroe Islands",2197]
["Vienna","Berlin/Tegel",2050]
["Venice","Skopje Bornhlm",4722]
["Paris De Gaulle","London/Heathrow",1017]
["Malaga Madrid","London/Gatwick",4681]
["Berlin/Tegel","Las Palmas",4485]
["Munich","Venice",1920]
["Amsterdam ","Chicago",4435]
["Tokyo/Narita","Rome/Ciampino",2370]
["Bucarst Berlin","Szczecin",4895]
["Munich","Paris De Gaulle",1729]
["Tenerife","Las Palmas",3724]
["Warsaw","Helsinki",4935]
["Washington","Karachi Lahore",2238]
["Hurghada","Basel",1700]
["Kristiansand","Orebro Karlstd",2559]
["Bangkok","Zurich",4086]
["Madrid","St Petersburg",2759]
["Faroe Islands","Dublin",2654]
["Athens","Milan/Malpensa",2218]
["London/Gatwick","Stuttgart",1586]
["Brussels ","Malta",2887]
["Hurghada","Bremen",4954]
["Narsarsuaq","Sngpore Bangkok",1159]
["Reykjavik","Hamburg",1825]
["Luxembourg","Bucarst Berlin",1915]
["Trondheim","Las Palmas",4176]
["Luxembourg","Paderbo Munster ",3283]
["Skopje Bornhlm","Rio Heathrw",3602]
["Milan/Linate","Lisbon",3643]
["Trondheim","Stuttgart",1913]
["Sandefjord","Orebro Karlstd",4928]
["Bergen Sandefj","Kangerlussuaq",3885]
["Rome/Ciampino","Venice",2880]
["London/Heathrow","Madrid",4620]
["Basel","Lisbon",1005]
["Stavanger","Stuttgart",3229]
["Malaga/Cost.Sol","Troheim Sandefj",3552]
["Frankfurt","Athens",4295]
["Basel","Orebro",1740]
["Glasgow Edinbg","Troheim Sandefj",1130]
["Malaga Madrid","Malaga/Cost.Sol",3495]
["Brussels ","Dublin",2579]
["Vienna","Lyon Strasb",2787]
["Sharm Luxor","Brussels ",2459]
["Warsaw","Tallinn",3065]
["Hamburg","Washington",3022]
["Beijing","Karlstd Orebro",{"$f":"CEILING(4000*RAND(),1)+1000","v":3942}]
["Sngpore Bangkok","Kangerlussuaq",2031]
["Karachi Lahore","Dublin",1456]
["Moscow","St Petersburg",2756]
["Bremen","London/Heathrow",2663]
["Helsinki","Seattle",2467]
["London/Gatwick","Istanbul",2013]
["Munster","Budapest",2635]
["Wroclaw","Amsterdam ",1256]
["Nice","Kristiansand",4267]
["Athens","Madrid",2816]
["Ljubljana","Bangkok",3995]
["Dusseldorf","Stockholm",4468]
["Athens","Bergen",4986]
["Narsarsuaq","Paderbo Munster ",1092]
["Skopje Bornhlm","Karachi Lahore",3276]
["Hamburg","Stuttgart",4086]
["Tampere","Istanbul",4062]
["Trondheim","Glasgow Edinbg",4340]
["Vilnius","Reykjavik",3547]
["Faroe Islands","Stavanger",2018]
["Venice","Tokyo/Narita",4087]
["Prague","Gdansk",4451]
["Wroclaw","Gothenburg",4256]
["Malta","Joenkoeping",2596]
["Karachi Lahore","Vesteraas",3600]
["Newark","Sharm",1065]
["Basel","Rome",4435]
["Washington","Paderbo Munster ",2102]
["Warsaw","Rio Heathrw",1972]
["Joenkoeping","Beijing",4860]
["Madrid","Tallinn",4043]
["Bergen Sandefj","Lisbon",1769]
["Malaga/Cost.Sol","Beijing",3521]
["Birmingham","Kangerlussuaq",3289]
["Faroe Islands","Paris De Gaulle",2663]
["Paris De Gaulle","Seattle",1966]
["Trondheim","Tenerife",3460]
["Chicago","Paris De Gaulle",2420]
["Luxembourg","Reykjavik",4133]
["Singapore","Madrid",3748]
["Vilnius","Barcelona",4240]
["Las Palmas","Luxembourg",2825]
["Riga","Munich",2286]
["Wroclaw","Prague",4712]
["Manchester","Moscow",1141]
["Lisbon","Bremen",3981]
["Munich","Hanover",2336]
["Brussels ","Frankfurt",1558]
["Narsarsuaq","Hamburg",4180]
["Manchester","Gdansk",1233]
["Vilnius","Linkoeping",4809]
["Newark","Bremen",3436]
["Vienna","Bangkok",3788]
["Hurghada","Sharm",1740]
["Birmingham","Oslo",3571]
["Dublin","Orebro",4936]
["Karlstad","Glasgow",4760]
["Karlstad","Tenerife",4215]
["Hanover","Gdansk",4164]
["Glasgow","Beijing",2616]
["Wroclaw","Tallinn",1037]
["Karlstd Orebro","Glasgow Edinbg",2959]
["Birmingham","Madrid",3200]
["Zurich","Bremen",{"$f":"CEILING(4000*RAND(),1)+1000","v":3440}]
["Sandefjord","Tampere",4920]
["Manchester","Norrkoeping",4345]
["Rio Heathrw","Venice",3523]
["Istanbul","Tampere",4155]
["Narsarsuaq","Karlstd Orebro",4223]
["Munich","Nice",4372]
["Brussels ","Birmingham",2451]
["Vilnius","Glasgow",3717]
["Paris De Gaulle","Warsaw",1573]
["Riga","Turku",4816]
["Chicago","Tokyo/Narita",3201]
["Brussels ","Hamburg",4817]
["Poznan","Malta",1635]
["Barcelona","Troheim Sandefj",1132]
["Stavanger","London/Stansted",2853]
["Luxembourg","Sngpore Bangkok",2522]
["Venice","Beijing",2915]
["Hurghada","Rio Heathrw",4562]
["Vilnius","Zurich",3560]
["Beijing","Zurich",2341]
["Vaxjoe Kalmar","Sandefjord",4234]
["Hanover","Norrkoeping",3680]
["Oslo","Wroclaw",4079]
["Las Palmas","Bergen Sandefj",3761]
["Vienna","Kalmar Vaxjoe",2616]
["Glasgow","Malta",4530]
["Chicago","Bangkok",3628]
["Linkoeping","Dusseldorf",2081]
["Milan/Malpensa","Budapest",2030]
["Glasgow Edinbg","Stuttgart",4531]
["Joenkoeping","Szczecin",1123]
["Stockholm","Faroe Islands",2128]
["Moscow","Lisbon",1696]
["Poznan","Milan/Linate",3126]
["Turku","Venice",2454]
["Bangkok","Washington",2701]
["Moscow","Munster",2589]
["Venice","Frankfurt",1670]
["Gdansk","Paderbo Munster ",2756]
["Tallinn","Karachi Lahore",3785]
["Chicago","Bergen Sandefj",1474]
["Tampere","Troheim Sandefj",4372]
["Gothenburg","Basel",4464]
["Bangkok","Nice",1191]
["London/Gatwick","Geneva",2164]
["Helsingborg City ","Prague",1500]
["Glasgow","Wroclaw",4315]
["Bergen Sandefj","Athens",2133]
["Kristiansand","Budapest",3784]
["Bergen Sandefj","Milan/Malpensa",2214]
["Orebro Karlstd","Glasgow Edinbg",1111]
["Szczecin","Dublin",1960]
["Orebro","Tampere",3748]
["Poznan","Beijing",3095]
["Tallinn","Turku",1039]
["Paris De Gaulle","Faroe Islands",2275]
["Poznan","Gothenburg",4026]
["Norrkoeping","Amsterdam ",1837]
["Stuttgart","Warsaw",2231]
["Las Palmas","Rio Heathrw",2059]
["Sngpore Bangkok","Beijing",4361]
["Geneva","Kalmar Vaxjoe",2186]
["Skopje Bornhlm","Gdansk",2825]
["Malta","Malaga/Cost.Sol",{"$f":"CEILING(4000*RAND(),1)+1000","v":3658}]
["Szczecin","Bucarst Berlin",3466]
["Helsingborg City ","Joenkoeping",1533]
["Stockholm","Milan/Linate",2588]
["St Petersburg","Bucarst Berlin",4414]
["Prague","Orebro",1391]
["Dusseldorf","Newark",4889]
["Helsinki","Bangkok",3579]
["Sandefjord","Faroe Islands",1874]
["Barcelona","Tallinn",1961]
["Athens","Karlstad",2815]
["Tallinn","Geneva",4804]
["Tokyo/Narita","Chicago",2290]
["Riga","Gothenburg",2106]
["Rio Heathrw","Washington",1588]
["Paderbo Munster ","Karlstad",1847]
["Zurich","Luxembourg",1947]
["Paris De Gaulle","Manchester",3408]
["Faroe Islands","London/Heathrow",1978]
["Las Palmas","Karlstd Orebro",4626]
["Orebro Karlstd","Poznan",2421]
["Norrkoeping","Skopje Bornhlm",2770]
["Oslo","Chicago",4017]
["Wroclaw","Trondheim",1881]
["Lyon Strasb","Dublin",2065]
["Seattle","Paris De Gaulle",1153]
["Helsingborg City ","Glasgow Edinbg",3266]
["Bremen","Moscow",1807]
["Vilnius","Malaga/Cost.Sol",1524]
["Rome","Norrkoeping",2806]
["Skopje Bornhlm","Karlstad",2322]
["Warsaw","Linkoeping",2931]
["Warsaw","Las Palmas",4235]
["Orebro Karlstd","Kalmar Vaxjoe",1846]
["Geneva","Las Palmas",2612]
["Brussels ","Glasgow Edinbg",3145]
["Manchester","Barcelona",1070]
["Norrkoeping","Vienna",2379]
["Berlin/Tegel","Budapest",2487]
["Nice","Paris De Gaulle",4287]
["Barcelona","Orebro",1529]
["Vesteraas","Amsterdam ",1789]
["Sharm","Paderbo Munster ",3846]
["Rio Heathrw","Vienna",3431]
["Norrkoeping","Venice",2706]
["Kristiansand","Narsarsuaq",3471]
["Malaga Madrid","London/Stansted",2368]
["Helsingborg City ","Vesteraas",1767]
["Glasgow","Joenkoeping",4008]
["Tallinn","Bangkok",3751]
["Hanover","Manchester",3895]
["Washington","St Petersburg",2996]
["Venice","Singapore",1170]
["Lisbon","Troheim Sandefj",3002]
["Reykjavik","Skopje Bornhlm",2290]
["Dublin","Tenerife",4459]
["Athens","Malta",2965]
["Turku","Geneva",3393]
["Gothenburg","Sandefjord",2364]
["Lyon Strasb","Malta",4912]
["Tallinn","Birmingham",1022]
["Milan/Linate","Dusseldorf",3515]
["Seattle","Frankfurt",2363]
["Faroe Islands","Nice",2241]
["Nice","Sharm Luxor",{"$f":"CEILING(4000*RAND(),1)+1000","v":2977}]
["Wroclaw","Manchester",2522]
["Karlstad","Warsaw",1435]
["Malaga Madrid","Stockholm",2058]
["Faroe Islands","Moscow",3261]
["London/Heathrow","Helsinki",3922]
["Las Palmas","London/Stansted",2948]
["Helsinki","Budapest",3003]
["Venice","Kangerlussuaq",3639]
["Vilnius","Berlin/Tegel",4469]
["Malaga Madrid","Nice",4784]
["Madrid","Munich",4467]
["Oslo","Linkoeping",4033]
["Gdansk","Chicago",2029]
["Lisbon","Bergen",1961]
["Brussels ","Vilnius",1950]
["London/Stansted","Stavanger",2040]
["Wroclaw","Orebro",2127]
["Zurich","Bucarst Berlin",4303]
["Sharm","Reykjavik",4629]
["Vaxjoe Kalmar","Gothenburg",1792]
["Stavanger","Oslo",1313]
["Sandefjord","Bremen",2493]
["Narsarsuaq","Vaxjoe Kalmar",3195]
["Tampere","Amsterdam ",4912]
["Vaxjoe Kalmar","Manchester",1416]
["Vesteraas","Warsaw",3515]
["Brussels ","Sharm",1287]
["Tunis","Tallinn",2750]
["Manchester","Tenerife",1515]
["Birmingham","Kalmar Vaxjoe",2962]
["Vilnius","Kalmar Vaxjoe",4274]
["Troheim Sandefj","Ljubljana",4535]
["Trondheim","Glasgow",3486]
["Skopje Bornhlm","Ljubljana",1505]
["Munich","Hamburg",3730]
["London/Stansted","Szczecin",2200]
["Bremen","Malaga/Cost.Sol",3005]
["Vilnius","Paris De Gaulle",3413]
["Moscow","Tampere",3272]
["Vesteraas","Karachi Lahore",2509]
["Madrid","Milan/Linate",2088]
["Vilnius","Hanover",1708]
["Oslo","Faroe Islands",1184]
["Vienna","Glasgow Edinbg",3253]
["Linkoeping","Rome",2293]
["Madrid","Budapest",2429]
["Faroe Islands","Milan/Malpensa",3008]
["Troheim Sandefj","Seattle",3908]
["Bucarst Berlin","London/Gatwick",1455]
["Tunis","Beijing",4669]
["Seattle","Bremen",2243]
["Chicago","Rome",3097]
["Munster","Wroclaw",1435]
["Lyon Strasb","Glasgow Edinbg",4735]
["Sharm Luxor","Narsarsuaq",1211]
["Madrid","Skopje Bornhlm",2067]
["Karlstad","Budapest",1946]
["Helsingborg City ","Sngpore Bangkok",4359]
["Orebro Karlstd","Rio Heathrw",3739]
["Brussels ","Narsarsuaq",3969]
["Vaxjoe Kalmar","London/Gatwick",3151]
["Brussels ","Turku",2214]
["Turku","Bergen Sandefj",4006]
["Tenerife","St Petersburg",{"$f":"CEILING(4000*RAND(),1)+1000","v":1693}]
["Karachi Lahore","Venice",2766]
["Stockholm","Dusseldorf",4132]
["Nice","Munich",1289]
["Lyon Strasb","Norrkoeping",3827]
["Munster","Amsterdam ",4360]
["Paderbo Munster ","London/Gatwick",3653]
["Tenerife","Beijing",1940]
["Brussels ","Sngpore Bangkok",1739]
["Karlstad","Bergen",1080]
["Dusseldorf","Kalmar Vaxjoe",3401]
["Turku","Vaxjoe Kalmar",3170]
["Madrid","Kristiansand",2666]
["Orebro Karlstd","Gothenburg",2564]
["Bergen","Linkoeping",4270]
["Bergen","Dusseldorf",2002]
["Dusseldorf","Las Palmas",1891]
["Faroe Islands","Narsarsuaq",1696]
["Amsterdam ","Lisbon",1350]
["Sharm","Tokyo/Narita",1746]
["Barcelona","St Petersburg",1192]
["Bangkok","Kristiansand",4410]
["Faroe Islands","Orebro",2452]
["Zurich","Lisbon",1976]
["Malaga/Cost.Sol","Helsinki",3721]
["Brussels ","Vaxjoe Kalmar",2367]
["Stuttgart","Hamburg",2570]
["Glasgow","Malaga/Cost.Sol",4527]
["Riga","Dublin",1807]
["Munster","Poznan",3167]
["London/Heathrow","Sngpore Bangkok",1675]
["Orebro Karlstd","Sharm Luxor",2730]
["Turku","Bucarst Berlin",4764]
["Tunis","Linkoeping",3628]
["Riga","Norrkoeping",1034]
["Reykjavik","Faroe Islands",2541]
["Sandefjord","Norrkoeping",3308]
["Joenkoeping","Skopje Bornhlm",4460]
["Munster","Hamburg",3701]
["Szczecin","Orebro",1433]
["Warsaw","Tenerife",3327]
["Sandefjord","Athens",2022]
["Basel","Zurich",2105]
["Trondheim","Hamburg",2230]
["Karachi Lahore","Stockholm",1220]
["Dusseldorf","Bucarst Berlin",1719]
["Budapest","Bergen",3365]
["Kalmar Vaxjoe","Lyon Strasb",2041]
["Zurich","Milan/Linate",3926]
["London/Gatwick","Nice",1497]
["Dusseldorf","Malaga/Cost.Sol",1906]
["Rome/Ciampino","Manchester",4535]
["Milan/Linate","Lyon Strasb",1182]
["Sandefjord","Paderbo Munster ",2390]
["Poznan","Karlstad",3447]
["Geneva","Turku",4427]
["Karlstd Orebro","Barcelona",4557]
["Orebro","Birmingham",3935]
["Hurghada","Vilnius",3158]
["Gdansk","London/Stansted",3021]
["Lyon Strasb","Tampere",1510]
["Nice","Luxembourg",2901]
["Tokyo/Narita","Hurghada",3962]
["London/Heathrow","Berlin/Tegel",1281]
["St Petersburg","Karlstd Orebro",{"$f":"CEILING(4000*RAND(),1)+1000","v":1126}]
["Lisbon","Hurghada",2527]
["Lyon Strasb","Vienna",2119]
["Kalmar Vaxjoe","St Petersburg",1410]
["Faroe Islands","Szczecin",3856]
["Tallinn","Sharm",2199]
["Norrkoeping","Munich",1846]
["Reykjavik","Bangkok",3058]
["Rio Heathrw","Joenkoeping",1033]
["Bergen Sandefj","Budapest",2345]
["Sandefjord","Barcelona",3014]
["Hamburg","Milan/Malpensa",4515]
["Barcelona","Stuttgart",3882]
["Turku","Tunis",3096]
["Rome","Rio Heathrw",2419]
["Stockholm","Brussels ",1139]
["Hanover","Warsaw",1804]
["Milan/Linate","Milan/Malpensa",1782]
["Athens","Gdansk",3713]
["Basel","Seattle",1961]
["Vaxjoe Kalmar","Vilnius",4135]
["Washington","Seattle",3891]
["Lisbon","Lyon Strasb",4337]
["London/Heathrow","Prague",2661]
["Szczecin","Milan/Linate",3362]
["Vilnius","Karlstad",3615]
["Dublin","Tokyo/Narita",3529]
["Helsinki","Joenkoeping",2068]
["Paris De Gaulle","Tunis",1490]
["Bergen","Gdansk",3225]
["Paderbo Munster ","London/Heathrow",4330]
["Glasgow Edinbg","Dusseldorf",1922]
["Basel","Barcelona",3432]
["Zurich","Paris De Gaulle",1679]
["Athens","Wroclaw",1667]
["Karlstad","London/Heathrow",3168]
["Dublin","Riga",1560]
["Moscow","Rome/Ciampino",4872]
["Tallinn","Moscow",3480]
["Skopje Bornhlm","London/Gatwick",2259]
["Malaga/Cost.Sol","Bergen Sandefj",4679]
["Sharm Luxor","Sharm",2644]
["Skopje Bornhlm","Helsingborg City ",2743]
["Karlstd Orebro","Chicago",3301]
["Hamburg","Bergen Sandefj",4809]
["Singapore","Athens",2633]
["Linkoeping","Kristiansand",3735]
["Paderbo Munster ","Frankfurt",4789]
["Venice","Reykjavik",1180]
["Karachi Lahore","Moscow",3888]
["Sharm","Bremen",3007]
["Orebro Karlstd","Malaga Madrid",2150]
["Karlstad","Vesteraas",4736]
["Stockholm","Moscow",1856]
["Nice","Beijing",4307]
["Rome","London/Stansted",4526]
["Ljubljana","Poznan",3088]
["Troheim Sandefj","Helsingborg City ",4857]
["Dublin","London/Gatwick",2111]
["Amsterdam ","London/Heathrow",2805]
["Hamburg","Kalmar Vaxjoe",4085]
["Orebro Karlstd","Lyon Strasb",1808]
["Ljubljana","Singapore",4032]
["Troheim Sandefj","Bucarst Berlin",1127]
["Skopje Bornhlm","Istanbul",{"$f":"CEILING(4000*RAND(),1)+1000","v":1973}]
["Karlstd Orebro","Wroclaw",4932]
["Kangerlussuaq","Malaga Madrid",2324]
["Stavanger","Tallinn",3261]
["Frankfurt","Basel",4998]
["London/Gatwick","Barcelona",1991]
["Vaxjoe Kalmar","Hanover",2723]
["Karlstd Orebro","Turku",3340]
["Sandefjord","Wroclaw",4994]
["Kristiansand","Rome/Ciampino",2247]
["Sharm Luxor","Singapore",1087]
["Rome/Ciampino","Orebro Karlstd",3994]
["London/Gatwick","Bangkok",3853]
["Narsarsuaq","Beijing",3700]
["Hamburg","Vesteraas",3520]
["Brussels ","Paderbo Munster ",3547]
["Skopje Bornhlm","Paderbo Munster ",2164]
["Birmingham","Newark",2093]
["Stockholm","Oslo",1133]
["Munich","Sharm Luxor",4771]
["Skopje Bornhlm","Basel",2276]
["Poznan","London/Heathrow",2856]
["London/Gatwick","Orebro Karlstd",1036]
["Stockholm","Wroclaw",3928]
["Newark","Frankfurt",4069]
["Prague","Barcelona",3223]
["Newark","London/Heathrow",2363]
["Poznan","London/Stansted",1902]
["Linkoeping","Malta",3296]
["Turku","Helsingborg City ",3186]
["Glasgow Edinbg","Geneva",4461]
["Kristiansand","Tampere",1866]
["Hurghada","Singapore",4967]
["Moscow","Basel",1011]
["Stockholm","Tallinn",3677]
["Milan/Malpensa","Lyon Strasb",3820]
["Kalmar Vaxjoe","Munster",4913]
["Vienna","Prague",3030]
["Orebro","Vaxjoe Kalmar",2479]
["Lisbon","Berlin/Tegel",3237]
["Beijing","Rome/Ciampino",3162]
["Gothenburg","Seattle",4506]
["Luxembourg","Sharm Luxor",1067]
["Zurich","Szczecin",3377]
["Athens","Helsinki",2177]
["Malaga/Cost.Sol","Munster",1879]
["Singapore","Rome/Ciampino",1274]
["Troheim Sandefj","Sngpore Bangkok",2234]
["Helsinki","Warsaw",2636]
["Bremen","Vaxjoe Kalmar",3070]
["Tokyo/Narita","Dublin",2526]
["Athens","Chicago",4569]
["Bergen Sandefj","Helsinki",1271]
["Bergen Sandefj","Stavanger",3278]
["Paris De Gaulle","Glasgow Edinbg",1565]
["Las Palmas","Poznan",3037]
["Birmingham","Riga",2351]
["Paris De Gaulle","Sngpore Bangkok",1962]
["Karlstd Orebro","Budapest",2544]
["London/Gatwick","Dusseldorf",3838]
["Paderbo Munster ","Stavanger",4667]
["Dublin","Paris De Gaulle",1129]
["Malaga Madrid","Kangerlussuaq",3460]
["Barcelona","Dublin",1066]
["Luxembourg","Gothenburg",{"$f":"CEILING(4000*RAND(),1)+1000","v":4170}]
["Sharm","Munich",2027]
["Sngpore Bangkok","Oslo",3774]
["Turku","Rome/Ciampino",3714]
["Bergen","Venice",2624]
["Sandefjord","Sharm",2181]
["Reykjavik","Las Palmas",1334]
["Tokyo/Narita","Turku",4362]
["Bucarst Berlin","Sngpore Bangkok",2904]
["Basel","Munster",3810]
["Kangerlussuaq","Orebro",1850]
["London/Stansted","Ljubljana",1334]
["Geneva","Bergen Sandefj",3603]
["Karlstd Orebro","Bergen",4379]
["Troheim Sandefj","Tokyo/Narita",4089]
["Las Palmas","Troheim Sandefj",3199]
["Milan/Malpensa","Reykjavik",3022]
["Reykjavik","Stockholm",4370]
["Bergen","Gothenburg",3289]
["Madrid","Rio Heathrw",2683]
["St Petersburg","Bremen",3236]
["Bremen","Nice",1249]
["Sngpore Bangkok","Turku",4610]
["Munich","Poznan",2645]
["Munich","Riga",2233]
["Reykjavik","Milan/Malpensa",1692]
["Malta","Ljubljana",4283]
["Bucarst Berlin","Nice",2536]
["London/Stansted","Bremen",2586]
["Dusseldorf","Kangerlussuaq",2756]
["Munster","Zurich",1690]
["Tunis","Norrkoeping",3922]
["Sandefjord","Prague",3752]
["Milan/Malpensa","Hamburg",3314]
["Tunis","Gdansk",4145]
["Basel","Oslo",1401]
["Stavanger","Poznan",2048]
["Gothenburg","Athens",2153]
["Luxembourg","Karachi Lahore",4542]
["Lisbon","London/Heathrow",4977]
["Berlin/Tegel","Hamburg",1672]
["Lisbon","Stavanger",1573]
["Budapest","Milan/Malpensa",4102]
["Vienna","Sandefjord",1151]
["Rome/Ciampino","Birmingham",3348]
["Paris De Gaulle","Norrkoeping",4991]
["Glasgow","Istanbul",4933]
["Bergen Sandefj","Bremen",3022]
["Tallinn","Vaxjoe Kalmar",3753]
["Skopje Bornhlm","Milan/Linate",3517]
["Istanbul","Bremen",2742]
["Narsarsuaq","Malaga Madrid",2212]
["Zurich","Rome",2229]
["Bergen","Brussels ",1436]
["Glasgow","Bergen Sandefj",4349]
["Dusseldorf","Glasgow",4736]
["Norrkoeping","Athens",1835]
["Tenerife","Helsingborg City ",3863]
["Madrid","Brussels ",4055]
["Kalmar Vaxjoe","Washington",3743]
["Moscow","Vaxjoe Kalmar",3227]
["Wroclaw","Munster",3603]
["Seattle","Wroclaw",1491]
["Bucarst Berlin","Vesteraas",4350]
["Dublin","Kangerlussuaq",{"$f":"CEILING(4000*RAND(),1)+1000","v":2778}]
["Dublin","Stockholm",2156]
["Madrid","Kangerlussuaq",2835]
["Malaga Madrid","Istanbul",3461]
["Tenerife","London/Gatwick",1893]
["Moscow","Athens",3759]
["Lisbon","Prague",3374]
["Malaga/Cost.Sol","Manchester",2421]
["Karlstad","Geneva",4933]
["Trondheim","Bucarst Berlin",2778]
["Birmingham","Budapest",2407]
["Rome/Ciampino","Gdansk",2953]
["Athens","Trondheim",4429]
["Karachi Lahore","Ljubljana",4542]
["London/Stansted","Tunis",3821]
["Malta","Warsaw",4861]
["Sharm Luxor","Rio Heathrw",1630]
["Milan/Malpensa","Beijing",3602]
["Moscow","Beijing",2025]
["Sngpore Bangkok","Zurich",3662]
["Vaxjoe Kalmar","Warsaw",4301]
["Milan/Linate","Seattle",1280]
["Troheim Sandefj","Madrid",3169]
["Narsarsuaq","Karachi Lahore",2412]
["Munich","Barcelona",1986]
["Kalmar Vaxjoe","Beijing",1160]
["Reykjavik","St Petersburg",4552]
["Rome/Ciampino","Stavanger",3224]
["Hanover","Narsarsuaq",1641]
["Geneva","Tokyo/Narita",1976]
["Linkoeping","Vesteraas",2473]
["Basel","Berlin/Tegel",1624]
["Tallinn","Kalmar Vaxjoe",4241]
["Bremen","Prague",2166]
["Barcelona","Frankfurt",2496]
["Dusseldorf","Munster",4705]
["Tunis","Seattle",2048]
["Linkoeping","Bangkok",1890]
["Linkoeping","Vilnius",2504]
["St Petersburg","Riga",4381]
["Singapore","Poznan",1032]
["Lisbon","Stockholm",4982]
["Munich","London/Stansted",4380]
["Riga","Vesteraas",4340]
["Tampere","Turku",4248]
["Beijing","Basel",3071]
["Munich","Prague",3915]
["Washington","Venice",1153]
["Szczecin","Frankfurt",1799]
["Venice","Orebro Karlstd",3403]
["Karlstd Orebro","Berlin/Tegel",3543]
["Chicago","Hamburg",4433]
["Vesteraas","Lisbon",1029]
["Rio Heathrw","Helsinki",3359]
["Budapest","Las Palmas",3733]
["Karachi Lahore","Trondheim",2704]
["Basel","Sharm",2545]
["Lisbon","Paderbo Munster ",2542]
["Kangerlussuaq","Gothenburg",2934]
["Linkoeping","Milan/Linate",3040]
["Budapest","Bremen",3309]
["Glasgow Edinbg","Hurghada",1019]
["Oslo","Tunis",4401]
["Kangerlussuaq","Frankfurt",1991]
["London/Stansted","Hanover",{"$f":"CEILING(4000*RAND(),1)+1000","v":1230}]
["Seattle","Istanbul",4696]
["Oslo","Bergen",2401]
["Karlstd Orebro","Rio Heathrw",2178]
["Munich","Glasgow Edinbg",2834]
["Gdansk","Malaga/Cost.Sol",3013]
["Narsarsuaq","Orebro Karlstd",3438]
["Tallinn","Norrkoeping",2968]
["Rio Heathrw","Sandefjord",1129]
["Frankfurt","London/Stansted",4882]
["Bergen","Malaga/Cost.Sol",1864]
["Tokyo/Narita","Szczecin",3568]
["Poznan","Sandefjord",1007]
["Luxembourg","Milan/Malpensa",1949]
["Linkoeping","Wroclaw",4587]
["Frankfurt","Madrid",4252]
["Milan/Malpensa","Joenkoeping",4865]
["Zurich","Nice",2174]
["Reykjavik","Birmingham",1781]
["Karachi Lahore","Milan/Malpensa",1092]
["Munich","Reykjavik",1072]
["Moscow","Newark",1665]
["Stuttgart","Prague",4275]
["Turku","Trondheim",4011]
["Athens","Budapest",4839]
["Narsarsuaq","Basel",3609]
["London/Heathrow","Bangkok",2927]
["Tenerife","Madrid",2602]
["Glasgow Edinbg","Vilnius",3704]
["Sandefjord","Athens",3256]
["Orebro Karlstd","Kristiansand",3044]
["Ljubljana","Milan/Malpensa",4863]
["Athens","Amsterdam ",3464]
["Newark","Nice",1690]
["Rio Heathrw","Stockholm",3925]
["Poznan","Narsarsuaq",1139]
["Skopje Bornhlm","Berlin/Tegel",1385]
["Birmingham","Glasgow",4083]
["Birmingham","Reykjavik",2540]
["Kalmar Vaxjoe","Tunis",3611]
["Brussels ","Vesteraas",1723]
["Linkoeping","Singapore",1969]
["St Petersburg","Sandefjord",3660]
["Singapore","Venice",4367]
["Madrid","Rome/Ciampino",3017]
["Chicago","Munster",1606]
["Basel","Kangerlussuaq",1094]
["Sandefjord","Ljubljana",1053]
["Rio Heathrw","Paderbo Munster ",2326]
["Dublin","Glasgow",2998]
["Reykjavik","Linkoeping",4083]
["Wroclaw","Faroe Islands",4186]
["Riga","Frankfurt",1903]
["Gothenburg","Sharm Luxor",4703]
["Norrkoeping","Las Palmas",3243]
["Vesteraas","Vaxjoe Kalmar",1218]
["Vesteraas","Nice",1038]
["Karlstad","Sharm",3199]
["London/Heathrow","Munster",1559]
["Szczecin","Sngpore Bangkok",2436]
["Sharm","Birmingham",4590]
["Glasgow Edinbg","Manchester",3143]
["Tallinn","Kristiansand",1871]
["Warsaw","Lisbon",4164]
["Helsinki","Malta",{"$f":"CEILING(4000*RAND(),1)+1000","v":1548}]
["Zurich","Glasgow",3795]
["Warsaw","Hurghada",2367]
["Madrid","Joenkoeping",3413]
["Kristiansand","Glasgow Edinbg",3606]
["Budapest","Karlstd Orebro",1109]
["Hamburg","Helsingborg City ",4109]
["Stavanger","Basel",4898]
["Luxembourg","Linkoeping",2437]
["Karlstad","Faroe Islands",2045]
["Nice","London/Gatwick",4990]
["Budapest","Sharm",3367]
["Seattle","Dublin",4109]
["Poznan","Orebro Karlstd",3966]
["Tenerife","Bergen Sandefj",3157]
["London/Heathrow","Skopje Bornhlm",1710]
["Chicago","Linkoeping",1439]
["Nice","Zurich",3967]
["Warsaw","Kalmar Vaxjoe",4718]
["Turku","Malaga/Cost.Sol",2966]
["Glasgow","Hamburg",2686]
["Vaxjoe Kalmar","Kristiansand",1082]
["Malta","Rio Heathrw",3899]
["Turku","Linkoeping",1330]
["Geneva","Skopje Bornhlm",2734]
["Istanbul","Zurich",4462]
["Bangkok","Riga",3638]
["Munster","Warsaw",1820]
["Lisbon","Bergen Sandefj",3922]
["Sharm","Rome/Ciampino",3902]
["Seattle","Bergen",2509]
["Malaga/Cost.Sol","Athens",4129]
["Kangerlussuaq","Zurich",3087]
["Las Palmas","Bergen",3689]
["Malaga Madrid","Gdansk",3728]
["Hamburg","Berlin/Tegel",2877]
["Wroclaw","Tunis",1897]
["Vaxjoe Kalmar","Paderbo Munster ",2986]
["Lisbon","Basel",4898]
["Vilnius","Beijing",2364]
["Karachi Lahore","London/Stansted",1156]
["Dusseldorf","Moscow",1311]
["Prague","Seattle",2145]
["Dublin","Bremen",4184]
["Kangerlussuaq","Hamburg",4078]
["Washington","Stavanger",1058]
["Malaga/Cost.Sol","Vilnius",3132]
["Gothenburg","Prague",3281]
["Sngpore Bangkok","Prague",2629]
["Vaxjoe Kalmar","St Petersburg",1116]
["Lyon Strasb","Tenerife",3107]
["Istanbul","Washington",1057]
["Lyon Strasb","Munster",1172]
["Manchester","Helsingborg City ",3163]
["Bergen Sandefj","Berlin/Tegel",1596]
["St Petersburg","Kangerlussuaq",1275]
["Las Palmas","Karachi Lahore",1186]
["Narsarsuaq","Geneva",3334]
["Turku","Vilnius",2216]
["Tunis","Dublin",1886]
["Newark","Washington",4728]
["Sandefjord","Kristiansand",1121]
["Glasgow Edinbg","Glasgow",3413]
["Vesteraas","Ljubljana",2987]
["Sharm Luxor","Sngpore Bangkok",{"$f":"CEILING(4000*RAND(),1)+1000","v":1777}]
["Istanbul","Tallinn",4569]
["Vesteraas","Orebro",1882]
["Munster","Geneva",4731]
["Wroclaw","Athens",4771]
["Bergen","St Petersburg",1663]
["Helsinki","London/Gatwick",2827]
["Malta","Glasgow",4483]
["Stavanger","Ljubljana",4576]
["Berlin/Tegel","Troheim Sandefj",4483]
["St Petersburg","Munster",4225]
["Warsaw","Tampere",1621]
["Birmingham","Malta",4793]
["Istanbul","Tenerife",1326]
["Lisbon","Ljubljana",2853]
["Lyon Strasb","Basel",2441]
["Bremen","Tallinn",2526]
["Oslo","Rio Heathrw",1581]
["Vaxjoe Kalmar","Reykjavik",2163]
["Budapest","Tunis",4170]
["Munster","Paderbo Munster ",2576]
["Vesteraas","Chicago",1562]
["Wroclaw","Malaga/Cost.Sol",3878]
["Stockholm","Poznan",4795]
["Gothenburg","Vaxjoe Kalmar",4508]
["London/Heathrow","Sandefjord",4532]
["Moscow","Ljubljana",4585]
["Karlstd Orebro","Lyon Strasb",1498]
["Narsarsuaq","Berlin/Tegel",4194]
["Newark","Gdansk",3393]
["Munich","Bremen",2033]
["Bucarst Berlin","Trondheim",4079]
["Nice","Skopje Bornhlm",1455]
["Kalmar Vaxjoe","Nice",3236]
["Stavanger","Hurghada",3517]
["Warsaw","Tunis",3541]
["Vaxjoe Kalmar","Lyon Strasb",3452]
["Sandefjord","Reykjavik",1086]
["Bremen","Joenkoeping",2874]
["Dusseldorf","Vesteraas",3683]
["Luxembourg","Kalmar Vaxjoe",2594]
["Turku","Glasgow",2334]
["Barcelona","Poznan",2033]
["Newark","Reykjavik",3282]
["Wroclaw","Kristiansand",1897]
["Vilnius","Lisbon",2931]
["Vienna","Hamburg",3335]
["Faroe Islands","Glasgow",4413]
["Joenkoeping","Gdansk",4630]
["Bangkok","Gdansk",1078]
["Skopje Bornhlm","Geneva",2957]
["Seattle","Nice",3352]
["Rome/Ciampino","Bergen",2891]
["Singapore","Basel",1042]
["Washington","Linkoeping",3588]
["Rome/Ciampino","Newark",1862]
["Birmingham","Vilnius",2088]
["Stuttgart","Dusseldorf",3093]
["Frankfurt","London/Gatwick",2981]
["Lisbon","Milan/Linate",3477]
["Budapest","Munster",3665]
["Budapest","Sharm Luxor",1732]
["Dusseldorf","Amsterdam ",2130]
["Beijing","Glasgow Edinbg",2547]
["Kalmar Vaxjoe","Stavanger",{"$f":"CEILING(4000*RAND(),1)+1000","v":4141}]
["Tunis","Karlstad",3093]
["Helsinki","Ljubljana",2616]
["Seattle","Helsinki",4641]
["Hamburg","Hurghada",4075]
["Vilnius","Narsarsuaq",2508]
["Stavanger","Helsinki",1015]
["Geneva","Manchester",2404]
["St Petersburg","Faroe Islands",4814]
["Milan/Malpensa","Singapore",1649]
["Gothenburg","Hamburg",4147]
["Poznan","Zurich",2341]
["Amsterdam ","Basel",4333]
["Prague","Ljubljana",4291]
["Wroclaw","Stavanger",4238]
["Frankfurt","Stuttgart",2237]
["Vesteraas","Vienna",4263]
["Skopje Bornhlm","Tokyo/Narita",3147]
["Helsinki","Skopje Bornhlm",2841]
["Kalmar Vaxjoe","Bangkok",2528]
["Chicago","Geneva",4858]
["Tampere","Malaga/Cost.Sol",1336]
["Paris De Gaulle","Helsingborg City ",1027]
["Helsingborg City ","Moscow",1693]
["Zurich","Turku",1098]
["Orebro","Athens",3137]
["Helsingborg City ","Skopje Bornhlm",2070]
["Riga","Gdansk",1826]
["Kalmar Vaxjoe","Tampere",1737]
["Orebro Karlstd","Malaga/Cost.Sol",4359]
["Luxembourg","Turku",4442]
["Trondheim","Basel",3949]
["London/Heathrow","Glasgow Edinbg",1520]
["Amsterdam ","Bergen",1446]
["Tokyo/Narita","Bangkok",2528]
["Rome","Bremen",4705]
["Stockholm","London/Heathrow",4854]
["Bangkok","Basel",2479]
["Rome/Ciampino","Lisbon",4895]
["Tenerife","Stuttgart",2914]
["Prague","Luxembourg",3801]
["Washington","Lyon Strasb",3799]
["Nice","Moscow",4411]
["Skopje Bornhlm","Milan/Malpensa",4791]
["Orebro","Chicago",2601]
["Reykjavik","Kalmar Vaxjoe",2358]
["Skopje Bornhlm","Chicago",1730]
["Birmingham","Munich",1810]
["Luxembourg","Lisbon",1924]
["Orebro Karlstd","Hamburg",3413]
["Vilnius","Rome",2486]
["Chicago","Basel",1948]
["Las Palmas","Berlin/Tegel",4623]
["Barcelona","Nice",3921]
["Las Palmas","Malaga Madrid",3078]
["Frankfurt","Malaga Madrid",2495]
["Poznan","Szczecin",1826]
["Sngpore Bangkok","Malta",2987]
["Kristiansand","Zurich",1834]
["Barcelona","Dusseldorf",3303]
["Amsterdam ","Tenerife",2698]
["Reykjavik","Barcelona",1306]
["Zurich","Malaga Madrid",3080]
["Tokyo/Narita","Stuttgart",4201]
["Bergen","Las Palmas",{"$f":"CEILING(4000*RAND(),1)+1000","v":4160}]
["Trondheim","London/Heathrow",4160]
["London/Stansted","Orebro Karlstd",4289]
["Reykjavik","Tallinn",2818]
["Hurghada","Linkoeping",2617]
["Basel","Sandefjord",3804]
["Vienna","Wroclaw",3176]
["Karachi Lahore","Helsingborg City ",1364]
["Stavanger","Skopje Bornhlm",1367]
["Tokyo/Narita","Malaga/Cost.Sol",2459]
["Paderbo Munster ","Zurich",3745]
["Glasgow Edinbg","Oslo",3344]
["Rio Heathrw","Moscow",4968]
["London/Stansted","Vesteraas",4780]
["Paris De Gaulle","Frankfurt",4732]
["Karlstd Orebro","Amsterdam ",3320]
["Hurghada","Poznan",1577]
["Glasgow","Bremen",3460]
["Riga","Chicago",1301]
["Birmingham","Frankfurt",3240]
["Amsterdam ","Munster",1154]
["Riga","Hanover",2883]
["Vilnius","Sharm",2617]
["Washington","Paris De Gaulle",4285]
["Sandefjord","Stavanger",3208]
["Wroclaw","Rio Heathrw",3533]
["Prague","Dublin",1177]
["Karlstd Orebro","Orebro Karlstd",1759]
["Kristiansand","Malaga/Cost.Sol",1131]
["London/Heathrow","Rome",1837]
["Kalmar Vaxjoe","Prague",2982]
["Poznan","Brussels ",3430]
["Joenkoeping","Chicago",4958]
["Madrid","Venice",1776]
["Amsterdam ","London/Stansted",3662]
["Glasgow Edinbg","Hanover",3878]
["Berlin/Tegel","Barcelona",1216]
["Bergen","Tokyo/Narita",3494]
["Riga","Karlstd Orebro",2395]
["Bremen","Karlstad",1907]
["Rome/Ciampino","Malaga/Cost.Sol",2827]
["Szczecin","Munster",4618]
["Singapore","Las Palmas",1957]
["Seattle","Brussels ",2272]
["Troheim Sandefj","Joenkoeping",3076]
["Norrkoeping","Kristiansand",4396]
["Troheim Sandefj","Athens",3036]
["Bergen Sandefj","Gdansk",2051]
["Lyon Strasb","Karlstd Orebro",3083]
["Poznan","Las Palmas",1042]
["Kangerlussuaq","Seattle",4082]
["Dusseldorf","Tallinn",1562]
["Bergen","Paris De Gaulle",1212]
["Narsarsuaq","Sharm Luxor",1249]
["Paderbo Munster ","Hanover",3870]
["London/Heathrow","Tallinn",2289]
["Kalmar Vaxjoe","Malta",3758]
["Orebro","Sharm Luxor",4255]
["Faroe Islands","Budapest",4630]
["Sngpore Bangkok","Venice",4308]
["Kristiansand","Madrid",2619]
["Stockholm","Glasgow Edinbg",3929]
["Vienna","Helsingborg City ",4500]
["Vienna","Malaga/Cost.Sol",1397]
["Hurghada","Milan/Malpensa",{"$f":"CEILING(4000*RAND(),1)+1000","v":1411}]
["Reykjavik","Nice",1343]
["Kangerlussuaq","St Petersburg",3866]
["Sngpore Bangkok","Stavanger",2941]
["Barcelona","Bucarst Berlin",4001]
["Karachi Lahore","Prague",2148]
["Paris De Gaulle","Zurich",3250]
["Malaga/Cost.Sol","Budapest",1802]
["Karlstad","Oslo",1034]
["Tallinn","Karlstd Orebro",1337]
["Singapore","Skopje Bornhlm",3954]
["Turku","Poznan",2797]
["Las Palmas","Linkoeping",2430]
["Gothenburg","Glasgow Edinbg",2910]
["Sharm Luxor","Dusseldorf",1565]
["Hamburg","St Petersburg",1944]
["Geneva","Hamburg",3258]
["Chicago","Milan/Malpensa",3782]
["Hanover","Rome",4981]
["Malaga/Cost.Sol","Stuttgart",4303]
["Tenerife","Sandefjord",3781]
["Bergen","Helsingborg City ",3237]
["Riga","Las Palmas",3119]
["Brussels ","Stockholm",2538]
["Norrkoeping","Istanbul",4952]
["Luxembourg","Skopje Bornhlm",3928]
["Reykjavik","Chicago",1345]
["Malta","Skopje Bornhlm",2302]
["Chicago","Prague",4543]
["Luxembourg","Gdansk",4765]
["Hanover","Bangkok",1702]
["Frankfurt","Vienna",3157]
["Prague","Kristiansand",4642]
["Orebro","London/Gatwick",4063]
["Amsterdam ","Stuttgart",1453]
["Newark","Faroe Islands",2682]
["Dusseldorf","Singapore",3553]
["Rio Heathrw","Bremen",2529]
["London/Stansted","St Petersburg",3505]
["Lisbon","Luxembourg",2536]
["Moscow","Geneva",4035]
["Hurghada","Las Palmas",4218]
["Prague","Milan/Linate",2990]
["Sngpore Bangkok","Bergen",2762]
["Kangerlussuaq","Trondheim",2523]
["Budapest","Malaga/Cost.Sol",1351]
["Hurghada","Malta",3755]
["Wroclaw","Bergen Sandefj",3853]
["Rio Heathrw","Birmingham",3931]
["Moscow","Szczecin",1653]
["Basel","London/Heathrow",2447]
["Dusseldorf","Vaxjoe Kalmar",1745]
["Berlin/Tegel","Bangkok",3965]
["Munich","London/Heathrow",3626]
["Sharm Luxor","Hanover",4269]
["Geneva","Sngpore Bangkok",1561]
["Norrkoeping","Poznan",4195]
["Narsarsuaq","Rome",2330]
["Hamburg","Ljubljana",4071]
["Vesteraas","Madrid",1111]
["Hanover","Berlin/Tegel",1606]
["Newark","Rome",2072]
["Prague","Frankfurt",2779]
["Bergen","Singapore",2997]
["Sandefjord","Linkoeping",{"$f":"CEILING(4000*RAND(),1)+1000","v":2775}]
["Malaga/Cost.Sol","Turku",1336]
["Berlin/Tegel","Vesteraas",4959]
["Basel","Stuttgart",4897]
["Linkoeping","Vienna",2364]
["Karlstad","Seattle",4919]
["Washington","Hamburg",3966]
["Tampere","Budapest",3082]
["Dusseldorf","Warsaw",4914]
["Warsaw","Tokyo/Narita",4749]
["Warsaw","Budapest",3757]
["Washington","Kristiansand",2721]
["Amsterdam ","Kangerlussuaq",3890]
["Karachi Lahore","Seattle",2649]
["London/Stansted","Dublin",1798]
["Sandefjord","Zurich",2312]
["Warsaw","Helsingborg City ",1836]
["Turku","Newark",1172]
["Frankfurt","Paris De Gaulle",3214]
["Ljubljana","Sngpore Bangkok",4661]
["Narsarsuaq","Tallinn",4043]
["Rio Heathrw","Budapest",2972]
["Brussels ","Madrid",1361]
["Geneva","Hurghada",4361]
["Sharm","Trondheim",4102]
["Orebro","Karlstad",3154]
["Tenerife","Linkoeping",4511]
["Milan/Malpensa","Basel",2946]
["Hamburg","Glasgow Edinbg",1559]
["Norrkoeping","Paderbo Munster ",1418]
["Munich","Budapest",4162]
["Bergen Sandefj","Vesteraas",3431]
["Sharm Luxor","Tunis",2236]
["Malta","Seattle",3555]
["Stuttgart","Geneva",1177]
["Zurich","Karlstad",3103]
["Manchester","Turku",4685]
["Paris De Gaulle","Newark",1833]
["Joenkoeping","Prague",3355]
["Glasgow Edinbg","Bucarst Berlin",3078]
["Turku","Munich",4750]
["Glasgow Edinbg","Kangerlussuaq",1230]
["Washington","Vienna",3265]
["Lyon Strasb","Glasgow",4748]
["Glasgow Edinbg","Riga",1883]
["Munster","Helsingborg City ",3615]
["Milan/Linate","Gothenburg",4321]
["Brussels ","Hurghada",2998]
["Helsinki","Istanbul",1538]
["Szczecin","Vilnius",2930]
["Madrid","Szczecin",1245]
["Amsterdam ","Tallinn",2129]
["Washington","Berlin/Tegel",2776]
["Madrid","Basel",3757]
["Paderbo Munster ","Sandefjord",2010]
["Barcelona","London/Heathrow",4031]
["Karlstad","Sharm Luxor",1579]
["St Petersburg","Tunis",1296]
["St Petersburg","Sharm Luxor",2964]
["Malaga/Cost.Sol","Tampere",3593]
["Skopje Bornhlm","Vienna",1180]
["Stuttgart","Riga",3535]
["Rome/Ciampino","Tampere",3495]
["Bucarst Berlin","Vienna",2606]
["Dusseldorf","London/Heathrow",{"$f":"CEILING(4000*RAND(),1)+1000","v":2636}]
["Szczecin","Amsterdam ",1801]
["Bremen","Basel",4970]
["Linkoeping","Malaga/Cost.Sol",1123]
["Zurich","Orebro",3031]
["Bremen","Paderbo Munster ",3542]
["Norrkoeping","Hamburg",4968]
["Milan/Linate","Warsaw",3906]
["Amsterdam ","Poznan",3655]
["Warsaw","Bucarst Berlin",4784]
["Malta","Tokyo/Narita",1265]
["Bangkok","Rome",4458]
["Bergen","Vilnius",3709]
["Kristiansand","Vesteraas",2202]
["Malta","Sngpore Bangkok",1976]
["London/Heathrow","Vilnius",2486]
["Las Palmas","Helsinki",2138]
["Rio Heathrw","Rome/Ciampino",1209]
["Tallinn","Sngpore Bangkok",3618]
["Manchester","Dublin",4814]
["Riga","Bergen Sandefj",3464]
["Newark","Turku",1571]
["Gothenburg","Venice",2891]
["Istanbul","Stavanger",4574]
["Bucarst Berlin","Faroe Islands",3849]
["Washington","Tenerife",2731]
["Vesteraas","Venice",2916]
["Tunis","Venice",2104]
["Tallinn","Bremen",1461]
["Dublin","Oslo",1006]
["Bergen Sandefj","Washington",3883]
["Joenkoeping","Athens",4995]
["Vaxjoe Kalmar","Oslo",3627]
["Lisbon","Szczecin",4850]
["Szczecin","Malta",3379]
["St Petersburg","Hamburg",2597]
["Tampere","Milan/Linate",3713]
["Sngpore Bangkok","London/Heathrow",2823]
["Gothenburg","Kristiansand",1688]
["Munster","Kalmar Vaxjoe",2494]
["Malaga/Cost.Sol","Tokyo/Narita",2307]
["Malaga Madrid","Venice",2123]
["Riga","Singapore",2984]
["Narsarsuaq","London/Heathrow",1865]
["Karlstad","Rio Heathrw",2331]
["Kangerlussuaq","Brussels ",3055]
["London/Stansted","Glasgow",4062]
["Birmingham","Glasgow Edinbg",1218]
["Seattle","Stockholm",1272]
["Tenerife","Seattle",3310]
["Istanbul","Oslo",2906]
["Helsingborg City ","Hamburg",3603]
["Bergen","Bucarst Berlin",1191]
["Moscow","Skopje Bornhlm",1093]
["Oslo","Berlin/Tegel",1099]
["Bucarst Berlin","Kangerlussuaq",2036]
["Manchester","Paris De Gaulle",3222]
["Luxembourg","Glasgow",4054]
["Helsingborg City ","Poznan",1375]
["Vaxjoe Kalmar","Paris De Gaulle",1336]
["Sandefjord","Malta",4998]
["Dublin","Trondheim",2319]
["Luxembourg","Geneva",4688]
["Narsarsuaq","Zurich",2451]
["Stavanger","Venice",{"$f":"CEILING(4000*RAND(),1)+1000","v":1245}]
["Glasgow Edinbg","Tenerife",3281]
["Dublin","Karlstd Orebro",1636]
["Sharm","Kangerlussuaq",1719]
["Bergen Sandefj","Sngpore Bangkok",1700]
["Beijing","Orebro Karlstd",1078]
["Vienna","Dublin",3814]
["Rio Heathrw","Prague",4901]
["Istanbul","Lisbon",4639]
["Troheim Sandefj","Barcelona",4799]
["Tampere","Venice",1554]
["Troheim Sandefj","Nice",1109]
["Birmingham","Bergen Sandefj",3491]
["Kalmar Vaxjoe","Munich",3699]
["London/Gatwick","Reykjavik",1212]
["Hanover","Milan/Malpensa",2833]
["Rome/Ciampino","Troheim Sandefj",4735]
["Geneva","Washington",3794]
["Vesteraas","Stockholm",2960]
["Orebro Karlstd","Troheim Sandefj",4378]
["Paderbo Munster ","London/Stansted",2586]
["Turku","Glasgow Edinbg",3447]
["Nice","Chicago",4062]
["Malaga/Cost.Sol","Bremen",3648]
["Glasgow Edinbg","Norrkoeping",3265]
["Birmingham","Bucarst Berlin",2690]
["Vesteraas","Tokyo/Narita",4815]
["London/Gatwick","Prague",1450]
["Chicago","Warsaw",2099]
["Stockholm","Zurich",1718]
["Szczecin","Dusseldorf",2292]
["Stavanger","Stockholm",3287]
["Barcelona","Munich",1699]
["Barcelona","Moscow",2203]
["Hamburg","London/Heathrow",3984]
["Helsinki","Kangerlussuaq",3668]
["Kristiansand","Wroclaw",1253]
["Warsaw","Venice",1120]
["London/Stansted","Vilnius",4624]
["St Petersburg","London/Heathrow",4348]
["London/Heathrow","Newark",2801]
["Zurich","Brussels ",2654]
["Munich","Singapore",3453]
["Rome","Oslo",2316]
["Nice","Berlin/Tegel",4757]
["Kristiansand","Kalmar Vaxjoe",1744]
["Lisbon","Riga",3393]
["Barcelona","Vaxjoe Kalmar",3519]
["Frankfurt","Moscow",2787]
["Bergen","Athens",3849]
["Norrkoeping","Tallinn",2762]
["Vesteraas","Gothenburg",1991]
["Budapest","Luxembourg",2594]
["Helsinki","Kristiansand",1640]
["Dusseldorf","Malaga Madrid",4093]
["Tokyo/Narita","Bergen",1289]
["Milan/Linate","Newark",4118]
["Vaxjoe Kalmar","Munich",1599]
["Joenkoeping","Glasgow",1571]
["Tunis","Narsarsuaq",4793]
["Manchester","Orebro Karlstd",1139]
["Nice","Glasgow",2936]
["Stavanger","Birmingham",4309]
["Tampere","Madrid",2874]
["Trondheim","Venice",{"$f":"CEILING(4000*RAND(),1)+1000","v":4693}]
["Munster","Gothenburg",2089]
["Berlin/Tegel","Stavanger",4794]
["Birmingham","Lisbon",4671]
["Ljubljana","Seattle",4956]
["Szczecin","Norrkoeping",4848]
["Berlin/Tegel","Paris De Gaulle",2321]
["Joenkoeping","Dublin",2015]
["Sngpore Bangkok","Tenerife",1406]
["Sharm","Stockholm",1681]
["Seattle","Sharm Luxor",1183]
["Madrid","Turku",1635]
["Amsterdam ","Reykjavik",4788]
["Szczecin","Basel",4487]
["Munster","Milan/Linate",1519]
["Orebro","Glasgow Edinbg",3871]
["Tokyo/Narita","Linkoeping",1330]
["Skopje Bornhlm","Tallinn",3520]
["Milan/Malpensa","Tunis",1161]
["Glasgow","Seattle",4515]
["Karlstd Orebro","Poznan",3596]
["Kristiansand","Turku",3567]
["Brussels ","Wroclaw",1812]
["Stuttgart","Paderbo Munster ",1553]
["Beijing","Bergen Sandefj",4082]
["Orebro Karlstd","Luxembourg",2473]
["Faroe Islands","London/Gatwick",2477]
["Warsaw","Madrid",2993]
["Vaxjoe Kalmar","Wroclaw",1439]
["Karlstad","Frankfurt",3443]
["Stavanger","Warsaw",1561]
["Istanbul","London/Heathrow",1998]
["Singapore","Budapest",2915]
["London/Heathrow","Gothenburg",2367]
["Rome","Ljubljana",3442]
["London/Heathrow","Poznan",2154]
["Lyon Strasb","Berlin/Tegel",4305]
["Orebro","Bucarst Berlin",1918]
["Sharm Luxor","Malta",3508]
["Istanbul","Kristiansand",3664]
["Gdansk","Tokyo/Narita",4215]
["Ljubljana","Vesteraas",1341]
["Kangerlussuaq","Sandefjord",3406]
["Dublin","Chicago",3754]
["Sharm","Tallinn",4362]
["Frankfurt","Wroclaw",2426]
["Milan/Malpensa","Sngpore Bangkok",4429]
["Sharm Luxor","Manchester",3224]
["Malaga/Cost.Sol","Istanbul",4692]
["Barcelona","Vesteraas",1434]
["Poznan","Ljubljana",4083]
["Venice","Tenerife",4888]
["Milan/Malpensa","Seattle",3599]
["Sandefjord","Paris De Gaulle",2801]
["Barcelona","Trondheim",1892]
["Nice","Singapore",3089]
["Bremen","Tampere",4057]
["Stuttgart","Brussels ",4843]
["Joenkoeping","Washington",2210]
["Szczecin","London/Stansted",1476]
["Hanover","Paris De Gaulle",4083]
["Berlin/Tegel","Glasgow Edinbg",1745]
["Budapest","Madrid",4688]
["Kristiansand","Bremen",1638]
["Ljubljana","Helsingborg City ",{"$f":"CEILING(4000*RAND(),1)+1000","v":2046}]
["Milan/Malpensa","Las Palmas",1143]
["Bergen Sandefj","Singapore",2208]
["Karlstd Orebro","Geneva",2015]
["Prague","Budapest",4735]
["Ljubljana","Rio Heathrw",3003]
["Tampere","Paderbo Munster ",4565]
["Dublin","Stavanger",3927]
["Joenkoeping","Rome",2520]
["Glasgow","Helsingborg City ",4870]
["Szczecin","Seattle",2604]
["Bangkok","Oslo",3649]
["Turku","Dusseldorf",4584]
["Athens","Zurich",3171]
["Frankfurt","Budapest",4941]
["Tallinn","Bergen",3745]
["Venice","Paderbo Munster ",3476]
["Poznan","Sngpore Bangkok",4665]
["Karachi Lahore","Paderbo Munster ",2290]
["Linkoeping","Helsingborg City ",2101]
["Madrid","Manchester",4666]
["Berlin/Tegel","Tallinn",1339]
["Sharm","Paris De Gaulle",4595]
["Vilnius","Warsaw",1837]
["Bremen","Riga",3958]
["Chicago","Karlstd Orebro",3876]
["St Petersburg","Norrkoeping",3440]
["Zurich","Athens",1360]
["Birmingham","Stockholm",2751]
["Madrid","Glasgow Edinbg",2015]
["Kangerlussuaq","Istanbul",2331]
["Madrid","London/Stansted",3789]
["Troheim Sandefj","Skopje Bornhlm",3238]
["Stockholm","Warsaw",2922]
["Helsingborg City ","Madrid",4756]
["Basel","Tallinn",1290]
["Sandefjord","Istanbul",3072]
["Orebro Karlstd","Rome",1749]
["Linkoeping","Orebro Karlstd",1315]
["Orebro Karlstd","London/Stansted",1051]
["Basel","Las Palmas",2550]
["Bergen Sandefj","Geneva",1730]
["Sharm Luxor","Trondheim",1358]
["Lisbon","Sharm Luxor",2374]
["Milan/Malpensa","Paderbo Munster ",4628]
["Stuttgart","St Petersburg",4569]
["Manchester","Chicago",1351]
["Malta","Bucarst Berlin",4155]
["Skopje Bornhlm","Zurich",3879]
["Las Palmas","St Petersburg",2105]
["Reykjavik","Tokyo/Narita",2804]
["Tokyo/Narita","Tunis",3608]
["Basel","Stavanger",2362]
["Glasgow Edinbg","Las Palmas",3994]
["Munster","Rome",2611]
["Tokyo/Narita","Warsaw",3242]
["London/Gatwick","Ljubljana",2810]
["Paris De Gaulle","Trondheim",3815]
["Nice","Kangerlussuaq",1612]
["Seattle","Norrkoeping",4757]
["Kristiansand","Lisbon",3980]
["Vienna","Sharm Luxor",2408]
["Dusseldorf","Geneva",3667]
["Kristiansand","Helsingborg City ",2554]
["Skopje Bornhlm","Bucarst Berlin",{"$f":"CEILING(4000*RAND(),1)+1000","v":3667}]
["Munster","Beijing",2627]
["Malaga Madrid","Lisbon",2134]
["Istanbul","Frankfurt",3240]
["Warsaw","Glasgow",4022]
["Prague","Szczecin",3255]
["Malaga Madrid","Troheim Sandefj",2303]
["Washington","Stockholm",2125]
["Kristiansand","Washington",3236]
["Helsinki","Linkoeping",3652]
["Chicago","Las Palmas",4624]
["Chicago","St Petersburg",4086]
["Budapest","Paderbo Munster ",1558]
["Tenerife","Bergen",3766]
["Milan/Linate","Bremen",2179]
["Bergen Sandefj","Narsarsuaq",4363]
["Newark","Linkoeping",4700]
["Orebro Karlstd","Nice",3520]
["Vaxjoe Kalmar","London/Heathrow",3334]
["Tunis","Munich",1592]
["Las Palmas","Reykjavik",3259]
["Glasgow","Stavanger",3987]
["Kristiansand","Hurghada",1387]
["Vienna","Luxembourg",1492]
["Poznan","Tampere",1655]
["Poznan","Milan/Malpensa",4428]
["Trondheim","Gdansk",4568]
["Ljubljana","Lyon Strasb",3028]
["Linkoeping","Kalmar Vaxjoe",4903]
["Szczecin","Rio Heathrw",3071]
["Glasgow","Karlstd Orebro",4004]
["Vaxjoe Kalmar","Rome/Ciampino",4928]
["Geneva","Vienna",2048]
["Karlstd Orebro","Birmingham",1152]
["Sharm Luxor","Riga",3921]
["Rome","Hurghada",4732]
["St Petersburg","Birmingham",1905]
["Prague","Bucarst Berlin",1247]
["Norrkoeping","Riga",4958]
["Bergen Sandefj","Bremen",2119]
["Dusseldorf","Karlstad",1412]
["Las Palmas","Beijing",3974]
["Norrkoeping","Prague",4698]
["Malaga/Cost.Sol","St Petersburg",2685]
["Basel","Riga",3911]
["Stavanger","Las Palmas",2077]
["Seattle","Rio Heathrw",2763]
["Hamburg","Tenerife",3625]
["Venice","Bremen",3352]
["Sharm","London/Gatwick",2600]
["Skopje Bornhlm","Dublin",2168]
["Lisbon","Oslo",1159]
["Hurghada","Lyon Strasb",3553]
["Zurich","Tunis",1140]
["Glasgow Edinbg","Amsterdam ",1825]
["London/Gatwick","Gdansk",2953]
["Stavanger","Glasgow Edinbg",2949]
["Stockholm","Sharm Luxor",2105]
["Berlin/Tegel","Hurghada",2244]
["Singapore","Bangkok",1786]
["Faroe Islands","Orebro Karlstd",1150]
["Manchester","Bucarst Berlin",1556]
["Las Palmas","London/Heathrow",1435]
["Hanover","Dusseldorf",1566]
["Karlstd Orebro","Vienna",{"$f":"CEILING(4000*RAND(),1)+1000","v":2915}]
["Joenkoeping","Karlstad",3183]
["Rome","Joenkoeping",4534]
["Tampere","London/Gatwick",2722]
["Warsaw","Orebro Karlstd",4010]
["Karlstd Orebro","Munster",4839]
["Szczecin","Troheim Sandefj",2439]
["Szczecin","Reykjavik",3588]
["Vaxjoe Kalmar","Ljubljana",2565]
["Zurich","Orebro Karlstd",1250]
["Riga","Athens",4673]
["Gothenburg","Reykjavik",4845]
["Helsingborg City ","Bremen",1404]
["Reykjavik","Kangerlussuaq",3054]
["Moscow","Sharm",1511]
["Athens","Moscow",4503]
["Paderbo Munster ","Glasgow",3564]
["Sandefjord","Karachi Lahore",3909]
["Luxembourg","Rome/Ciampino",1647]
["Paris De Gaulle","Lyon Strasb",1970]
["Vienna","Vilnius",3313]
["Tallinn","Chicago",3036]
["Dusseldorf","Stuttgart",3724]
["Tallinn","Reykjavik",4301]
["Tampere","Lisbon",2421]
["Vienna","Washington",1857]
["Szczecin","Malaga/Cost.Sol",2918]
["St Petersburg","Istanbul",4177]
["Malaga/Cost.Sol","Milan/Linate",3341]
["Sngpore Bangkok","Tampere",3499]
["Frankfurt","Rome/Ciampino",1298]
["Kristiansand","Norrkoeping",3597]
["Zurich","Stavanger",3092]
["Poznan","Stavanger",3385]
["Linkoeping","Paderbo Munster ",2798]
["Faroe Islands","Stuttgart",3397]
["Singapore","Stockholm",4259]
["Stockholm","Dublin",1387]
["Moscow","Dusseldorf",3739]
["Rome/Ciampino","Nice",4577]
["Venice","Karachi Lahore",4011]
["Barcelona","Lisbon",2424]
["Kristiansand","St Petersburg",4325]
["Vesteraas","Malaga Madrid",1426]
["Poznan","Reykjavik",1916]
["Venice","Munich",2548]
["London/Gatwick","Luxembourg",4653]
["Glasgow Edinbg","Bergen",4511]
["Basel","Bergen",1526]
["Reykjavik","Malaga/Cost.Sol",1985]
["Berlin/Tegel","London/Stansted",2628]
["Bremen","Berlin/Tegel",3291]
["St Petersburg","Joenkoeping",4163]
["Bucarst Berlin","Moscow",4890]
["Glasgow Edinbg","Vesteraas",3706]
["Rome/Ciampino","Tallinn",3333]
["Basel","Karlstd Orebro",4840]
["Kalmar Vaxjoe","Rio Heathrw",3055]
["Chicago","Joenkoeping",4104]
["Rome","Madrid",3418]
["Skopje Bornhlm","Las Palmas",2890]
["London/Gatwick","Tampere",2472]
["Kangerlussuaq","Hanover",2412]
["Madrid","Birmingham",3846]
["Bucarst Berlin","Troheim Sandefj",{"$f":"CEILING(4000*RAND(),1)+1000","v":3748}]
["Washington","Tunis",1151]
["Seattle","Oslo",1814]
["Sharm Luxor","Tenerife",3617]
["Singapore","Sngpore Bangkok",3674]
["Rio Heathrw","Tampere",3976]
["Milan/Linate","Tunis",1681]
["St Petersburg","Madrid",4814]
["Bergen","Stuttgart",3912]
["Skopje Bornhlm","Turku",4951]
["Vienna","London/Heathrow",2878]
["Trondheim","Bangkok",2163]
["Hurghada","Tampere",3212]
["Beijing","Chicago",1898]
["Bremen","Sandefjord",1206]
["Stockholm","Frankfurt",3591]
["Madrid","Tampere",3220]
["Orebro","Ljubljana",2017]
["Lyon Strasb","Frankfurt",3019]
["Sandefjord","Riga",4051]
["Reykjavik","Stavanger",3985]
["Oslo","Bergen Sandefj",1931]
["Karlstd Orebro","Rome",3927]
["Narsarsuaq","London/Stansted",1718]
["Rome","Vienna",4468]
["Berlin/Tegel","Prague",1014]
["Zurich","Newark",4114]
["Warsaw","Oslo",3934]
["Helsingborg City ","Karlstd Orebro",3868]
["Seattle","Singapore",1136]
["Bremen","Helsingborg City ",3245]
["Malta","Orebro Karlstd",4180]
["Tallinn","St Petersburg",2177]
["Riga","Stuttgart",1227]
["Orebro Karlstd","Vaxjoe Kalmar",1721]
["Las Palmas","Istanbul",2624]
["Washington","Orebro",1110]
["Berlin/Tegel","Karachi Lahore",2445]
["Istanbul","Karachi Lahore",2325]
["Ljubljana","Munster",4831]
["Oslo","Geneva",2439]
["Rio Heathrw","Sharm Luxor",2914]
["Bremen","Lyon Strasb",4019]
["London/Stansted","Kristiansand",2872]
["Milan/Linate","Munich",2602]
["Kangerlussuaq","Beijing",4708]
["Szczecin","Karlstad",1551]
["Malaga/Cost.Sol","Oslo",2857]
["Las Palmas","Helsingborg City ",3242]
["Vilnius","Tunis",4818]
["Newark","Ljubljana",2986]
["Rome/Ciampino","Warsaw",1078]
["St Petersburg","Warsaw",4907]
["Munster","Vienna",2655]
["Tunis","Riga",4747]
["Malaga Madrid","Paris De Gaulle",1286]
["Narsarsuaq","London/Gatwick",4712]
["Malaga Madrid","Trondheim",4741]
["Budapest","Beijing",1381]
["London/Gatwick","Athens",3454]
["Dublin","Milan/Linate",2804]
["Glasgow Edinbg","Bergen Sandefj",4362]
["Karlstd Orebro","Milan/Malpensa",3645]
["Malaga/Cost.Sol","Frankfurt",2156]
["Washington","Birmingham",{"$f":"CEILING(4000*RAND(),1)+1000","v":4942}]
["Sharm","Skopje Bornhlm",2298]
["Malaga Madrid","Rio Heathrw",1264]
["Madrid","Sharm",3034]
["Vaxjoe Kalmar","Milan/Malpensa",4486]
["Helsinki","Wroclaw",4599]
["Vaxjoe Kalmar","Chicago",4899]
["Las Palmas","Faroe Islands",4228]
["Helsinki","Geneva",1040]
["Brussels ","Malaga Madrid",3629]
["Hurghada","Venice",2518]
["Sharm","Karachi Lahore",3222]
["Riga","Orebro Karlstd",3877]
["Singapore","Tunis",3408]
["Hurghada","Sngpore Bangkok",2337]
["Sandefjord","Frankfurt",2026]
["Geneva","Karlstd Orebro",3531]
["Milan/Malpensa","Munster",4506]
["Troheim Sandefj","London/Heathrow",3581]
["St Petersburg","Rio Heathrw",1638]
["Bremen","Seattle",4500]
["Hurghada","Bangkok",2737]
["Faroe Islands","Ljubljana",2993]
["Geneva","Stockholm",2431]
["Zurich","Lyon Strasb",4348]
["Trondheim","Dusseldorf",1007]
["Venice","Birmingham",2441]
["Malta","Bergen Sandefj",4219]
["Rio Heathrw","Oslo",1916]
["Orebro","Szczecin",1194]
["Bergen","Tallinn",4272]
["Prague","Norrkoeping",3256]
["Hamburg","Sharm",4031]
["Milan/Linate","Linkoeping",2145]
["Bremen","Ljubljana",4637]
["Newark","Paderbo Munster ",2436]
["Istanbul","Barcelona",4154]
["Milan/Linate","Bergen Sandefj",1667]
["Faroe Islands","Malaga Madrid",2968]
["Budapest","Glasgow",2950]
["Helsingborg City ","Rome/Ciampino",3438]
["Karachi Lahore","Stavanger",3781]
["Orebro","Madrid",3591]
["Beijing","Bucarst Berlin",4045]
["Orebro Karlstd","St Petersburg",3397]
["Athens","Ljubljana",1624]
["Amsterdam ","Birmingham",4402]
["Wroclaw","Helsingborg City ",4647]
["Linkoeping","Bergen Sandefj",3736]
["Bangkok","Gothenburg",4219]
["Trondheim","Reykjavik",2777]
["London/Heathrow","Milan/Malpensa",4411]
["Beijing","London/Gatwick",3829]
["Vilnius","Budapest",3981]
["Istanbul","Helsinki",4594]
["Ljubljana","Brussels ",4054]
["Oslo","Nice",3096]
["Munich","Tallinn",1347]
["London/Heathrow","Bucarst Berlin",4358]
["Sharm","Malaga Madrid",4886]
["London/Stansted","Paris De Gaulle",3338]
["Troheim Sandefj","Zurich",4495]
["Chicago","Kristiansand",3904]
["Vilnius","Athens",4102]
["Tampere","Hanover",{"$f":"CEILING(4000*RAND(),1)+1000","v":1933}]
["Sngpore Bangkok","Karachi Lahore",1963]
["Paderbo Munster ","Bucarst Berlin",4776]
["Warsaw","Istanbul",3192]
["Dusseldorf","Nice",4761]
["Zurich","Riga",2039]
["Tunis","Amsterdam ",3953]
["Dublin","Hamburg",4987]
["Wroclaw","Tokyo/Narita",1505]
["Karlstd Orebro","Sandefjord",4356]
["Brussels ","Orebro",1433]
["Gdansk","Linkoeping",2417]
["Oslo","Troheim Sandefj",4603]
["Amsterdam ","Oslo",1428]
["Lisbon","Munster",1659]
["Nice","Karachi Lahore",2728]
["Dublin","Moscow",2622]
["Bergen","Sharm",3498]
["Vienna","Orebro Karlstd",1597]
["Orebro","Glasgow",3912]
["Troheim Sandefj","London/Stansted",3259]
["Malta","Prague",3437]
["Rome/Ciampino","Karlstad",3292]
["Paris De Gaulle","Turku",3663]
["Basel","Turku",3241]
["Reykjavik","London/Stansted",1749]
["Hamburg","Paderbo Munster ",3098]
["Chicago","Lyon Strasb",1464]
["Rio Heathrw","Bergen Sandefj",4538]
["Helsinki","Reykjavik",4562]
["Tampere","Gothenburg",4234]
["Brussels ","Singapore",1266]
["Vilnius","Hamburg",4367]
["Sandefjord","Sharm Luxor",3771]
["Manchester","Milan/Malpensa",2178]
["Sharm Luxor","Barcelona",4628]
["Rome/Ciampino","Chicago",1273]
["Karlstd Orebro","Vaxjoe Kalmar",2666]
["London/Stansted","Sharm",2108]
["Barcelona","Paderbo Munster ",4547]
["Beijing","Hamburg",3367]
["Tenerife","Munich",4238]
["Geneva","Zurich",3665]
["Poznan","Karlstd Orebro",2128]
["Lisbon","Malta",2052]
["Sharm","Glasgow",3324]
["Malta","Gothenburg",1908]
["Malaga Madrid","Rome/Ciampino",4705]
["Szczecin","Bremen",2514]
["Tokyo/Narita","Sandefjord",3756]
["Sharm Luxor","Karlstad",2079]
["Venice","Gdansk",1571]
["Bergen Sandefj","London/Stansted",1925]
["Kalmar Vaxjoe","Gothenburg",3536]
["London/Stansted","Venice",2941]
["Newark","Madrid",3237]
["Malaga/Cost.Sol","Rome/Ciampino",2744]
["Ljubljana","Orebro Karlstd",2706]
["Vesteraas","Kangerlussuaq",4242]
["Hamburg","Birmingham",2167]
["Karachi Lahore","Athens",3593]
["London/Gatwick","Riga",3613]
["Luxembourg","Hamburg",4137]
["Tokyo/Narita","Helsingborg City ",4004]
["Riga","Amsterdam ",{"$f":"CEILING(4000*RAND(),1)+1000","v":2184}]
["Rome","Venice",3980]
["Bergen Sandefj","Ljubljana",1895]
["Singapore","Turku",3368]
["Glasgow","Oslo",1322]
["St Petersburg","Hurghada",4698]
["Kangerlussuaq","Vienna",1308]
["Joenkoeping","Sandefjord",1617]
["Oslo","Trondheim",4941]
["Amsterdam ","Sngpore Bangkok",4235]
["Nice","Munster",4137]
["Tokyo/Narita","Kalmar Vaxjoe",4370]
["Gothenburg","Trondheim",2893]
["Nice","Hamburg",3819]
["Riga","Linkoeping",2359]
["Luxembourg","Stockholm",1305]
["Bergen Sandefj","Sandefjord",3944]
["Orebro Karlstd","Madrid",2462]
["Zurich","Oslo",1856]
["Seattle","Budapest",3427]
["Poznan","Milan/Malpensa",2808]
["Basel","Washington",4498]
["Riga","Washington",1260]
["Helsingborg City ","Rio Heathrw",3075]
["Nice","Washington",3441]
["Riga","Seattle",4797]
["Sharm","Bucarst Berlin",4580]
["Ljubljana","Malaga Madrid",4727]
["Helsingborg City ","Frankfurt",3706]
["Orebro","Brussels ",4271]
["Vilnius","Glasgow Edinbg",1593]
["Orebro Karlstd","Turku",1811]
["Joenkoeping","Manchester",4685]
["Lisbon","Athens",1080]
["Gothenburg","Kalmar Vaxjoe",3982]
["Turku","Reykjavik",4268]
["Turku","Munster",3173]
["Rome/Ciampino","Amsterdam ",3871]
["Geneva","Malta",2991]
["Gdansk","Reykjavik",4975]
["Malta","Vilnius",2453]
["Singapore","Manchester",4033]
["Kristiansand","Tenerife",3751]
["Newark","Malaga Madrid",2415]
["Vilnius","Dublin",2458]
["Troheim Sandefj","Bergen",2426]
["Kristiansand","Riga",4951]
["Paderbo Munster ","Newark",1737]
["Skopje Bornhlm","Joenkoeping",1077]
["Wroclaw","Hamburg",2379]
["Kangerlussuaq","Geneva",1882]
["Hurghada","Karachi Lahore",1632]
["Basel","Norrkoeping",4833]
["Lisbon","Dusseldorf",2349]
["Washington","Szczecin",4447]
["St Petersburg","Brussels ",2252]
["Reykjavik","Vienna",2240]
["Bangkok","Manchester",3957]
["Kalmar Vaxjoe","Birmingham",4633]
["Dusseldorf","Poznan",4305]
["Faroe Islands","Reykjavik",1636]
["Nice","Frankfurt",3336]
["Sharm","Kristiansand",4955]
["Karlstd Orebro","Munich",2927]
["Linkoeping","Faroe Islands",{"$f":"CEILING(4000*RAND(),1)+1000","v":4179}]
["St Petersburg","Singapore",3626]
["Orebro","Hurghada",2450]
["Helsinki","Frankfurt",2270]
["Stavanger","London/Gatwick",4302]
["Vaxjoe Kalmar","Karlstad",4584]
["Kalmar Vaxjoe","Malaga Madrid",3879]
["Hanover","Vilnius",4596]
["Reykjavik","Geneva",1930]
["Glasgow Edinbg","Vienna",1120]
["London/Gatwick","Joenkoeping",2451]
["Tokyo/Narita","Prague",2165]
["Brussels ","Luxembourg",3609]
["Beijing","Oslo",1078]
["Beijing","Prague",1163]
["Ljubljana","Washington",2045]
["Brussels ","Szczecin",4815]
["Glasgow","Glasgow Edinbg",1352]
["London/Gatwick","Karlstd Orebro",4469]
["Tunis","Malaga Madrid",2197]
["Vaxjoe Kalmar","Malaga Madrid",4753]
["Gothenburg","Poznan",2520]
["Amsterdam ","Bucarst Berlin",3479]
["Karlstad","Skopje Bornhlm",4802]
["Dublin","Berlin/Tegel",1775]
["Gdansk","Lyon Strasb",4069]
["Vesteraas","Washington",3521]
["Poznan","Newark",3107]
["Bergen","Vienna",3188]
["Istanbul","Basel",2351]
["Sharm Luxor","Berlin/Tegel",3278]
["Orebro","Washington",1934]
["Gdansk","Prague",2122]
["Hurghada","Rome",2300]
["Gothenburg","Tokyo/Narita",2555]
["Bremen","Budapest",1530]
["Munich","Stavanger",4793]
["Bangkok","Malaga Madrid",2329]
["Bangkok","Kangerlussuaq",4611]
["Milan/Malpensa","Gdansk",3453]
["Frankfurt","Tenerife",1485]
["Helsingborg City ","Kristiansand",2795]
["Stockholm","Ljubljana",2294]
["Rome/Ciampino","Madrid",4971]
["Berlin/Tegel","Linkoeping",4747]
["Tenerife","Orebro",4134]
["Glasgow Edinbg","Malta",2658]
["Istanbul","Helsingborg City ",4351]
["Poznan","Istanbul",4779]
["Riga","Lyon Strasb",1350]
["Prague","Amsterdam ",4419]
["Milan/Linate","Reykjavik",2898]
["Paris De Gaulle","Sandefjord",2014]
["Tunis","Rio Heathrw",2813]
["Reykjavik","Helsingborg City ",1588]
["Tenerife","London/Heathrow",1746]
["Wroclaw","Paris De Gaulle",4857]
["Manchester","Karlstd Orebro",2262]
["Munich","Geneva",2725]
["Bremen","Wroclaw",3940]
["Munster","Karachi Lahore",3513]
["Bangkok","Szczecin",2348]
["Stockholm","Prague",4069]
["Turku","Tampere",3441]
["Hanover","Joenkoeping",{"$f":"CEILING(4000*RAND(),1)+1000","v":1271}]
["Berlin/Tegel","Brussels ",1953]
["Gothenburg","Bergen",1128]
["Gdansk","Amsterdam ",3442]
["Zurich","Las Palmas",3363]
["Orebro","Rome/Ciampino",3933]
["Sandefjord","Bangkok",2434]
["Vesteraas","Rome",2959]
["Narsarsuaq","Vesteraas",4096]
["Amsterdam ","Warsaw",1662]
["Helsinki","Basel",3701]
["London/Gatwick","Amsterdam ",4127]
["Lyon Strasb","Hurghada",1966]
["Athens","Skopje Bornhlm",4442]
["Rome","Tenerife",3475]
["Tokyo/Narita","Nice",3445]
["Munster","Singapore",3571]
["Dusseldorf","Tenerife",2668]
["Oslo","Kalmar Vaxjoe",3990]
["Tampere","St Petersburg",3105]
["Istanbul","Trondheim",2474]
["Malaga/Cost.Sol","Munich",3517]
["Malaga Madrid","Moscow",3106]
["Paderbo Munster ","Milan/Malpensa",2411]
["Joenkoeping","Oslo",4295]
["Berlin/Tegel","Sharm Luxor",1765]
["Birmingham","Rio Heathrw",4996]
["Bangkok","Bremen",3609]
["Narsarsuaq","Faroe Islands",4998]
["Munster","Turku",4262]
["Moscow","Madrid",3547]
["Turku","Helsinki",2652]
["Faroe Islands","London/Stansted",2205]
["Sngpore Bangkok","Milan/Malpensa",3674]
["Skopje Bornhlm","Bangkok",1421]
["Munich","Frankfurt",3290]
["Glasgow","Malaga Madrid",3827]
["Geneva","Karachi Lahore",1522]
["Singapore","Newark",1945]
["Tenerife","Rome",1871]
["Istanbul","Newark",3652]
["Bergen","London/Stansted",3845]
["Ljubljana","Munich",1959]
["London/Heathrow","Frankfurt",3697]
["Amsterdam ","Dublin",2494]
["Bergen Sandefj","Gothenburg",3247]
["Skopje Bornhlm","Stuttgart",4299]
["Riga","Munster",3777]
["Rome","Bangkok",3596]
["Brussels ","Oslo",2612]
["Newark","London/Gatwick",3792]
["London/Heathrow","Karachi Lahore",4262]
["Milan/Linate","Tallinn",1763]
["Wroclaw","Karlstd Orebro",2962]
["Tunis","Bergen",1953]
["Beijing","Rio Heathrw",2501]
["Moscow","Berlin/Tegel",3299]
["Newark","Oslo",4419]
["Rio Heathrw","Vesteraas",3341]
["Brussels ","Chicago",3375]
["Frankfurt","Tampere",1939]
["Tenerife","Malaga/Cost.Sol",4677]
["Tenerife","Karachi Lahore",4168]
["Karlstad","Stockholm",1196]
["Budapest","Orebro",{"$f":"CEILING(4000*RAND(),1)+1000","v":1687}]
["Malaga Madrid","Sharm Luxor",2891]
["Trondheim","Troheim Sandefj",3669]
["Manchester","Orebro",2621]
["London/Gatwick","Oslo",3110]
["Birmingham","St Petersburg",1150]
["Stuttgart","Tallinn",4052]
["Vienna","Turku",1766]
["Washington","Singapore",2694]
["Singapore","Chicago",2385]
["Rio Heathrw","Trondheim",2829]
["Basel","Athens",2006]
["Beijing","Barcelona",4756]
["Rome","Ljubljana",2806]
["St Petersburg","Washington",2281]
["Sharm","Moscow",2695]
["Tokyo/Narita","Skopje Bornhlm",1487]
["Moscow","Riga",2743]
["Rome/Ciampino","Trondheim",1699]
["Bremen","Linkoeping",4349]
["Tampere","Wroclaw",2015]
["Brussels ","London/Gatwick",3284]
["Malaga/Cost.Sol","Glasgow",4355]
["Tallinn","Gothenburg",3931]
["Berlin/Tegel","Singapore",2439]
["Prague","Narsarsuaq",3222]
["Kristiansand","Vaxjoe Kalmar",3554]
["Barcelona","Szczecin",3434]
["Amsterdam ","Lyon Strasb",4813]
["Newark","Basel",3415]
["Warsaw","Newark",2925]
["Berlin/Tegel","Karlstad",1161]
["Rome","Dusseldorf",3151]
["Hurghada","Sandefjord",3251]
["Munster","Tunis",1117]
["Munster","Trondheim",3076]
["Brussels ","Karachi Lahore",4711]
["Kristiansand","Oslo",3291]
["Geneva","Troheim Sandefj",4713]
["Malaga Madrid","Berlin/Tegel",2882]
["Bangkok","Joenkoeping",2125]
["Orebro Karlstd","Bremen",4285]
["Troheim Sandefj","Gdansk",4075]
["Paris De Gaulle","Munich",3789]
["Vilnius","Karachi Lahore",4142]
["Sharm Luxor","Orebro",4967]
["Trondheim","Rio Heathrw",1051]
["Joenkoeping","Ljubljana",4759]
["Rio Heathrw","Faroe Islands",4854]
["Tenerife","Milan/Linate",3501]
["London/Gatwick","Glasgow",3394]
["Stavanger","Geneva",2568]
["Madrid","Berlin/Tegel",4583]
["Troheim Sandefj","Birmingham",3059]
["Karachi Lahore","Basel",2519]
["Hamburg","Stockholm",3825]
["Turku","Kristiansand",4362]
["Skopje Bornhlm","Seattle",3729]
["Karachi Lahore","Orebro Karlstd",4856]
["Frankfurt","Lisbon",4498]
["Beijing","Kangerlussuaq",3996]
["Linkoeping","Geneva",4979]
["London/Gatwick","Poznan",4361]
["Barcelona","Malaga/Cost.Sol",1933]
["Nice","Lisbon",{"$f":"CEILING(4000*RAND(),1)+1000","v":1918}]
["Tunis","Vaxjoe Kalmar",3748]
["Glasgow Edinbg","Nice",1448]
["Birmingham","Chicago",1888]
["Paris De Gaulle","Madrid",1373]
["Sngpore Bangkok","Basel",2286]
["Gdansk","Norrkoeping",4749]
["Bergen","Munich",4233]
["Prague","Hanover",3031]
["Rome/Ciampino","Las Palmas",3319]
["Vienna","Istanbul",3082]
["Dublin","Helsingborg City ",1820]
["Bremen","Frankfurt",1218]
["Bucarst Berlin","Hurghada",2674]
["Norrkoeping","Rome",3112]
["Narsarsuaq","Dusseldorf",4798]
["Paderbo Munster ","Gothenburg",2096]
["Newark","Venice",2230]
["Dublin","Karachi Lahore",3243]
["Sngpore Bangkok","Poznan",2729]
["Sharm","Singapore",1028]
["London/Stansted","Amsterdam ",2432]
["Athens","Reykjavik",3680]
["Sngpore Bangkok","Glasgow Edinbg",1749]
["Oslo","Dusseldorf",1799]
["Singapore","Birmingham",3719]
["Hanover","Sharm Luxor",2561]
["Vienna","Dusseldorf",3479]
["Manchester","Munster",2169]
["London/Heathrow","Manchester",3981]
["Karlstd Orebro","Singapore",4052]
["Las Palmas","Kangerlussuaq",2437]
["Luxembourg","Newark",4699]
["Rio Heathrw","Karlstd Orebro",3086]
["Szczecin","Athens",4198]
["Brussels ","Tokyo/Narita",1994]
["Hurghada","Bergen",4754]
["Lisbon","Gothenburg",2544]
["Venice","Trondheim",4925]
["Dusseldorf","Malta",2741]
["Moscow","Malaga/Cost.Sol",2420]
["Bucarst Berlin","Milan/Malpensa",1497]
["Norrkoeping","Bergen Sandefj",4501]
["Wroclaw","Hurghada",4258]
["Malaga/Cost.Sol","Tallinn",4598]
["Hanover","Riga",4928]
["London/Stansted","Beijing",3757]
["Paris De Gaulle","Athens",2749]
["Washington","Stuttgart",2798]
["Manchester","Glasgow",1231]
["Tallinn","Istanbul",4693]
["Madrid","Kalmar Vaxjoe",3450]
["Rome","Manchester",1960]
["Warsaw","Malta",3289]
["Warsaw","Munster",3873]
["Istanbul","Norrkoeping",1110]
["Norrkoeping","Glasgow Edinbg",4615]
["Glasgow","Las Palmas",3079]
["Manchester","Geneva",3300]
["Helsinki","Sandefjord",3207]
["Warsaw","Basel",2449]
["London/Heathrow","Istanbul",3492]
["Malaga/Cost.Sol","Amsterdam ",1363]
["Milan/Malpensa","Athens",3367]
["Bremen","Malaga Madrid",{"$f":"CEILING(4000*RAND(),1)+1000","v":4721}]
["Hamburg","Beijing",2251]
["Brussels ","Paris De Gaulle",2236]
["Madrid","Orebro Karlstd",3088]
["Tunis","Rome",2037]
["Munster","Stavanger",4619]
["Malta","Singapore",2772]
["Oslo","Washington",2268]
["Bangkok","Dublin",1886]
["London/Heathrow","Sharm",1225]
["Lyon Strasb","Lisbon",2161]
["Reykjavik","Budapest",2040]
["London/Gatwick","St Petersburg",4600]
["Rio Heathrw","Narsarsuaq",2397]
["Narsarsuaq","Las Palmas",1554]
["Bergen Sandefj","Sharm Luxor",4459]
["Milan/Malpensa","Dusseldorf",2491]
["Budapest","Moscow",3463]
["London/Gatwick","Basel",4557]
["Rio Heathrw","Glasgow Edinbg",3240]
["Norrkoeping","Karlstd Orebro",2186]
["Dusseldorf","Lisbon",4343]
["Hamburg","Sngpore Bangkok",2472]
["Rome/Ciampino","Istanbul",1129]
["Stuttgart","Paris De Gaulle",2433]
["Orebro","Rome",1225]
["Tallinn","Paderbo Munster ",2205]
["Manchester","Szczecin",2116]
["Paderbo Munster ","Brussels ",1684]
["Wroclaw","Tenerife",4503]
["Bremen","Glasgow",2140]
["Glasgow Edinbg","Brussels ",3248]
["Oslo","Norrkoeping",3690]
["Rome/Ciampino","Basel",1038]
["Luxembourg","Tallinn",1030]
["Sandefjord","Washington",3534]
["Skopje Bornhlm","Glasgow",3797]
["Rio Heathrw","Malta",1335]
["St Petersburg","Dusseldorf",2350]
["Helsingborg City ","Tampere",2022]
["Turku","Orebro Karlstd",4613]
["Ljubljana","Frankfurt",1784]
["Tokyo/Narita","London/Heathrow",1966]
["Tallinn","Prague",2147]
["Milan/Malpensa","Wroclaw",3943]
["Manchester","Seattle",1967]
["Hurghada","Warsaw",1230]
["Tallinn","Poznan",2254]
["Seattle","Glasgow Edinbg",2657]
["Nice","Glasgow Edinbg",4634]
["Athens","Washington",4228]
["Basel","Brussels ",1553]
["Tenerife","Riga",2021]
["Orebro Karlstd","Dusseldorf",1969]
["Sharm","Istanbul",4563]
["Glasgow","Tenerife",4533]
["Vesteraas","London/Gatwick",1128]
["Tunis","Szczecin",3645]
["Lisbon","Rome/Ciampino",4278]
["Tampere","Sandefjord",1254]
["Tunis","Birmingham",4557]
["Lyon Strasb","Helsingborg City ",3129]
["Tenerife","Vesteraas",4299]
["Linkoeping","Istanbul",2223]
["Linkoeping","Munich",{"$f":"CEILING(4000*RAND(),1)+1000","v":2771}]
["Vilnius","Moscow",3064]
["Helsinki","Kristiansand",4559]
["Stuttgart","Las Palmas",3857]
["Narsarsuaq","Chicago",1843]
["Munster","Sharm",1836]
["London/Gatwick","Orebro",2458]
["Turku","Paris De Gaulle",3316]
["Skopje Bornhlm","Venice",1360]
["Sngpore Bangkok","Malaga Madrid",1716]
["Joenkoeping","Venice",1805]
["Stavanger","Kristiansand",2395]
["Ljubljana","Basel",4973]
["Munich","Ljubljana",4267]
["Budapest","Newark",2374]
["Manchester","Paderbo Munster ",1382]
["Rome","Geneva",1276]
["Luxembourg","Manchester",2970]
["Norrkoeping","Chicago",1895]
["Singapore","Stavanger",1398]
["Las Palmas","Dusseldorf",2638]
["Frankfurt","Sharm Luxor",3307]
["Hanover","Las Palmas",1697]
["Szczecin","Hamburg",1406]
["Kangerlussuaq","Helsingborg City ",3768]
["Glasgow","Barcelona",2193]
["Tunis","Brussels ",2015]
["Glasgow","Bergen",4994]
["Troheim Sandefj","Hamburg",4384]
["Kangerlussuaq","Bucarst Berlin",4087]
["Malaga/Cost.Sol","London/Heathrow",2063]
["Milan/Malpensa","Bucarst Berlin",4156]
["London/Heathrow","Narsarsuaq",1454]
["Linkoeping","Stockholm",1867]
["Dusseldorf","Rome",1981]
["Gothenburg","Frankfurt",3797]
["Oslo","Reykjavik",3751]
["Malaga Madrid","Bergen Sandefj",4137]
["Manchester","Karachi Lahore",1536]
["Munster","Tokyo/Narita",2503]
["Dublin","Frankfurt",4907]
["Paderbo Munster ","Tokyo/Narita",2821]
["Budapest","Warsaw",1359]
["Vilnius","Vienna",2112]
["Vaxjoe Kalmar","Sharm",2878]
["Helsinki","Barcelona",3144]
["Sngpore Bangkok","Newark",2501]
["Turku","London/Heathrow",2710]
["Tunis","Wroclaw",4863]
["London/Heathrow","Sharm Luxor",4893]
["Glasgow","Bucarst Berlin",2646]
["Budapest","Tallinn",4687]
["Faroe Islands","Singapore",1591]
["Ljubljana","Bucarst Berlin",3442]
["Szczecin","Budapest",1690]
["Stuttgart","Washington",4242]
["Linkoeping","Stavanger",4564]
["Kristiansand","Karachi Lahore",1658]
["Hamburg","Istanbul",1608]
["Oslo","Rome",3748]
["Dusseldorf","Zurich",3295]
["Vesteraas","Tunis",1485]
["Berlin/Tegel","Tenerife",3883]
["Helsingborg City ","Luxembourg",2267]
["London/Stansted","Kangerlussuaq",{"$f":"CEILING(4000*RAND(),1)+1000","v":4587}]
["Seattle","Trondheim",4833]
["Narsarsuaq","Venice",1505]
["Sharm","Narsarsuaq",1403]
["Nice","Tenerife",3652]
["Chicago","Kalmar Vaxjoe",3316]
["Stavanger","Paris De Gaulle",2596]
["Munich","Wroclaw",3536]
["Birmingham","Joenkoeping",4047]
["Milan/Linate","Vilnius",4619]
["Vesteraas","Bucarst Berlin",2039]
["Faroe Islands","Turku",3621]
["Prague","Milan/Malpensa",3491]
["London/Heathrow","Chicago",2300]
["Sandefjord","Malaga Madrid",2131]
["Lyon Strasb","Narsarsuaq",3687]
["Manchester","Vilnius",3531]
["Birmingham","Amsterdam ",2019]
["Barcelona","Linkoeping",2568]
["Rome/Ciampino","Moscow",1198]
["Brussels ","Zurich",2912]
["Vienna","Orebro",4155]
["Sharm Luxor","Oslo",3363]
["Washington","Narsarsuaq",2436]
["Vaxjoe Kalmar","Tampere",2831]
["Stockholm","Venice",2571]
["Stockholm","Bergen",3355]
["Sngpore Bangkok","Manchester",3576]
["Vaxjoe Kalmar","Budapest",2257]
["Munster","Riga",1763]
["Malta","Barcelona",1374]
["Bangkok","Szczecin",4889]
["Las Palmas","Malaga/Cost.Sol",4253]
["Riga","Tenerife",2081]
["Madrid","Helsingborg City ",3162]
["Beijing","Venice",1317]
["Bergen","Washington",2016]
["Bangkok","Athens",3264]
["Amsterdam ","Paris De Gaulle",2769]
["Rome","Milan/Malpensa",1366]
["Warsaw","Stavanger",3595]
["Sandefjord","Seattle",1156]
["Amsterdam ","Malaga/Cost.Sol",2284]
["Trondheim","Prague",4717]
["Barcelona","Gothenburg",3789]
["Paris De Gaulle","Troheim Sandefj",2289]
["Berlin/Tegel","Malaga Madrid",1754]
["Tampere","Faroe Islands",4407]
["Stavanger","Riga",1067]
["Rio Heathrw","Gothenburg",3412]
["Skopje Bornhlm","Malta",4796]
["Bangkok","Milan/Malpensa",1336]
["Vesteraas","London/Heathrow",3983]
["Orebro","Reykjavik",4780]
["London/Stansted","Karachi Lahore",2177]
["Troheim Sandefj","Turku",1398]
["Amsterdam ","Geneva",2734]
["Paris De Gaulle","Orebro Karlstd",2422]
["Sharm Luxor","Munster",1900]
["Moscow","Birmingham",4693]
["Paderbo Munster ","Bergen Sandefj",2160]
["Norrkoeping","London/Gatwick",2179]
["Hamburg","Lyon Strasb",2650]
["Budapest","Frankfurt",4801]
["Lyon Strasb","Geneva",{"$f":"CEILING(4000*RAND(),1)+1000","v":2436}]
["Stockholm","Athens",1475]
["Riga","Hamburg",3215]
["Luxembourg","Bergen",1241]
["Athens","Bangkok",4237]
["Seattle","Luxembourg",2179]
["Orebro Karlstd","Orebro",4545]
["Vaxjoe Kalmar","Rio Heathrw",1905]
["Warsaw","Rome/Ciampino",3670]
["Rio Heathrw","Ljubljana",1026]
["Linkoeping","Munster",1949]
["Bangkok","Barcelona",3588]
["Linkoeping","Hurghada",2125]
["Manchester","Zurich",1828]
["Gothenburg","Norrkoeping",2015]
["London/Heathrow","Kangerlussuaq",4398]
["Budapest","Riga",4381]
["Seattle","Karlstd Orebro",2691]
["Milan/Malpensa","Gothenburg",2242]
["Geneva","Kristiansand",3423]
["Ljubljana","Hurghada",3925]
["Narsarsuaq","Nice",2993]
["Rio Heathrw","Munich",4983]
["Munich","Lyon Strasb",2808]
["London/Gatwick","Bucarst Berlin",1087]
["Oslo","Tampere",1428]
["Stavanger","Moscow",1007]
["Orebro","Bangkok",4342]
["Wroclaw","Sharm Luxor",4192]
["Washington","Las Palmas",4092]
["Barcelona","Malaga Madrid",4507]
["Milan/Malpensa","Kalmar Vaxjoe",4511]
["Sandefjord","St Petersburg",2372]
["Lyon Strasb","Munich",1354]
["Orebro","Rio Heathrw",4538]
["Wroclaw","Stuttgart",2483]
["Lisbon","Turku",1752]
["Lyon Strasb","Dusseldorf",3715]
["Helsingborg City ","Kangerlussuaq",2136]
["Paris De Gaulle","Kristiansand",3093]
["Gothenburg","Rome",1235]
["Singapore","Sandefjord",1171]
["Glasgow","Geneva",2159]
["Munich","Karlstd Orebro",3577]
["Szczecin","Berlin/Tegel",2358]
["Orebro","Budapest",2711]
["Milan/Linate","Prague",2931]
["Gothenburg","Tunis",3634]
["Milan/Malpensa","Manchester",4168]
["Tenerife","Malta",1982]
["London/Heathrow","Ljubljana",2196]
["Linkoeping","Orebro",4572]
["Malaga/Cost.Sol","Lisbon",3334]
["Tenerife","Lyon Strasb",4280]
["Sngpore Bangkok","Gdansk",4253]
["Trondheim","Budapest",3242]
["Seattle","Bergen Sandefj",1040]
["Karlstad","Dublin",3730]
["Chicago","Birmingham",4063]
["Riga","Karachi Lahore",4196]
["Stuttgart","Rio Heathrw",1583]
["Sharm Luxor","Budapest",4718]
["Paris De Gaulle","Karlstad",1046]
["Glasgow","Dusseldorf",1994]
["Wroclaw","Sharm",{"$f":"CEILING(4000*RAND(),1)+1000","v":2307}]
["Basel","Hanover",1417]
["Geneva","Oslo",2067]
["Malaga Madrid","Munich",2775]
["Bangkok","Singapore",3099]
["Troheim Sandefj","London/Gatwick",4180]
["Karachi Lahore","Kangerlussuaq",3821]
["London/Stansted","Rome",4266]
["Sharm Luxor","London/Gatwick",3217]
["Orebro Karlstd","Wroclaw",1946]
["London/Stansted","Oslo",2894]
["Kalmar Vaxjoe","Geneva",1222]
["St Petersburg","Malaga Madrid",3987]
["Lyon Strasb","Newark",2204]
["Venice","Stavanger",3751]
["Vilnius","Wroclaw",4228]
["Dusseldorf","Hurghada",1994]
["Warsaw","Karachi Lahore",3232]
["Troheim Sandefj","Riga",4713]
["Norrkoeping","Kangerlussuaq",3811]
["Frankfurt","Birmingham",2468]
["Helsingborg City ","Linkoeping",4017]
["Bremen","Bucarst Berlin",3668]
["Szczecin","Warsaw",1957]
["Bangkok","Tokyo/Narita",4566]
["Orebro","Frankfurt",3815]
["Tampere","Narsarsuaq",1687]
["Glasgow","Karlstad",4559]
["Bergen Sandefj","Stockholm",1393]
["Bremen","Birmingham",2603]
["Helsinki","Turku",3113]
["Istanbul","Hanover",2604]
["Gothenburg","Vienna",4828]
["Brussels ","Linkoeping",4573]
["Kangerlussuaq","Bremen",4709]
["Norrkoeping","Washington",4417]
["Kristiansand","Milan/Malpensa",4191]
["Chicago","Gdansk",4899]
["Wroclaw","Gdansk",1364]
["Helsinki","Gdansk",1182]
["London/Gatwick","Kristiansand",2468]
["Hurghada","Berlin/Tegel",2282]
["Helsinki","Stockholm",3099]
["Frankfurt","Faroe Islands",4960]
["Trondheim","Vilnius",3640]
["Malaga/Cost.Sol","Ljubljana",3736]
["Sandefjord","Rio Heathrw",3415]
["Venice","Las Palmas",4367]
["Ljubljana","Rome",1388]
["Munich","Malta",2058]
["Gdansk","Glasgow",2924]
["Madrid","Newark",3084]
["Moscow","Norrkoeping",1199]
["Rio Heathrw","Reykjavik",2106]
["Vesteraas","Bremen",3381]
["Munich","Tokyo/Narita",2251]
["Karlstd Orebro","Skopje Bornhlm",2497]
["Malaga Madrid","Washington",2754]
["Frankfurt","Munster",1448]
["Poznan","Kalmar Vaxjoe",1181]
["Munich","Madrid",4587]
["Ljubljana","Turku",2221]
["Zurich","Tenerife",4916]
["Troheim Sandefj","Karlstd Orebro",4911]
["Orebro","Stockholm",{"$f":"CEILING(4000*RAND(),1)+1000","v":2473}]
["Manchester","Lisbon",2172]
["Nice","London/Heathrow",2460]
["Vienna","Munster",1540]
["Tenerife","Athens",2725]
["Hurghada","Gdansk",1120]
["London/Stansted","Newark",4636]
["Stavanger","Sngpore Bangkok",2223]
["Tampere","Manchester",2782]
["Warsaw","Milan/Malpensa",1768]
["Nice","Gothenburg",2556]
["Tampere","Munich",4432]
["Washington","Bremen",2510]
["Szczecin","Tunis",2518]
["Szczecin","Karlstd Orebro",2815]
["Newark","Berlin/Tegel",2122]
["Kangerlussuaq","Gdansk",3076]
["Bangkok","Beijing",3916]
["London/Stansted","Bergen",1890]
["Sharm","Prague",2049]
["Newark","Orebro",1717]
["Lyon Strasb","Riga",1021]
["Hamburg","Hanover",4983]
["Milan/Malpensa","Sharm Luxor",4283]
["Riga","Geneva",4592]
["Tallinn","Trondheim",2431]
["Prague","Oslo",3013]
["London/Gatwick","Gothenburg",3534]
["Rome/Ciampino","Helsinki",3055]
["Kangerlussuaq","Madrid",1109]
["Vesteraas","London/Stansted",1368]
["Karlstad","Tallinn",3284]
["Bergen","Karachi Lahore",3864]
["Tokyo/Narita","Newark",4246]
["Munster","Frankfurt",2963]
["Bergen Sandefj","Las Palmas",4540]
["Vienna","Tampere",4203]
["Orebro Karlstd","Bergen Sandefj",3250]
["Chicago","Sandefjord",2058]
["Szczecin","Vaxjoe Kalmar",4826]
["Zurich","Wroclaw",1787]
["Basel","Singapore",2406]
["Trondheim","Malta",2124]
["Nice","Basel",4728]
["Malta","Newark",3855]
["Rome/Ciampino","Brussels ",2808]
["Tokyo/Narita","Orebro",2134]
["Kristiansand","Bergen",2577]
["Paris De Gaulle","Stavanger",4185]
["Kangerlussuaq","Singapore",1154]
["Tunis","Bangkok",1521]
["Stavanger","Malaga/Cost.Sol",3333]
["Chicago","Lisbon",3721]
["Munster","Glasgow Edinbg",4321]
["Vaxjoe Kalmar","Istanbul",2062]
["Singapore","Moscow",2601]
["Tunis","Bucarst Berlin",4428]
["Singapore","Riga",2983]
["Malaga Madrid","Vaxjoe Kalmar",3391]
["Munich","Faroe Islands",4658]
["Sharm","London/Heathrow",1632]
["Newark","Trondheim",3260]
["Frankfurt","Stavanger",4644]
["Lisbon","Poznan",2100]
["Bucarst Berlin","Bremen",{"$f":"CEILING(4000*RAND(),1)+1000","v":2490}]
["Beijing","Faroe Islands",3639]
["Geneva","Glasgow",4650]
["Oslo","Joenkoeping",2181]
["Wroclaw","London/Gatwick",2141]
["Las Palmas","Narsarsuaq",3081]
["Madrid","Helsinki",3119]
["Birmingham","Skopje Bornhlm",1133]
["Szczecin","Madrid",4660]
["Hanover","Vesteraas",3033]
["Bremen","Milan/Linate",3433]
["Barcelona","Riga",3002]
["Joenkoeping","Paris De Gaulle",2343]
["Madrid","Troheim Sandefj",3207]
["Bremen","Beijing",1723]
["Joenkoeping","Kristiansand",4177]
["Newark","Szczecin",4622]
["Milan/Linate","Istanbul",2922]
["Vilnius","Karlstd Orebro",3169]
["Skopje Bornhlm","Orebro Karlstd",3522]
["Ljubljana","Gothenburg",3754]
["Karlstad","Vilnius",3408]
["Helsinki","Vilnius",3884]
["London/Stansted","Lyon Strasb",4907]
["Karlstd Orebro","Warsaw",2398]
["Warsaw","Malaga/Cost.Sol",2777]
["Madrid","Dusseldorf",1849]
["Sharm","Wroclaw",4215]
["Hurghada","Vaxjoe Kalmar",3888]
["Sharm","Venice",3795]
["Orebro","Zurich",3458]
["Zurich","Malaga Madrid",2309]
["Gdansk","Malaga Madrid",3387]
["Basel","Sngpore Bangkok",1281]
["Orebro","Berlin/Tegel",2428]
["Frankfurt","Paderbo Munster ",1425]
["Tampere","Hamburg",4502]
["Bucarst Berlin","Lisbon",1018]
["Bergen Sandefj","Seattle",1008]
["London/Gatwick","Budapest",1301]
["Rio Heathrw","Glasgow",3630]
["Karlstad","Basel",2399]
["Glasgow","Gdansk",1194]
["Brussels ","Rome/Ciampino",1521]
["Linkoeping","Luxembourg",3618]
["Birmingham","Vienna",2602]
["London/Gatwick","Munster",4460]
["Faroe Islands","Malta",2888]
["Poznan","Lisbon",1978]
["Berlin/Tegel","Dusseldorf",4993]
["Barcelona","Orebro Karlstd",2436]
["Kalmar Vaxjoe","Moscow",1832]
["Basel","Geneva",1002]
["Hamburg","Seattle",4837]
["Prague","Munich",4526]
["Sngpore Bangkok","Reykjavik",1309]
["Milan/Malpensa","Newark",3976]
["Sharm","Madrid",2478]
["Vienna","St Petersburg",3389]
["Joenkoeping","Gothenburg",1893]
["Bangkok","Amsterdam ",2772]
["Lisbon","Norrkoeping",1808]
["Hurghada","Hanover",4867]
["Hamburg","Faroe Islands",3506]
["Gdansk","St Petersburg",{"$f":"CEILING(4000*RAND(),1)+1000","v":1981}]
["Narsarsuaq","Stuttgart",2663]
["Hamburg","Malaga Madrid",4446]
["Linkoeping","Paris De Gaulle",4897]
["Helsingborg City ","Norrkoeping",4421]
["Madrid","Hanover",4493]
["Vaxjoe Kalmar","Las Palmas",2627]
["Rome/Ciampino","Prague",1373]
["Malta","Hamburg",1904]
["Las Palmas","Barcelona",4009]
["Stavanger","Karlstad",2878]
["Bremen","Amsterdam ",1680]
["Orebro Karlstd","Vesteraas",4861]
["Rome","Skopje Bornhlm",1581]
["Tokyo/Narita","Faroe Islands",4519]
["Hamburg","Malaga/Cost.Sol",3559]
["Sandefjord","Milan/Malpensa",2663]
["Prague","Berlin/Tegel",3829]
["Kangerlussuaq","Poznan",2610]
["Reykjavik","Bucarst Berlin",4065]
["Stuttgart","Kangerlussuaq",2296]
["Trondheim","Luxembourg",3532]
["Troheim Sandefj","Helsinki",4648]
["Orebro","Helsingborg City ",1020]
["Zurich","London/Heathrow",1597]
["Helsinki","Manchester",2121]
["Sandefjord","Bergen",1800]
["Kangerlussuaq","Joenkoeping",3595]
["Karachi Lahore","Glasgow Edinbg",3055]
["Gdansk","Karlstad",4029]
["Stockholm","Las Palmas",2934]
["Hanover","Beijing",2003]
["Szczecin","Singapore",2433]
["Oslo","Birmingham",1317]
["Berlin/Tegel","Venice",3744]
["Kangerlussuaq","Tunis",4986]
["Venice","Oslo",2403]
["Stuttgart","Troheim Sandefj",1516]
["Ljubljana","Stavanger",1200]
["Moscow","Reykjavik",3410]
["Munich","Orebro",3012]
["Rome/Ciampino","Stockholm",2650]
["Milan/Linate","St Petersburg",4375]
["Dusseldorf","Paderbo Munster ",2099]
["Stockholm","Orebro",1408]
["Hanover","Basel",3018]
["Vaxjoe Kalmar","Milan/Linate",4858]
["Nice","Athens",3984]
["Rio Heathrw","Kangerlussuaq",4377]
["Bergen","Budapest",2810]
["Tallinn","Ljubljana",2014]
["Berlin/Tegel","Lisbon",3175]
["Stavanger","Narsarsuaq",1006]
["Karlstad","Milan/Malpensa",4640]
["Warsaw","London/Gatwick",4246]
["London/Heathrow","Reykjavik",2851]
["Beijing","Singapore",4498]
["Szczecin","Oslo",4826]
["Milan/Linate","Berlin/Tegel",4350]
["Helsingborg City ","Lisbon",4171]
["Vesteraas","Troheim Sandefj",3455]
["Madrid","Lisbon",1475]
["Washington","Moscow",2347]
["Berlin/Tegel","Munster",3806]
["Malaga Madrid","Norrkoeping",{"$f":"CEILING(4000*RAND(),1)+1000","v":1611}]
["Helsingborg City ","Istanbul",2314]
["Munster","Karlstd Orebro",2453]
["Reykjavik","Vaxjoe Kalmar",1387]
["Lyon Strasb","Manchester",3048]
["Seattle","Karlstad",3849]
["Poznan","Orebro",4897]
["Bucarst Berlin","Madrid",3178]
["London/Stansted","Vilnius",2205]
["Faroe Islands","Beijing",1692]
["Rome","Hamburg",2646]
["Munich","Sharm",2165]
["Turku","Vesteraas",2622]
["Paderbo Munster ","Manchester",1944]
["Narsarsuaq","Oslo",1976]
["Malta","Dusseldorf",4572]
["Milan/Malpensa","Zurich",2707]
["Bangkok","Sharm",1698]
["Sngpore Bangkok","Tokyo/Narita",4483]
["London/Stansted","Tenerife",4556]
["London/Heathrow","Vesteraas",4509]
["Tampere","Kristiansand",3916]
["Szczecin","Glasgow",2766]
["Munster","Vilnius",1882]
["Szczecin","Stuttgart",2482]
["Vienna","Narsarsuaq",3775]
["Karlstad","Milan/Linate",1416]
["Beijing","Linkoeping",4019]
["Linkoeping","Skopje Bornhlm",4128]
["Brussels ","Venice",3863]
["Glasgow Edinbg","Lyon Strasb",2774]
["Skopje Bornhlm","Paris De Gaulle",2951]
["Athens","Basel",3765]
["Gdansk","Karlstd Orebro",2009]
["Orebro","Malaga/Cost.Sol",1092]
["Basel","Vilnius",1542]
["Prague","Washington",4683]
["Vilnius","Poznan",3313]
["Las Palmas","Riga",3290]
["Oslo","Seattle",3863]
["Tenerife","Trondheim",3906]
["Helsingborg City ","Las Palmas",2471]
["Newark","Glasgow",3829]
["Munich","Luxembourg",2632]
["Munster","Seattle",2606]
["Trondheim","Kalmar Vaxjoe",4563]
["Singapore","Nice",1062]
["Basel","Birmingham",3579]
["Zurich","London/Gatwick",4956]
["Faroe Islands","Basel",1787]
["Prague","Faroe Islands",1930]
["Rio Heathrw","Istanbul",4124]
["Birmingham","Tokyo/Narita",3034]
["Linkoeping","Ljubljana",1123]
["Tallinn","Orebro",1644]
["Geneva","Seattle",1181]
["Lyon Strasb","Stockholm",4627]
["Tallinn","Frankfurt",2594]
["Berlin/Tegel","London/Gatwick",1487]
["Rio Heathrw","Hurghada",4878]
["Norrkoeping","Szczecin",1304]
["Gothenburg","Tampere",2004]
["Kalmar Vaxjoe","Sharm",1081]
["Sngpore Bangkok","Lyon Strasb",3705]
["Prague","Stuttgart",{"$f":"CEILING(4000*RAND(),1)+1000","v":1288}]
["Troheim Sandefj","Dublin",2163]
["Linkoeping","Barcelona",3597]
["Bergen Sandefj","Skopje Bornhlm",3644]
["Bangkok","Kalmar Vaxjoe",2010]
["Orebro Karlstd","Manchester",2853]
["Vaxjoe Kalmar","Dusseldorf",1577]
["Malaga/Cost.Sol","Vaxjoe Kalmar",3761]
["Glasgow Edinbg","Bangkok",3318]
["Karlstd Orebro","Hanover",3124]
["Warsaw","Wroclaw",1087]
["Ljubljana","Joenkoeping",2378]
["Malaga Madrid","Joenkoeping",2266]
["Zurich","Kangerlussuaq",4489]
["London/Stansted","Linkoeping",4849]
["Lisbon","Manchester",2304]
["Las Palmas","Hamburg",2678]
["Vilnius","Rome/Ciampino",4564]
["Gdansk","Malta",4541]
["London/Gatwick","London/Heathrow",4466]
["Faroe Islands","Manchester",2803]
["Bergen Sandefj","Szczecin",2021]
["Malaga/Cost.Sol","Orebro Karlstd",1629]
["Las Palmas","Vesteraas",1567]
["Bangkok","Newark",4458]
["Reykjavik","Helsinki",1642]
["Karlstd Orebro","Tenerife",1911]
["Trondheim","St Petersburg",4200]
["Bangkok","Warsaw",3406]
["Troheim Sandefj","Malta",3704]
["Birmingham","Norrkoeping",2797]
["Stuttgart","Munich",2254]
["London/Stansted","Basel",2105]
["Orebro","Karlstd Orebro",4262]
["Budapest","Tokyo/Narita",3929]
["Ljubljana","Kristiansand",4455]
["Karlstd Orebro","Bremen",4985]
["Paris De Gaulle","Kalmar Vaxjoe",2383]
["Gothenburg","Geneva",2064]
["Helsinki","Hanover",1073]
["Bremen","Rome/Ciampino",3064]
["Paris De Gaulle","Orebro",4590]
["Joenkoeping","London/Stansted",2121]
["Seattle","Washington",3122]
["Tampere","Nice",2818]
["Helsingborg City ","Troheim Sandefj",1600]
["Tunis","Poznan",2555]
["Madrid","Bergen Sandefj",4366]
["Madrid","Turku",1525]
["Trondheim","Szczecin",2684]
["Oslo","Zurich",4820]
["Glasgow","Stockholm",1289]
["Sharm","Vilnius",1624]
["Sharm Luxor","Helsingborg City ",2106]
["Bangkok","Sngpore Bangkok",4619]
["Luxembourg","Vienna",3280]
["Beijing","Malaga Madrid",4154]
["Karlstad","Vaxjoe Kalmar",4277]
["Hamburg","Munster",1300]
["Stuttgart","Dublin",2580]
["Stavanger","Turku",2408]
["Newark","Budapest",4184]
["Riga","Basel",4537]
["Karachi Lahore","Milan/Linate",4255]
["Stavanger","Brussels ",{"$f":"CEILING(4000*RAND(),1)+1000","v":2134}]
["Zurich","Sharm",1078]
["Helsingborg City ","Zurich",1203]
["Joenkoeping","Bangkok",4670]
["Gothenburg","Milan/Linate",4324]
["Bucarst Berlin","Las Palmas",4367]
["Athens","Manchester",2962]
["Bergen","Milan/Linate",2292]
["Hanover","Faroe Islands",1348]
["Lisbon","Trondheim",4125]
["Gothenburg","Warsaw",2123]
["Vesteraas","Malaga/Cost.Sol",2198]
["Manchester","Gothenburg",3741]
["Paderbo Munster ","Bremen",4015]
["Trondheim","Vesteraas",4149]
["Newark","Amsterdam ",1580]
["Vesteraas","Singapore",4586]
["Vienna","Poznan",2425]
["Athens","St Petersburg",1840]
["Sharm Luxor","Helsinki",3720]
["Venice","Warsaw",4668]
["London/Gatwick","Washington",2637]
["Paderbo Munster ","Vesteraas",4710]
["Prague","Vesteraas",2692]
["Sharm Luxor","Las Palmas",3280]
["London/Gatwick","Singapore",4541]
["Hurghada","Tallinn",1853]
["Bergen","Kristiansand",1407]
["Moscow","Glasgow Edinbg",4886]
["Gdansk","Sharm",4310]
["Vienna","Barcelona",4758]
["Vaxjoe Kalmar","Vienna",4518]
["Narsarsuaq","Glasgow",1498]
["Singapore","Tallinn",3485]
["Troheim Sandefj","Glasgow Edinbg",4726]
["Joenkoeping","Bergen",1383]
["Bremen","Athens",1311]
["Tunis","Zurich",4321]
["Bergen","Lisbon",3201]
["Washington","Rio Heathrw",2349]
["Lyon Strasb","Turku",2772]
["Dusseldorf","Bergen",3101]
["Wroclaw","Washington",3080]
["Munster","Rome/Ciampino",1156]
["Linkoeping","Amsterdam ",3353]
["Trondheim","London/Gatwick",4301]
["Malaga/Cost.Sol","Kalmar Vaxjoe",4016]
["Joenkoeping","Narsarsuaq",2568]
["Skopje Bornhlm","Stavanger",2186]
["Budapest","Seattle",1534]
["Sngpore Bangkok","London/Stansted",4039]
["Berlin/Tegel","Paris De Gaulle",4103]
["Bucarst Berlin","London/Heathrow",3814]
["Athens","Vienna",4938]
["Berlin/Tegel","Stockholm",2856]
["Vilnius","Frankfurt",3874]
["Chicago","Brussels ",1724]
["Karlstad","Paris De Gaulle",3528]
["London/Heathrow","Turku",2025]
["Warsaw","London/Stansted",4897]
["Basel","Milan/Malpensa",3341]
["Dusseldorf","Istanbul",4162]
["Karlstad","Orebro Karlstd",3094]
["Joenkoeping","Luxembourg",2449]
["Prague","Newark",{"$f":"CEILING(4000*RAND(),1)+1000","v":2718}]
["Karlstd Orebro","Orebro",3442]
["Tunis","Newark",2523]
["Luxembourg","Stavanger",2651]
["Munster","Sngpore Bangkok",3471]
["London/Heathrow","Gdansk",2971]
["Bucarst Berlin","Brussels ",2930]
["Chicago","Singapore",4943]
["Luxembourg","Joenkoeping",1701]
["Trondheim","Wroclaw",4087]
["Hamburg","Sharm Luxor",1715]
["Vaxjoe Kalmar","Newark",3056]
["Linkoeping","Newark",4637]
["Prague","Singapore",1352]
["Berlin/Tegel","Wroclaw",4587]
["Stockholm","Tampere",1565]
["Oslo","Helsinki",4765]
["Bucarst Berlin","Warsaw",3955]
["Stuttgart","Narsarsuaq",3778]
["Trondheim","Bergen Sandefj",4277]
["Tunis","Orebro",4493]
["Bangkok","Chicago",3141]
["Stuttgart","Seattle",4469]
["Rome","Sharm",4687]
["Hanover","Sandefjord",2443]
["Hanover","Karlstd Orebro",1698]
["Amsterdam ","Seattle",4144]
["St Petersburg","Nice",1697]
["Bangkok","Troheim Sandefj",4055]
["Helsinki","Singapore",1621]
["Trondheim","Vienna",1054]
["Seattle","Lyon Strasb",2790]
["Vienna","Joenkoeping",1104]
["Malaga/Cost.Sol","Sandefjord",3135]
["Paderbo Munster ","Trondheim",3237]
["Trondheim","Berlin/Tegel",2610]
["Brussels ","Newark",4330]
["Joenkoeping","Vilnius",3397]
["London/Heathrow","Glasgow",4570]
["Singapore","Brussels ",2616]
["Bergen Sandefj","Moscow",1716]
["Sharm Luxor","Troheim Sandefj",3989]
["Stavanger","Szczecin",1867]
["Karlstad","Amsterdam ",3888]
["Glasgow","London/Gatwick",1011]
["Malaga Madrid","Lyon Strasb",3918]
["Munich","Vienna",1487]
["Helsingborg City ","Tallinn",2767]
["Kalmar Vaxjoe","Barcelona",1818]
["Ljubljana","Glasgow",3790]
["Geneva","Sandefjord",3541]
["Rio Heathrw","Malaga Madrid",3955]
["St Petersburg","Wroclaw",3251]
["Sharm Luxor","Wroclaw",1605]
["Las Palmas","Hurghada",3289]
["Faroe Islands","Sngpore Bangkok",1967]
["London/Heathrow","Paderbo Munster ",3487]
["Prague","Tunis",4132]
["Berlin/Tegel","Szczecin",1422]
["Vienna","Tunis",2729]
["Sandefjord","Lisbon",1380]
["Paderbo Munster ","Troheim Sandefj",2924]
["Budapest","Vaxjoe Kalmar",4291]
["Sngpore Bangkok","Lisbon",3621]
["Munich","Malaga/Cost.Sol",{"$f":"CEILING(4000*RAND(),1)+1000","v":4176}]
["Hurghada","Birmingham",1825]
["Frankfurt","Singapore",2655]
["Glasgow","Hanover",4803]
["Tampere","Bucarst Berlin",1047]
["Beijing","Bergen",1832]
["Helsingborg City ","Athens",4120]
["Brussels ","Manchester",1231]
["London/Gatwick","Seattle",3572]
["Trondheim","Norrkoeping",1820]
["Berlin/Tegel","Birmingham",2690]
["Moscow","Gdansk",3792]
["Szczecin","Sandefjord",4339]
["Tenerife","Tokyo/Narita",4052]
["Kristiansand","Bergen Sandefj",2192]
["Glasgow Edinbg","St Petersburg",3356]
["Munster","Newark",1302]
["Prague","Manchester",4852]
["Orebro Karlstd","Tunis",3936]
["Milan/Linate","Sngpore Bangkok",4297]
["Warsaw","Dublin",4283]
["Orebro Karlstd","Oslo",4804]
["Chicago","Hurghada",2137]
["Hamburg","Tokyo/Narita",1184]
["Tunis","Moscow",3279]
["Budapest","Vienna",3602]
["Wroclaw","Vesteraas",1418]
["Kristiansand","Chicago",3730]
["Bergen Sandefj","Bucarst Berlin",2476]
["Washington","Oslo",2984]
["Gdansk","Budapest",2062]
["Tunis","Madrid",3017]
["Dublin","Gothenburg",2624]
["Nice","Ljubljana",2713]
["Lisbon","Moscow",1594]
["Hurghada","London/Heathrow",1931]
["Trondheim","Riga",3939]
["Luxembourg","Stuttgart",1992]
["Skopje Bornhlm","Beijing",4443]
["Faroe Islands","Barcelona",4025]
["Paderbo Munster ","Beijing",2135]
["Frankfurt","Karlstd Orebro",2273]
["Tallinn","Milan/Linate",4143]
["Sandefjord","Tenerife",3167]
["Chicago","Karachi Lahore",1102]
["Tunis","Singapore",4374]
["Reykjavik","Karachi Lahore",3501]
["Munich","Gdansk",3612]
["Malaga/Cost.Sol","Washington",2645]
["Madrid","Trondheim",4907]
["Rio Heathrw","Karlstad",4424]
["Kristiansand","London/Heathrow",2471]
["Karlstd Orebro","Vesteraas",3974]
["Nice","Malaga Madrid",3969]
["Milan/Linate","Moscow",3764]
["Venice","Budapest",2508]
["Washington","Vesteraas",3253]
["Bergen Sandefj","Rome/Ciampino",1386]
["Kalmar Vaxjoe","Dusseldorf",2422]
["Zurich","Bergen Sandefj",1789]
["Milan/Malpensa","Luxembourg",3303]
["Milan/Malpensa","Turku",4889]
["Tallinn","Budapest",4949]
["Zurich","Rio Heathrw",2349]
["Chicago","Budapest",{"$f":"CEILING(4000*RAND(),1)+1000","v":3225}]
["Tampere","Karlstad",1339]
["Paris De Gaulle","Hurghada",3402]
["Lyon Strasb","Amsterdam ",4180]
["Las Palmas","Prague",4968]
["Amsterdam ","Tunis",2139]
["Istanbul","Karlstad",3596]
["Vilnius","Norrkoeping",4191]
["Bergen","Basel",4951]
["Rome","Linkoeping",2021]
["Bangkok","Turku",2629]
["Helsingborg City ","Singapore",4174]
["Seattle","Vaxjoe Kalmar",3584]
["Paris De Gaulle","Washington",1877]
["Rome","Bergen Sandefj",4335]
["Berlin/Tegel","Vilnius",1928]
["Tampere","Helsinki",3659]
["Malta","London/Stansted",4088]
["Amsterdam ","Joenkoeping",1978]
["Prague","Orebro Karlstd",3337]
["Vienna","Stockholm",3353]
["Milan/Malpensa","Bergen Sandefj",3418]
["Bangkok","Karlstad",3565]
["Tampere","Bergen Sandefj",1111]
["Tampere","Athens",1485]
["Kalmar Vaxjoe","Warsaw",2846]
["Moscow","London/Gatwick",4735]
["Karlstad","Tampere",1343]
["Tokyo/Narita","Vienna",4054]
["Dusseldorf","Rio Heathrw",3128]
["Newark","Helsinki",3392]
["Seattle","Tallinn",1816]
["Oslo","Venice",1976]
["Hurghada","Beijing",3054]
["Chicago","Vienna",2081]
["Wroclaw","Singapore",2366]
["Geneva","Helsingborg City ",2319]
["Troheim Sandefj","Stuttgart",1903]
["London/Stansted","Skopje Bornhlm",2015]
["Faroe Islands","Skopje Bornhlm",2659]
["Tunis","Frankfurt",2579]
["Tunis","Tenerife",3875]
["Karlstd Orebro","Bangkok",4865]
["Seattle","Beijing",2372]
["Narsarsuaq","Kalmar Vaxjoe",3230]
["Troheim Sandefj","Brussels ",1437]
["Sandefjord","Sngpore Bangkok",2291]
["Glasgow","Orebro Karlstd",1915]
["Luxembourg","Beijing",3413]
["Gothenburg","Dusseldorf",1288]
["Stuttgart","Milan/Malpensa",3785]
["Brussels ","Gothenburg",3613]
["Singapore","Dublin",4324]
["Manchester","Karlstad",3517]
["Tenerife","Gdansk",2200]
["Brussels ","Faroe Islands",3870]
["Stuttgart","Kristiansand",1204]
["Luxembourg","Birmingham",4176]
["Riga","Prague",2362]
["Brussels ","Las Palmas",2982]
["Milan/Linate","Narsarsuaq",4170]
["Vilnius","Paderbo Munster ",1875]
["Warsaw","Paris De Gaulle",1114]
["Rio Heathrw","Milan/Linate",1927]
["Riga","Wroclaw",{"$f":"CEILING(4000*RAND(),1)+1000","v":2881}]
["Dublin","Sharm",2148]
["Reykjavik","Malaga Madrid",4880]
["Lyon Strasb","Seattle",1858]
["Linkoeping","Norrkoeping",1466]
["Rome/Ciampino","London/Gatwick",2761]
["Malaga/Cost.Sol","Singapore",1653]
["Paris De Gaulle","Milan/Malpensa",3856]
["Madrid","Amsterdam ",2627]
["Munich","Istanbul",1592]
["Basel","Joenkoeping",3110]
["Oslo","Singapore",4429]
["St Petersburg","Paderbo Munster ",1503]
["Helsinki","Stavanger",2408]
["Barcelona","Rome",3385]
["Vaxjoe Kalmar","Karachi Lahore",3930]
["Warsaw","Faroe Islands",1782]
["Seattle","Paderbo Munster ",1911]
["Tokyo/Narita","Zurich",1864]
["Norrkoeping","Glasgow",3771]
["Kangerlussuaq","Narsarsuaq",2127]
["Warsaw","Sngpore Bangkok",2332]
["Kalmar Vaxjoe","Linkoeping",1449]
["Munich","Bergen",2633]
["Wroclaw","Venice",3501]
["Birmingham","Stuttgart",2206]
["Karlstd Orebro","Basel",3111]
["Stockholm","Rome/Ciampino",4083]
["Karlstad","Barcelona",3701]
["Lyon Strasb","Hanover",1433]
["Poznan","Madrid",1698]
["Glasgow Edinbg","Prague",4573]
["Sngpore Bangkok","Kalmar Vaxjoe",1995]
["Hurghada","Malaga/Cost.Sol",1431]
["Turku","Washington",3864]
["Karlstd Orebro","London/Gatwick",2734]
["Ljubljana","Dublin",3288]
["Trondheim","Stavanger",3143]
["Prague","Malaga/Cost.Sol",2098]
["Oslo","Narsarsuaq",2840]
["Oslo","Lisbon",4200]
["Paris De Gaulle","Helsinki",3669]
["Milan/Linate","Frankfurt",2796]
["Tokyo/Narita","Trondheim",1931]
["Chicago","Barcelona",1043]
["Karachi Lahore","Frankfurt",3077]
["Basel","Malta",3843]
["Gdansk","Joenkoeping",4011]
["Istanbul","Vaxjoe Kalmar",2459]
["Barcelona","Bangkok",2160]
["Malta","Milan/Malpensa",4412]
["Istanbul","Skopje Bornhlm",2599]
["Linkoeping","Budapest",4712]
["Barcelona","Amsterdam ",3107]
["Budapest","Kangerlussuaq",4897]
["Helsingborg City ","Sharm Luxor",2535]
["Hanover","Bucarst Berlin",1091]
["Gdansk","Moscow",2935]
["Rome/Ciampino","Sngpore Bangkok",1697]
["Malaga Madrid","Sngpore Bangkok",2381]
["Prague","Riga",2435]
["Oslo","Gdansk",4219]
["Bergen Sandefj","Rome",3676]
["Vaxjoe Kalmar","Orebro Karlstd",1519]
["Nice","Joenkoeping",{"$f":"CEILING(4000*RAND(),1)+1000","v":1095}]
["Bremen","Venice",1935]
["Bremen","Kangerlussuaq",1075]
["London/Heathrow","Warsaw",2038]
["Norrkoeping","Sharm",3981]
["Zurich","Amsterdam ",3624]
["Istanbul","Athens",4873]
["Prague","Stockholm",3600]
["Milan/Linate","Tampere",4302]
["Sngpore Bangkok","Sharm Luxor",1604]
["Seattle","Stuttgart",2563]
["Budapest","Hanover",3879]
["Malta","Luxembourg",1011]
["Ljubljana","Venice",1787]
["London/Gatwick","Sngpore Bangkok",1198]
["Stavanger","Vesteraas",1599]
["Warsaw","Athens",1630]
["Faroe Islands","Warsaw",3198]
["Warsaw","Sharm",2920]
["London/Gatwick","Milan/Linate",1450]
["Basel","St Petersburg",2700]
["Munich","Linkoeping",2338]
["Riga","Rio Heathrw",3125]
["Munich","Kangerlussuaq",4196]
["Karlstad","Wroclaw",2834]
["Tenerife","Sngpore Bangkok",1702]
["Bremen","Washington",4616]
["Norrkoeping","Orebro Karlstd",1712]
["Seattle","Sandefjord",2786]
["Nice","Amsterdam ",2980]
["Dublin","Bangkok",3208]
["Karlstad","Glasgow Edinbg",1802]
["Frankfurt","Seattle",1732]
["Rio Heathrw","Kalmar Vaxjoe",2846]
["Birmingham","Szczecin",2607]
["Malta","Stavanger",2822]
["Paderbo Munster ","Hamburg",3644]
["Bergen","Kangerlussuaq",2850]
["Vilnius","Helsingborg City ",1669]
["Hanover","Tampere",3530]
["Washington","Rome/Ciampino",1016]
["Hamburg","Athens",2923]
["Madrid","Sharm Luxor",1949]
["Rome","Malta",2516]
["Istanbul","Las Palmas",2531]
["Zurich","Milan/Malpensa",1754]
["Trondheim","Brussels ",4615]
["Basel","Rome/Ciampino",4534]
["Brussels ","Istanbul",1793]
["Reykjavik","Sharm Luxor",1480]
["Vienna","Rio Heathrw",2259]
["Nice","Bangkok",4969]
["Hanover","Venice",1814]
["St Petersburg","Luxembourg",4256]
["Washington","Reykjavik",4970]
["Bucarst Berlin","Kristiansand",4396]
["St Petersburg","Sngpore Bangkok",4458]
["Lisbon","Karachi Lahore",3717]
["Lyon Strasb","Birmingham",1120]
["Stavanger","Newark",4997]
["Madrid","Gdansk",2050]
["Washington","Tampere",4945]
["Kangerlussuaq","Glasgow",1921]
["Warsaw","Nice",3911]
["Paderbo Munster ","Ljubljana",{"$f":"CEILING(4000*RAND(),1)+1000","v":3387}]
["Malaga/Cost.Sol","Paris De Gaulle",3068]
["Bangkok","Berlin/Tegel",2626]
["Helsinki","Helsingborg City ",3079]
["Rome/Ciampino","Vilnius",4441]
["Wroclaw","Bremen",3475]
["Paris De Gaulle","Rome",4360]
["Washington","Joenkoeping",1532]
["Milan/Linate","Dublin",3644]
["Kangerlussuaq","Berlin/Tegel",2333]
["Dusseldorf","Lyon Strasb",2708]
["Venice","St Petersburg",3475]
["Hamburg","Chicago",2985]
["Bergen","Orebro",4578]
["Tokyo/Narita","London/Stansted",1933]
["St Petersburg","Bangkok",4091]
["Amsterdam ","Rome/Ciampino",2509]
["Paderbo Munster ","Singapore",2334]
["Vaxjoe Kalmar","Hamburg",3826]
["Poznan","Moscow",2006]
["Faroe Islands","Glasgow Edinbg",4651]
["Lisbon","Gdansk",3468]
["Joenkoeping","Helsinki",1864]
["Joenkoeping","Hurghada",3458]
["Venice","Vesteraas",2197]
["Tenerife","Narsarsuaq",1801]
["Munich","Basel",2432]
["Athens","Nice",3582]
["Wroclaw","Turku",1927]
["Milan/Linate","Joenkoeping",1399]
["Faroe Islands","Chicago",4119]
["Kalmar Vaxjoe","Helsinki",3319]
["Riga","Dusseldorf",3868]
["Nice","Troheim Sandefj",1486]
["St Petersburg","Las Palmas",1698]
["Singapore","Trondheim",2320]
["Stockholm","Kalmar Vaxjoe",1720]
["St Petersburg","Newark",3932]
["London/Gatwick","Brussels ",1587]
["Stuttgart","Basel",3080]
["Paderbo Munster ","Las Palmas",1261]
["Malta","Paderbo Munster ",4174]
["Vienna","Hurghada",2685]
["Helsinki","Riga",2553]
["Bangkok","Dusseldorf",1653]
["Oslo","Hurghada",3548]
["Stuttgart","Ljubljana",2632]
["Geneva","Munich",2701]
["Orebro","Tunis",1249]
["Venice","Bergen",4856]
["Hamburg","Szczecin",3662]
["Paris De Gaulle","Venice",2398]
["Linkoeping","Bucarst Berlin",3517]
["Dusseldorf","Glasgow Edinbg",3830]
["London/Heathrow","Linkoeping",4998]
["Faroe Islands","Rio Heathrw",3935]
["Rome","Bucarst Berlin",3922]
["London/Heathrow","London/Stansted",4732]
["Frankfurt","Newark",1716]
["Dusseldorf","Vienna",3219]
["Narsarsuaq","Riga",3396]
["Paderbo Munster ","Birmingham",4196]
["London/Heathrow","Wroclaw",1166]
["Orebro","Amsterdam ",2619]
["Norrkoeping","Warsaw",{"$f":"CEILING(4000*RAND(),1)+1000","v":2174}]
["Nice","Kalmar Vaxjoe",2805]
["Beijing","Szczecin",3419]
["Hanover","Birmingham",2166]
["Athens","Hurghada",3181]
["Tampere","Berlin/Tegel",1341]
["Vilnius","Bergen",3360]
["Sharm","Barcelona",1770]
["Athens","Karlstad",2242]
["Milan/Malpensa","Rio Heathrw",3136]
["Hurghada","Moscow",3544]
["Bremen","Troheim Sandefj",4165]
["Washington","Frankfurt",1684]
["Rome","Vilnius",2680]
["Vienna","Newark",1769]
["Kalmar Vaxjoe","Norrkoeping",2122]
["Orebro","Munich",2296]
["Sandefjord","Troheim Sandefj",1190]
["Lyon Strasb","Kangerlussuaq",2617]
["Luxembourg","Washington",1215]
["Szczecin","Paderbo Munster ",4207]
["Ljubljana","Istanbul",2290]
["Bergen Sandefj","Kristiansand",4325]
["Tunis","Trondheim",2228]
["Amsterdam ","Vienna",3374]
["Gdansk","Dusseldorf",3972]
["London/Gatwick","Stockholm",3012]
["Tenerife","Geneva",3463]
["Las Palmas","Tunis",2065]
["Wroclaw","Munich",4129]
["Athens","Tenerife",1791]
["Kalmar Vaxjoe","Vienna",3148]
["Athens","Troheim Sandefj",1144]
["Chicago","Milan/Malpensa",3933]
["Szczecin","Washington",4472]
["Kristiansand","Amsterdam ",2037]
["Vilnius","Bucarst Berlin",2744]
["Manchester","Vaxjoe Kalmar",4313]
["Rome/Ciampino","Bergen Sandefj",4818]
["Kristiansand","Luxembourg",3990]
["Sharm","Bergen",3181]
["Norrkoeping","Bangkok",1436]
["Lyon Strasb","Warsaw",1075]
["Helsinki","Munich",4860]
["Birmingham","Prague",1044]
["Newark","Tenerife",3463]
["Singapore","Frankfurt",1833]
["Gothenburg","Zurich",3870]
["Sharm Luxor","Karlstd Orebro",4549]
["Joenkoeping","Moscow",1419]
["Helsinki","Tallinn",3623]
["Barcelona","Kangerlussuaq",2208]
["Paris De Gaulle","Karachi Lahore",4100]
["Rome","Kangerlussuaq",4419]
["Rome","Stockholm",1778]
["Milan/Linate","London/Gatwick",1556]
["Lisbon","Reykjavik",4020]
["Venice","Bangkok",4508]
["Narsarsuaq","Madrid",1988]
["Norrkoeping","Tampere",3746]
["Moscow","Sharm Luxor",1447]
["Tokyo/Narita","Dusseldorf",3651]
["Kristiansand","Stockholm",2293]
["Dublin","Stuttgart",1638]
["Helsinki","Narsarsuaq",{"$f":"CEILING(4000*RAND(),1)+1000","v":3763}]
["Bremen","Skopje Bornhlm",3450]
["Manchester","Basel",3456]
["Nice","St Petersburg",4619]
["Szczecin","Wroclaw",2632]
["Helsingborg City ","Bangkok",4382]
["Orebro","Malaga Madrid",4854]
["Kalmar Vaxjoe","Skopje Bornhlm",2139]
["Orebro Karlstd","Hanover",4245]
["Bergen Sandefj","Paris De Gaulle",1588]
["Dusseldorf","Narsarsuaq",1859]
["Rio Heathrw","Stuttgart",1908]
["Helsinki","Tokyo/Narita",2309]
["Oslo","Gothenburg",2637]
["Paderbo Munster ","Dusseldorf",3144]
["Dusseldorf","Frankfurt",4850]
["Skopje Bornhlm","Sharm Luxor",4032]
["Orebro","Kangerlussuaq",2443]
["Lyon Strasb","Narsarsuaq",1951]
["Seattle","Geneva",4061]
["Karlstad","Moscow",3380]
["Malaga/Cost.Sol","Venice",4490]
["Bergen Sandefj","Sharm",2510]
["Faroe Islands","Karlstad",4517]
["Tallinn","Rio Heathrw",1989]
["London/Heathrow","Munster",3083]
["Sharm","Helsingborg City ",1455]
["Sharm Luxor","Washington",4967]
["London/Stansted","Prague",1688]
["Hamburg","Tallinn",1668]
["Kalmar Vaxjoe","Hurghada",2708]
["Sandefjord","Glasgow",2747]
["Zurich","Ljubljana",2440]
["Karlstad","Malta",2429]
["St Petersburg","Basel",4593]
["Malta","London/Heathrow",1352]
["Newark","Sngpore Bangkok",4832]
["Budapest","Amsterdam ",1858]
["Luxembourg","Brussels ",1894]
["Kangerlussuaq","Munster",1201]
["Brussels ","Kangerlussuaq",1985]
["Gothenburg","Helsingborg City ",2168]
["Amsterdam ","Malta",4687]
["Vilnius","Kristiansand",4498]
["Paris De Gaulle","Gothenburg",1510]
["Moscow","Bergen",4344]
["Budapest","Stockholm",2082]
["Troheim Sandefj","Rome",1522]
["Helsinki","Troheim Sandefj",3107]
["Washington","Gdansk",3549]
["Berlin/Tegel","Gothenburg",4578]
["Vesteraas","Hamburg",1259]
["Malta","Berlin/Tegel",4626]
["Helsinki","Oslo",2763]
["Athens","Beijing",1729]
["Munster","London/Heathrow",1458]
["Sandefjord","Munster",2172]
["Troheim Sandefj","Las Palmas",2379]
["Dublin","Prague",1506]
["Lisbon","Barcelona",2169]
["Joenkoeping","Singapore",3799]
["Gothenburg","Las Palmas",3649]
["Ljubljana","Kangerlussuaq",1980]
["Kristiansand","Poznan",3967]
["Reykjavik","Newark",{"$f":"CEILING(4000*RAND(),1)+1000","v":4110}]
["Tenerife","Ljubljana",1032]
["Glasgow","Berlin/Tegel",3909]
["Birmingham","Hamburg",2799]
["Stuttgart","Malaga Madrid",4774]
["Bangkok","Karachi Lahore",3005]
["Basel","Rio Heathrw",3502]
["Narsarsuaq","Munich",3270]
["Joenkoeping","Birmingham",2642]
["Basel","Bremen",2388]
["London/Gatwick","Vilnius",1741]
["Budapest","Tenerife",4013]
["London/Heathrow","London/Gatwick",4607]
["Milan/Malpensa","Malta",2892]
["Turku","Rio Heathrw",2718]
["Sandefjord","Helsinki",3816]
["Manchester","Tokyo/Narita",1459]
["Tallinn","Milan/Malpensa",1365]
["Bergen","Stavanger",3805]
["Dublin","Bucarst Berlin",4364]
["Szczecin","Nice",3090]
["Paderbo Munster ","Gdansk",4941]
["Oslo","Tenerife",3757]
["Orebro","Troheim Sandefj",2274]
["Dusseldorf","Milan/Linate",3179]
["Ljubljana","London/Stansted",1118]
["Gothenburg","Brussels ",3341]
["Skopje Bornhlm","Sngpore Bangkok",1457]
["Rio Heathrw","London/Stansted",1511]
["Frankfurt","Istanbul",1768]
["Singapore","Rio Heathrw",3707]
["Geneva","Moscow",1569]
["Sharm","Zurich",3141]
["Narsarsuaq","Szczecin",2452]
["Geneva","Gothenburg",2203]
["Faroe Islands","Tenerife",2036]
["Tampere","Joenkoeping",4154]
["Las Palmas","Rome/Ciampino",2982]
["Vesteraas","Karlstad",3204]
["Newark","Dusseldorf",3628]
["Madrid","Ljubljana",2632]
["Munster","Malaga/Cost.Sol",3719]
["St Petersburg","London/Stansted",1253]
["Riga","Trondheim",1396]
["Basel","Tampere",3749]
["London/Gatwick","Trondheim",2119]
["Paderbo Munster ","Sharm",4140]
["Las Palmas","London/Gatwick",1386]
["Chicago","Orebro",2493]
["Ljubljana","Tokyo/Narita",4543]
["Chicago","London/Gatwick",2763]
["Troheim Sandefj","Paris De Gaulle",4507]
["London/Stansted","Poznan",1347]
["Newark","Munich",3812]
["Stockholm","Helsingborg City ",2106]
["Bremen","Rio Heathrw",3229]
["Bremen","Munich",4864]
["Turku","Singapore",4537]
["Zurich","St Petersburg",3747]
["Turku","Budapest",3761]
["Tampere","Birmingham",3909]
["Beijing","Sandefjord",2630]
["Beijing","Vaxjoe Kalmar",2725]
["Brussels ","Troheim Sandefj",4733]
["Lyon Strasb","Orebro Karlstd",{"$f":"CEILING(4000*RAND(),1)+1000","v":3103}]
["Kangerlussuaq","Kalmar Vaxjoe",3595]
["Seattle","Moscow",3521]
["Oslo","Basel",3346]
["Tampere","Frankfurt",2396]
["Trondheim","Washington",2021]
["Lyon Strasb","Bergen",2562]
["Karachi Lahore","Munster",3147]
["Lyon Strasb","Kristiansand",1284]
["Beijing","Malaga/Cost.Sol",1716]
["Barcelona","Joenkoeping",1331]
["Kalmar Vaxjoe","Ljubljana",2320]
["Venice","Chicago",2557]
["Basel","Glasgow",1825]
["Geneva","Nice",3480]
["Bucarst Berlin","Paderbo Munster ",3612]
["Prague","Paderbo Munster ",4836]
["Paris De Gaulle","Rio Heathrw",3909]
["Malta","Bangkok",4289]
["Kangerlussuaq","Paris De Gaulle",3786]
["Basel","Bucarst Berlin",4718]
["Kalmar Vaxjoe","Vaxjoe Kalmar",2044]
["Stockholm","Turku",1992]
["Beijing","London/Stansted",1059]
["Vesteraas","Glasgow",4226]
["Tunis","Joenkoeping",2963]
["Athens","Las Palmas",4562]
["Helsingborg City ","Amsterdam ",1735]
["Sandefjord","Chicago",3799]
["Madrid","Malta",4508]
["Washington","Tallinn",3610]
["Vesteraas","Poznan",2714]
["Vaxjoe Kalmar","Barcelona",3074]
["Washington","Warsaw",4895]
["Helsingborg City ","Malaga Madrid",3682]
["Norrkoeping","Sharm Luxor",2254]
["Barcelona","Istanbul",1123]
["Trondheim","Stockholm",4367]
["Sharm Luxor","Amsterdam ",4462]
["Linkoeping","Vaxjoe Kalmar",4906]
["Venice","Vienna",2070]
["Gothenburg","St Petersburg",1548]
["Birmingham","Sandefjord",3351]
["Linkoeping","Kangerlussuaq",1177]
["Rome","Bergen",3989]
["Stuttgart","Beijing",2560]
["Wroclaw","Vienna",4245]
["Malaga Madrid","Szczecin",4720]
["Sharm","Glasgow Edinbg",4816]
["Hurghada","Vienna",3118]
["Tokyo/Narita","Athens",4865]
["Lisbon","Helsingborg City ",1462]
["Nice","Vilnius",3258]
["Zurich","Washington",3336]
["Linkoeping","Sngpore Bangkok",3889]
["Lyon Strasb","Vesteraas",4270]
["Gothenburg","Narsarsuaq",2385]
["Rome","Manchester",1558]
["Helsinki","Madrid",4105]
["Basel","Dublin",2707]
["Dusseldorf","Karlstd Orebro",4170]
["Basel","Lyon Strasb",2521]
["Trondheim","Munich",2655]
["Glasgow","Nice",4009]
["Luxembourg","Tampere",{"$f":"CEILING(4000*RAND(),1)+1000","v":3910}]
["Karlstd Orebro","Stockholm",2307]
["Hurghada","Sharm Luxor",1451]
["Sngpore Bangkok","Faroe Islands",2341]
["St Petersburg","Seattle",1465]
["Vilnius","London/Stansted",2942]
["Tallinn","Bergen Sandefj",4282]
["Glasgow","Budapest",2082]
["Karachi Lahore","Skopje Bornhlm",4964]
["Washington","Kangerlussuaq",1021]
["Sharm","Malta",2992]
["Linkoeping","Riga",2949]
["Vaxjoe Kalmar","Tunis",4008]
["Munich","Beijing",4785]
["Oslo","Ljubljana",4019]
["Lisbon","Vienna",1258]
["Orebro","Stavanger",4498]
["Norrkoeping","Bremen",2983]
["Vilnius","London/Gatwick",3158]
["Kalmar Vaxjoe","Newark",2349]
["Sharm Luxor","Tampere",1272]
["Amsterdam ","Newark",1645]
["Paderbo Munster ","Vienna",4878]
["Istanbul","Riga",1102]
["Reykjavik","Kristiansand",4134]
["Sngpore Bangkok","Rome/Ciampino",2875]
["Karlstad","Poznan",2675]
["Sharm Luxor","Vienna",4830]
["Bergen","Manchester",4162]
["Tallinn","Athens",4976]
["Bangkok","Tampere",3666]
["Tokyo/Narita","Washington",3900]
["Malaga Madrid","Ljubljana",4893]
["Chicago","Sharm",1969]
["Helsingborg City ","Bergen Sandefj",3067]
["Narsarsuaq","Birmingham",1771]
["Newark","Hurghada",1574]
["Turku","Bergen",4807]
["Zurich","Madrid",1275]
["Malaga Madrid","Barcelona",3413]
["Beijing","Kalmar Vaxjoe",2051]
["Rio Heathrw","Tunis",4701]
["Rome","Hanover",1893]
["Troheim Sandefj","Nice",1809]
["Prague","Bangkok",1131]
["Munster","Vesteraas",4209]
["Sharm","Luxembourg",1169]
["St Petersburg","Geneva",2588]
["Bremen","Malta",2964]
["Tunis","Hanover",2540]
["Hurghada","Szczecin",1737]
["Manchester","Skopje Bornhlm",2900]
["Berlin/Tegel","Tokyo/Narita",2209]
["Rome","Lyon Strasb",4646]
["Gdansk","Sandefjord",2321]
["Bangkok","Bergen",1822]
["Kalmar Vaxjoe","Madrid",4828]
["Las Palmas","Bremen",4727]
["Sharm Luxor","Athens",4824]
["Glasgow Edinbg","Tokyo/Narita",1849]
["Wroclaw","Basel",4669]
["Sandefjord","London/Stansted",2511]
["Kalmar Vaxjoe","Oslo",3084]
["Geneva","Malaga Madrid",3843]
["Hanover","Washington",{"$f":"CEILING(4000*RAND(),1)+1000","v":3815}]
["Barcelona","Warsaw",1596]
["Bucarst Berlin","Stavanger",3355]
["Paris De Gaulle","Rome/Ciampino",3395]
["Istanbul","Sharm Luxor",4499]
["Milan/Linate","Troheim Sandefj",1201]
["Karlstad","Athens",2339]
["Wroclaw","Brussels ",1207]
["Barcelona","Prague",2931]
["Madrid","Oslo",2005]
["Bucarst Berlin","Milan/Linate",3096]
["Tunis","Warsaw",4129]
["Karlstad","Munster",2553]
["Malta","Athens",2744]
["Washington","Sharm Luxor",2064]
["St Petersburg","Lisbon",4858]
["Madrid","Hurghada",2177]
["Helsingborg City ","Kalmar Vaxjoe",3709]
["London/Stansted","Nice",4119]
["Malaga/Cost.Sol","Madrid",3004]
["Szczecin","Hurghada",4186]
["Reykjavik","Glasgow Edinbg",4650]
["Rome/Ciampino","Linkoeping",1749]
["Glasgow","Helsinki",3486]
["Budapest","Turku",2784]
["Skopje Bornhlm","Troheim Sandefj",3073]
["Bergen Sandefj","Chicago",1823]
["Moscow","Bergen Sandefj",1624]
["Dusseldorf","Gdansk",3455]
["Sandefjord","Moscow",1123]
["Rio Heathrw","St Petersburg",4069]
["Birmingham","Moscow",3228]
["Sharm","Vesteraas",3499]
["Nice","Rome",4453]
["Riga","Milan/Malpensa",4911]
["Singapore","Kristiansand",4042]
["Gdansk","Trondheim",2334]
["Narsarsuaq","Bangkok",3041]
["Orebro","London/Heathrow",4658]
["Faroe Islands","Prague",1435]
["Bergen Sandefj","Vaxjoe Kalmar",1670]
["Dusseldorf","Szczecin",4086]
["Sharm Luxor","Hurghada",2908]
["Paderbo Munster ","Kristiansand",3804]
["Lyon Strasb","Bangkok",3837]
["Karlstd Orebro","Dublin",1986]
["Stuttgart","Tampere",4461]
["Bucarst Berlin","Malaga Madrid",3126]
["Dusseldorf","Stavanger",4985]
["Luxembourg","Lyon Strasb",3364]
["Frankfurt","Turku",1654]
["Bucarst Berlin","Glasgow Edinbg",4453]
["Sngpore Bangkok","Bergen Sandefj",4429]
["Brussels ","Karlstad",4469]
["Vaxjoe Kalmar","Stavanger",1880]
["Sharm Luxor","Paderbo Munster ",4850]
["Gothenburg","Troheim Sandefj",3465]
["Norrkoeping","Dublin",3827]
["Orebro","Gdansk",4471]
["Rome/Ciampino","Karlstd Orebro",4879]
["Kangerlussuaq","London/Stansted",4321]
["Lyon Strasb","Chicago",2747]
["Kristiansand","Munich",4266]
["Moscow","Sandefjord",2413]
["Las Palmas","Basel",{"$f":"CEILING(4000*RAND(),1)+1000","v":3399}]
["Lyon Strasb","Istanbul",3382]
["Sharm Luxor","Bucarst Berlin",4677]
["Lyon Strasb","Athens",1033]
["London/Gatwick","Rome/Ciampino",4749]
["Norrkoeping","Newark",4499]
["Munster","Stuttgart",2289]
["Istanbul","Bangkok",3183]
["Tampere","Malta",3950]
["Joenkoeping","Madrid",1458]
["Poznan","Bergen",1385]
["London/Stansted","Joenkoeping",1486]
["Paderbo Munster ","Lyon Strasb",4130]
["Newark","Prague",2854]
["Gothenburg","Bergen Sandefj",3331]
["Norrkoeping","Paris De Gaulle",1146]
["Gothenburg","Riga",1034]
["Washington","Hurghada",2053]
["Malaga Madrid","Turku",1504]
["Glasgow Edinbg","Zurich",4135]
["Bremen","Dusseldorf",4799]
["St Petersburg","Joenkoeping",2745]
["Vesteraas","Geneva",1062]
["Karachi Lahore","Zurich",2922]
["Paris De Gaulle","Hamburg",3193]
["St Petersburg","Poznan",4489]
["Glasgow Edinbg","Seattle",1325]
["Berlin/Tegel","Moscow",3695]
["London/Gatwick","Sharm",2814]
["Poznan","London/Gatwick",2022]
["Karlstad","Vienna",2450]
["London/Gatwick","Szczecin",2107]
["Warsaw","Riga",3773]
["Frankfurt","Geneva",3866]
["Seattle","Gdansk",3156]
["Karlstd Orebro","Seattle",1630]
["Nice","Stavanger",2034]
["Athens","Dublin",2255]
["Manchester","Athens",3638]
["Birmingham","Narsarsuaq",2351]
["Bangkok","Skopje Bornhlm",3881]
["Frankfurt","Gothenburg",3999]
["Malta","Vesteraas",4516]
["Bucarst Berlin","London/Stansted",2295]
["Vaxjoe Kalmar","Narsarsuaq",3913]
["Tallinn","Tokyo/Narita",4456]
["Milan/Linate","Munster",4965]
["Washington","Helsingborg City ",1853]
["Gdansk","Beijing",2685]
["Vesteraas","Stuttgart",3925]
["Stuttgart","Norrkoeping",1744]
["Joenkoeping","Malaga Madrid",1018]
["Gdansk","Warsaw",2147]
["Nice","Poznan",1937]
["Hurghada","Reykjavik",2863]
["Troheim Sandefj","Hurghada",4910]
["Milan/Malpensa","Ljubljana",2518]
["Riga","Manchester",5000]
["Rome","Stavanger",4450]
["Kristiansand","Bangkok",2708]
["Turku","Paderbo Munster ",1329]
["Faroe Islands","Sharm",1351]
["Beijing","Malta",2943]
["Singapore","Tokyo/Narita",4576]
["Rome/Ciampino","Hanover",{"$f":"CEILING(4000*RAND(),1)+1000","v":4542}]
["Washington","Sandefjord",2221]
["Narsarsuaq","Stockholm",1860]
["Glasgow Edinbg","Karachi Lahore",4982]
["Zurich","London/Stansted",1047]
["Malaga Madrid","Sharm",4398]
["Hanover","Glasgow Edinbg",2592]
["London/Gatwick","Tallinn",3716]
["Manchester","Singapore",3826]
["London/Gatwick","Madrid",3529]
["Ljubljana","Malaga/Cost.Sol",2045]
["Sngpore Bangkok","Istanbul",3928]
["London/Stansted","Zurich",4632]
["Gothenburg","Bremen",4179]
["Hamburg","Brussels ",4453]
["Reykjavik","Lisbon",3666]
["Tallinn","Paris De Gaulle",2000]
["Tokyo/Narita","Berlin/Tegel",3336]
["Malaga Madrid","Frankfurt",3301]
["Nice","Paderbo Munster ",1607]
["Vaxjoe Kalmar","Kalmar Vaxjoe",1748]
["Milan/Linate","Zurich",1888]
["Lyon Strasb","Sharm",3862]
["Paris De Gaulle","Lisbon",2939]
["Bangkok","Stavanger",2263]
["Linkoeping","Basel",3054]
["Nice","Faroe Islands",3653]
["St Petersburg","Helsinki",3425]
["Vilnius","Lyon Strasb",2614]
["Paris De Gaulle","London/Gatwick",1998]
["Trondheim","Rome/Ciampino",1484]
["Dublin","Venice",2965]
["Narsarsuaq","Manchester",3054]
["Moscow","Zurich",4313]
["Kalmar Vaxjoe","Gdansk",4995]
["Athens","Stavanger",3204]
["Washington","Budapest",3048]
["Stuttgart","Faroe Islands",3190]
["Malta","Narsarsuaq",1291]
["Birmingham","Sharm Luxor",3960]
["Berlin/Tegel","Newark",3628]
["Venice","Sharm",1757]
["Trondheim","Tampere",4898]
["Orebro","Helsinki",1084]
["Athens","Lisbon",3372]
["Gdansk","Stavanger",4027]
["Las Palmas","Manchester",3616]
["Geneva","Prague",4853]
["St Petersburg","Glasgow Edinbg",3229]
["Tampere","Luxembourg",2383]
["Rio Heathrw","Riga",3550]
["Karlstd Orebro","Venice",3940]
["Orebro Karlstd","Stavanger",4321]
["Sharm","Bangkok",1949]
["Stuttgart","Gdansk",2015]
["Venice","Dusseldorf",4894]
["Nice","Stuttgart",2566]
["Rome/Ciampino","Berlin/Tegel",2790]
["Reykjavik","Prague",4117]
["Sharm Luxor","Newark",1865]
["Berlin/Tegel","Skopje Bornhlm",3869]
["Troheim Sandefj","Basel",2101]
["Berlin/Tegel","Turku",1014]
["Rome","Karlstad",4845]
["Seattle","Prague",{"$f":"CEILING(4000*RAND(),1)+1000","v":3577}]
["Sharm Luxor","Seattle",2383]
["Orebro Karlstd","Tampere",2532]
["Szczecin","Trondheim",3795]
["Dublin","Turku",3574]
["Prague","Tokyo/Narita",1757]
["Luxembourg","St Petersburg",2564]
["Milan/Linate","Turku",1608]
["Warsaw","Joenkoeping",4171]
["Faroe Islands","Rome",4182]
["Milan/Linate","Wroclaw",2710]
["Stavanger","Norrkoeping",1752]
["Stockholm","Tenerife",1065]
["Karlstd Orebro","Vilnius",3114]
["St Petersburg","Gothenburg",4784]
["Stuttgart","Malta",1451]
["Madrid","Stavanger",3505]
["Bremen","Narsarsuaq",3479]
["Luxembourg","Helsinki",1299]
["Trondheim","Milan/Malpensa",3236]
["Sharm Luxor","Stavanger",3631]
["Vesteraas","Tampere",2142]
["Tunis","Kalmar Vaxjoe",2499]
["Glasgow Edinbg","Rome",4503]
["Prague","Athens",2954]
["Trondheim","Chicago",3804]
["Oslo","Istanbul",4218]
["Karlstd Orebro","Moscow",2038]
["Helsinki","London/Stansted",3411]
["Athens","Brussels ",2600]
["Wroclaw","Szczecin",2458]
["Turku","Frankfurt",2140]
["Poznan","Tenerife",4156]
["Hamburg","Luxembourg",2829]
["Poznan","Glasgow Edinbg",2799]
["Tallinn","Vilnius",3587]
["Reykjavik","Tampere",4586]
["Brussels ","Basel",3679]
["Kristiansand","Karlstad",4568]
["Madrid","Faroe Islands",2729]
["Tunis","Athens",4717]
["Faroe Islands","Munster",3881]
["Vesteraas","Trondheim",4105]
["Riga","Tallinn",2841]
["Poznan","Kangerlussuaq",2359]
["Tokyo/Narita","Karlstd Orebro",4259]
["Orebro","Barcelona",3219]
["Sharm","Vienna",4700]
["Bangkok","Birmingham",2942]
["Brussels ","Tallinn",4961]
["Gdansk","Istanbul",4928]
["London/Heathrow","Luxembourg",4870]
["Berlin/Tegel","Washington",1094]
["Malta","Manchester",4637]
["Bucarst Berlin","Orebro Karlstd",3679]
["Malaga Madrid","Kristiansand",3449]
["Karlstd Orebro","Troheim Sandefj",3642]
["Karlstd Orebro","Beijing",2324]
["Paris De Gaulle","Las Palmas",4372]
["Narsarsuaq","Singapore",1361]
["Karlstd Orebro","Tampere",1589]
["Vienna","Las Palmas",4642]
["Orebro","Paris De Gaulle",4121]
["Trondheim","Athens",4656]
["Reykjavik","Warsaw",{"$f":"CEILING(4000*RAND(),1)+1000","v":3066}]
["Helsinki","Tenerife",2809]
["Tampere","Riga",2458]
["Oslo","Poznan",1380]
["Troheim Sandefj","Orebro Karlstd",1709]
["Vaxjoe Kalmar","Tenerife",1075]
["Karachi Lahore","Rome",3292]
["Manchester","Rome/Ciampino",4207]
["Munster","Athens",2380]
["Reykjavik","Athens",2694]
["Riga","Brussels ",1889]
["Malaga Madrid","Prague",1837]
["Birmingham","Kristiansand",3178]
["Las Palmas","Madrid",1247]
["Beijing","Dublin",1437]
["Oslo","London/Heathrow",4170]
["Manchester","Stuttgart",2563]
["Paderbo Munster ","Bangkok",3671]
["Malta","Karlstad",4317]
["Hanover","Oslo",2579]
["Rome/Ciampino","Munich",3461]
["Lyon Strasb","Malaga Madrid",2888]
["Sandefjord","Joenkoeping",2957]
["Karlstad","Newark",1274]
["Bangkok","Vesteraas",2319]
["London/Stansted","Turku",3528]
["London/Gatwick","Malta",2937]
["Basel","Malaga Madrid",1186]
["Birmingham","Karlstd Orebro",3187]
["Hamburg","Vilnius",3170]
["Dublin","St Petersburg",1826]
["Kristiansand","Vilnius",4176]
["Tampere","Kangerlussuaq",2537]
["Riga","Poznan",2803]
["Manchester","Vesteraas",1320]
["St Petersburg","Trondheim",1905]
["Reykjavik","Narsarsuaq",2598]
["Barcelona","Vienna",2639]
["Ljubljana","Narsarsuaq",1780]
["Joenkoeping","Barcelona",2293]
["Vaxjoe Kalmar","Glasgow",3174]
["Malta","Geneva",2371]
["Frankfurt","Lyon Strasb",3891]
["Nice","Istanbul",2511]
["Manchester","Bangkok",2895]
["Madrid","Singapore",4097]
["Frankfurt","Hanover",1597]
["Ljubljana","Paris De Gaulle",4051]
["Frankfurt","Warsaw",2260]
["Tokyo/Narita","Bremen",4522]
["London/Heathrow","Budapest",1054]
["Vienna","Bergen Sandefj",1260]
["Manchester","Washington",4842]
["Hanover","Orebro",4273]
["London/Heathrow","Dusseldorf",4077]
["Amsterdam ","Munich",1732]
["Troheim Sandefj","Hanover",4513]
["Dublin","Las Palmas",4766]
["Berlin/Tegel","Ljubljana",4317]
["Karachi Lahore","Rome/Ciampino",3413]
["Luxembourg","Szczecin",4076]
["Stockholm","Linkoeping",1028]
["Prague","Gothenburg",3250]
["Brussels ","Poznan",1020]
["Ljubljana","Reykjavik",{"$f":"CEILING(4000*RAND(),1)+1000","v":4568}]
["Stuttgart","Stockholm",1904]
["Prague","Luxembourg",3255]
["Lyon Strasb","Malaga/Cost.Sol",3460]
["Vienna","Gdansk",3144]
["Karlstad","Bucarst Berlin",3033]
["Newark","Bergen",4026]
["Riga","Venice",2496]
["Nice","Lyon Strasb",4134]
["London/Heathrow","Norrkoeping",1698]
["Stuttgart","Zurich",4814]
["Bremen","Gothenburg",3907]
["Malta","Munich",4691]
["Washington","Karlstd Orebro",1400]
["Karlstd Orebro","Bucarst Berlin",2596]
["London/Heathrow","Malaga Madrid",1238]
["Tokyo/Narita","Sngpore Bangkok",1996]
["Athens","Geneva",1660]
["Seattle","Bucarst Berlin",3440]
["Gdansk","Karachi Lahore",1898]
["Orebro Karlstd","Brussels ",4276]
["Bangkok","Helsinki",1854]
["Birmingham","Orebro Karlstd",4844]
["Karlstad","Chicago",4018]
["Amsterdam ","Washington",2835]
["Orebro","Vilnius",3536]
["Faroe Islands","Birmingham",3389]
["Lyon Strasb","Vaxjoe Kalmar",2335]
["Milan/Malpensa","Glasgow",1132]
["Gdansk","Venice",2616]
["London/Gatwick","Helsingborg City ",2718]
["Amsterdam ","Venice",3748]
["Glasgow","Sharm",4244]
["Hurghada","Stuttgart",1787]
["Troheim Sandefj","Oslo",4877]
["Amsterdam ","Bangkok",2084]
["Gdansk","Barcelona",2638]
["Paderbo Munster ","Narsarsuaq",4027]
["Hamburg","Frankfurt",2276]
["Berlin/Tegel","Frankfurt",2148]
["Kristiansand","Dusseldorf",1813]
["Rome","Rome/Ciampino",3947]
["London/Gatwick","Malaga/Cost.Sol",3842]
["Kalmar Vaxjoe","Vesteraas",3338]
["Helsinki","Rome/Ciampino",1613]
["Luxembourg","Zurich",2427]
["Szczecin","Barcelona",2913]
["Helsinki","Amsterdam ",2561]
["Tallinn","Vienna",2693]
["Norrkoeping","Vaxjoe Kalmar",3829]
["Karlstd Orebro","Washington",1674]
["Istanbul","Joenkoeping",2996]
["London/Heathrow","Bergen",1729]
["Bucarst Berlin","Munich",4271]
["Chicago","Berlin/Tegel",2409]
["Venice","Malaga Madrid",4176]
["Vienna","Amsterdam ",2811]
["Karlstad","Karlstd Orebro",4850]
["Lyon Strasb","London/Heathrow",1445]
["Szczecin","Tallinn",1720]
["Sharm Luxor","Poznan",2781]
["Helsinki","Kalmar Vaxjoe",4389]
["Helsingborg City ","Malta",4950]
["Malaga/Cost.Sol","Bangkok",1541]
["Poznan","Rome",{"$f":"CEILING(4000*RAND(),1)+1000","v":1650}]
["Gothenburg","Hanover",3005]
["Tenerife","Moscow",3382]
["Gothenburg","Karlstad",2939]
["Skopje Bornhlm","Faroe Islands",1932]
["Vienna","Kristiansand",4276]
["Hamburg","Sandefjord",1938]
["Luxembourg","Tenerife",4894]
["London/Stansted","Malta",2765]
["Linkoeping","Karachi Lahore",1103]
["Basel","Trondheim",2048]
["Joenkoeping","St Petersburg",4540]
["Rome/Ciampino","Venice",2334]
["Beijing","Stuttgart",2984]
["Turku","Narsarsuaq",3131]
["Dusseldorf","Milan/Malpensa",3076]
["Malta","Munster",2657]
["Munich","Helsinki",2092]
["Sngpore Bangkok","Berlin/Tegel",2307]
["Basel","Poznan",1514]
["Berlin/Tegel","Riga",2707]
["Moscow","Bucarst Berlin",3596]
["Chicago","Tampere",3833]
["London/Stansted","Tokyo/Narita",1921]
["Helsinki","Malaga Madrid",3374]
["Gdansk","Tampere",4029]
["Tokyo/Narita","Manchester",1018]
["Karlstd Orebro","Narsarsuaq",1679]
["Hurghada","Chicago",4817]
["Moscow","Tallinn",4909]
["St Petersburg","Venice",3655]
["Gothenburg","Budapest",2861]
["Glasgow Edinbg","Madrid",4377]
["Tallinn","Barcelona",1069]
["Istanbul","Faroe Islands",4414]
["Tunis","Rome/Ciampino",2416]
["Istanbul","Berlin/Tegel",3659]
["Malaga/Cost.Sol","Geneva",4170]
["Frankfurt","Ljubljana",3453]
["Glasgow","Munster",3499]
["Bremen","Newark",3220]
["Geneva","Athens",4608]
["Prague","Troheim Sandefj",1957]
["Milan/Malpensa","Birmingham",1182]
["Kristiansand","Hamburg",1785]
["Vaxjoe Kalmar","Stockholm",3553]
["Milan/Linate","Sharm Luxor",1303]
["Vaxjoe Kalmar","Orebro",4194]
["Riga","Nice",4387]
["Karlstd Orebro","Gdansk",3536]
["Venice","Hurghada",3045]
["Ljubljana","Chicago",4677]
["Kalmar Vaxjoe","Orebro",2110]
["Paris De Gaulle","Joenkoeping",1656]
["Milan/Malpensa","Hurghada",1464]
["Kalmar Vaxjoe","London/Gatwick",3793]
["Bucarst Berlin","Lyon Strasb",1306]
["Kristiansand","Szczecin",1047]
["Tokyo/Narita","Madrid",1582]
["Hurghada","Washington",3810]
["Szczecin","Helsingborg City ",4676]
["Gdansk","Athens",1786]
["Ljubljana","Birmingham",3458]
["Bangkok","Munster",1344]
["Faroe Islands","Hurghada",{"$f":"CEILING(4000*RAND(),1)+1000","v":1890}]
["Milan/Malpensa","Stavanger",2988]
["Milan/Linate","Vesteraas",2771]
["Norrkoeping","Troheim Sandefj",1568]
["Luxembourg","Faroe Islands",1526]
["Hanover","Glasgow",3949]
["Budapest","Oslo",1832]
["Orebro","Tenerife",1229]
["Munich","Bergen Sandefj",1732]
["Bucarst Berlin","Tunis",3411]
["Dusseldorf","Kristiansand",2138]
["Orebro Karlstd","Gdansk",2063]
["Milan/Linate","Birmingham",3612]
["Istanbul","Paris De Gaulle",2073]
["Troheim Sandefj","Szczecin",2764]
["Skopje Bornhlm","London/Heathrow",3165]
["Hanover","Zurich",4982]
["Norrkoeping","Tunis",2574]
["Glasgow Edinbg","Paderbo Munster ",1017]
["Zurich","Stuttgart",3758]
["Wroclaw","Ljubljana",2247]
["Karlstad","Zurich",2102]
["Madrid","Frankfurt",1779]
["Budapest","Szczecin",2643]
["Turku","Lyon Strasb",3329]
["Troheim Sandefj","Malaga Madrid",2711]
["Wroclaw","Rome/Ciampino",1796]
["Malaga/Cost.Sol","Tunis",4176]
["Athens","Sngpore Bangkok",1657]
["Zurich","Istanbul",2459]
["Turku","Hanover",4135]
["Newark","Karachi Lahore",2387]
["Tokyo/Narita","Istanbul",1103]
["Poznan","Tokyo/Narita",3120]
["Barcelona","Karlstad",2083]
["Basel","Malaga/Cost.Sol",2154]
["Bucarst Berlin","Chicago",2536]
["Istanbul","Ljubljana",4408]
["Hanover","Turku",4144]
["Wroclaw","Zurich",3387]
["Manchester","Stockholm",4519]
["Karlstd Orebro","Madrid",2405]
["Venice","Malta",1814]
["Sngpore Bangkok","Singapore",4828]
["Orebro Karlstd","Stuttgart",2916]
["Kalmar Vaxjoe","Faroe Islands",1386]
["Gothenburg","Munich",2603]
["Madrid","Sandefjord",3761]
["Orebro Karlstd","Munster",1945]
["Karachi Lahore","Luxembourg",1206]
["Manchester","Kristiansand",3495]
["St Petersburg","Munich",3864]
["Troheim Sandefj","Geneva",3012]
["Riga","Faroe Islands",2401]
["Karlstd Orebro","Glasgow",1350]
["Athens","Bucarst Berlin",4742]
["Tampere","Tunis",2020]
["Helsingborg City ","Bucarst Berlin",4614]
["Rome/Ciampino","Skopje Bornhlm",2850]
["Venice","Linkoeping",2828]
["Turku","Norrkoeping",2819]
["London/Stansted","Sharm Luxor",4876]
["Madrid","Nice",2253]
["Manchester","Munich",3586]
["Chicago","Vesteraas",{"$f":"CEILING(4000*RAND(),1)+1000","v":3851}]
["Karlstad","Malaga/Cost.Sol",2042]
["Trondheim","Karachi Lahore",4473]
["Bergen Sandefj","Malaga/Cost.Sol",3971]
["Trondheim","Bergen",1881]
["Orebro","Skopje Bornhlm",3269]
["Helsingborg City ","Gdansk",3408]
["Singapore","Ljubljana",3456]
["Hanover","Skopje Bornhlm",4450]
["Nice","Wroclaw",2385]
["Rome/Ciampino","Vaxjoe Kalmar",4243]
["Glasgow Edinbg","Orebro",2929]
["Tokyo/Narita","Luxembourg",2969]
["Athens","Malaga/Cost.Sol",3097]
["Berlin/Tegel","Nice",3528]
["Wroclaw","Helsinki",3243]
["Trondheim","Birmingham",4677]
["Stuttgart","Munster",3161]
["Seattle","London/Stansted",3724]
["Venice","Troheim Sandefj",4948]
["Malta","Tunis",2136]
["Tokyo/Narita","Orebro Karlstd",3842]
["Gothenburg","Skopje Bornhlm",1687]
["Malaga/Cost.Sol","Paderbo Munster ",4135]
["Munster","Orebro",4211]
["Venice","Tallinn",2672]
["Venice","Vilnius",2835]
["Stuttgart","Szczecin",1762]
["Riga","London/Stansted",2004]
["Singapore","Gdansk",2906]
["Vesteraas","Athens",4596]
["Vaxjoe Kalmar","Gdansk",4827]
["Prague","Basel",4451]
["Tunis","London/Gatwick",3699]
["Tunis","Berlin/Tegel",4934]
["Faroe Islands","Riga",2449]
["Venice","Tampere",4015]
["Stavanger","Munster",4290]
["Amsterdam ","Glasgow Edinbg",3220]
["Troheim Sandefj","Tunis",2309]
["Szczecin","Helsinki",1460]
["Bergen Sandefj","Newark",3109]
["London/Stansted","Lisbon",2465]
["Stuttgart","Orebro Karlstd",1849]
["Hamburg","Troheim Sandefj",4075]
["Geneva","Birmingham",4570]
["Trondheim","Paderbo Munster ",2697]
["Kangerlussuaq","Dublin",2818]
["Orebro","Kalmar Vaxjoe",3745]
["Warsaw","Hanover",3624]
["Tokyo/Narita","Las Palmas",4352]
["Rome","Gothenburg",3031]
["Bucarst Berlin","Rio Heathrw",2855]
["London/Gatwick","Chicago",2738]
["Sandefjord","Hamburg",2104]
["Sharm Luxor","Madrid",4077]
["Warsaw","Washington",2051]
["Moscow","Stockholm",1982]
["Narsarsuaq","Wroclaw",3510]
["London/Heathrow","Helsingborg City ",3442]
["Troheim Sandefj","Orebro",1516]
["Bremen","Stockholm",2441]
["Wroclaw","Glasgow",1676]
["Reykjavik","Wroclaw",3166]
["Rome/Ciampino","Seattle",{"$f":"CEILING(4000*RAND(),1)+1000","v":3273}]
["Troheim Sandefj","Vienna",4671]
["Vaxjoe Kalmar","Riga",3951]
["Stuttgart","Amsterdam ",3517]
["Beijing","Lisbon",1637]
["Tenerife","Glasgow Edinbg",4941]
["Hurghada","Munich",2174]
["Glasgow Edinbg","Frankfurt",4093]
["Malta","Birmingham",3382]
["Sngpore Bangkok","Dublin",4484]
["London/Gatwick","Tunis",1117]
["Troheim Sandefj","Poznan",3157]
["Rome/Ciampino","Zurich",3312]
["Dublin","Vesteraas",2178]
["Linkoeping","Trondheim",1358]
["Sandefjord","Lyon Strasb",1882]
["Milan/Malpensa","Milan/Linate",4674]
["Karlstad","Narsarsuaq",4932]
["Tenerife","Faroe Islands",1345]
["Stavanger","Bucarst Berlin",3029]
["Tenerife","Bremen",2585]
["Glasgow","Newark",3257]
["Kangerlussuaq","Vesteraas",1411]
["Malaga/Cost.Sol","Hurghada",4652]
["Berlin/Tegel","Tampere",4882]
["Sngpore Bangkok","Bangkok",2984]
["Munich","Karachi Lahore",3734]
["Gdansk","Rome",4714]
["Athens","Rio Heathrw",2130]
["Karachi Lahore","Stuttgart",2789]
["Skopje Bornhlm","Tunis",1457]
["London/Heathrow","Tunis",4409]
["Athens","Norrkoeping",4531]
["Vilnius","Faroe Islands",3199]
["Vaxjoe Kalmar","Basel",1485]
["Dublin","Linkoeping",3516]
["Nice","London/Stansted",1236]
["Kristiansand","Birmingham",4973]
["Vienna","Basel",4895]
["Nice","Malaga/Cost.Sol",1824]
["Berlin/Tegel","Kristiansand",4294]
["Gdansk","Basel",2184]
["Frankfurt","Oslo",3185]
["Turku","Las Palmas",2529]
["Dusseldorf","Wroclaw",4203]
["Sharm Luxor","Chicago",1369]
["Szczecin","Bergen",1693]
["Munich","Tenerife",4652]
["London/Gatwick","Stavanger",4503]
["Vilnius","Helsinki",4617]
["Trondheim","Vaxjoe Kalmar",3337]
["Hamburg","Malta",2933]
["Malaga/Cost.Sol","Las Palmas",4177]
["Washington","Bergen",1702]
["Oslo","Riga",2959]
["Bremen","Hurghada",4292]
["Helsingborg City ","Narsarsuaq",3636]
["Linkoeping","Stuttgart",1587]
["Karlstad","Reykjavik",3041]
["Athens","Kristiansand",3873]
["Tallinn","Rome",4546]
["Amsterdam ","Helsinki",1571]
["Moscow","Karlstad",1647]
["Troheim Sandefj","Prague",2795]
["Karlstad","Stuttgart",{"$f":"CEILING(4000*RAND(),1)+1000","v":4995}]
["Beijing","Tallinn",4378]
["Madrid","Reykjavik",4733]
["Rome/Ciampino","London/Stansted",3943]
["Stuttgart","Wroclaw",1601]
["Malaga Madrid","Budapest",4608]
["Bergen","Hurghada",4258]
["Malaga/Cost.Sol","Seattle",2053]
["Reykjavik","Gdansk",1878]
["Helsinki","Venice",2439]
["Athens","Oslo",2426]
["Rome/Ciampino","Karachi Lahore",4463]
["Hurghada","Rome/Ciampino",4336]
["Rio Heathrw","Athens",1602]
["Helsingborg City ","Riga",2622]
["Singapore","London/Gatwick",4890]
["Karachi Lahore","Poznan",1596]
["Moscow","Prague",2074]
["Lisbon","Kalmar Vaxjoe",4297]
["London/Gatwick","Birmingham",4626]
["Gdansk","Bremen",2211]
["Gdansk","Kangerlussuaq",2717]
["Hurghada","Manchester",3353]
["Lisbon","Newark",2260]
["Lisbon","Kristiansand",2053]
["Skopje Bornhlm","St Petersburg",3264]
["Paderbo Munster ","Helsingborg City ",3954]
["Reykjavik","Sandefjord",4524]
["Munich","Kalmar Vaxjoe",1688]
["Milan/Malpensa","Frankfurt",2566]
["Karlstad","Sandefjord",4690]
["Hanover","Tallinn",3033]
["Skopje Bornhlm","Lisbon",3627]
["Stockholm","Hamburg",4706]
["Dublin","Rio Heathrw",3701]
["Tampere","Sharm Luxor",2228]
["Szczecin","Linkoeping",2810]
["Glasgow","Singapore",4862]
["Wroclaw","Linkoeping",4947]
["Rome/Ciampino","Munster",2037]
["Milan/Linate","Amsterdam ",3486]
["Vilnius","Vesteraas",2958]
["Paris De Gaulle","Birmingham",2205]
["Orebro","Lyon Strasb",3222]
["Kalmar Vaxjoe","Reykjavik",2919]
["Tallinn","Lyon Strasb",3780]
["Chicago","Malta",3459]
["Nice","Orebro",3314]
["Milan/Malpensa","Rome/Ciampino",4911]
["Vilnius","Bangkok",3591]
["Hanover","Hurghada",4621]
["Vesteraas","Stavanger",4001]
["Barcelona","Madrid",1138]
["Seattle","Warsaw",2077]
["Luxembourg","Karlstad",2027]
["Tenerife","Norrkoeping",1337]
["Paris De Gaulle","London/Stansted",1463]
["London/Heathrow","St Petersburg",2113]
["Hurghada","Oslo",3377]
["Tokyo/Narita","Riga",4615]
["Las Palmas","Hanover",1623]
["Hamburg","Newark",3450]
["Skopje Bornhlm","Sandefjord",3434]
["Reykjavik","Ljubljana",1354]
["Glasgow","Manchester",{"$f":"CEILING(4000*RAND(),1)+1000","v":4045}]
["Karachi Lahore","Linkoeping",1107]
["Munster","Orebro Karlstd",2891]
["Orebro","Hanover",1012]
["Vienna","Birmingham",4926]
["Singapore","Orebro",4951]
["Oslo","Vienna",3747]
["Chicago","Helsinki",1512]
["Amsterdam ","Frankfurt",2172]
["Lyon Strasb","Sandefjord",4347]
["Rome/Ciampino","Milan/Linate",3638]
["Milan/Linate","Barcelona",3648]
["Rio Heathrw","Chicago",3222]
["Hurghada","Riga",3817]
["Singapore","Wroclaw",2486]
["Tunis","Manchester",4107]
["Karlstd Orebro","Joenkoeping",3703]
["Malaga Madrid","Sandefjord",2340]
["Milan/Malpensa","Rome",2926]
["Brussels ","Moscow",3254]
["Malaga Madrid","Bucarst Berlin",1354]
["Szczecin","Rome",3891]
["St Petersburg","Malaga/Cost.Sol",1006]
["Ljubljana","Paderbo Munster ",1802]
["Stockholm","Seattle",2771]
["Gdansk","Orebro Karlstd",2318]
["Paderbo Munster ","Rio Heathrw",2430]
["Norrkoeping","Moscow",4551]
["St Petersburg","Zurich",4332]
["Venice","Kristiansand",2937]
["Lisbon","Warsaw",1217]
["Ljubljana","Dusseldorf",3895]
["Malaga/Cost.Sol","Stavanger",2736]
["Tenerife","Istanbul",4898]
["Malaga Madrid","Faroe Islands",3831]
["Paderbo Munster ","Seattle",4181]
["Malaga Madrid","Vesteraas",3600]
["Bucarst Berlin","St Petersburg",2085]
["Glasgow","Tokyo/Narita",4390]
["Helsingborg City ","Brussels ",1755]
["Dusseldorf","Bangkok",1831]
["Paderbo Munster ","Munich",2162]
["Paderbo Munster ","Stuttgart",1253]
["Glasgow Edinbg","Berlin/Tegel",1426]
["Moscow","Seattle",4528]
["London/Gatwick","Glasgow Edinbg",2436]
["Linkoeping","Sandefjord",2648]
["Milan/Malpensa","Linkoeping",2721]
["Rome/Ciampino","Narsarsuaq",3109]
["Bangkok","Orebro Karlstd",2251]
["Malta","Turku",1846]
["Amsterdam ","Wroclaw",3739]
["Tallinn","Gdansk",2392]
["Joenkoeping","Turku",1331]
["Hanover","London/Heathrow",3384]
["Sngpore Bangkok","Vaxjoe Kalmar",3471]
["Newark","Wroclaw",1299]
["Wroclaw","Warsaw",2597]
["Sharm","Troheim Sandefj",1517]
["Munster","Bangkok",1707]
["Orebro","Sngpore Bangkok",2973]
["Bucarst Berlin","Gothenburg",1741]
["Tokyo/Narita","Lisbon",2501]
["Basel","Stockholm",4258]
["St Petersburg","Tampere",{"$f":"CEILING(4000*RAND(),1)+1000","v":1058}]
["Basel","Troheim Sandefj",2154]
["Geneva","Vesteraas",3796]
["Turku","Zurich",1935]
["Budapest","Faroe Islands",2784]
["Poznan","Vienna",3835]
["Vaxjoe Kalmar","Bucarst Berlin",2392]
["Berlin/Tegel","Rome",3322]
["Venice","Manchester",4251]
["Kalmar Vaxjoe","Joenkoeping",1760]
["Gdansk","Oslo",2446]
["Stuttgart","Hurghada",3607]
["Vienna","Gothenburg",3442]
["Luxembourg","Basel",1126]
["Malaga Madrid","Bangkok",2097]
["Seattle","Poznan",2145]
["Poznan","Troheim Sandefj",3286]
["Rio Heathrw","Barcelona",3924]
["Norrkoeping","Bucarst Berlin",1363]
["Manchester","Hanover",2977]
["Faroe Islands","Troheim Sandefj",4616]
["Stavanger","Athens",2749]
["Faroe Islands","Seattle",3101]
["Helsinki","Karlstad",4783]
["Stuttgart","London/Heathrow",4693]
["Orebro Karlstd","Karachi Lahore",4478]
["Lisbon","Narsarsuaq",1632]
["Oslo","Warsaw",2415]
["Szczecin","Vesteraas",3036]
["Turku","Prague",3098]
["Karlstad","Kangerlussuaq",4214]
["Budapest","Singapore",1985]
["Warsaw","Karlstad",4100]
["Hurghada","St Petersburg",4276]
["Moscow","Singapore",2485]
["Amsterdam ","Hanover",3868]
["Vaxjoe Kalmar","Tokyo/Narita",3319]
["Hamburg","Rome/Ciampino",2493]
["Skopje Bornhlm","Norrkoeping",4068]
["Frankfurt","Szczecin",4891]
["Sharm","Warsaw",2812]
["Amsterdam ","Madrid",4956]
["Beijing","Munich",4450]
["Milan/Malpensa","Vienna",3297]
["Narsarsuaq","Sandefjord",3051]
["Hurghada","Orebro Karlstd",2594]
["Ljubljana","Troheim Sandefj",2389]
["Joenkoeping","Seattle",3354]
["Ljubljana","Moscow",1203]
["Tunis","Milan/Malpensa",2357]
["Nice","Gdansk",1862]
["Milan/Linate","Stuttgart",3587]
["Gothenburg","Milan/Malpensa",1579]
["London/Heathrow","Orebro",4480]
["Hurghada","Gothenburg",3407]
["Karlstd Orebro","Ljubljana",3822]
["Washington","Bangkok",4778]
["Malaga Madrid","Dusseldorf",1908]
["Beijing","Tenerife",2735]
["Milan/Linate","Stockholm",4079]
["Tokyo/Narita","Singapore",3207]
["Skopje Bornhlm","Stockholm",2157]
["Malta","Stockholm",2200]
["Karlstd Orebro","Manchester",3615]
["Munster","Berlin/Tegel",{"$f":"CEILING(4000*RAND(),1)+1000","v":4160}]
["Nice","Seattle",2228]
["Zurich","Moscow",3638]
["Faroe Islands","Tampere",1073]
["Glasgow","Paderbo Munster ",4257]
["Gdansk","Szczecin",3983]
["Vesteraas","Sharm Luxor",3412]
["Rio Heathrw","Tenerife",4915]
["Paderbo Munster ","Orebro",2713]
["Bremen","Bergen Sandefj",3021]
["Dusseldorf","Bremen",4632]
["Bremen","Milan/Malpensa",1103]
["Helsinki","Luxembourg",1696]
["Sngpore Bangkok","Ljubljana",4017]
["Orebro","Faroe Islands",4248]
["Washington","Milan/Malpensa",3467]
["Athens","London/Heathrow",3183]
["Turku","Luxembourg",4108]
["Orebro","Sharm",2618]
["Venice","Basel",1476]
["London/Heathrow","Vienna",1653]
["Gothenburg","Linkoeping",2142]
["Beijing","Kristiansand",4102]
["Riga","Bucarst Berlin",3890]
["Beijing","Karachi Lahore",1313]
["Skopje Bornhlm","Manchester",1063]
["Tunis","Glasgow Edinbg",4234]
["Helsinki","Karachi Lahore",3788]
["Hamburg","Warsaw",2101]
["Malta","Rome/Ciampino",1974]
["Tunis","Las Palmas",2911]
["Tunis","Orebro Karlstd",3232]
["Dublin","Nice",1560]
["Bremen","Istanbul",1255]
["Kalmar Vaxjoe","Bucarst Berlin",1990]
["Milan/Malpensa","St Petersburg",1440]
["Bremen","Las Palmas",3600]
["Kalmar Vaxjoe","Riga",4770]
["Munich","Vaxjoe Kalmar",1020]
["Moscow","Hurghada",4653]
["Athens","Rome",3290]
["Orebro Karlstd","Geneva",1249]
["Bergen","Prague",4829]
["Narsarsuaq","Frankfurt",3286]
["Birmingham","Paderbo Munster ",3988]
["Luxembourg","Bergen Sandefj",2455]
["Glasgow Edinbg","Rio Heathrw",1135]
["Newark","Istanbul",2784]
["Singapore","Bremen",4338]
["Linkoeping","Gdansk",3339]
["Prague","Bremen",3068]
["Ljubljana","Trondheim",3155]
["Bucarst Berlin","Amsterdam ",2414]
["Beijing","Nice",2869]
["Reykjavik","Madrid",4944]
["Tenerife","Paderbo Munster ",1216]
["Newark","Malta",4175]
["Karlstd Orebro","Hamburg",4325]
["Berlin/Tegel","Trondheim",4232]
["Warsaw","Turku",3725]
["Hurghada","Budapest",1933]
["Luxembourg","Orebro Karlstd",2010]
["Turku","Karlstd Orebro",4690]
["Norrkoeping","Manchester",3329]
["Milan/Malpensa","Washington",{"$f":"CEILING(4000*RAND(),1)+1000","v":4369}]
["Norrkoeping","Stavanger",1494]
["Zurich","Joenkoeping",4076]
["Malaga/Cost.Sol","Barcelona",1218]
["Bremen","Norrkoeping",4099]
["Poznan","Amsterdam ",3915]
["Joenkoeping","Helsingborg City ",2311]
["Karlstd Orebro","Paderbo Munster ",3672]
["Singapore","Malaga/Cost.Sol",4555]
["Paderbo Munster ","Oslo",3689]
["Karlstad","Bangkok",1655]
["Sharm Luxor","Sandefjord",3716]
["Washington","Luxembourg",4590]
["Szczecin","Birmingham",1985]
["Sngpore Bangkok","Bremen",2702]
["Joenkoeping","Brussels ",1413]
["Budapest","Sandefjord",2146]
["Bergen","Troheim Sandefj",3103]
["London/Heathrow","Hanover",4973]
["Chicago","Troheim Sandefj",2474]
["Berlin/Tegel","Faroe Islands",3788]
["Lisbon","Bangkok",3446]
["Brussels ","Munich",3637]
["Stuttgart","Sharm Luxor",2631]
["Karlstd Orebro","Nice",3325]
["Linkoeping","Karlstad",4856]
["Vienna","Wroclaw",4337]
["Faroe Islands","Bangkok",4027]
["Helsinki","Paris De Gaulle",4157]
["Basel","Ljubljana",3042]
["Geneva","Glasgow Edinbg",4619]
["Troheim Sandefj","Singapore",2261]
["Bucarst Berlin","Malta",2592]
["St Petersburg","Athens",4021]
["Narsarsuaq","Newark",2199]
["Zurich","Budapest",4630]
["London/Gatwick","Hanover",2996]
["Lisbon","Skopje Bornhlm",3039]
["Chicago","Dublin",4900]
["Kalmar Vaxjoe","Singapore",4812]
["Reykjavik","Karlstad",2211]
["Athens","Glasgow",1506]
["Kristiansand","Orebro",4539]
["Vaxjoe Kalmar","London/Stansted",1869]
["Venice","Prague",2307]
["Las Palmas","Bangkok",3391]
["Munster","Troheim Sandefj",1547]
["Brussels ","Glasgow",3242]
["Narsarsuaq","Amsterdam ",2916]
["Turku","Nice",3620]
["Munich","Newark",3493]
["Stavanger","Bergen Sandefj",4601]
["Chicago","Dusseldorf",4784]
["Tenerife","Paris De Gaulle",3457]
["Milan/Linate","Malaga/Cost.Sol",2413]
["Helsingborg City ","Stuttgart",3477]
["Linkoeping","Prague",2082]
["Munich","London/Gatwick",2479]
["Nice","Tokyo/Narita",2038]
["Tallinn","Stavanger",4031]
["Zurich","Chicago",4849]
["Oslo","Orebro",1056]
["Lisbon","Madrid",2417]
["Rome","Vaxjoe Kalmar",1438]
["Vilnius","Stuttgart",{"$f":"CEILING(4000*RAND(),1)+1000","v":4515}]
["Munster","Dublin",3904]
["Karachi Lahore","Hamburg",1789]
["Narsarsuaq","Hanover",3680]
["Budapest","Washington",1935]
["Glasgow Edinbg","Wroclaw",3300]
["Helsingborg City ","Bergen",2694]
["Birmingham","Malaga/Cost.Sol",4822]
["Lyon Strasb","Linkoeping",3536]
["Tokyo/Narita","Glasgow Edinbg",2645]
["Norrkoeping","Sandefjord",2967]
["Bergen","Lyon Strasb",4866]
["London/Stansted","Tallinn",3252]
["Barcelona","Athens",1077]
["Ljubljana","Bremen",2191]
["Manchester","Wroclaw",2756]
["Malaga Madrid","Hamburg",1357]
["Paderbo Munster ","Wroclaw",3279]
["Turku","Kalmar Vaxjoe",3359]
["Tenerife","Szczecin",1140]
["Wroclaw","Dublin",1126]
["Bremen","Barcelona",2284]
["Beijing","Manchester",4081]
["London/Stansted","Kalmar Vaxjoe",2784]
["Tallinn","Szczecin",3062]
["Nice","Orebro Karlstd",1871]
["Dublin","Malaga Madrid",1904]
["Narsarsuaq","Skopje Bornhlm",3729]
["Malaga/Cost.Sol","Birmingham",3766]
["Hamburg","Nice",3338]
["Birmingham","Karlstad",4815]
["London/Gatwick","Helsinki",4856]
["Poznan","Barcelona",1492]
["Newark","Gothenburg",1150]
["Luxembourg","Poznan",1046]
["Vilnius","Madrid",4631]
["Stuttgart","Reykjavik",1265]
["Berlin/Tegel","Chicago",2003]
["Frankfurt","Tunis",2865]
["Rio Heathrw","Turku",3038]
["Troheim Sandefj","Bangkok",4796]
["Rome","Helsinki",1554]
["Seattle","Rome/Ciampino",1998]
["Seattle","Las Palmas",3554]
["Bucarst Berlin","Paris De Gaulle",3451]
["Wroclaw","Troheim Sandefj",2684]
["Orebro","Turku",3460]
["Athens","Munich",3964]
["Stavanger","Helsingborg City ",4826]
["London/Stansted","Chicago",2713]
["Bucarst Berlin","Reykjavik",3822]
["Vesteraas","Linkoeping",1863]
["Vienna","Norrkoeping",2645]
["London/Gatwick","Kangerlussuaq",2071]
["Tunis","Milan/Linate",2548]
["Hamburg","Bergen",4548]
["Kalmar Vaxjoe","Rome",2056]
["Orebro Karlstd","Malta",4647]
["Glasgow","Madrid",2399]
["Turku","Warsaw",3473]
["Dusseldorf","Reykjavik",3032]
["London/Heathrow","Bremen",3970]
["Istanbul","Szczecin",1766]
["Athens","Narsarsuaq",4626]
["Sandefjord","Glasgow Edinbg",{"$f":"CEILING(4000*RAND(),1)+1000","v":2720}]
["Hurghada","Kalmar Vaxjoe",3315]
["Zurich","Kristiansand",4124]
["Dusseldorf","Madrid",1230]
["Washington","Milan/Linate",1740]
["Kalmar Vaxjoe","Vilnius",3004]
["Norrkoeping","Turku",4224]
["Narsarsuaq","Kangerlussuaq",1306]
["Prague","Tenerife",1812]
["Rome/Ciampino","Bremen",3942]
["Basel","Bergen Sandefj",4175]
["Stavanger","Tunis",2492]
["Barcelona","Las Palmas",1778]
["Birmingham","Dusseldorf",1097]
["Helsinki","Stuttgart",1493]
["Sharm Luxor","Turku",2821]
["Warsaw","Dusseldorf",2934]
["Troheim Sandefj","Washington",1226]
["Sngpore Bangkok","Tunis",2881]
["Glasgow Edinbg","Helsinki",1779]
["Bergen","Karlstd Orebro",2992]
["Malaga Madrid","St Petersburg",1055]
["Karlstd Orebro","Tunis",2647]
["Kristiansand","Geneva",2709]
["Hurghada","Athens",3397]
["Malta","Budapest",3686]
["Reykjavik","Vilnius",3830]
["Trondheim","Moscow",4700]
["Bangkok","Hamburg",2827]
["Paris De Gaulle","Stuttgart",4085]
["Tunis","Nice",1198]
["Manchester","Las Palmas",2451]
["Ljubljana","Manchester",1677]
["Washington","Gothenburg",3882]
["Barcelona","Glasgow Edinbg",1662]
["Luxembourg","Warsaw",1434]
["Narsarsuaq","Rio Heathrw",1841]
["Bergen","Narsarsuaq",2321]
["Orebro","Dusseldorf",3381]
["Tunis","Kangerlussuaq",2353]
["London/Stansted","Milan/Linate",3970]
["Turku","Lisbon",3304]
["Vaxjoe Kalmar","Joenkoeping",3084]
["Madrid","London/Heathrow",2050]
["Tenerife","Berlin/Tegel",2960]
["Singapore","Kangerlussuaq",3048]
["Sharm Luxor","Rome/Ciampino",4927]
["Sngpore Bangkok","Karlstad",3108]
["Lyon Strasb","Sngpore Bangkok",4352]
["Bremen","Singapore",1779]
["Frankfurt","Berlin/Tegel",1315]
["Sharm Luxor","Szczecin",1929]
["London/Stansted","Sandefjord",2601]
["Reykjavik","Rome/Ciampino",3408]
["Tampere","Bergen",1622]
["Malaga/Cost.Sol","Wroclaw",3046]
["Stockholm","Kangerlussuaq",2030]
["Orebro Karlstd","Bucarst Berlin",4228]
["Bremen","London/Gatwick",2249]
["Kalmar Vaxjoe","Helsingborg City ",1504]
["Nice","Vienna",1360]
["Athens","Singapore",3523]
["Singapore","Istanbul",4860]
["Prague","Glasgow Edinbg",1799]
["Reykjavik","Norrkoeping",{"$f":"CEILING(4000*RAND(),1)+1000","v":1995}]
["Hanover","Hamburg",4479]
["Faroe Islands","Norrkoeping",4102]
["Hanover","Chicago",4300]
["Reykjavik","Gothenburg",3202]
["Tallinn","Hanover",1754]
["Bucarst Berlin","Barcelona",2167]
["Bremen","Zurich",4881]
["Troheim Sandefj","Glasgow",2274]
["Madrid","Stockholm",4534]
["London/Stansted","Sngpore Bangkok",3779]
["Vaxjoe Kalmar","Lisbon",4694]
["Chicago","Stuttgart",1732]
["Chicago","Reykjavik",3670]
["Nice","Birmingham",1346]
["Malta","Reykjavik",2200]
["Bergen Sandefj","Lyon Strasb",2665]
["Stavanger","Luxembourg",4705]
["Faroe Islands","Stockholm",3777]
["Brussels ","Tampere",2531]
["Rio Heathrw","Brussels ",3524]
["Orebro Karlstd","Basel",2689]
["Joenkoeping","Lisbon",2522]
["Munster","Malaga Madrid",1830]
["Hurghada","Dusseldorf",2050]
["Milan/Linate","Tenerife",2545]
["Szczecin","Luxembourg",2363]
["Karlstd Orebro","Tallinn",3175]
["Istanbul","Ljubljana",3691]
["Stuttgart","Istanbul",2264]
["Wroclaw","Luxembourg",2738]
["Tallinn","Vesteraas",2902]
["Bucarst Berlin","Ljubljana",2592]
["Ljubljana","Oslo",3276]
["Amsterdam ","Gothenburg",2220]
["Glasgow","Paris De Gaulle",3003]
["Ljubljana","Warsaw",2832]
["Helsinki","London/Heathrow",4249]
["Skopje Bornhlm","Orebro",2208]
["Milan/Linate","Sharm",1311]
["Helsingborg City ","Berlin/Tegel",4376]
["Turku","Sngpore Bangkok",2585]
["Kangerlussuaq","Vaxjoe Kalmar",2465]
["Hamburg","Riga",4548]
["Hanover","Malta",3032]
["Rome/Ciampino","Poznan",3252]
["Rome/Ciampino","Hurghada",4821]
["Brussels ","Reykjavik",1802]
["Karachi Lahore","Sngpore Bangkok",1727]
["Basel","Paris De Gaulle",1961]
["Hanover","Bremen",3032]
["Tallinn","Riga",2741]
["Skopje Bornhlm","Kangerlussuaq",3691]
["Kristiansand","Lyon Strasb",4951]
["Ljubljana","Athens",1919]
["Las Palmas","Milan/Malpensa",4196]
["Tokyo/Narita","Sharm Luxor",3410]
["Hanover","Lisbon",4650]
["Skopje Bornhlm","Poznan",4964]
["Madrid","Vienna",1463]
["Budapest","Gothenburg",4836]
["Venice","Gothenburg",1740]
["Linkoeping","London/Heathrow",1274]
["Kristiansand","Tunis",2470]
["Birmingham","Beijing",{"$f":"CEILING(4000*RAND(),1)+1000","v":2795}]
["Stuttgart","Vaxjoe Kalmar",1335]
["Vesteraas","Newark",4033]
["Riga","Moscow",4641]
["Newark","Stavanger",1685]
["Paderbo Munster ","Budapest",2185]
["Lyon Strasb","London/Gatwick",4168]
["Skopje Bornhlm","Munich",4194]
["Glasgow","Vesteraas",4144]
["Beijing","Narsarsuaq",1381]
["Berlin/Tegel","Narsarsuaq",1238]
["Munster","Linkoeping",3156]
["Kangerlussuaq","Milan/Linate",1206]
["Vesteraas","Skopje Bornhlm",1637]
["Lisbon","Malaga Madrid",1966]
["Singapore","St Petersburg",2126]
["Bergen","Vaxjoe Kalmar",4118]
["Turku","Brussels ",2393]
["Kangerlussuaq","Manchester",4514]
["Norrkoeping","Singapore",4642]
["Malaga/Cost.Sol","Narsarsuaq",1202]
["Budapest","Paris De Gaulle",1222]
["Glasgow Edinbg","Luxembourg",2074]
["Karlstd Orebro","Sharm Luxor",4968]
["Glasgow","Venice",3931]
["Chicago","Beijing",2058]
["Milan/Linate","Karachi Lahore",3530]
["London/Gatwick","Tokyo/Narita",2593]
["Kangerlussuaq","Washington",4639]
["Malaga Madrid","Luxembourg",4116]
["Luxembourg","Wroclaw",4636]
["Frankfurt","Zurich",1234]
["Szczecin","Joenkoeping",3608]
["Faroe Islands","Kristiansand",3861]
["Prague","Istanbul",4229]
["Turku","Ljubljana",1510]
["Vesteraas","Glasgow Edinbg",3521]
["Tallinn","Munster",1859]
["Lisbon","Bucarst Berlin",3079]
["Malaga Madrid","Stavanger",3660]
["Glasgow Edinbg","Rome",4404]
["Tokyo/Narita","Lyon Strasb",2749]
["Turku","Bremen",3569]
["Sandefjord","Vaxjoe Kalmar",4462]
["Lyon Strasb","Stuttgart",1435]
["Amsterdam ","Kristiansand",1166]
["Szczecin","Kangerlussuaq",1199]
["Turku","St Petersburg",4133]
["Las Palmas","Paderbo Munster ",4425]
["Rio Heathrw","Zurich",2924]
["Hamburg","Linkoeping",3048]
["Sharm","Newark",2266]
["Bremen","Helsinki",4989]
["Helsinki","Orebro Karlstd",3110]
["Sandefjord","Trondheim",1061]
["Newark","Kristiansand",1683]
["Gdansk","Newark",4115]
["Sharm","Frankfurt",2929]
["Sharm","Amsterdam ",3043]
["London/Gatwick","Hamburg",1774]
["Skopje Bornhlm","Rome/Ciampino",2045]
["Linkoeping","Nice",3857]
["Frankfurt","Sharm",4350]
["London/Gatwick","London/Stansted",1859]
["Milan/Malpensa","Stockholm",{"$f":"CEILING(4000*RAND(),1)+1000","v":3759}]
["Frankfurt","Barcelona",3831]
["Glasgow Edinbg","Paris De Gaulle",4066]
["Szczecin","Orebro Karlstd",1701]
["Berlin/Tegel","Warsaw",1308]
["Moscow","Budapest",4103]
["Milan/Malpensa","Sandefjord",4002]
["Malaga/Cost.Sol","Helsingborg City ",1498]
["Glasgow","Tallinn",3068]
["Sandefjord","Nice",3161]
["Tenerife","Kangerlussuaq",3442]
["Hamburg","Skopje Bornhlm",1972]
["Kangerlussuaq","Linkoeping",1268]
["Milan/Linate","Karlstd Orebro",3474]
["Frankfurt","Washington",4158]
["Singapore","Sharm",3236]
["Tallinn","Kangerlussuaq",4532]
["Brussels ","Stuttgart",2365]
["Tampere","Karlstd Orebro",3457]
["Tenerife","Sharm",3626]
["Frankfurt","Stockholm",2056]
["Milan/Malpensa","Bergen",1211]
["Basel","London/Gatwick",1242]
["Zurich","Bergen",1668]
["Milan/Malpensa","Stuttgart",2096]
["Skopje Bornhlm","Malaga Madrid",4884]
["Nice","Turku",1070]
["Sandefjord","Amsterdam ",1196]
["Bremen","Poznan",1711]
["Vaxjoe Kalmar","Washington",2966]
["Hurghada","Seattle",4418]
["Orebro Karlstd","Berlin/Tegel",1564]
["Tallinn","Beijing",2689]
["Vaxjoe Kalmar","Bergen Sandefj",4077]
["Trondheim","Helsinki",2671]
["Tenerife","Milan/Malpensa",3723]
["Glasgow Edinbg","Birmingham",4742]
["Dublin","London/Stansted",3338]
["Munich","Lisbon",1658]
["London/Gatwick","Tenerife",4618]
["Kalmar Vaxjoe","Istanbul",1496]
["Karachi Lahore","Karlstad",2696]
["Stavanger","Lyon Strasb",1903]
["Moscow","Bangkok",2856]
["Poznan","Frankfurt",1235]
["Las Palmas","Vaxjoe Kalmar",3960]
["Tunis","Helsingborg City ",4724]
["Helsingborg City ","Hurghada",2305]
["Zurich","Hurghada",3396]
["Brussels ","Seattle",4127]
["Bergen","Chicago",4688]
["Milan/Linate","Kangerlussuaq",3709]
["Szczecin","Lyon Strasb",3548]
["Tunis","Karlstd Orebro",2969]
["Turku","Chicago",1097]
["Gothenburg","Bucarst Berlin",4135]
["Norrkoeping","Frankfurt",1047]
["Singapore","Paderbo Munster ",1337]
["Athens","Orebro",2375]
["Malaga/Cost.Sol","Kangerlussuaq",3641]
["Riga","Paris De Gaulle",2198]
["Berlin/Tegel","Malaga/Cost.Sol",4417]
["Linkoeping","Athens",1725]
["Orebro Karlstd","Budapest",3268]
["Ljubljana","Madrid",{"$f":"CEILING(4000*RAND(),1)+1000","v":1406}]
["Linkoeping","Joenkoeping",3318]
["Newark","Stockholm",1142]
["Tunis","Basel",1962]
["Budapest","Bergen Sandefj",2704]
["Sngpore Bangkok","Moscow",3954]
["Norrkoeping","Helsingborg City ",4049]
["Tunis","St Petersburg",2434]
["Norrkoeping","Rio Heathrw",1053]
["Venice","Karlstd Orebro",1454]
["Tenerife","Newark",4759]
["Stuttgart","Tokyo/Narita",2977]
["Bergen Sandefj","Luxembourg",2409]
["Tallinn","Munich",2069]
["St Petersburg","Skopje Bornhlm",4770]
["Dusseldorf","Chicago",3240]
["St Petersburg","Vienna",2297]
["Gothenburg","Birmingham",4178]
["Narsarsuaq","Helsingborg City ",1868]
["Karlstad","Joenkoeping",1569]
["Washington","Sngpore Bangkok",1544]
["Birmingham","Venice",3563]
["Singapore","Gothenburg",2311]
["Munich","Amsterdam ",3694]
["Gdansk","Birmingham",4462]
["Dusseldorf","Vilnius",3847]
["Tunis","Munster",3731]
["Glasgow","Rio Heathrw",3240]
["Wroclaw","Kalmar Vaxjoe",1009]
["Dublin","Hurghada",4301]
["Washington","Munich",4551]
["London/Heathrow","Basel",4743]
["Szczecin","Glasgow Edinbg",4431]
["Vilnius","Milan/Linate",3840]
["London/Heathrow","Hurghada",2921]
["Helsinki","Malaga/Cost.Sol",3050]
["Tunis","Sharm",3037]
["Karachi Lahore","Birmingham",2611]
["Lyon Strasb","Karlstad",1462]
["Joenkoeping","Basel",1832]
["Reykjavik","Bergen",4010]
["Linkoeping","Beijing",4067]
["Moscow","Tunis",3016]
["Milan/Linate","Gdansk",1524]
["Vienna","Vaxjoe Kalmar",1927]
["St Petersburg","Linkoeping",1095]
["Tallinn","Las Palmas",2206]
["Vilnius","Oslo",4893]
["Paderbo Munster ","Prague",4688]
["Norrkoeping","Lisbon",1765]
["Gdansk","Ljubljana",3451]
["Stockholm","Stuttgart",1892]
["Barcelona","Seattle",4842]
["Helsinki","Hamburg",3050]
["Newark","Rome/Ciampino",4440]
["Bergen Sandefj","Hanover",2507]
["Narsarsuaq","Milan/Malpensa",1807]
["Amsterdam ","Karachi Lahore",3091]
["Tokyo/Narita","St Petersburg",4877]
["Venice","Helsingborg City ",3282]
["Budapest","Norrkoeping",2603]
["Vesteraas","Vilnius",3456]
["Milan/Malpensa","Barcelona",1056]
["Bergen","Stockholm",2364]
["Helsingborg City ","St Petersburg",{"$f":"CEILING(4000*RAND(),1)+1000","v":4750}]
["Vienna","Paris De Gaulle",2616]
["Chicago","Narsarsuaq",2891]
["Madrid","Barcelona",1158]
["Sharm Luxor","Bergen",4407]
["Chicago","Kangerlussuaq",1173]
["Newark","Manchester",4592]
["Malaga Madrid","Oslo",4839]
["Sharm Luxor","London/Heathrow",1073]
["Gothenburg","Paris De Gaulle",4995]
["Newark","Vaxjoe Kalmar",4117]
["Milan/Linate","Vienna",4826]
["Manchester","Sharm Luxor",1880]
["Kangerlussuaq","Glasgow Edinbg",1512]
["Birmingham","Helsinki",3192]
["Kangerlussuaq","Ljubljana",3386]
["London/Heathrow","Stuttgart",1760]
["Oslo","Sharm Luxor",4959]
["Singapore","Karlstd Orebro",4279]
["Norrkoeping","Karlstad",2816]
["Vienna","Seattle",2574]
["Bergen","Karlstad",1166]
["Malaga/Cost.Sol","Hamburg",2262]
["Linkoeping","Karlstd Orebro",1968]
["Tallinn","Washington",2172]
["Singapore","Glasgow Edinbg",3768]
["Linkoeping","Hamburg",4393]
["Narsarsuaq","Munster",1358]
["Manchester","Newark",3116]
["Linkoeping","Lisbon",1884]
["Troheim Sandefj","Manchester",4261]
["Newark","London/Stansted",4510]
["Rome/Ciampino","Glasgow",3082]
["Las Palmas","Skopje Bornhlm",3662]
["Skopje Bornhlm","Helsinki",2563]
["Joenkoeping","Wroclaw",1594]
["Amsterdam ","Prague",3174]
["Birmingham","Linkoeping",3826]
["Vaxjoe Kalmar","Dublin",1455]
["St Petersburg","Glasgow",3615]
["London/Heathrow","Faroe Islands",4146]
["Skopje Bornhlm","Dusseldorf",1704]
["Frankfurt","Sngpore Bangkok",3737]
["Hurghada","Prague",2569]
["Budapest","Sngpore Bangkok",4240]
["Narsarsuaq","Poznan",2157]
["Lyon Strasb","Orebro",1254]
["Washington","Prague",2061]
["Berlin/Tegel","Sandefjord",2766]
["Venice","Zurich",4723]
["Venice","Sandefjord",1009]
["Hanover","Kristiansand",1072]
["Paderbo Munster ","Munich",4567]
["Tampere","Trondheim",2522]
["Karlstd Orebro","Newark",3685]
["Joenkoeping","Tokyo/Narita",2719]
["Karlstd Orebro","London/Stansted",4913]
["Sharm Luxor","Stockholm",1254]
["Geneva","Milan/Malpensa",1101]
["Malaga/Cost.Sol","Gothenburg",2839]
["Vilnius","Tenerife",4607]
["Amsterdam ","Stavanger",2932]
["Moscow","London/Stansted",2118]
["St Petersburg","Rome",4986]
["Karachi Lahore","Bergen",{"$f":"CEILING(4000*RAND(),1)+1000","v":4641}]
["Beijing","Seattle",3887]
["Dublin","Rome/Ciampino",4373]
["Bangkok","Malaga/Cost.Sol",3915]
["Munster","Hurghada",2455]
["Basel","Karachi Lahore",1981]
["Basel","Szczecin",3319]
["Bucarst Berlin","Newark",2178]
["London/Gatwick","Paris De Gaulle",2100]
["Paris De Gaulle","Skopje Bornhlm",1899]
["Dublin","Kristiansand",4888]
["Sngpore Bangkok","Orebro",4769]
["Berlin/Tegel","Orebro",1741]
["Kalmar Vaxjoe","Turku",2848]
["London/Heathrow","Lyon Strasb",2032]
["Washington","Beijing",4676]
["Budapest","Istanbul",2425]
["Basel","Helsinki",3426]
["London/Heathrow","Moscow",3326]
["Ljubljana","Nice",2407]
["Basel","Budapest",3688]
["Rome/Ciampino","Faroe Islands",1695]
["Helsinki","Washington",1637]
["Glasgow","Stuttgart",3325]
["Poznan","Norrkoeping",3188]
["St Petersburg","Tenerife",1659]
["Kangerlussuaq","Amsterdam ",2785]
["Basel","Bangkok",1270]
["Basel","Kristiansand",2800]
["Sandefjord","Karlstd Orebro",1593]
["Troheim Sandefj","Munich",2452]
["Joenkoeping","Sngpore Bangkok",2154]
["Glasgow Edinbg","Milan/Linate",1982]
["Tokyo/Narita","London/Gatwick",2494]
["Glasgow Edinbg","Karlstad",3120]
["Birmingham","Athens",2755]
["Moscow","Poznan",4285]
["St Petersburg","Hanover",3170]
["Szczecin","Bergen Sandefj",2378]
["Tallinn","Malaga/Cost.Sol",3275]
["Turku","Szczecin",3204]
["Glasgow Edinbg","Sharm",1262]
["Hurghada","Norrkoeping",3049]
["Amsterdam ","Orebro Karlstd",3427]
["Malta","Brussels ",4006]
["Rome","Faroe Islands",4797]
["Rome","Birmingham",2099]
["Paderbo Munster ","St Petersburg",4959]
["Karachi Lahore","Turku",3751]
["Sharm","Turku",1312]
["Frankfurt","Helsingborg City ",4420]
["Vesteraas","Bangkok",3001]
["Sandefjord","Helsingborg City ",3314]
["Tallinn","Seattle",4091]
["Hanover","St Petersburg",1924]
["Chicago","Moscow",3242]
["Bergen Sandefj","Birmingham",4309]
["Istanbul","Gothenburg",3452]
["Kangerlussuaq","Moscow",3975]
["Dusseldorf","Orebro Karlstd",1534]
["Turku","Karachi Lahore",4891]
["Poznan","Luxembourg",2963]
["Geneva","Rome/Ciampino",1443]
["Bangkok","Trondheim",4268]
["Bucarst Berlin","Vaxjoe Kalmar",{"$f":"CEILING(4000*RAND(),1)+1000","v":3189}]
["Prague","Bergen Sandefj",3770]
["Moscow","Chicago",3823]
["Trondheim","Dublin",4807]
["Vesteraas","Zurich",2209]
["Ljubljana","Las Palmas",3392]
["Poznan","Kristiansand",4365]
["Moscow","Narsarsuaq",3634]
["Kangerlussuaq","Rio Heathrw",1863]
["Karachi Lahore","Helsinki",1058]
["London/Stansted","Rome/Ciampino",1219]
["Vilnius","Orebro",2136]
["Kristiansand","Frankfurt",1941]
["Lyon Strasb","Madrid",2222]
["Vienna","Zurich",3771]
["Sharm","Hurghada",2055]
["Gdansk","Hamburg",4511]
["Bergen","Rio Heathrw",1628]
["Stavanger","Glasgow",3151]
["Bergen Sandefj","Rio Heathrw",2197]
["Riga","Szczecin",4724]
["Luxembourg","Oslo",3278]
["Bremen","Madrid",3848]
["Hamburg","Joenkoeping",1228]
["Gothenburg","Stavanger",2402]
["Bergen Sandefj","Glasgow Edinbg",4980]
["Wroclaw","Moscow",2960]
["Helsingborg City ","Reykjavik",3185]
["Milan/Linate","Poznan",3619]
["Tokyo/Narita","Tallinn",2933]
["Chicago","Glasgow",3235]
["Berlin/Tegel","Munich",1510]
["Bergen Sandefj","Riga",4972]
["Karlstad","Ljubljana",3941]
["Kangerlussuaq","Athens",3673]
["Paris De Gaulle","Tokyo/Narita",3842]
["Orebro Karlstd","Riga",1738]
["Munster","Lyon Strasb",4633]
["Rome","Istanbul",1922]
["St Petersburg","Stockholm",1513]
["Bergen","Newark",3841]
["Manchester","Troheim Sandefj",2902]
["Chicago","Norrkoeping",4916]
["Munster","Karlstad",1012]
["Moscow","Warsaw",3367]
["Sharm","Linkoeping",1914]
["Bucarst Berlin","Beijing",2499]
["Seattle","Joenkoeping",3524]
["Madrid","Lyon Strasb",4477]
["Sandefjord","Stockholm",3721]
["Dusseldorf","Budapest",3878]
["Las Palmas","Glasgow Edinbg",3023]
["Sharm","Gothenburg",1517]
["London/Heathrow","Seattle",1250]
["Wroclaw","Tampere",1479]
["Tallinn","Berlin/Tegel",2134]
["Warsaw","Amsterdam ",4560]
["Basel","Narsarsuaq",3663]
["Madrid","Bergen",3409]
["Paderbo Munster ","Joenkoeping",1752]
["Tenerife","Tallinn",1583]
["Linkoeping","Poznan",1175]
["Malta","Paris De Gaulle",4602]
["Sngpore Bangkok","Luxembourg",4119]
["Tokyo/Narita","Malaga Madrid",{"$f":"CEILING(4000*RAND(),1)+1000","v":1322}]
["Rio Heathrw","Seattle",2866]
["Paris De Gaulle","Glasgow",3858]
["Luxembourg","Sharm",4564]
["Faroe Islands","Munich",3888]
["Seattle","Zurich",1778]
["Bucarst Berlin","Tallinn",3533]
["Washington","Basel",3707]
["Venice","Ljubljana",2879]
["Paderbo Munster ","Vilnius",1003]
["Karachi Lahore","Madrid",2167]
["Barcelona","Faroe Islands",2495]
["Istanbul","Madrid",2418]
["Seattle","Munster",2256]
["Stuttgart","Sharm",4116]
["Brussels ","Nice",1238]
["Hurghada","Kangerlussuaq",2067]
["Birmingham","London/Heathrow",4538]
["Athens","Rome/Ciampino",2719]
["Tokyo/Narita","Tenerife",4984]
["Linkoeping","Bergen",4271]
["Orebro","Istanbul",4733]
["Hanover","Vaxjoe Kalmar",3211]
["Vilnius","Rio Heathrw",1356]
["Bergen Sandefj","Bangkok",2442]
["Venice","Orebro",2067]
["Lyon Strasb","St Petersburg",2277]
["Wroclaw","London/Stansted",2945]
["Berlin/Tegel","Stuttgart",2493]
["Glasgow","Vaxjoe Kalmar",4903]
["Seattle","Kristiansand",2348]
["Joenkoeping","Hamburg",3093]
["Vaxjoe Kalmar","Bergen",1518]
["Barcelona","Oslo",2820]
["Tunis","Stuttgart",1101]
["Wroclaw","Bucarst Berlin",4850]
["Munster","Brussels ",1344]
["Istanbul","Hamburg",4546]
["Sharm","Sandefjord",4127]
["Hanover","Luxembourg",4258]
["Narsarsuaq","Trondheim",4156]
["Bergen","Skopje Bornhlm",2907]
["Rome/Ciampino","Lyon Strasb",4990]
["Munster","Milan/Malpensa",1639]
["Chicago","London/Heathrow",2632]
["Sharm Luxor","Dublin",2718]
["Helsingborg City ","Orebro Karlstd",4994]
["Norrkoeping","Bergen",3248]
["Szczecin","London/Gatwick",2526]
["Szczecin","Gdansk",1553]
["Kangerlussuaq","Las Palmas",1915]
["Manchester","Tampere",4026]
["Sandefjord","Budapest",4897]
["Troheim Sandefj","Bremen",2503]
["Stockholm","Tokyo/Narita",4112]
["Athens","Gothenburg",1212]
["Stavanger","Prague",3451]
["Istanbul","Amsterdam ",3364]
["Poznan","Hurghada",4921]
["Manchester","Bergen Sandefj",3249]
["Beijing","Munster",4855]
["Vesteraas","Oslo",3019]
["Manchester","London/Heathrow",3161]
["Malta","Hanover",2732]
["Vaxjoe Kalmar","Birmingham",{"$f":"CEILING(4000*RAND(),1)+1000","v":2894}]
["Helsinki","Vaxjoe Kalmar",3312]
["Newark","Birmingham",3391]
["Warsaw","Vesteraas",1326]
["Paderbo Munster ","Tunis",3444]
["Beijing","Sngpore Bangkok",4375]
["Poznan","Prague",4752]
["Trondheim","Madrid",2685]
["Berlin/Tegel","St Petersburg",2856]
["Bangkok","Brussels ",4183]
["Bremen","Sharm",4929]
["Vaxjoe Kalmar","Tallinn",4090]
["Hamburg","London/Stansted",1810]
["Frankfurt","Munich",2253]
["Lisbon","Hanover",1366]
["Zurich","Hanover",2926]
["Malaga Madrid","Hanover",1253]
["Gdansk","Brussels ",2732]
["Nice","Budapest",3155]
["Hanover","Lyon Strasb",1651]
["Frankfurt","Chicago",1849]
["Frankfurt","Bergen",4586]
["Rio Heathrw","Kristiansand",4025]
["Sharm","Orebro",3548]
["Helsinki","Bergen Sandefj",2936]
["Athens","Tunis",3549]
["Helsinki","Szczecin",2242]
["Barcelona","Tampere",4095]
["Frankfurt","Vilnius",4272]
["Stockholm","Madrid",1944]
["Reykjavik","Szczecin",2338]
["Joenkoeping","Rome/Ciampino",2959]
["Vesteraas","Seattle",3188]
["Brussels ","Munster",4617]
["Las Palmas","Trondheim",4648]
["Karlstd Orebro","Luxembourg",1030]
["Tampere","Moscow",4702]
["Madrid","Warsaw",4029]
["Budapest","Bucarst Berlin",4900]
["Malaga Madrid","Helsingborg City ",1580]
["Szczecin","Karachi Lahore",1243]
["Tallinn","Troheim Sandefj",3563]
["Basel","Madrid",3074]
["Milan/Malpensa","Trondheim",4037]
["Birmingham","Sharm",1671]
["Stavanger","Tenerife",4591]
["Kalmar Vaxjoe","Seattle",4289]
["Brussels ","Norrkoeping",2964]
["Orebro","Norrkoeping",1626]
["Helsingborg City ","Washington",3006]
["Geneva","Lisbon",1274]
["Rome","Turku",1478]
["Glasgow Edinbg","Venice",4991]
["Gdansk","Zurich",3963]
["Tampere","Brussels ",4033]
["Hanover","Frankfurt",4481]
["Seattle","Glasgow",4511]
["Las Palmas","Orebro Karlstd",3594]
["Frankfurt","Rio Heathrw",2795]
["Hamburg","Gothenburg",1253]
["Bergen Sandefj","Hamburg",1033]
["Amsterdam ","Sandefjord",3754]
["Moscow","Wroclaw",2153]
["Linkoeping","Lyon Strasb",4213]
["Singapore","Luxembourg",{"$f":"CEILING(4000*RAND(),1)+1000","v":3438}]
["Munster","Tenerife",4810]
["Glasgow","Lisbon",3405]
["St Petersburg","Budapest",1895]
["Gdansk","Milan/Linate",1383]
["Beijing","Athens",1897]
["Tokyo/Narita","Narsarsuaq",3428]
["Kristiansand","Moscow",1871]
["Malta","Vaxjoe Kalmar",2487]
["Manchester","Tallinn",3525]
["Troheim Sandefj","Milan/Malpensa",3233]
["Stockholm","Orebro Karlstd",3697]
["Karlstd Orebro","Hurghada",1264]
["Trondheim","Sandefjord",1336]
["Gdansk","Tenerife",1439]
["Munich","Skopje Bornhlm",3680]
["St Petersburg","Lyon Strasb",1938]
["Rome","London/Heathrow",4496]
["Tokyo/Narita","Geneva",3860]
["Frankfurt","Joenkoeping",4749]
["Berlin/Tegel","Istanbul",3606]
["Glasgow","Sandefjord",2400]
["Paderbo Munster ","Orebro Karlstd",1366]
["Washington","Vaxjoe Kalmar",4753]
["Dusseldorf","Barcelona",2061]
["Karachi Lahore","Tenerife",4901]
["Paderbo Munster ","Rome/Ciampino",3260]
["Tampere","Helsingborg City ",1256]
["Karlstad","Kristiansand",2876]
["Sharm Luxor","Skopje Bornhlm",2653]
["Bucarst Berlin","Bergen Sandefj",3316]
["Sharm","London/Stansted",1938]
["Nice","Narsarsuaq",1532]
["Singapore","Warsaw",1850]
["Geneva","Barcelona",4782]
["Malaga/Cost.Sol","Karachi Lahore",4650]
["St Petersburg","Amsterdam ",3272]
["St Petersburg","Karlstad",3352]
["Frankfurt","Milan/Malpensa",3799]
["Luxembourg","Vesteraas",4093]
["Stockholm","Paris De Gaulle",3702]
["Linkoeping","London/Stansted",2448]
["Budapest","Nice",3315]
["Istanbul","Beijing",3489]
["Beijing","Newark",3604]
["Lyon Strasb","Singapore",1580]
["Dublin","Tampere",4013]
["Karachi Lahore","Barcelona",1295]
["Stavanger","Gothenburg",2754]
["Kalmar Vaxjoe","Frankfurt",1525]
["Linkoeping","Washington",1779]
["Singapore","Oslo",3157]
["Paderbo Munster ","Szczecin",2221]
["Karachi Lahore","Bucarst Berlin",4756]
["Tampere","Sharm",4764]
["London/Heathrow","Singapore",1668]
["Rome","Washington",1699]
["Narsarsuaq","Moscow",1231]
["Helsingborg City ","Budapest",3228]
["Sharm","Tallinn",3489]
["Paderbo Munster ","Malaga/Cost.Sol",3151]
["Lyon Strasb","Washington",2753]
["Chicago","Vilnius",2314]
["Stockholm","Joenkoeping",1776]
["Madrid","Paderbo Munster ",{"$f":"CEILING(4000*RAND(),1)+1000","v":2205}]
["Gdansk","Singapore",3698]
["Riga","Sngpore Bangkok",4432]
["Sharm","Munster",3738]
["Malaga/Cost.Sol","Poznan",4284]
["Karlstad","Dusseldorf",4818]
["Troheim Sandefj","Narsarsuaq",2919]
["Oslo","Brussels ",1936]
["Oslo","Budapest",1070]
["Beijing","Washington",3309]
["Hanover","Dublin",1490]
["Joenkoeping","Munich",2385]
["Madrid","Karachi Lahore",4591]
["Munster","Nice",4730]
["Malaga Madrid","Linkoeping",1008]
["Kristiansand","Glasgow",1802]
["Gothenburg","Karlstd Orebro",1223]
["Nice","Helsinki",3264]
["Tampere","Ljubljana",3806]
["Lyon Strasb","Paderbo Munster ",2657]
["Zurich","Narsarsuaq",2770]
["Amsterdam ","Karlstad",1626]
["Hanover","Nice",2770]
["Tenerife","Vienna",2481]
["Bucarst Berlin","Bangkok",2679]
["Stockholm","Malaga Madrid",4234]
["Manchester","Faroe Islands",3131]
["Stockholm","Karachi Lahore",1845]
["Barcelona","Stockholm",2710]
["Rio Heathrw","Bergen",1650]
["St Petersburg","Beijing",2205]
["Milan/Linate","Helsingborg City ",4443]
["Sharm Luxor","Paris De Gaulle",4402]
["Sandefjord","Venice",4630]
["Helsingborg City ","Tenerife",1116]
["Rome","Tampere",4327]
["Newark","Milan/Malpensa",1925]
["Troheim Sandefj","Linkoeping",4290]
["Las Palmas","Tenerife",3675]
["Madrid","Tunis",1370]
["Reykjavik","Washington",2458]
["Luxembourg","Helsinki",2398]
["Paris De Gaulle","Malaga/Cost.Sol",4605]
["Karlstad","Luxembourg",3129]
["Manchester","Birmingham",2541]
["Bremen","Munster",4122]
["Luxembourg","Seattle",3900]
["Orebro Karlstd","Narsarsuaq",4730]
["Vaxjoe Kalmar","Paderbo Munster ",1649]
["Norrkoeping","Milan/Malpensa",1560]
["Hurghada","Amsterdam ",1576]
["Berlin/Tegel","Zurich",3798]
["Riga","London/Gatwick",1984]
["Lisbon","Seattle",2712]
["Las Palmas","Kristiansand",2095]
["Lyon Strasb","Budapest",3225]
["Gdansk","Munich",2532]
["Warsaw","Ljubljana",2886]
["Hanover","Troheim Sandefj",3892]
["London/Stansted","Hamburg",1626]
["Poznan","Linkoeping",1875]
["Amsterdam ","Nice",3047]
["Moscow","Sngpore Bangkok",1303]
["Manchester","Brussels ",4288]
["Ljubljana","Newark",{"$f":"CEILING(4000*RAND(),1)+1000","v":3243}]
["Rome/Ciampino","Wroclaw",4697]
["Stuttgart","Glasgow",3796]
["Seattle","Stavanger",2365]
["Budapest","Linkoeping",4205]
["Beijing","Joenkoeping",1318]
["Poznan","Bergen Sandefj",3053]
["Newark","Warsaw",1604]
["Narsarsuaq","Orebro",2410]
["Rome","Glasgow Edinbg",3570]
["Karlstd Orebro","Helsinki",1359]
["Munich","Szczecin",4190]
["Vesteraas","Beijing",4606]
["Milan/Linate","Tokyo/Narita",3699]
["Vienna","Budapest",1864]
["Athens","Karachi Lahore",4803]
["Paderbo Munster ","Istanbul",4470]
["Seattle","Athens",4004]
["London/Heathrow","Nice",1622]
["Helsingborg City ","London/Heathrow",2080]
["Washington","Wroclaw",2653]
["Sharm Luxor","Milan/Malpensa",3404]
["Orebro Karlstd","Newark",4682]
["Milan/Malpensa","London/Stansted",1467]
["Nice","Trondheim",3597]
["Karachi Lahore","Rio Heathrw",4162]
["Moscow","Turku",4931]
["Narsarsuaq","Lisbon",2121]
["Paderbo Munster ","Kalmar Vaxjoe",4788]
["Las Palmas","Sharm",4808]
["Bergen","Rome",2865]
["Oslo","Sandefjord",3305]
["Moscow","Hamburg",3279]
["Orebro","Seattle",1434]
["Linkoeping","Tampere",1104]
["St Petersburg","Troheim Sandefj",2948]
["Washington","Kalmar Vaxjoe",4709]
["Munster","Lisbon",2359]
["Glasgow Edinbg","Lisbon",4981]
["Linkoeping","Rio Heathrw",2075]
["Manchester","Stavanger",3659]
["Las Palmas","Venice",2853]
["Narsarsuaq","Glasgow Edinbg",1669]
["Gothenburg","Wroclaw",1907]
["Karachi Lahore","Oslo",3814]
["Frankfurt","Kristiansand",2552]
["Lisbon","Tallinn",1769]
["Venice","Narsarsuaq",4853]
["Turku","Gothenburg",2031]
["Budapest","Birmingham",2562]
["Sharm Luxor","Norrkoeping",2211]
["Ljubljana","Norrkoeping",3586]
["Tallinn","Joenkoeping",4901]
["Hamburg","Zurich",1272]
["Joenkoeping","Milan/Linate",3799]
["Karlstd Orebro","Oslo",3958]
["Newark","Seattle",3663]
["Narsarsuaq","Barcelona",2266]
["Rio Heathrw","Tokyo/Narita",1746]
["Las Palmas","Joenkoeping",2408]
["Madrid","Karlstd Orebro",2664]
["London/Stansted","Manchester",4968]
["Glasgow","Kangerlussuaq",3642]
["Stuttgart","Berlin/Tegel",1706]
["Athens","Barcelona",{"$f":"CEILING(4000*RAND(),1)+1000","v":2706}]
["Chicago","Glasgow Edinbg",4871]
["Gothenburg","Lisbon",1875]
["Malaga Madrid","Tunis",4014]
["Birmingham","Milan/Linate",1945]
["Las Palmas","Sngpore Bangkok",1307]
["Singapore","Joenkoeping",3600]
["Singapore","Orebro Karlstd",1216]
["Lyon Strasb","Joenkoeping",3384]
["Trondheim","Sharm Luxor",1474]
["Malta","Glasgow Edinbg",3193]
["Helsinki","Brussels ",1555]
["Tampere","Orebro Karlstd",4968]
["Vienna","Brussels ",1974]
["Luxembourg","Rome",3882]
["Karlstad","Hamburg",3373]
["Norrkoeping","Orebro",1728]
["Basel","Skopje Bornhlm",4876]
["Moscow","Munich",3555]
["Lisbon","London/Gatwick",4075]
["Paris De Gaulle","Bangkok",1681]
["Munich","Berlin/Tegel",2134]
["Orebro Karlstd","Venice",4289]
["Singapore","Seattle",2356]
["Prague","Sharm Luxor",1520]
["Joenkoeping","Tenerife",4046]
["Glasgow","Basel",2566]
["London/Heathrow","Joenkoeping",3039]
["Turku","Joenkoeping",2743]
["Vilnius","St Petersburg",4456]
["Poznan","Nice",1503]
["Vaxjoe Kalmar","Hurghada",1756]
["Narsarsuaq","Glasgow",3815]
["Geneva","Beijing",3811]
["Bangkok","Sandefjord",1377]
["Munster","Norrkoeping",3224]
["Sngpore Bangkok","Rome",4544]
["Birmingham","Luxembourg",2463]
["Troheim Sandefj","Venice",1030]
["Manchester","Riga",2669]
["Hanover","Prague",1775]
["Hamburg","Tampere",2745]
["Malaga Madrid","Singapore",3027]
["Luxembourg","Sandefjord",2237]
["Stavanger","Gdansk",1669]
["Amsterdam ","Luxembourg",1343]
["London/Heathrow","Geneva",3176]
["Tunis","London/Heathrow",3964]
["Oslo","Munster",3944]
["Hurghada","Istanbul",4588]
["Stockholm","Troheim Sandefj",4042]
["Milan/Malpensa","Skopje Bornhlm",1605]
["Stockholm","Milan/Malpensa",1348]
["Skopje Bornhlm","Narsarsuaq",4606]
["Washington","Chicago",1173]
["Stavanger","Nice",4612]
["Karachi Lahore","Szczecin",3471]
["Rome/Ciampino","Paris De Gaulle",3135]
["Dublin","Hanover",2991]
["Athens","Hanover",3433]
["Linkoeping","Narsarsuaq",2706]
["Newark","Tampere",3284]
["Tampere","Dusseldorf",4322]
["Malaga Madrid","Paderbo Munster ",4094]
["Hamburg","Moscow",{"$f":"CEILING(4000*RAND(),1)+1000","v":4112}]
["Prague","St Petersburg",1636]
["London/Stansted","Istanbul",4876]
["Seattle","Vilnius",1300]
["Kalmar Vaxjoe","London/Heathrow",1025]
["Luxembourg","Prague",1900]
["Gdansk","Rome/Ciampino",4867]
["Vaxjoe Kalmar","Glasgow Edinbg",3712]
["Paris De Gaulle","Poznan",1363]
["Warsaw","Bergen Sandefj",1644]
["Ljubljana","Gdansk",2169]
["Newark","Tunis",4259]
["Bangkok","Luxembourg",1518]
["Vaxjoe Kalmar","Turku",2670]
["Las Palmas","Bucarst Berlin",2376]
["Stockholm","Vienna",4300]
["Frankfurt","Reykjavik",4726]
["Frankfurt","Kalmar Vaxjoe",3531]
["Geneva","London/Heathrow",2599]
["Basel","Moscow",4930]
["Faroe Islands","Hanover",1534]
["Bucarst Berlin","Tampere",4715]
["Frankfurt","St Petersburg",2800]
["Bucarst Berlin","Karlstad",1045]
["Washington","Glasgow Edinbg",3382]
["Rome","Tallinn",1427]
["Stavanger","Barcelona",3372]
["Singapore","Bergen Sandefj",1598]
["Helsinki","Vienna",2366]
["Barcelona","Geneva",4564]
["Paris De Gaulle","Oslo",2399]
["Sharm Luxor","Karachi Lahore",2534]
["Riga","Paderbo Munster ",2919]
["Sngpore Bangkok","Geneva",4098]
["Stockholm","Singapore",3419]
["Tunis","Oslo",2828]
["Kristiansand","Gothenburg",1319]
["Orebro","Dublin",1725]
["Paris De Gaulle","Vaxjoe Kalmar",3036]
["Dublin","Dusseldorf",4868]
["Gdansk","Vienna",3791]
["Milan/Malpensa","Amsterdam ",2181]
["Seattle","Milan/Linate",1745]
["Poznan","Hanover",1906]
["Prague","Linkoeping",3998]
["Hamburg","Singapore",3180]
["Orebro Karlstd","London/Gatwick",3099]
["Zurich","Karlstd Orebro",3382]
["Vesteraas","St Petersburg",3120]
["Troheim Sandefj","Reykjavik",1222]
["Karachi Lahore","Geneva",2004]
["Malaga Madrid","Munster",1778]
["Bangkok","Vilnius",3198]
["Bremen","Vienna",4126]
["Manchester","Budapest",3529]
["Chicago","Wroclaw",2535]
["Barcelona","Hurghada",4052]
["Tunis","Lisbon",1442]
["Budapest","Reykjavik",1454]
["Kalmar Vaxjoe","Venice",2979]
["Gothenburg","Faroe Islands",3084]
["Venice","Tunis",4071]
["Beijing","Tampere",4385]
["Brussels ","St Petersburg",3768]
["Stuttgart","Helsinki",{"$f":"CEILING(4000*RAND(),1)+1000","v":2167}]
["Glasgow Edinbg","Warsaw",3422]
["Newark","Vienna",2347]
["Vaxjoe Kalmar","Munster",2987]
["Munich","Manchester",2529]
["Wroclaw","Milan/Malpensa",2232]
["Riga","Karlstad",2003]
["Paris De Gaulle","Basel",2252]
["London/Heathrow","Barcelona",3232]
["Bergen Sandefj","London/Heathrow",4011]
["Budapest","Basel",3152]
["Bergen","Istanbul",4442]
["Chicago","Oslo",2495]
["Bremen","Hamburg",4916]
["Washington","Malaga Madrid",1797]
["Warsaw","Luxembourg",1089]
["Sngpore Bangkok","Sandefjord",1397]
["Poznan","Karachi Lahore",2436]
["Norrkoeping","Lyon Strasb",1192]
["Tallinn","Brussels ",1147]
["Hurghada","Troheim Sandefj",1293]
["Zurich","Frankfurt",4858]
["Kristiansand","Dublin",4404]
["Berlin/Tegel","Reykjavik",1768]
["St Petersburg","Orebro",2646]
["Tampere","Oslo",1225]
["Tampere","Tallinn",4271]
["Malta","Frankfurt",3929]
["Istanbul","Prague",4208]
["London/Gatwick","Lyon Strasb",4847]
["Sandefjord","Warsaw",3011]
["Luxembourg","Munich",3917]
["Vesteraas","Berlin/Tegel",2368]
["Oslo","Newark",2322]
["Paderbo Munster ","Madrid",3076]
["Helsinki","Glasgow Edinbg",2066]
["Tenerife","Troheim Sandefj",1159]
["Bremen","Reykjavik",3239]
["Faroe Islands","Athens",1919]
["Tenerife","Tampere",2310]
["Bangkok","Istanbul",1673]
["Vienna","Riga",2534]
["Seattle","Vesteraas",3315]
["Turku","Milan/Malpensa",3593]
["Oslo","Rome/Ciampino",4365]
["Malaga Madrid","Helsinki",4166]
["Norrkoeping","Geneva",3117]
["Kristiansand","Vienna",2428]
["Lisbon","Karlstd Orebro",1535]
["Kristiansand","Helsinki",1383]
["Rome","Milan/Linate",4613]
["Szczecin","Lisbon",4760]
["Vienna","Skopje Bornhlm",4870]
["Kristiansand","Warsaw",3685]
["Dusseldorf","Troheim Sandefj",4451]
["Venice","Seattle",3568]
["Troheim Sandefj","Budapest",1060]
["Kangerlussuaq","Stavanger",3757]
["Helsingborg City ","Oslo",3374]
["Glasgow","Linkoeping",1530]
["Narsarsuaq","Tenerife",2254]
["Wroclaw","Glasgow Edinbg",4926]
["Sngpore Bangkok","Las Palmas",1252]
["Milan/Malpensa","Poznan",2824]
["Bergen Sandefj","Warsaw",{"$f":"CEILING(4000*RAND(),1)+1000","v":2704}]
["Geneva","Tallinn",3572]
["Oslo","Beijing",1939]
["Lyon Strasb","Rome",3767]
["Stuttgart","Luxembourg",3953]
["Paris De Gaulle","Malta",3172]
["Helsinki","Poznan",2413]
["Munich","Trondheim",1386]
["Wroclaw","Frankfurt",3867]
["Manchester","Kalmar Vaxjoe",1684]
["Kalmar Vaxjoe","Rome/Ciampino",4852]
["Berlin/Tegel","Tunis",4840]
["Rome","Seattle",2431]
["Rio Heathrw","Sharm",1632]
["Luxembourg","Hurghada",3392]
["Tokyo/Narita","Stavanger",4329]
["Lisbon","Kangerlussuaq",3373]
["Wroclaw","Malaga Madrid",1751]
["Birmingham","Seattle",3866]
["Kangerlussuaq","Bergen",2432]
["Vienna","Malaga Madrid",3515]
["Sngpore Bangkok","London/Gatwick",1534]
["Vesteraas","Lyon Strasb",4489]
["Venice","Madrid",4592]
["Vaxjoe Kalmar","Venice",3891]
["Glasgow Edinbg","Munich",1108]
["Warsaw","Zurich",4121]
["Tallinn","Lisbon",2490]
["Vesteraas","Budapest",4402]
["Orebro Karlstd","Prague",4448]
["Tallinn","Luxembourg",1847]
["Barcelona","Brussels ",1729]
["Karachi Lahore","Tampere",4021]
["Orebro","Karachi Lahore",4537]
["Geneva","Venice",3291]
["Joenkoeping","Milan/Malpensa",4703]
["Linkoeping","Madrid",4272]
["Sharm Luxor","Glasgow Edinbg",2988]
["Kristiansand","Sharm Luxor",4836]
["Milan/Malpensa","Troheim Sandefj",1116]
["Bucarst Berlin","Oslo",4921]
["Vaxjoe Kalmar","Malta",4232]
["Las Palmas","Budapest",2606]
["Sharm Luxor","Kangerlussuaq",1274]
["Bangkok","Milan/Linate",2785]
["Trondheim","Sngpore Bangkok",1918]
["Oslo","Frankfurt",2960]
["Milan/Linate","London/Gatwick",2224]
["Karlstad","Prague",4849]
["Dublin","Beijing",4641]
["Geneva","Orebro Karlstd",4773]
["Warsaw","Vaxjoe Kalmar",3839]
["Turku","Helsingborg City ",1231]
["Glasgow Edinbg","Budapest",4496]
["Linkoeping","Glasgow",2080]
["Gdansk","Madrid",2486]
["Ljubljana","Lisbon",2098]
["Stavanger","Linkoeping",3530]
["Munich","Bangkok",3058]
["Bremen","London/Stansted",3508]
["Las Palmas","Szczecin",4054]
["Hanover","Kangerlussuaq",4047]
["Lisbon","Rio Heathrw",3082]
["Ljubljana","Kalmar Vaxjoe",1592]
["Troheim Sandefj","Rome/Ciampino",{"$f":"CEILING(4000*RAND(),1)+1000","v":2794}]
["Kangerlussuaq","Norrkoeping",3047]
["Madrid","Riga",2867]
["Beijing","Geneva",2098]
["Karlstad","Las Palmas",1216]
["Hanover","Munich",3538]
["Rome/Ciampino","Turku",1274]
["Tunis","Turku",4175]
["Trondheim","Newark",2803]
["Luxembourg","Athens",2884]
["Luxembourg","Frankfurt",1659]
["Helsingborg City ","Basel",2366]
["Orebro Karlstd","Trondheim",4571]
["Luxembourg","London/Stansted",2664]
["Norrkoeping","Vilnius",1133]
["Bergen Sandefj","Poznan",4659]
["Helsingborg City ","Seattle",2649]
["Milan/Malpensa","Vilnius",2248]
["Las Palmas","Stockholm",2566]
["Bangkok","Stuttgart",3885]
["Vesteraas","Hanover",3601]
["Stockholm","Sngpore Bangkok",1968]
["Sandefjord","Narsarsuaq",4718]
["Geneva","London/Stansted",1385]
["Lyon Strasb","Venice",3383]
["Tampere","Orebro",4777]
["Bremen","Vilnius",2549]
["Dublin","Orebro Karlstd",4628]
["Kangerlussuaq","Malaga/Cost.Sol",1503]
["Sngpore Bangkok","Frankfurt",4094]
["Warsaw","Bremen",4367]
["Frankfurt","Glasgow",1778]
["Joenkoeping","Poznan",4986]
["Hurghada","Orebro",2180]
["Linkoeping","Seattle",3452]
["Oslo","Hanover",4650]
["Bergen Sandefj","Istanbul",3786]
["Tunis","Ljubljana",2686]
["Bremen","Faroe Islands",1515]
["Tallinn","Dublin",2099]
["Milan/Linate","Brussels ",2354]
["Tunis","London/Stansted",2348]
["Dusseldorf","Rome/Ciampino",3710]
["Orebro Karlstd","Vilnius",1258]
["Sngpore Bangkok","Karlstd Orebro",1007]
["Riga","Skopje Bornhlm",3959]
["Sngpore Bangkok","Bucarst Berlin",1252]
["Las Palmas","Dublin",2045]
["Tampere","Szczecin",2504]
["Turku","Riga",2007]
["Karlstad","Manchester",2195]
["Dublin","Munich",4142]
["Gothenburg","London/Stansted",1491]
["Faroe Islands","Linkoeping",1838]
["Dublin","Gdansk",2439]
["Orebro","Gothenburg",3915]
["Zurich","Venice",2887]
["Helsinki","Paderbo Munster ",4955]
["Bucarst Berlin","Joenkoeping",2734]
["Reykjavik","Sngpore Bangkok",2423]
["Athens","London/Gatwick",3052]
["Bergen","Luxembourg",2347]
["Birmingham","Orebro",3021]
["Tampere","Munster",2911]
["Kristiansand","Munster",{"$f":"CEILING(4000*RAND(),1)+1000","v":3315}]
["Rome","Stuttgart",2908]
["Tokyo/Narita","Vilnius",3852]
["St Petersburg","Orebro Karlstd",1987]
["Vienna","Tokyo/Narita",3652]
["Prague","Vilnius",3902]
["Malaga Madrid","Orebro",3137]
["Sharm","Budapest",2363]
["Hamburg","Bangkok",1341]
["Munich","Sngpore Bangkok",1732]
["Hanover","Linkoeping",4463]
["Malaga Madrid","Birmingham",2331]
["Skopje Bornhlm","Newark",4848]
["Malaga/Cost.Sol","Trondheim",2345]
["Turku","Milan/Linate",2108]
["Sharm Luxor","Malaga/Cost.Sol",4959]
["Singapore","Prague",1079]
["Berlin/Tegel","Bergen Sandefj",4871]
["Sharm","Hanover",3438]
["Sharm","Karlstd Orebro",2363]
["Birmingham","Bergen",2057]
["Orebro","Bremen",3652]
["Wroclaw","Nice",2893]
["Bucarst Berlin","Malaga/Cost.Sol",2565]
["Norrkoeping","Tenerife",3351]
["Dusseldorf","Berlin/Tegel",3524]
["Helsingborg City ","Malaga/Cost.Sol",4386]
["London/Stansted","Madrid",3240]
["Milan/Malpensa","Kristiansand",1022]
["Moscow","Vilnius",1841]
["Troheim Sandefj","Vaxjoe Kalmar",4731]
["Glasgow","Zurich",2201]
["Trondheim","Poznan",1068]
["Birmingham","Warsaw",1093]
["London/Gatwick","Skopje Bornhlm",4709]
["Vilnius","Orebro Karlstd",4624]
["Lisbon","Sandefjord",1273]
["Barcelona","Norrkoeping",4738]
["Glasgow Edinbg","Sngpore Bangkok",2101]
["Dublin","Amsterdam ",3491]
["Linkoeping","London/Gatwick",4105]
["Singapore","Washington",1725]
["Malaga/Cost.Sol","Berlin/Tegel",4823]
["London/Gatwick","Bremen",2579]
["Reykjavik","Karlstd Orebro",2295]
["Bergen Sandefj","Hurghada",1835]
["Las Palmas","Birmingham",3403]
["Washington","Turku",3737]
["Tallinn","Stuttgart",3188]
["Berlin/Tegel","Hanover",2625]
["Stavanger","Faroe Islands",3014]
["Narsarsuaq","Washington",4612]
["Faroe Islands","Bremen",3616]
["Stavanger","Singapore",3124]
["Prague","Lyon Strasb",3197]
["Rome/Ciampino","Vienna",1604]
["Istanbul","Dusseldorf",2857]
["Chicago","Nice",2408]
["Bergen Sandefj","Brussels ",1366]
["Troheim Sandefj","Tallinn",3627]
["Basel","Manchester",2537]
["Paderbo Munster ","Chicago",3336]
["Tokyo/Narita","Wroclaw",2187]
["Vesteraas","Joenkoeping",1649]
["Milan/Malpensa","Warsaw",{"$f":"CEILING(4000*RAND(),1)+1000","v":4116}]
["Sharm Luxor","Prague",4329]
["Basel","Chicago",4333]
["Singapore","Beijing",4114]
["Malaga/Cost.Sol","Orebro",3534]
["Sngpore Bangkok","Joenkoeping",1225]
["St Petersburg","Karachi Lahore",1928]
["Vesteraas","Manchester",4651]
["Basel","Warsaw",2504]
["Kangerlussuaq","Faroe Islands",4595]
["Prague","Glasgow",2118]
["Glasgow","Tunis",1226]
["Venice","Sngpore Bangkok",2454]
["Tokyo/Narita","Gothenburg",4937]
["Bucarst Berlin","Bergen",3312]
["Munich","Athens",4626]
["Beijing","Karlstad",1236]
["Chicago","Orebro Karlstd",2521]
["Bucarst Berlin","Glasgow",3662]
["Trondheim","Tallinn",4308]
["Tenerife","Turku",1684]
["Bergen Sandefj","Paderbo Munster ",2759]
["Sharm Luxor","Basel",2872]
["Dublin","Vienna",4067]
["Basel","Newark",3830]
["Riga","Barcelona",4339]
["Lyon Strasb","Kalmar Vaxjoe",2615]
["Istanbul","Sandefjord",1336]
["Beijing","Glasgow",1199]
["Athens","Helsingborg City ",4100]
["Oslo","Karachi Lahore",4172]
["Moscow","Skopje Bornhlm",1607]
["Kangerlussuaq","Prague",2791]
["Geneva","Faroe Islands",3546]
["Bergen Sandefj","Norrkoeping",3243]
["Singapore","Dusseldorf",4214]
["Orebro Karlstd","Glasgow",1873]
["Luxembourg","Norrkoeping",4368]
["Moscow","Amsterdam ",1613]
["Reykjavik","Paris De Gaulle",1716]
["Geneva","Karlstad",2542]
["Bergen Sandefj","Beijing",4666]
["Reykjavik","Zurich",2078]
["Malaga Madrid","Vienna",2392]
["Riga","London/Heathrow",4819]
["Szczecin","Poznan",2142]
["Vesteraas","Brussels ",1076]
["Bergen","Trondheim",3804]
["Riga","Berlin/Tegel",1509]
["Stavanger","Vaxjoe Kalmar",4837]
["Skopje Bornhlm","Riga",1563]
["Faroe Islands","Rome/Ciampino",2048]
["Vienna","London/Gatwick",4164]
["Budapest","Lyon Strasb",4831]
["Stavanger","Hanover",4914]
["Hamburg","Glasgow",4188]
["Hamburg","Turku",3846]
["Munster","Tampere",4233]
["Vaxjoe Kalmar","Helsinki",1139]
["Lisbon","London/Stansted",2284]
["Rio Heathrw","Linkoeping",4228]
["Bergen","Glasgow",3116]
["Paris De Gaulle","Wroclaw",3630]
["Tokyo/Narita","Malta",4149]
["Brussels ","Bergen",{"$f":"CEILING(4000*RAND(),1)+1000","v":1249}]
["Trondheim","Faroe Islands",2553]
["Brussels ","Prague",4624]
["Munster","Oslo",3380]
["Glasgow","Tampere",3137]
["Turku","Bangkok",1568]
["Bergen","Norrkoeping",4410]
["Malta","Amsterdam ",4676]
["Stockholm","London/Stansted",1370]
["Orebro","Warsaw",4430]
["Sharm","Beijing",1907]
["Karachi Lahore","Sandefjord",4167]
["Karachi Lahore","Tunis",4830]
["Venice","Szczecin",4443]
["Karlstd Orebro","London/Heathrow",1602]
["Joenkoeping","Geneva",1958]
["Basel","Tunis",4345]
["Kangerlussuaq","Tampere",2695]
["Bergen","Tunis",3173]
["Basel","Venice",2864]
["Las Palmas","Gothenburg",2509]
["Basel","Luxembourg",1551]
["Bucarst Berlin","Sharm Luxor",4043]
["Barcelona","Tunis",4558]
["Sandefjord","Manchester",1469]
["Malaga Madrid","Dublin",1038]
["Seattle","Berlin/Tegel",2978]
["Stavanger","Dusseldorf",1892]
["Wroclaw","Bangkok",3803]
["Bangkok","Glasgow Edinbg",2594]
["Trondheim","Tokyo/Narita",3669]
["Stuttgart","Barcelona",4456]
["Glasgow Edinbg","Ljubljana",4562]
["Skopje Bornhlm","Bergen Sandefj",3318]
["Luxembourg","Rio Heathrw",4571]
["Frankfurt","Sandefjord",3505]
["Luxembourg","Kristiansand",2959]
["Karlstad","Rome",3677]
["Sharm","Washington",3768]
["Berlin/Tegel","Karlstd Orebro",1526]
["Oslo","Prague",2096]
["Orebro Karlstd","Szczecin",2882]
["London/Stansted","Berlin/Tegel",2138]
["Rio Heathrw","Orebro Karlstd",3892]
["Bangkok","Las Palmas",1925]
["Amsterdam ","Riga",1917]
["Vilnius","Prague",3976]
["Kangerlussuaq","Sharm Luxor",4591]
["Bergen Sandefj","Munster",2367]
["Tallinn","Linkoeping",1821]
["Las Palmas","Seattle",1542]
["Athens","Joenkoeping",1552]
["Malta","Istanbul",4520]
["Frankfurt","Amsterdam ",3802]
["Vaxjoe Kalmar","Madrid",2705]
["Las Palmas","Warsaw",3418]
["Birmingham","Hurghada",2405]
["Ljubljana","Glasgow Edinbg",4476]
["Berlin/Tegel","Lyon Strasb",1854]
["Paris De Gaulle","Gdansk",4823]
["Budapest","Venice",2520]
["Malaga/Cost.Sol","Gdansk",4618]
["Warsaw","Kristiansand",1078]
["Amsterdam ","Narsarsuaq",4840]
["Dublin","Brussels ",{"$f":"CEILING(4000*RAND(),1)+1000","v":3132}]
["Dublin","Malaga/Cost.Sol",3992]
["St Petersburg","Milan/Malpensa",4879]
["Vilnius","Seattle",3542]
["Sharm Luxor","Zurich",1049]
["Tenerife","Kristiansand",3080]
["Vaxjoe Kalmar","Rome",1237]
["Kalmar Vaxjoe","Kristiansand",3063]
["Kangerlussuaq","Reykjavik",4164]
["Newark","Barcelona",1142]
["Lisbon","Brussels ",4441]
["St Petersburg","Ljubljana",3601]
["Oslo","Skopje Bornhlm",1297]
["Zurich","Troheim Sandefj",1870]
["Dusseldorf","Seattle",3642]
["Prague","Kalmar Vaxjoe",4488]
["Basel","Milan/Linate",3636]
["Stavanger","Rome",3171]
["Rome","Newark",1153]
["Milan/Malpensa","Hanover",3804]
["Singapore","Reykjavik",3560]
["Bergen Sandefj","Bergen",1663]
["Milan/Malpensa","Malaga/Cost.Sol",2787]
["Karlstad","Washington",1731]
["Prague","Helsinki",2960]
["Manchester","Helsinki",1562]
["Istanbul","Stuttgart",2490]
["Birmingham","Brussels ",1663]
["Orebro","Paderbo Munster ",1507]
["Gdansk","Kangerlussuaq",3022]
["Stavanger","Milan/Linate",4825]
["Moscow","Malaga Madrid",4284]
["Karlstd Orebro","Bergen Sandefj",4922]
["Berlin/Tegel","Sngpore Bangkok",2003]
["Karachi Lahore","Vilnius",4272]
["Vienna","Manchester",4109]
["Brussels ","Orebro Karlstd",2295]
["Istanbul","Birmingham",3884]
["Manchester","Rio Heathrw",1683]
["Helsingborg City ","Orebro",1768]
["Stockholm","Beijing",4530]
["Reykjavik","Troheim Sandefj",4870]
["Stuttgart","Vesteraas",3531]
["Venice","Stockholm",1881]
["Vienna","Paderbo Munster ",2100]
["Venice","Istanbul",2274]
["Vilnius","Chicago",1999]
["Hurghada","Paderbo Munster ",2204]
["Barcelona","Berlin/Tegel",3373]
["Birmingham","Singapore",1442]
["Hurghada","Tokyo/Narita",4866]
["Milan/Linate","Budapest",1119]
["Newark","Tokyo/Narita",1935]
["Joenkoeping","Las Palmas",4368]
["Moscow","Hanover",2085]
["Basel","Faroe Islands",1753]
["Frankfurt","Orebro",4625]
["Orebro Karlstd","Paderbo Munster ",2460]
["Hurghada","Glasgow",4570]
["Karlstad","Riga",2375]
["Troheim Sandefj","Rio Heathrw",4551]
["Paderbo Munster ","Malaga Madrid",3044]
["Vesteraas","Tenerife",1784]
["Faroe Islands","Karachi Lahore",1628]
["Budapest","Prague",{"$f":"CEILING(4000*RAND(),1)+1000","v":3848}]
["Lisbon","Helsinki",1544]
["Budapest","Barcelona",4731]
["Kalmar Vaxjoe","Wroclaw",1598]
["Hanover","Reykjavik",1211]
["Kalmar Vaxjoe","Las Palmas",4683]
["Vienna","Lisbon",1542]
["Sharm Luxor","Geneva",1245]
["Stockholm","Budapest",3814]
["Sharm Luxor","Ljubljana",2963]
["Vienna","Karlstad",4927]
["Rome","Amsterdam ",2976]
["Sharm","Chicago",4957]
["Hanover","Helsinki",3572]
["Nice","Riga",4949]
["Ljubljana","Bergen Sandefj",4103]
["Turku","London/Gatwick",3529]
["Amsterdam ","Paderbo Munster ",4741]
["Stavanger","Washington",1215]
["Chicago","Vaxjoe Kalmar",4914]
["Vilnius","Sandefjord",4151]
["Joenkoeping","Trondheim",2187]
["Hamburg","Barcelona",4862]
["Venice","Athens",2229]
["Brussels ","Kristiansand",2782]
["Frankfurt","Venice",3557]
["Gdansk","Bergen Sandefj",1559]
["Troheim Sandefj","Bergen Sandefj",1393]
["Nice","Bremen",1395]
["Sharm Luxor","Linkoeping",3941]
["Bergen","Bremen",3580]
["Sandefjord","Hurghada",4661]
["Szczecin","Paris De Gaulle",1200]
["Stavanger","Kalmar Vaxjoe",4218]
["Las Palmas","Zurich",2269]
["Tampere","Rome",3854]
["Bergen Sandefj","Tunis",2731]
["Sngpore Bangkok","St Petersburg",1060]
["Bergen Sandefj","Frankfurt",4757]
["Brussels ","Hanover",2532]
["Sngpore Bangkok","Brussels ",3315]
["Glasgow","London/Heathrow",2314]
["Rome/Ciampino","Bucarst Berlin",3878]
["London/Stansted","Warsaw",4535]
["Lisbon","Malaga/Cost.Sol",1767]
["Chicago","London/Stansted",2912]
["Karlstd Orebro","Paris De Gaulle",1329]
["Tenerife","London/Stansted",1575]
["Barcelona","Sngpore Bangkok",3776]
["Sharm Luxor","Moscow",4907]
["Reykjavik","Lyon Strasb",4063]
["Istanbul","Bergen",3038]
["Washington","Geneva",1164]
["Reykjavik","Rome",1797]
["Budapest","Narsarsuaq",4654]
["Stockholm","Luxembourg",3173]
["Warsaw","Beijing",4944]
["Washington","Zurich",1094]
["Sharm","Rio Heathrw",4726]
["Bremen","Zurich",3482]
["Kalmar Vaxjoe","Manchester",4079]
["Wroclaw","Geneva",1081]
["Barcelona","Venice",2025]
["Malaga/Cost.Sol","Riga",3490]
["Istanbul","Milan/Malpensa",{"$f":"CEILING(4000*RAND(),1)+1000","v":1570}]
["Reykjavik","Orebro Karlstd",1339]
["Hurghada","Hamburg",2672]
["Hanover","Paderbo Munster ",4881]
["Istanbul","Gdansk",1317]
["Wroclaw","Istanbul",4849]
["St Petersburg","Tokyo/Narita",4758]
["Budapest","Munich",2223]
["Tampere","Las Palmas",2671]
["Malaga Madrid","Athens",2690]
["Istanbul","Sngpore Bangkok",2067]
["Oslo","Sngpore Bangkok",4116]
["Barcelona","Hanover",4390]
["Sandefjord","Poznan",4099]
["Las Palmas","Malta",4416]
["Tallinn","Sandefjord",1706]
["Beijing","Ljubljana",3437]
["Paderbo Munster ","Barcelona",2816]
["Malaga Madrid","Newark",3529]
["Bucarst Berlin","Karlstd Orebro",1337]
["Vaxjoe Kalmar","Geneva",1437]
["Bergen","Joenkoeping",2567]
["Kangerlussuaq","Turku",4695]
["Glasgow Edinbg","Basel",1369]
["Malta","Faroe Islands",2365]
["Lyon Strasb","Paris De Gaulle",4259]
["Tallinn","Nice",1899]
["Faroe Islands","Bergen",4831]
["Hamburg","Las Palmas",3367]
["Frankfurt","Karachi Lahore",4450]
["Beijing","Madrid",4960]
["Beijing","Riga",4494]
["Madrid","Dublin",3281]
["Glasgow Edinbg","Karlstd Orebro",2421]
["Gothenburg","Malaga Madrid",2210]
["Milan/Linate","Bucarst Berlin",4435]
["Glasgow Edinbg","Bremen",4153]
["Dusseldorf","Gothenburg",3594]
["Oslo","Karlstad",3681]
["Glasgow","Athens",4840]
["Stavanger","Budapest",3943]
["Venice","Hanover",3709]
["Zurich","Stockholm",4922]
["London/Heathrow","Washington",2275]
["Warsaw","Gdansk",3497]
["Skopje Bornhlm","Barcelona",2016]
["Frankfurt","Linkoeping",3700]
["Warsaw","Manchester",3768]
["Geneva","St Petersburg",3766]
["Istanbul","Tunis",4501]
["Tenerife","Luxembourg",2589]
["Sngpore Bangkok","Gothenburg",3977]
["Singapore","Munich",2170]
["Warsaw","Vesteraas",4568]
["Lisbon","Vesteraas",3981]
["Wroclaw","Joenkoeping",2314]
["Madrid","Luxembourg",2866]
["Vaxjoe Kalmar","Prague",1190]
["Orebro Karlstd","Faroe Islands",3767]
["Tenerife","Frankfurt",3943]
["Orebro","Newark",3699]
["Poznan","Rome/Ciampino",4946]
["Hanover","London/Gatwick",1634]
["Rio Heathrw","Amsterdam ",1201]
["Orebro Karlstd","Vienna",{"$f":"CEILING(4000*RAND(),1)+1000","v":1005}]
["Chicago","Riga",3878]
["Glasgow","Norrkoeping",3561]
["Singapore","London/Heathrow",1485]
["Paderbo Munster ","Kangerlussuaq",1898]
["Milan/Linate","Lisbon",3019]
["Hamburg","Tenerife",3948]
["Szczecin","Brussels ",2556]
["Kangerlussuaq","Lisbon",2260]
["Dusseldorf","Helsingborg City ",4282]
["Lisbon","Paris De Gaulle",1347]
["Sharm Luxor","Bergen Sandefj",4522]
["Bucarst Berlin","Dublin",1240]
["Kalmar Vaxjoe","Bergen",3052]
["Karlstad","Helsinki",3540]
["London/Heathrow","Szczecin",1345]
["Milan/Malpensa","Istanbul",1272]
["Stockholm","Sharm",4753]
["Gothenburg","Orebro",1419]
["Glasgow Edinbg","Moscow",2403]
["Tokyo/Narita","Joenkoeping",1263]
["Hurghada","Narsarsuaq",4639]
["Lisbon","Hamburg",1714]
["Seattle","Lisbon",3011]
["Stavanger","Bangkok",4640]
["Brussels ","London/Stansted",4179]
["Prague","Karlstd Orebro",3120]
["Newark","Norrkoeping",3371]
["Hanover","Tunis",3498]
["Istanbul","Vienna",4816]
["Brussels ","Athens",4374]
["Malta","Zurich",2684]
["Washington","Tokyo/Narita",4055]
["Malaga Madrid","Seattle",1048]
["Joenkoeping","Glasgow Edinbg",4657]
["Berlin/Tegel","Vienna",4751]
["Birmingham","Frankfurt",4848]
["Dusseldorf","Ljubljana",2366]
["Gdansk","Rio Heathrw",2189]
["Dusseldorf","Munich",3053]
["Norrkoeping","Brussels ",1790]
["London/Stansted","Karlstad",3652]
["Narsarsuaq","Luxembourg",1255]
["Glasgow Edinbg","London/Gatwick",1656]
["Gdansk","Seattle",2738]
["Ljubljana","London/Gatwick",3340]
["London/Stansted","Glasgow Edinbg",4965]
["Manchester","London/Gatwick",2173]
["Narsarsuaq","Rome/Ciampino",1036]
["Glasgow","Munich",1796]
["Geneva","Malaga/Cost.Sol",4960]
["Wroclaw","Karachi Lahore",3934]
["Karachi Lahore","Munich",2682]
["Wroclaw","St Petersburg",3436]
["Sharm","Tampere",4653]
["Vilnius","Birmingham",2334]
["Chicago","Ljubljana",2155]
["Prague","Sharm",3615]
["Faroe Islands","Las Palmas",3961]
["Riga","Kristiansand",2959]
["Vaxjoe Kalmar","Seattle",3620]
["Linkoeping","Chicago",4585]
["St Petersburg","Reykjavik",2928]
["Tampere","Hurghada",3952]
["Hamburg","Kristiansand",{"$f":"CEILING(4000*RAND(),1)+1000","v":2600}]
["Karachi Lahore","Singapore",2862]
["Joenkoeping","Amsterdam ",1654]
["Luxembourg","Kangerlussuaq",3196]
["Tenerife","Vilnius",4735]
["Bergen","Vesteraas",3778]
["Ljubljana","Skopje Bornhlm",2206]
["Washington","Malaga/Cost.Sol",2328]
["Zurich","Tallinn",1980]
["Prague","Rio Heathrw",1863]
["Glasgow","Luxembourg",3946]
["Istanbul","Moscow",4750]
["Karlstd Orebro","Malta",2955]
["Rome","Malaga Madrid",3860]
["St Petersburg","Chicago",2426]
["Tallinn","Newark",3724]
["Moscow","Tokyo/Narita",1022]
["Tenerife","Hanover",3477]
["Seattle","Hurghada",1870]
["Glasgow","Rome",4853]
["Orebro","Hamburg",2489]
["Washington","Rome",2289]
["Istanbul","Brussels ",4121]
["Dusseldorf","Skopje Bornhlm",4282]
["Geneva","Basel",2619]
["Barcelona","Chicago",1930]
["Hamburg","Poznan",3244]
["Moscow","Lyon Strasb",1679]
["Riga","Ljubljana",2458]
["Vienna","Tenerife",1005]
["Glasgow Edinbg","Joenkoeping",1272]
["Newark","Poznan",4450]
["Tenerife","Tunis",2028]
["Barcelona","Luxembourg",1556]
["Lisbon","Rome",3774]
["Bergen","Sngpore Bangkok",2339]
["Troheim Sandefj","Lyon Strasb",3418]
["Amsterdam ","Hurghada",3609]
["Tenerife","Bangkok",1489]
["Milan/Malpensa","Geneva",2669]
["Gothenburg","Manchester",3684]
["Las Palmas","Munich",1655]
["London/Stansted","London/Gatwick",4868]
["Oslo","Milan/Linate",2360]
["Geneva","Milan/Linate",2697]
["Orebro Karlstd","Tenerife",4225]
["Wroclaw","Karlstad",1099]
["Glasgow Edinbg","Trondheim",4559]
["Sharm Luxor","Vesteraas",4074]
["Luxembourg","Helsingborg City ",3330]
["Sharm","Seattle",1415]
["Rio Heathrw","Norrkoeping",3576]
["Glasgow Edinbg","Dublin",3349]
["Joenkoeping","Sharm Luxor",3307]
["Athens","Milan/Linate",4252]
["Narsarsuaq","St Petersburg",1700]
["Seattle","Szczecin",4611]
["Gothenburg","Berlin/Tegel",4906]
["Athens","Birmingham",1163]
["Lyon Strasb","Oslo",4706]
["Sharm","Milan/Linate",1840]
["Venice","Hamburg",4739]
["Orebro Karlstd","Dublin",4893]
["Hurghada","Karlstad",4295]
["Skopje Bornhlm","Brussels ",{"$f":"CEILING(4000*RAND(),1)+1000","v":4679}]
["Turku","Birmingham",4879]
["Prague","Sandefjord",3447]
["Tampere","Vaxjoe Kalmar",1446]
["Karlstd Orebro","Istanbul",2813]
["Rio Heathrw","Las Palmas",1339]
["Milan/Linate","London/Stansted",4092]
["Dublin","Basel",4953]
["Stavanger","Zurich",1676]
["Bucarst Berlin","Prague",4105]
["Paris De Gaulle","St Petersburg",4297]
["Turku","Athens",3822]
["Beijing","Orebro",1394]
["Stuttgart","Nice",2108]
["Birmingham","Sngpore Bangkok",3215]
["Sngpore Bangkok","Athens",1632]